Workbook

Sheet Cover
C2: Powercor
C3: Revised regulatory proposal 2026-31
C5: Regional and rural SWER upgrades
C6: Model number: | D6: 3.3.02
C8: 2025-12-01
A40: =_xlfn.SHEETS() -> 20

Sheet Summary
A1: =bus -> Powercor
A2: =proj -> Regional and rural supply upgrades
A3: SUMMARY
A5: RESULTS
F7: Pct of VCR | G7: PV of costs | H7: PV of benefits | I7: NPV
C8: Option | F8: % | G8: =output_dollars -> 2026-06-30 | H8: =output_dollars -> 2026-06-30 | I8: =output_dollars -> 2026-06-30
C9: =options -> Option 1 (base case) | D9: =INDEX(Assumptions!$E$14:$E$18, MATCH(C9, Assumptions!$C$14:$C$18,0)) -> No change to existing practices | F9: =Assumptions!$E$24 -> 1 | G9: =IF(Data!$C9, "", INDEX(Consol!$F$15:$F$82, MATCH($C9&G$7, Consol!$D$15:$D$82,0))/mill_conv) -> 0 | H9: =IF(Data!$C9, "", INDEX(Consol!$F$15:$F$82, MATCH($C9&H$7, Consol!$D$15:$D$82,0))/mill_conv) -> 0 | I9: =IF(Data!$C9, "", INDEX(Consol!$F$15:$F$82, MATCH($C9&I$7, Consol!$D$15:$D$82,0))/mill_conv) -> 0
C10: Option 2 | D10: =INDEX(Assumptions!$E$14:$E$18, MATCH(C10, Assumptions!$C$14:$C$18,0)) -> Regulatory proposal economic SWER upgrades | F10: =Assumptions!$E$24 -> 1 | G10: =IF(Data!$C10, "", INDEX(Consol!$F$15:$F$82, MATCH($C10&G$7, Consol!$D$15:$D$82,0))/mill_conv) -> -30.36029964 | H10: =IF(Data!$C10, "", INDEX(Consol!$F$15:$F$82, MATCH($C10&H$7, Consol!$D$15:$D$82,0))/mill_conv) -> 387.2180948 | I10: =IF(Data!$C10, "", INDEX(Consol!$F$15:$F$82, MATCH($C10&I$7, Consol!$D$15:$D$82,0))/mill_conv) -> 356.8577952
C11: Option 3 | D11: =INDEX(Assumptions!$E$14:$E$18, MATCH(C11, Assumptions!$C$14:$C$18,0)) -> Revised proposal economic SWER upgrades | F11: =Assumptions!$E$24 -> 1 | G11: =IF(Data!$C11, "", INDEX(Consol!$F$15:$F$82, MATCH($C11&G$7, Consol!$D$15:$D$82,0))/mill_conv) -> -66.74760294 | H11: =IF(Data!$C11, "", INDEX(Consol!$F$15:$F$82, MATCH($C11&H$7, Consol!$D$15:$D$82,0))/mill_conv) -> 599.9408705 | I11: =IF(Data!$C11, "", INDEX(Consol!$F$15:$F$82, MATCH($C11&I$7, Consol!$D$15:$D$82,0))/mill_conv) -> 533.1932676
C12: Option 4 | D12: =INDEX(Assumptions!$E$14:$E$18, MATCH(C12, Assumptions!$C$14:$C$18,0)) -> 0 | G12: =IF(Data!$C12, "", INDEX(Consol!$F$15:$F$82, MATCH($C12&G$7, Consol!$D$15:$D$82,0))/mill_conv) ->  | H12: =IF(Data!$C12, "", INDEX(Consol!$F$15:$F$82, MATCH($C12&H$7, Consol!$D$15:$D$82,0))/mill_conv) ->  | I12: =IF(Data!$C12, "", INDEX(Consol!$F$15:$F$82, MATCH($C12&I$7, Consol!$D$15:$D$82,0))/mill_conv) -> 
C13: Option 5 | D13: =INDEX(Assumptions!$E$14:$E$18, MATCH(C13, Assumptions!$C$14:$C$18,0)) -> 0 | G13: =IF(Data!$C13, "", INDEX(Consol!$F$15:$F$82, MATCH($C13&G$7, Consol!$D$15:$D$82,0))/mill_conv) ->  | H13: =IF(Data!$C13, "", INDEX(Consol!$F$15:$F$82, MATCH($C13&H$7, Consol!$D$15:$D$82,0))/mill_conv) ->  | I13: =IF(Data!$C13, "", INDEX(Consol!$F$15:$F$82, MATCH($C13&I$7, Consol!$D$15:$D$82,0))/mill_conv) -> 
G16: NPV
C17: Selected option (refer business case) | G17: =output_dollars -> 2026-06-30
C18: Option 2 | D18: =INDEX($D$9:$D$13,MATCH(G18, $I$9:$I$13,0)) -> Revised proposal economic SWER upgrades | G18: =_xlfn.MAXIFS(I9:I13, IF(compliance, Data!$F$9:$F$13, Data!$C$9:$C$13),FALSE) -> 533.1932676
A22: PREFERRED OPTION
C24: Preferred Option
C25: =C18 -> Option 2
C28: Expenditure forecast | D28: =output_dollars -> 2026-06-30 | F28: ='Option1 (base case)'!I9 -> 2026-27 | G28: ='Option1 (base case)'!J9 -> 2027-28 | H28: ='Option1 (base case)'!K9 -> 2028-29 | I28: ='Option1 (base case)'!L9 -> 2029-30 | J28: ='Option1 (base case)'!M9 -> 2030-31 | K28: ='Option1 (base case)'!N9 -> 2031-32 | L28: Total
C29: Capital expenditure | F29: =-INDEX(Consol!$I$15:$Q$82,MATCH($C$25&$C29,Consol!$D$15:$D$82,0), MATCH(F$28, Consol!$I$9:$Q$9,0))/mill_conv -> 10.62428554 | G29: =-INDEX(Consol!$I$15:$Q$82,MATCH($C$25&$C29,Consol!$D$15:$D$82,0), MATCH(G$28, Consol!$I$9:$Q$9,0))/mill_conv -> 7.304196309 | H29: =-INDEX(Consol!$I$15:$Q$82,MATCH($C$25&$C29,Consol!$D$15:$D$82,0), MATCH(H$28, Consol!$I$9:$Q$9,0))/mill_conv -> 12.61633908 | I29: =-INDEX(Consol!$I$15:$Q$82,MATCH($C$25&$C29,Consol!$D$15:$D$82,0), MATCH(I$28, Consol!$I$9:$Q$9,0))/mill_conv -> 15.49374975 | J29: =-INDEX(Consol!$I$15:$Q$82,MATCH($C$25&$C29,Consol!$D$15:$D$82,0), MATCH(J$28, Consol!$I$9:$Q$9,0))/mill_conv -> 16.7111158 | L29: =SUM(F29:J29) -> 62.74968647
C30: Operating expenditure | F30: =-INDEX(Consol!$I$15:$Q$82,MATCH($C$25&$C30,Consol!$D$15:$D$82,0), MATCH(F$28, Consol!$I$9:$Q$9,0))/mill_conv -> 0 | G30: =-INDEX(Consol!$I$15:$Q$82,MATCH($C$25&$C30,Consol!$D$15:$D$82,0), MATCH(G$28, Consol!$I$9:$Q$9,0))/mill_conv -> 0 | H30: =-INDEX(Consol!$I$15:$Q$82,MATCH($C$25&$C30,Consol!$D$15:$D$82,0), MATCH(H$28, Consol!$I$9:$Q$9,0))/mill_conv -> 0 | I30: =-INDEX(Consol!$I$15:$Q$82,MATCH($C$25&$C30,Consol!$D$15:$D$82,0), MATCH(I$28, Consol!$I$9:$Q$9,0))/mill_conv -> 0 | J30: =-INDEX(Consol!$I$15:$Q$82,MATCH($C$25&$C30,Consol!$D$15:$D$82,0), MATCH(J$28, Consol!$I$9:$Q$9,0))/mill_conv -> 0 | L30: =SUM(F30:J30) -> 0
A34: CHART
C36: Capex and risk ($M, 2026)
A62: SENSITIVITIES
C65: Sensitivity | D65: =output_dollars -> 2026-06-30 | F65: =Sensitivity_calcs!C89 -> Option 1 (base case) | G65: =Sensitivity_calcs!D89 -> Option 2 | H65: =Sensitivity_calcs!E89 -> Option 3 | I65: =Sensitivity_calcs!F89 -> Option 4 | J65: =Sensitivity_calcs!G89 -> Option 5 | L65: Preferred option
C66: =Sensitivity_calcs!B90 -> None | F66: =Sensitivity_calcs!C90 -> 0 | G66: =Sensitivity_calcs!D90 -> 356.8577952 | H66: =Sensitivity_calcs!E90 -> 533.1932676 | I66: =Sensitivity_calcs!F90 ->  | J66: =Sensitivity_calcs!G90 ->  | L66: =Sensitivity_calcs!K90 -> Option 3
C67: =Sensitivity_calcs!B91 -> Capex 10% higher | F67: =Sensitivity_calcs!C91 -> 0 | G67: =Sensitivity_calcs!D91 -> 353.8217652 | H67: =Sensitivity_calcs!E91 -> 526.5185073 | I67: =Sensitivity_calcs!F91 ->  | J67: =Sensitivity_calcs!G91 ->  | L67: =Sensitivity_calcs!K91 -> Option 3
C68: =Sensitivity_calcs!B92 -> Capex 10% lower | F68: =Sensitivity_calcs!C92 -> 0 | G68: =Sensitivity_calcs!D92 -> 359.8938251 | H68: =Sensitivity_calcs!E92 -> 539.8680279 | I68: =Sensitivity_calcs!F92 ->  | J68: =Sensitivity_calcs!G92 ->  | L68: =Sensitivity_calcs!K92 -> Option 3
C69: =Sensitivity_calcs!B93 -> Total benefits 10% higher | F69: =Sensitivity_calcs!C93 -> 0 | G69: =Sensitivity_calcs!D93 -> 395.5796047 | H69: =Sensitivity_calcs!E93 -> 593.1873546 | I69: =Sensitivity_calcs!F93 ->  | J69: =Sensitivity_calcs!G93 ->  | L69: =Sensitivity_calcs!K93 -> Option 3
C70: =Sensitivity_calcs!B94 -> Total benefits 10% lower | F70: =Sensitivity_calcs!C94 -> 0 | G70: =Sensitivity_calcs!D94 -> 318.1359857 | H70: =Sensitivity_calcs!E94 -> 473.1991805 | I70: =Sensitivity_calcs!F94 ->  | J70: =Sensitivity_calcs!G94 ->  | L70: =Sensitivity_calcs!K94 -> Option 3
C71: =Sensitivity_calcs!B95 -> Capex 10% higher & Total benefits 10% lower | F71: =Sensitivity_calcs!C95 -> 0 | G71: =Sensitivity_calcs!D95 -> 315.0999557 | H71: =Sensitivity_calcs!E95 -> 466.5244202 | I71: =Sensitivity_calcs!F95 ->  | J71: =Sensitivity_calcs!G95 ->  | L71: =Sensitivity_calcs!K95 -> Option 3
C72: =Sensitivity_calcs!B96 -> 0 | F72: =Sensitivity_calcs!C96 ->  | G72: =Sensitivity_calcs!D96 ->  | H72: =Sensitivity_calcs!E96 ->  | I72: =Sensitivity_calcs!F96 ->  | J72: =Sensitivity_calcs!G96 ->  | L72: =Sensitivity_calcs!K96 -> 
C73: =Sensitivity_calcs!B97 -> 0 | F73: =Sensitivity_calcs!C97 ->  | G73: =Sensitivity_calcs!D97 ->  | H73: =Sensitivity_calcs!E97 ->  | I73: =Sensitivity_calcs!F97 ->  | J73: =Sensitivity_calcs!G97 ->  | K73: =IF(C73=0,0, INDEX($F$65:$J$65, MATCH(MAX($F73:$I73),$F73:$I73,0))) -> 0 | L73: =Sensitivity_calcs!K97 -> 
D74: =Sensitivity_calcs!B98 -> 0 | F74: =Sensitivity_calcs!C98 ->  | G74: =Sensitivity_calcs!D98 ->  | H74: =Sensitivity_calcs!E98 ->  | I74: =Sensitivity_calcs!F98 ->  | J74: =Sensitivity_calcs!G98 ->  | L74: =Sensitivity_calcs!K98 -> 
D75: =Sensitivity_calcs!B99 -> 0
A76: r

Sheet Assumptions
A1: =bus -> Powercor
A2: =proj -> Regional and rural supply upgrades
A4: Project
C6: Business: | E6: Powercor
C8: Descripton: | E8: Regional and rural supply upgrades
C10: Date of cost inputs: | E10: December | G10: 2023
C13: Option | E13: Description
C14: =options -> Option 1 (base case) | E14: No change to existing practices
C15: Option 2 | E15: Regulatory proposal economic SWER upgrades
C16: Option 3 | E16: Revised proposal economic SWER upgrades
C17: Option 4
C18: Option 5
C20: Compliance project | E20: No
C22: Expenditure starts | E22: 2026-27 | F22: [start]
C24: VCR scale factor on revised proposal forecast | E24: 1 | G24: *Note: Sort column I in '4.calculation_options' & column C in '5.calculation_options_timing' (PVR columns) from highest to lowest for VCR
G25: scale factor to take effect
A27: Timing & WACC
C29: Input dollars | G29: =EOMONTH(DATE(Assumptions!$G$10,INDEX(Data!$K$66:$K$67, MATCH(Assumptions!$E$10, Data!$J$66:$J$67,0)), 1),0) -> 2023-12-31 | H29: [input_dollars]
C30: Pre-tax real WACC | G30: 0.035 | H30: [real_disc]
C31: VCR date | G31: 2023-12-31 | H31: [vcr_date]
C33: Analysis period (years) | G33: 20 | H33: [years]\
C35: Output dollars | G35: 2026-06-30 | H35: [output_dollars]
C36: Other benefits date | G36: 2023-12-31 | H36: [custval_date]
A40: Sensitivities
G44: Capex | H44: Total benefits
B45: 1 | C45: =IF(G45=0, "", G$44&" "&ABS($G45)*100&"%"&IF($G45>0, " higher", " lower"))&IF(AND(G45<>0, H45<>0), " & ", "")&IF(H45=0, "", H$44&" "&ABS($H45)*100&"%"&IF($H45>0, " higher", " lower")) -> Capex 10% higher | G45: 0.1 | H45: 0
B46: 2 | C46: =IF(G46=0, "", G$44&" "&ABS($G46)*100&"%"&IF($G46>0, " higher", " lower"))&IF(AND(G46<>0, H46<>0), " & ", "")&IF(H46=0, "", H$44&" "&ABS($H46)*100&"%"&IF($H46>0, " higher", " lower")) -> Capex 10% lower | G46: -0.1 | H46: 0
B47: 3 | C47: =IF(G47=0, "", G$44&" "&ABS($G47)*100&"%"&IF($G47>0, " higher", " lower"))&IF(AND(G47<>0, H47<>0), " & ", "")&IF(H47=0, "", H$44&" "&ABS($H47)*100&"%"&IF($H47>0, " higher", " lower")) -> Total benefits 10% higher | G47: 0 | H47: 0.1
B48: 4 | C48: =IF(G48=0, "", G$44&" "&ABS($G48)*100&"%"&IF($G48>0, " higher", " lower"))&IF(AND(G48<>0, H48<>0), " & ", "")&IF(H48=0, "", H$44&" "&ABS($H48)*100&"%"&IF($H48>0, " higher", " lower")) -> Total benefits 10% lower | G48: 0 | H48: -0.1
B49: 5 | C49: =IF(G49=0, "", G$44&" "&ABS($G49)*100&"%"&IF($G49>0, " higher", " lower"))&IF(AND(G49<>0, H49<>0), " & ", "")&IF(H49=0, "", H$44&" "&ABS($H49)*100&"%"&IF($H49>0, " higher", " lower")) -> Capex 10% higher & Total benefits 10% lower | G49: 0.1 | H49: -0.1

Sheet Option1 (base case)
A1: =bus -> Powercor
A2: =proj -> Regional and rural supply upgrades
A3: OPTION 1 (base case)
A6: Count | H6: 0 | I6: =H6+1 -> 1 | J6: 2 | K6: 3 | L6: 4 | M6: 5 | N6: 6 | O6: 7 | P6: 8 | Q6: 9 | R6: 10 | S6: 11 | T6: 12 | U6: 13 | V6: 14 | W6: 15 | X6: 16 | Y6: 17 | Z6: 18 | AA6: 19 | AB6: 20 | AC6: 21 | AD6: 22 | AE6: 23 | AF6: 24 | AG6: 25
A7: Value of CO2 reductions | G7: $/MWh | I7: =IF(ISBLANK(Assumptions!#REF!), H7,Assumptions!#REF!*thous_conv) ->  | J7: =IF(ISBLANK(Assumptions!#REF!), I7,Assumptions!#REF!*thous_conv) ->  | K7: =IF(ISBLANK(Assumptions!#REF!), J7,Assumptions!#REF!*thous_conv) ->  | L7: =IF(ISBLANK(Assumptions!#REF!), K7,Assumptions!#REF!*thous_conv) ->  | M7: =IF(ISBLANK(Assumptions!#REF!), L7,Assumptions!#REF!*thous_conv) ->  | N7: =IF(ISBLANK(Assumptions!#REF!), M7,Assumptions!#REF!*thous_conv) ->  | O7: =IF(ISBLANK(Assumptions!#REF!), N7,Assumptions!#REF!*thous_conv) ->  | P7: =IF(ISBLANK(Assumptions!#REF!), O7,Assumptions!#REF!*thous_conv) ->  | Q7: =IF(ISBLANK(Assumptions!#REF!), P7,Assumptions!#REF!*thous_conv) ->  | R7: =IF(ISBLANK(Assumptions!#REF!), Q7,Assumptions!#REF!*thous_conv) ->  | S7: =IF(ISBLANK(Assumptions!#REF!), R7,Assumptions!#REF!*thous_conv) ->  | T7: =IF(ISBLANK(Assumptions!#REF!), S7,Assumptions!#REF!*thous_conv) ->  | U7: =IF(ISBLANK(Assumptions!#REF!), T7,Assumptions!#REF!*thous_conv) ->  | V7: =IF(ISBLANK(Assumptions!#REF!), U7,Assumptions!#REF!*thous_conv) ->  | W7: =IF(ISBLANK(Assumptions!#REF!), V7,Assumptions!#REF!*thous_conv) ->  | X7: =IF(ISBLANK(Assumptions!#REF!), W7,Assumptions!#REF!*thous_conv) ->  | Y7: =IF(ISBLANK(Assumptions!#REF!), X7,Assumptions!#REF!*thous_conv) ->  | Z7: =IF(ISBLANK(Assumptions!#REF!), Y7,Assumptions!#REF!*thous_conv) ->  | AA7: =IF(ISBLANK(Assumptions!#REF!), Z7,Assumptions!#REF!*thous_conv) ->  | AB7: =IF(ISBLANK(Assumptions!#REF!), AA7,Assumptions!#REF!*thous_conv) ->  | AC7: =IF(ISBLANK(Assumptions!#REF!), AB7,Assumptions!#REF!*thous_conv) ->  | AD7: =IF(ISBLANK(Assumptions!#REF!), AC7,Assumptions!#REF!*thous_conv) ->  | AE7: =IF(ISBLANK(Assumptions!#REF!), AD7,Assumptions!#REF!*thous_conv) ->  | AF7: =IF(ISBLANK(Assumptions!#REF!), AE7,Assumptions!#REF!*thous_conv) ->  | AG7: =IF(ISBLANK(Assumptions!#REF!), AF7,Assumptions!#REF!*thous_conv) -> 
G9: Units | H9: =DATE(LEFT(I9,4), 6,30) -> 2026-06-30 | I9: =start -> 2026-27 | J9: =LEFT(I9,4)+1&"-"&RIGHT(I9,2)+1 -> 2027-28 | K9: 2028-29 | L9: 2029-30 | M9: 2030-31 | N9: 2031-32 | O9: 2032-33 | P9: 2033-34 | Q9: 2034-35 | R9: 2035-36 | S9: 2036-37 | T9: 2037-38 | U9: 2038-39 | V9: 2039-40 | W9: 2040-41 | X9: 2041-42 | Y9: 2042-43 | Z9: 2043-44 | AA9: 2044-45 | AB9: 2045-46 | AC9: 2046-47 | AD9: 2047-48 | AE9: 2048-49 | AF9: 2049-50 | AG9: 2050-51
A11: INVESTMENT & OPERATING COST
C13: Capex | E13: Asset life (yrs)
C14: < Enter description > | E14: 0 | G14: =input_dollars -> 2023-12-31 | I14: 0 | J14: 0 | K14: 0 | L14: 0 | M14: 0 | N14: 0 | O14: 0 | P14: 0 | Q14: 0 | R14: 0 | S14: 0 | T14: 0 | U14: 0 | V14: 0 | W14: 0 | X14: 0 | Y14: 0 | Z14: 0 | AA14: 0 | AB14: 0 | AC14: 0 | AD14: 0 | AE14: 0 | AF14: 0 | AG14: 0
C15: < Enter description > | E15: 0 | G15: =input_dollars -> 2023-12-31 | I15: 0 | J15: 0 | K15: 0 | L15: 0 | M15: 0 | N15: 0 | O15: 0 | P15: 0 | Q15: 0 | R15: 0 | S15: 0 | T15: 0 | U15: 0 | V15: 0 | W15: 0 | X15: 0 | Y15: 0 | Z15: 0 | AA15: 0 | AB15: 0 | AC15: 0 | AD15: 0 | AE15: 0 | AF15: 0 | AG15: 0
C16: < Enter description > | E16: 0 | G16: =input_dollars -> 2023-12-31 | I16: 0 | J16: 0 | K16: 0 | L16: 0 | M16: 0 | N16: 0 | O16: 0 | P16: 0 | Q16: 0 | R16: 0 | S16: 0 | T16: 0 | U16: 0 | V16: 0 | W16: 0 | X16: 0 | Y16: 0 | Z16: 0 | AA16: 0 | AB16: 0 | AC16: 0 | AD16: 0 | AE16: 0 | AF16: 0 | AG16: 0
C17: Capital expenditure | G17: =input_dollars -> 2023-12-31 | I17: =SUM(I14:I16) -> 0 | J17: 0 | K17: 0 | L17: 0 | M17: 0 | N17: 0 | O17: 0 | P17: 0 | Q17: 0 | R17: 0 | S17: 0 | T17: 0 | U17: 0 | V17: 0 | W17: 0 | X17: 0 | Y17: 0 | Z17: 0 | AA17: 0 | AB17: 0 | AC17: =SUM(AC14:AC16) -> 0 | AD17: =SUM(AD14:AD16) -> 0 | AE17: =SUM(AE14:AE16) -> 0 | AF17: =SUM(AF14:AF16) -> 0 | AG17: =SUM(AG14:AG16) -> 0
C19: Operating expenditure | G19: =input_dollars -> 2023-12-31 | I19: 0 | J19: 0 | K19: 0 | L19: 0 | M19: 0 | N19: 0 | O19: 0 | P19: 0 | Q19: 0 | R19: 0 | S19: 0 | T19: 0 | U19: 0 | V19: 0 | W19: 0 | X19: 0 | Y19: 0 | Z19: 0 | AA19: 0 | AB19: 0 | AC19: 0 | AD19: 0 | AE19: 0 | AF19: 0 | AG19: 0
A22: RISK ASSUMPTIONS
C24: PoF (major) | I24: 0 | J24: 0 | K24: 0 | L24: 0 | M24: 0 | N24: 0 | O24: 0 | P24: 0 | Q24: 0 | R24: 0 | S24: 0 | T24: 0 | U24: 0 | V24: 0 | W24: 0 | X24: 0 | Y24: 0 | Z24: 0 | AA24: 0 | AB24: 0 | AC24: 0 | AD24: 0 | AE24: 0 | AF24: 0 | AG24: 0
C25: PoF (reparable) | I25: 0 | J25: 0 | K25: 0 | L25: 0 | M25: 0 | N25: 0 | O25: 0 | P25: 0 | Q25: 0 | R25: 0 | S25: 0 | T25: 0 | U25: 0 | V25: 0 | W25: 0 | X25: 0 | Y25: 0 | Z25: 0 | AA25: 0 | AB25: 0 | AC25: 0 | AD25: 0 | AE25: 0 | AF25: 0 | AG25: 0
C27: Energy at risk (weighted) | G27: MWh | I27: 0 | J27: 0 | K27: 0 | L27: 0 | M27: 0 | N27: 0 | O27: 0 | P27: 0 | Q27: 0 | R27: 0 | S27: 0 | T27: 0 | U27: 0 | V27: 0 | W27: 0 | X27: 0 | Y27: 0 | Z27: 0 | AA27: 0 | AB27: 0 | AC27: 0 | AD27: 0 | AE27: 0 | AF27: 0 | AG27: 0
C28: Energy at risk value (CECV + CO2 + VCR+Bushfire) | D28: $/MWh | F28: =IF(AND(SUM(I27:AG27)<>0, E28=0), "!", "") ->  | G28: =input_dollars -> 2023-12-31 | I28: =INDEX(Options_Summary!E$38:E$42, MATCH($A$3, Options_Summary!$C$38:$C$42,0)) -> 54258169.74 | J28: =INDEX(Options_Summary!F$38:F$42, MATCH($A$3, Options_Summary!$C$38:$C$42,0)) -> 54001796.78 | K28: =INDEX(Options_Summary!G$38:G$42, MATCH($A$3, Options_Summary!$C$38:$C$42,0)) -> 52987252.4 | L28: =INDEX(Options_Summary!H$38:H$42, MATCH($A$3, Options_Summary!$C$38:$C$42,0)) -> 52350913.23 | M28: =INDEX(Options_Summary!I$38:I$42, MATCH($A$3, Options_Summary!$C$38:$C$42,0)) -> 53772344.42 | N28: =INDEX(Options_Summary!J$38:J$42, MATCH($A$3, Options_Summary!$C$38:$C$42,0)) -> 54724777.63 | O28: =INDEX(Options_Summary!K$38:K$42, MATCH($A$3, Options_Summary!$C$38:$C$42,0)) -> 58271133.81 | P28: =INDEX(Options_Summary!L$38:L$42, MATCH($A$3, Options_Summary!$C$38:$C$42,0)) -> 59235391.39 | Q28: =INDEX(Options_Summary!M$38:M$42, MATCH($A$3, Options_Summary!$C$38:$C$42,0)) -> 60147230.82 | R28: =INDEX(Options_Summary!N$38:N$42, MATCH($A$3, Options_Summary!$C$38:$C$42,0)) -> 60147230.82 | S28: =INDEX(Options_Summary!O$38:O$42, MATCH($A$3, Options_Summary!$C$38:$C$42,0)) -> 60147230.82 | T28: =INDEX(Options_Summary!P$38:P$42, MATCH($A$3, Options_Summary!$C$38:$C$42,0)) -> 60147230.82 | U28: =INDEX(Options_Summary!Q$38:Q$42, MATCH($A$3, Options_Summary!$C$38:$C$42,0)) -> 60147230.82 | V28: =INDEX(Options_Summary!R$38:R$42, MATCH($A$3, Options_Summary!$C$38:$C$42,0)) -> 60147230.82 | W28: =INDEX(Options_Summary!S$38:S$42, MATCH($A$3, Options_Summary!$C$38:$C$42,0)) -> 60147230.82 | X28: =INDEX(Options_Summary!T$38:T$42, MATCH($A$3, Options_Summary!$C$38:$C$42,0)) -> 0 | Y28: =INDEX(Options_Summary!U$38:U$42, MATCH($A$3, Options_Summary!$C$38:$C$42,0)) -> 0 | Z28: =INDEX(Options_Summary!V$38:V$42, MATCH($A$3, Options_Summary!$C$38:$C$42,0)) -> 0 | AA28: =INDEX(Options_Summary!W$38:W$42, MATCH($A$3, Options_Summary!$C$38:$C$42,0)) -> 0 | AB28: =INDEX(Options_Summary!X$38:X$42, MATCH($A$3, Options_Summary!$C$38:$C$42,0)) -> 0 | AC28: =INDEX(Options_Summary!Y$38:Y$42, MATCH($A$3, Options_Summary!$C$38:$C$42,0)) -> 0 | AD28: =INDEX(Options_Summary!Z$38:Z$42, MATCH($A$3, Options_Summary!$C$38:$C$42,0)) -> 0 | AE28: =INDEX(Options_Summary!AA$38:AA$42, MATCH($A$3, Options_Summary!$C$38:$C$42,0)) -> 0 | AF28: =INDEX(Options_Summary!AB$38:AB$42, MATCH($A$3, Options_Summary!$C$38:$C$42,0)) -> 0 | AG28: =INDEX(Options_Summary!AC$38:AC$42, MATCH($A$3, Options_Summary!$C$38:$C$42,0)) -> 0
C30: Safety consequence | D30: (after DF) | G30: =input_dollars -> 2023-12-31 | I30: 0 | J30: 0 | K30: 0 | L30: 0 | M30: 0 | N30: 0 | O30: 0 | P30: 0 | Q30: 0 | R30: 0 | S30: 0 | T30: 0 | U30: 0 | V30: 0 | W30: 0 | X30: 0 | Y30: 0 | Z30: 0 | AA30: 0 | AB30: 0 | AC30: 0 | AD30: 0 | AE30: 0 | AF30: 0 | AG30: 0
C31: Unplanned replacements | G31: =input_dollars -> 2023-12-31 | I31: 0 | J31: 0 | K31: 0 | L31: 0 | M31: 0 | N31: 0 | O31: 0 | P31: 0 | Q31: 0 | R31: 0 | S31: 0 | T31: 0 | U31: 0 | V31: 0 | W31: 0 | X31: 0 | Y31: 0 | Z31: 0 | AA31: 0 | AB31: 0 | AC31: 0 | AD31: 0 | AE31: 0 | AF31: 0 | AG31: 0
C32: Environmental consequence | D32: (after DF) | G32: =input_dollars -> 2023-12-31 | I32: 0 | J32: 0 | K32: 0 | L32: 0 | M32: 0 | N32: 0 | O32: 0 | P32: 0 | Q32: 0 | R32: 0 | S32: 0 | T32: 0 | U32: 0 | V32: 0 | W32: 0 | X32: 0 | Y32: 0 | Z32: 0 | AA32: 0 | AB32: 0 | AC32: 0 | AD32: 0 | AE32: 0 | AF32: 0 | AG32: 0
C33: < Other risk - enter description > | G33: =input_dollars -> 2023-12-31 | I33: 0 | J33: 0 | K33: 0 | L33: 0 | M33: 0 | N33: 0 | O33: 0 | P33: 0 | Q33: 0 | R33: 0 | S33: 0 | T33: 0 | U33: 0 | V33: 0 | W33: 0 | X33: 0 | Y33: 0 | Z33: 0 | AA33: 0 | AB33: 0 | AC33: 0 | AD33: 0 | AE33: 0 | AF33: 0 | AG33: 0
C34: < Other risk - enter description > | G34: =input_dollars -> 2023-12-31 | I34: 0 | J34: 0 | K34: 0 | L34: 0 | M34: 0 | N34: 0 | O34: 0 | P34: 0 | Q34: 0 | R34: 0 | S34: 0 | T34: 0 | U34: 0 | V34: 0 | W34: 0 | X34: 0 | Y34: 0 | Z34: 0 | AA34: 0 | AB34: 0 | AC34: 0 | AD34: 0 | AE34: 0 | AF34: 0 | AG34: 0
C36: Total risk cost | I36: =SUM(I28:I34) -> 54258169.74 | J36: =SUM(J28:J34) -> 54001796.78 | K36: 52987252.4 | L36: 52350913.23 | M36: 53772344.42 | N36: 54724777.63 | O36: 58271133.81 | P36: 59235391.39 | Q36: 60147230.82 | R36: 60147230.82 | S36: 60147230.82 | T36: 60147230.82 | U36: 60147230.82 | V36: 60147230.82 | W36: 60147230.82 | X36: 0 | Y36: 0 | Z36: 0 | AA36: 0 | AB36: 0 | AC36: =SUM(AC28:AC34) -> 0 | AD36: =SUM(AD28:AD34) -> 0 | AE36: =SUM(AE28:AE34) -> 0 | AF36: =SUM(AF28:AF34) -> 0 | AG36: =SUM(AG28:AG34) -> 0
A38: OTHER BENEFITS
C41: Reduction in CO2 emissions | G41: MWh | I41: 0 | J41: 0 | K41: 0 | L41: 0 | M41: 0 | N41: 0 | O41: 0 | P41: 0 | Q41: 0 | R41: 0 | S41: 0 | T41: 0 | U41: 0 | V41: 0 | W41: 0 | X41: 0 | Y41: 0 | Z41: 0 | AA41: 0 | AB41: 0 | AC41: 0 | AD41: 0 | AE41: 0 | AF41: 0 | AG41: 0
C42: Value of reduction in CO2 emissions | G42: $ | I42: 0 | J42: 0 | K42: 0 | L42: 0 | M42: 0 | N42: 0 | O42: 0 | P42: 0 | Q42: 0 | R42: 0 | S42: 0 | T42: 0 | U42: 0 | V42: 0 | W42: 0 | X42: 0 | Y42: 0 | Z42: 0 | AA42: 0 | AB42: 0 | AC42: 0 | AD42: 0 | AE42: 0 | AF42: 0 | AG42: 0
C45: Reliability in worst-served areas | D45: $/MWh | E45: 0 | G45: MWh | I45: 0 | J45: 0 | K45: 0 | L45: 0 | M45: 0 | N45: 0 | O45: 0 | P45: 0 | Q45: 0 | R45: 0 | S45: 0 | T45: 0 | U45: 0 | V45: 0 | W45: 0 | X45: 0 | Y45: 0 | Z45: 0 | AA45: 0 | AB45: 0 | AC45: 0 | AD45: 0 | AE45: 0 | AF45: 0 | AG45: 0
C46: Network resilience | D46: $/MWh | E46: 0 | G46: MWh | I46: 0 | J46: 0 | K46: 0 | L46: 0 | M46: 0 | N46: 0 | O46: 0 | P46: 0 | Q46: 0 | R46: 0 | S46: 0 | T46: 0 | U46: 0 | V46: 0 | W46: 0 | X46: 0 | Y46: 0 | Z46: 0 | AA46: 0 | AB46: 0 | AC46: 0 | AD46: 0 | AE46: 0 | AF46: 0 | AG46: 0
C47: Enabling solar exports | D47: $/MWh | E47: 0 | G47: MWh | I47: 0 | J47: 0 | K47: 0 | L47: 0 | M47: 0 | N47: 0 | O47: 0 | P47: 0 | Q47: 0 | R47: 0 | S47: 0 | T47: 0 | U47: 0 | V47: 0 | W47: 0 | X47: 0 | Y47: 0 | Z47: 0 | AA47: 0 | AB47: 0 | AC47: 0 | AD47: 0 | AE47: 0 | AF47: 0 | AG47: 0
C48: Aesthetics | D48: $/customer | E48: 0 | G48: customers | I48: 0 | J48: 0 | K48: 0 | L48: 0 | M48: 0 | N48: 0 | O48: 0 | P48: 0 | Q48: 0 | R48: 0 | S48: 0 | T48: 0 | U48: 0 | V48: 0 | W48: 0 | X48: 0 | Y48: 0 | Z48: 0 | AA48: 0 | AB48: 0 | AC48: 0 | AD48: 0 | AE48: 0 | AF48: 0 | AG48: 0
C49: Customer value of time (res) | D49: $/customer min | E49: 0 | G49: mins | I49: 0 | J49: 0 | K49: 0 | L49: 0 | M49: 0 | N49: 0 | O49: 0 | P49: 0 | Q49: 0 | R49: 0 | S49: 0 | T49: 0 | U49: 0 | V49: 0 | W49: 0 | X49: 0 | Y49: 0 | Z49: 0 | AA49: 0 | AB49: 0 | AC49: 0 | AD49: 0 | AE49: 0 | AF49: 0 | AG49: 0
C50: Customer value of time (bus) | D50: $/customer min | E50: 0 | G50: mins | I50: 0 | J50: 0 | K50: 0 | L50: 0 | M50: 0 | N50: 0 | O50: 0 | P50: 0 | Q50: 0 | R50: 0 | S50: 0 | T50: 0 | U50: 0 | V50: 0 | W50: 0 | X50: 0 | Y50: 0 | Z50: 0 | AA50: 0 | AB50: 0 | AC50: 0 | AD50: 0 | AE50: 0 | AF50: 0 | AG50: 0
C51: Communication | D51: $/customer | E51: 0 | G51: customers | I51: 0 | J51: 0 | K51: 0 | L51: 0 | M51: 0 | N51: 0 | O51: 0 | P51: 0 | Q51: 0 | R51: 0 | S51: 0 | T51: 0 | U51: 0 | V51: 0 | W51: 0 | X51: 0 | Y51: 0 | Z51: 0 | AA51: 0 | AB51: 0 | AC51: 0 | AD51: 0 | AE51: 0 | AF51: 0 | AG51: 0
C52: Information accessibility | D52: $/customer | E52: 0 | G52: customers | I52: 0 | J52: 0 | K52: 0 | L52: 0 | M52: 0 | N52: 0 | O52: 0 | P52: 0 | Q52: 0 | R52: 0 | S52: 0 | T52: 0 | U52: 0 | V52: 0 | W52: 0 | X52: 0 | Y52: 0 | Z52: 0 | AA52: 0 | AB52: 0 | AC52: 0 | AD52: 0 | AE52: 0 | AF52: 0 | AG52: 0
C54: Other benefits 1 | G54: =input_dollars -> 2023-12-31 | I54: 0 | J54: 0 | K54: 0 | L54: 0 | M54: 0 | N54: 0 | O54: 0 | P54: 0 | Q54: 0 | R54: 0 | S54: 0 | T54: 0 | U54: 0 | V54: 0 | W54: 0 | X54: 0 | Y54: 0 | Z54: 0 | AA54: 0 | AB54: 0 | AC54: 0 | AD54: 0 | AE54: 0 | AF54: 0 | AG54: 0
C55: Other benefits 2 | G55: =input_dollars -> 2023-12-31 | I55: 0 | J55: 0 | K55: 0 | L55: 0 | M55: 0 | N55: 0 | O55: 0 | P55: 0 | Q55: 0 | R55: 0 | S55: 0 | T55: 0 | U55: 0 | V55: 0 | W55: 0 | X55: 0 | Y55: 0 | Z55: 0 | AA55: 0 | AB55: 0 | AC55: 0 | AD55: 0 | AE55: 0 | AF55: 0 | AG55: 0
C57: Total other benefits | G57: =input_dollars -> 2023-12-31 | I57: =SUMPRODUCT((I$45:I$52)*($E$45:$E$52))+SUM(I54:I55)+I42 -> 0 | J57: =SUMPRODUCT((J$45:J$52)*($E$45:$E$52))+SUM(J54:J55)+J42 -> 0 | K57: =SUMPRODUCT((K$45:K$52)*($E$45:$E$52))+SUM(K54:K55)+K42 -> 0 | L57: =SUMPRODUCT((L$45:L$52)*($E$45:$E$52))+SUM(L54:L55)+L42 -> 0 | M57: =SUMPRODUCT((M$45:M$52)*($E$45:$E$52))+SUM(M54:M55)+M42 -> 0 | N57: =SUMPRODUCT((N$45:N$52)*($E$45:$E$52))+SUM(N54:N55)+N42 -> 0 | O57: =SUMPRODUCT((O$45:O$52)*($E$45:$E$52))+SUM(O54:O55)+O42 -> 0 | P57: =SUMPRODUCT((P$45:P$52)*($E$45:$E$52))+SUM(P54:P55)+P42 -> 0 | Q57: =SUMPRODUCT((Q$45:Q$52)*($E$45:$E$52))+SUM(Q54:Q55)+Q42 -> 0 | R57: =SUMPRODUCT((R$45:R$52)*($E$45:$E$52))+SUM(R54:R55)+R42 -> 0 | S57: =SUMPRODUCT((S$45:S$52)*($E$45:$E$52))+SUM(S54:S55)+S42 -> 0 | T57: =SUMPRODUCT((T$45:T$52)*($E$45:$E$52))+SUM(T54:T55)+T42 -> 0 | U57: =SUMPRODUCT((U$45:U$52)*($E$45:$E$52))+SUM(U54:U55)+U42 -> 0 | V57: =SUMPRODUCT((V$45:V$52)*($E$45:$E$52))+SUM(V54:V55)+V42 -> 0 | W57: =SUMPRODUCT((W$45:W$52)*($E$45:$E$52))+SUM(W54:W55)+W42 -> 0 | X57: =SUMPRODUCT((X$45:X$52)*($E$45:$E$52))+SUM(X54:X55)+X42 -> 0 | Y57: =SUMPRODUCT((Y$45:Y$52)*($E$45:$E$52))+SUM(Y54:Y55)+Y42 -> 0 | Z57: =SUMPRODUCT((Z$45:Z$52)*($E$45:$E$52))+SUM(Z54:Z55)+Z42 -> 0 | AA57: =SUMPRODUCT((AA$45:AA$52)*($E$45:$E$52))+SUM(AA54:AA55)+AA42 -> 0 | AB57: =SUMPRODUCT((AB$45:AB$52)*($E$45:$E$52))+SUM(AB54:AB55)+AB42 -> 0 | AC57: =SUMPRODUCT((AC$45:AC$52)*($E$45:$E$52))+SUM(AC54:AC55)+AC42 -> 0 | AD57: =SUMPRODUCT((AD$45:AD$52)*($E$45:$E$52))+SUM(AD54:AD55)+AD42 -> 0 | AE57: =SUMPRODUCT((AE$45:AE$52)*($E$45:$E$52))+SUM(AE54:AE55)+AE42 -> 0 | AF57: =SUMPRODUCT((AF$45:AF$52)*($E$45:$E$52))+SUM(AF54:AF55)+AF42 -> 0 | AG57: =SUMPRODUCT((AG$45:AG$52)*($E$45:$E$52))+SUM(AG54:AG55)+AG42 -> 0
A60: SUMMARY
C64: Risks mitigated vs base case | G64: =input_dollars -> 2023-12-31
C66: Capital expenditure
C67: =C14 -> < Enter description > | G67: =input_dollars -> 2023-12-31 | I67: =-I14 -> 0 | J67: 0 | K67: 0 | L67: 0 | M67: 0 | N67: 0 | O67: 0 | P67: 0 | Q67: 0 | R67: 0 | S67: 0 | T67: 0 | U67: 0 | V67: 0 | W67: 0 | X67: 0 | Y67: 0 | Z67: 0 | AA67: 0 | AB67: 0 | AC67: 0 | AD67: 0 | AE67: 0 | AF67: 0 | AG67: 0
C68: =C15 -> < Enter description > | G68: =input_dollars -> 2023-12-31 | I68: =-I15 -> 0 | J68: 0 | K68: 0 | L68: 0 | M68: 0 | N68: 0 | O68: 0 | P68: 0 | Q68: 0 | R68: 0 | S68: 0 | T68: 0 | U68: 0 | V68: 0 | W68: 0 | X68: 0 | Y68: 0 | Z68: 0 | AA68: 0 | AB68: 0 | AC68: 0 | AD68: 0 | AE68: 0 | AF68: 0 | AG68: 0
C69: =C16 -> < Enter description > | G69: =input_dollars -> 2023-12-31 | I69: =-I16 -> 0 | J69: 0 | K69: 0 | L69: 0 | M69: 0 | N69: 0 | O69: 0 | P69: 0 | Q69: 0 | R69: 0 | S69: 0 | T69: 0 | U69: 0 | V69: 0 | W69: 0 | X69: 0 | Y69: 0 | Z69: 0 | AA69: 0 | AB69: 0 | AC69: 0 | AD69: 0 | AE69: 0 | AF69: 0 | AG69: 0
C71: Cumulative capex
C72: =C14 -> < Enter description > | G72: =input_dollars -> 2023-12-31 | I72: =SUMPRODUCT(($I67:I67))-SUMPRODUCT(($I67:I67)*($I$6:I$6<=(I$6-$E14))) -> 0 | J72: =SUMPRODUCT(($I67:J67))-SUMPRODUCT(($I67:J67)*($I$6:J$6<=(J$6-$E14))) -> 0 | K72: =SUMPRODUCT(($I67:K67))-SUMPRODUCT(($I67:K67)*($I$6:K$6<=(K$6-$E14))) -> 0 | L72: =SUMPRODUCT(($I67:L67))-SUMPRODUCT(($I67:L67)*($I$6:L$6<=(L$6-$E14))) -> 0 | M72: =SUMPRODUCT(($I67:M67))-SUMPRODUCT(($I67:M67)*($I$6:M$6<=(M$6-$E14))) -> 0 | N72: =SUMPRODUCT(($I67:N67))-SUMPRODUCT(($I67:N67)*($I$6:N$6<=(N$6-$E14))) -> 0 | O72: =SUMPRODUCT(($I67:O67))-SUMPRODUCT(($I67:O67)*($I$6:O$6<=(O$6-$E14))) -> 0 | P72: =SUMPRODUCT(($I67:P67))-SUMPRODUCT(($I67:P67)*($I$6:P$6<=(P$6-$E14))) -> 0 | Q72: =SUMPRODUCT(($I67:Q67))-SUMPRODUCT(($I67:Q67)*($I$6:Q$6<=(Q$6-$E14))) -> 0 | R72: =SUMPRODUCT(($I67:R67))-SUMPRODUCT(($I67:R67)*($I$6:R$6<=(R$6-$E14))) -> 0 | S72: =SUMPRODUCT(($I67:S67))-SUMPRODUCT(($I67:S67)*($I$6:S$6<=(S$6-$E14))) -> 0 | T72: =SUMPRODUCT(($I67:T67))-SUMPRODUCT(($I67:T67)*($I$6:T$6<=(T$6-$E14))) -> 0 | U72: =SUMPRODUCT(($I67:U67))-SUMPRODUCT(($I67:U67)*($I$6:U$6<=(U$6-$E14))) -> 0 | V72: =SUMPRODUCT(($I67:V67))-SUMPRODUCT(($I67:V67)*($I$6:V$6<=(V$6-$E14))) -> 0 | W72: =SUMPRODUCT(($I67:W67))-SUMPRODUCT(($I67:W67)*($I$6:W$6<=(W$6-$E14))) -> 0 | X72: =SUMPRODUCT(($I67:X67))-SUMPRODUCT(($I67:X67)*($I$6:X$6<=(X$6-$E14))) -> 0 | Y72: =SUMPRODUCT(($I67:Y67))-SUMPRODUCT(($I67:Y67)*($I$6:Y$6<=(Y$6-$E14))) -> 0 | Z72: =SUMPRODUCT(($I67:Z67))-SUMPRODUCT(($I67:Z67)*($I$6:Z$6<=(Z$6-$E14))) -> 0 | AA72: =SUMPRODUCT(($I67:AA67))-SUMPRODUCT(($I67:AA67)*($I$6:AA$6<=(AA$6-$E14))) -> 0 | AB72: =SUMPRODUCT(($I67:AB67))-SUMPRODUCT(($I67:AB67)*($I$6:AB$6<=(AB$6-$E14))) -> 0 | AC72: =SUMPRODUCT(($I67:AC67))-SUMPRODUCT(($I67:AC67)*($I$6:AC$6<=(AC$6-$E14))) -> 0 | AD72: =SUMPRODUCT(($I67:AD67))-SUMPRODUCT(($I67:AD67)*($I$6:AD$6<=(AD$6-$E14))) -> 0 | AE72: =SUMPRODUCT(($I67:AE67))-SUMPRODUCT(($I67:AE67)*($I$6:AE$6<=(AE$6-$E14))) -> 0 | AF72: =SUMPRODUCT(($I67:AF67))-SUMPRODUCT(($I67:AF67)*($I$6:AF$6<=(AF$6-$E14))) -> 0 | AG72: =SUMPRODUCT(($I67:AG67))-SUMPRODUCT(($I67:AG67)*($I$6:AG$6<=(AG$6-$E14))) -> 0
C73: =C15 -> < Enter description > | G73: =input_dollars -> 2023-12-31 | I73: =SUMPRODUCT(($I68:I68))-SUMPRODUCT(($I68:I68)*($I$6:I$6<=(I$6-$E15))) -> 0 | J73: =SUMPRODUCT(($I68:J68))-SUMPRODUCT(($I68:J68)*($I$6:J$6<=(J$6-$E15))) -> 0 | K73: =SUMPRODUCT(($I68:K68))-SUMPRODUCT(($I68:K68)*($I$6:K$6<=(K$6-$E15))) -> 0 | L73: =SUMPRODUCT(($I68:L68))-SUMPRODUCT(($I68:L68)*($I$6:L$6<=(L$6-$E15))) -> 0 | M73: =SUMPRODUCT(($I68:M68))-SUMPRODUCT(($I68:M68)*($I$6:M$6<=(M$6-$E15))) -> 0 | N73: =SUMPRODUCT(($I68:N68))-SUMPRODUCT(($I68:N68)*($I$6:N$6<=(N$6-$E15))) -> 0 | O73: =SUMPRODUCT(($I68:O68))-SUMPRODUCT(($I68:O68)*($I$6:O$6<=(O$6-$E15))) -> 0 | P73: =SUMPRODUCT(($I68:P68))-SUMPRODUCT(($I68:P68)*($I$6:P$6<=(P$6-$E15))) -> 0 | Q73: =SUMPRODUCT(($I68:Q68))-SUMPRODUCT(($I68:Q68)*($I$6:Q$6<=(Q$6-$E15))) -> 0 | R73: =SUMPRODUCT(($I68:R68))-SUMPRODUCT(($I68:R68)*($I$6:R$6<=(R$6-$E15))) -> 0 | S73: =SUMPRODUCT(($I68:S68))-SUMPRODUCT(($I68:S68)*($I$6:S$6<=(S$6-$E15))) -> 0 | T73: =SUMPRODUCT(($I68:T68))-SUMPRODUCT(($I68:T68)*($I$6:T$6<=(T$6-$E15))) -> 0 | U73: =SUMPRODUCT(($I68:U68))-SUMPRODUCT(($I68:U68)*($I$6:U$6<=(U$6-$E15))) -> 0 | V73: =SUMPRODUCT(($I68:V68))-SUMPRODUCT(($I68:V68)*($I$6:V$6<=(V$6-$E15))) -> 0 | W73: =SUMPRODUCT(($I68:W68))-SUMPRODUCT(($I68:W68)*($I$6:W$6<=(W$6-$E15))) -> 0 | X73: =SUMPRODUCT(($I68:X68))-SUMPRODUCT(($I68:X68)*($I$6:X$6<=(X$6-$E15))) -> 0 | Y73: =SUMPRODUCT(($I68:Y68))-SUMPRODUCT(($I68:Y68)*($I$6:Y$6<=(Y$6-$E15))) -> 0 | Z73: =SUMPRODUCT(($I68:Z68))-SUMPRODUCT(($I68:Z68)*($I$6:Z$6<=(Z$6-$E15))) -> 0 | AA73: =SUMPRODUCT(($I68:AA68))-SUMPRODUCT(($I68:AA68)*($I$6:AA$6<=(AA$6-$E15))) -> 0 | AB73: =SUMPRODUCT(($I68:AB68))-SUMPRODUCT(($I68:AB68)*($I$6:AB$6<=(AB$6-$E15))) -> 0 | AC73: =SUMPRODUCT(($I68:AC68))-SUMPRODUCT(($I68:AC68)*($I$6:AC$6<=(AC$6-$E15))) -> 0 | AD73: =SUMPRODUCT(($I68:AD68))-SUMPRODUCT(($I68:AD68)*($I$6:AD$6<=(AD$6-$E15))) -> 0 | AE73: =SUMPRODUCT(($I68:AE68))-SUMPRODUCT(($I68:AE68)*($I$6:AE$6<=(AE$6-$E15))) -> 0 | AF73: =SUMPRODUCT(($I68:AF68))-SUMPRODUCT(($I68:AF68)*($I$6:AF$6<=(AF$6-$E15))) -> 0 | AG73: =SUMPRODUCT(($I68:AG68))-SUMPRODUCT(($I68:AG68)*($I$6:AG$6<=(AG$6-$E15))) -> 0
C74: =C16 -> < Enter description > | G74: =input_dollars -> 2023-12-31 | I74: =SUMPRODUCT(($I69:I69))-SUMPRODUCT(($I69:I69)*($I$6:I$6<=(I$6-$E16))) -> 0 | J74: =SUMPRODUCT(($I69:J69))-SUMPRODUCT(($I69:J69)*($I$6:J$6<=(J$6-$E16))) -> 0 | K74: =SUMPRODUCT(($I69:K69))-SUMPRODUCT(($I69:K69)*($I$6:K$6<=(K$6-$E16))) -> 0 | L74: =SUMPRODUCT(($I69:L69))-SUMPRODUCT(($I69:L69)*($I$6:L$6<=(L$6-$E16))) -> 0 | M74: =SUMPRODUCT(($I69:M69))-SUMPRODUCT(($I69:M69)*($I$6:M$6<=(M$6-$E16))) -> 0 | N74: =SUMPRODUCT(($I69:N69))-SUMPRODUCT(($I69:N69)*($I$6:N$6<=(N$6-$E16))) -> 0 | O74: =SUMPRODUCT(($I69:O69))-SUMPRODUCT(($I69:O69)*($I$6:O$6<=(O$6-$E16))) -> 0 | P74: =SUMPRODUCT(($I69:P69))-SUMPRODUCT(($I69:P69)*($I$6:P$6<=(P$6-$E16))) -> 0 | Q74: =SUMPRODUCT(($I69:Q69))-SUMPRODUCT(($I69:Q69)*($I$6:Q$6<=(Q$6-$E16))) -> 0 | R74: =SUMPRODUCT(($I69:R69))-SUMPRODUCT(($I69:R69)*($I$6:R$6<=(R$6-$E16))) -> 0 | S74: =SUMPRODUCT(($I69:S69))-SUMPRODUCT(($I69:S69)*($I$6:S$6<=(S$6-$E16))) -> 0 | T74: =SUMPRODUCT(($I69:T69))-SUMPRODUCT(($I69:T69)*($I$6:T$6<=(T$6-$E16))) -> 0 | U74: =SUMPRODUCT(($I69:U69))-SUMPRODUCT(($I69:U69)*($I$6:U$6<=(U$6-$E16))) -> 0 | V74: =SUMPRODUCT(($I69:V69))-SUMPRODUCT(($I69:V69)*($I$6:V$6<=(V$6-$E16))) -> 0 | W74: =SUMPRODUCT(($I69:W69))-SUMPRODUCT(($I69:W69)*($I$6:W$6<=(W$6-$E16))) -> 0 | X74: =SUMPRODUCT(($I69:X69))-SUMPRODUCT(($I69:X69)*($I$6:X$6<=(X$6-$E16))) -> 0 | Y74: =SUMPRODUCT(($I69:Y69))-SUMPRODUCT(($I69:Y69)*($I$6:Y$6<=(Y$6-$E16))) -> 0 | Z74: =SUMPRODUCT(($I69:Z69))-SUMPRODUCT(($I69:Z69)*($I$6:Z$6<=(Z$6-$E16))) -> 0 | AA74: =SUMPRODUCT(($I69:AA69))-SUMPRODUCT(($I69:AA69)*($I$6:AA$6<=(AA$6-$E16))) -> 0 | AB74: =SUMPRODUCT(($I69:AB69))-SUMPRODUCT(($I69:AB69)*($I$6:AB$6<=(AB$6-$E16))) -> 0 | AC74: =SUMPRODUCT(($I69:AC69))-SUMPRODUCT(($I69:AC69)*($I$6:AC$6<=(AC$6-$E16))) -> 0 | AD74: =SUMPRODUCT(($I69:AD69))-SUMPRODUCT(($I69:AD69)*($I$6:AD$6<=(AD$6-$E16))) -> 0 | AE74: =SUMPRODUCT(($I69:AE69))-SUMPRODUCT(($I69:AE69)*($I$6:AE$6<=(AE$6-$E16))) -> 0 | AF74: =SUMPRODUCT(($I69:AF69))-SUMPRODUCT(($I69:AF69)*($I$6:AF$6<=(AF$6-$E16))) -> 0 | AG74: =SUMPRODUCT(($I69:AG69))-SUMPRODUCT(($I69:AG69)*($I$6:AG$6<=(AG$6-$E16))) -> 0
C76: Annualised capex
C77: =$C$76&" - "&C14 -> Annualised capex - < Enter description > | G77: =input_dollars -> 2023-12-31 | I77: =IF($E14=0,0,-PMT(real_disc, $E14,H72,)) -> 0 | J77: 0 | K77: 0 | L77: 0 | M77: 0 | N77: 0 | O77: 0 | P77: 0 | Q77: 0 | R77: 0 | S77: 0 | T77: 0 | U77: 0 | V77: 0 | W77: 0 | X77: 0 | Y77: 0 | Z77: 0 | AA77: 0 | AB77: 0 | AC77: 0 | AD77: 0 | AE77: 0 | AF77: 0 | AG77: 0
C78: =$C$76&" - "&C15 -> Annualised capex - < Enter description > | G78: =input_dollars -> 2023-12-31 | I78: =IF($E15=0,0,-PMT(real_disc, $E15,H73,)) -> 0 | J78: 0 | K78: 0 | L78: 0 | M78: 0 | N78: 0 | O78: 0 | P78: 0 | Q78: 0 | R78: 0 | S78: 0 | T78: 0 | U78: 0 | V78: 0 | W78: 0 | X78: 0 | Y78: 0 | Z78: 0 | AA78: 0 | AB78: 0 | AC78: 0 | AD78: 0 | AE78: 0 | AF78: 0 | AG78: 0
C79: =$C$76&" - "&C16 -> Annualised capex - < Enter description > | G79: =input_dollars -> 2023-12-31 | I79: =IF($E16=0,0,-PMT(real_disc, $E16,H74,)) -> 0 | J79: 0 | K79: 0 | L79: 0 | M79: 0 | N79: 0 | O79: 0 | P79: 0 | Q79: 0 | R79: 0 | S79: 0 | T79: 0 | U79: 0 | V79: 0 | W79: 0 | X79: 0 | Y79: 0 | Z79: 0 | AA79: 0 | AB79: 0 | AC79: 0 | AD79: 0 | AE79: 0 | AF79: 0 | AG79: 0
C80: Total annualised capex | G80: =input_dollars -> 2023-12-31 | I80: =SUM(I77:I79) -> 0 | J80: =SUM(J77:J79) -> 0 | K80: 0 | L80: 0 | M80: 0 | N80: 0 | O80: 0 | P80: 0 | Q80: 0 | R80: 0 | S80: 0 | T80: 0 | U80: 0 | V80: 0 | W80: 0 | X80: 0 | Y80: 0 | Z80: 0 | AA80: 0 | AB80: 0 | AC80: =SUM(AC77:AC79) -> 0 | AD80: =SUM(AD77:AD79) -> 0 | AE80: =SUM(AE77:AE79) -> 0 | AF80: =SUM(AF77:AF79) -> 0 | AG80: =SUM(AG77:AG79) -> 0
C82: Annualised capex | G82: =input_dollars -> 2023-12-31 | I82: =I80 -> 0 | J82: =J80 -> 0 | K82: 0 | L82: 0 | M82: 0 | N82: 0 | O82: 0 | P82: 0 | Q82: 0 | R82: 0 | S82: 0 | T82: 0 | U82: 0 | V82: 0 | W82: 0 | X82: 0 | Y82: 0 | Z82: 0 | AA82: 0 | AB82: 0 | AC82: =AC80 -> 0 | AD82: =AD80 -> 0 | AE82: =AE80 -> 0 | AF82: =AF80 -> 0 | AG82: =AG80 -> 0
C83: Operating expenditure | G83: 2023-12-31 | I83: =-I19 -> 0 | J83: 0 | K83: 0 | L83: 0 | M83: 0 | N83: 0 | O83: 0 | P83: 0 | Q83: 0 | R83: 0 | S83: 0 | T83: 0 | U83: 0 | V83: 0 | W83: 0 | X83: 0 | Y83: 0 | Z83: 0 | AA83: 0 | AB83: 0 | AC83: 0 | AD83: 0 | AE83: 0 | AF83: 0 | AG83: 0
C84: Risk mitigated | G84: 2023-12-31 | I84: =I64 -> 0 | J84: =J64 -> 0 | K84: 0 | L84: 0 | M84: 0 | N84: 0 | O84: 0 | P84: 0 | Q84: 0 | R84: 0 | S84: 0 | T84: 0 | U84: 0 | V84: 0 | W84: 0 | X84: 0 | Y84: 0 | Z84: 0 | AA84: 0 | AB84: 0 | AC84: =AC64 -> 0 | AD84: =AD64 -> 0 | AE84: =AE64 -> 0 | AF84: =AF64 -> 0 | AG84: =AG64 -> 0
C85: Other benefits value | G85: 2023-12-31 | I85: =I57 -> 0 | J85: 0 | K85: 0 | L85: 0 | M85: 0 | N85: 0 | O85: 0 | P85: 0 | Q85: 0 | R85: 0 | S85: 0 | T85: 0 | U85: 0 | V85: 0 | W85: 0 | X85: 0 | Y85: 0 | Z85: 0 | AA85: 0 | AB85: 0 | AC85: 0 | AD85: 0 | AE85: 0 | AF85: 0 | AG85: 0
C87: Net benefits | G87: 2023-12-31 | I87: =SUM(I82:I86) -> 0 | J87: 0 | K87: 0 | L87: 0 | M87: 0 | N87: 0 | O87: 0 | P87: 0 | Q87: 0 | R87: 0 | S87: 0 | T87: 0 | U87: 0 | V87: 0 | W87: 0 | X87: 0 | Y87: 0 | Z87: 0 | AA87: 0 | AB87: 0 | AC87: =SUM(AC82:AC86) -> 0 | AD87: =SUM(AD82:AD86) -> 0 | AE87: =SUM(AE82:AE86) -> 0 | AF87: =SUM(AF82:AF86) -> 0 | AG87: =SUM(AG82:AG86) -> 0
A102: SENSITIVITIES
A106: NPV | C106: Net benefits | G106: =PROPER($A$3)&A106 -> Option 1 (Base Case)NPV | I106: =I87 -> 0 | J106: =J87 -> 0 | K106: 0 | L106: 0 | M106: 0 | N106: 0 | O106: 0 | P106: 0 | Q106: 0 | R106: 0 | S106: 0 | T106: 0 | U106: 0 | V106: 0 | W106: 0 | X106: 0 | Y106: 0 | Z106: 0 | AA106: 0 | AB106: 0 | AC106: 0 | AD106: 0 | AE106: 0 | AF106: 0 | AG106: 0
C107: Total annualised capex | I107: =I82 -> 0 | J107: =J82 -> 0 | K107: 0 | L107: 0 | M107: 0 | N107: 0 | O107: 0 | P107: 0 | Q107: 0 | R107: 0 | S107: 0 | T107: 0 | U107: 0 | V107: 0 | W107: 0 | X107: 0 | Y107: 0 | Z107: 0 | AA107: 0 | AB107: 0 | AC107: 0 | AD107: 0 | AE107: 0 | AF107: 0 | AG107: 0
C108: Total benefits | I108: =SUM(I84:I85) -> 0 | J108: =SUM(J84:J85) -> 0 | K108: 0 | L108: 0 | M108: 0 | N108: 0 | O108: 0 | P108: 0 | Q108: 0 | R108: 0 | S108: 0 | T108: 0 | U108: 0 | V108: 0 | W108: 0 | X108: 0 | Y108: 0 | Z108: 0 | AA108: 0 | AB108: 0 | AC108: 0 | AD108: 0 | AE108: 0 | AF108: 0 | AG108: 0
D109: =Assumptions!G44 -> Capex | E109: =Assumptions!H44 -> Total benefits
A110: ="sens"&Assumptions!B45 -> sens1 | C110: =Assumptions!C45 -> Capex 10% higher | D110: =Assumptions!G45 -> 0.1 | E110: =Assumptions!H45 -> 0 | G110: =PROPER($A$3)&A110 -> Option 1 (Base Case)sens1 | I110: =I$106+IF($C110<>0,SUMPRODUCT((I$107:I$108)*TRANSPOSE(($D110:$E110))),0) -> 0 | J110: =J$106+IF($C110<>0,SUMPRODUCT((J$107:J$108)*TRANSPOSE(($D110:$E110))),0) -> 0 | K110: =K$106+IF($C110<>0,SUMPRODUCT((K$107:K$108)*TRANSPOSE(($D110:$E110))),0) -> 0 | L110: =L$106+IF($C110<>0,SUMPRODUCT((L$107:L$108)*TRANSPOSE(($D110:$E110))),0) -> 0 | M110: =M$106+IF($C110<>0,SUMPRODUCT((M$107:M$108)*TRANSPOSE(($D110:$E110))),0) -> 0 | N110: =N$106+IF($C110<>0,SUMPRODUCT((N$107:N$108)*TRANSPOSE(($D110:$E110))),0) -> 0 | O110: =O$106+IF($C110<>0,SUMPRODUCT((O$107:O$108)*TRANSPOSE(($D110:$E110))),0) -> 0 | P110: =P$106+IF($C110<>0,SUMPRODUCT((P$107:P$108)*TRANSPOSE(($D110:$E110))),0) -> 0 | Q110: =Q$106+IF($C110<>0,SUMPRODUCT((Q$107:Q$108)*TRANSPOSE(($D110:$E110))),0) -> 0 | R110: =R$106+IF($C110<>0,SUMPRODUCT((R$107:R$108)*TRANSPOSE(($D110:$E110))),0) -> 0 | S110: =S$106+IF($C110<>0,SUMPRODUCT((S$107:S$108)*TRANSPOSE(($D110:$E110))),0) -> 0 | T110: =T$106+IF($C110<>0,SUMPRODUCT((T$107:T$108)*TRANSPOSE(($D110:$E110))),0) -> 0 | U110: =U$106+IF($C110<>0,SUMPRODUCT((U$107:U$108)*TRANSPOSE(($D110:$E110))),0) -> 0 | V110: =V$106+IF($C110<>0,SUMPRODUCT((V$107:V$108)*TRANSPOSE(($D110:$E110))),0) -> 0 | W110: =W$106+IF($C110<>0,SUMPRODUCT((W$107:W$108)*TRANSPOSE(($D110:$E110))),0) -> 0 | X110: =X$106+IF($C110<>0,SUMPRODUCT((X$107:X$108)*TRANSPOSE(($D110:$E110))),0) -> 0 | Y110: =Y$106+IF($C110<>0,SUMPRODUCT((Y$107:Y$108)*TRANSPOSE(($D110:$E110))),0) -> 0 | Z110: =Z$106+IF($C110<>0,SUMPRODUCT((Z$107:Z$108)*TRANSPOSE(($D110:$E110))),0) -> 0 | AA110: =AA$106+IF($C110<>0,SUMPRODUCT((AA$107:AA$108)*TRANSPOSE(($D110:$E110))),0) -> 0 | AB110: =AB$106+IF($C110<>0,SUMPRODUCT((AB$107:AB$108)*TRANSPOSE(($D110:$E110))),0) -> 0 | AC110: =AC$106+IF($C110<>0,SUMPRODUCT((AC$107:AC$108)*TRANSPOSE(($D110:$E110))),0) -> 0 | AD110: =AD$106+IF($C110<>0,SUMPRODUCT((AD$107:AD$108)*TRANSPOSE(($D110:$E110))),0) -> 0 | AE110: =AE$106+IF($C110<>0,SUMPRODUCT((AE$107:AE$108)*TRANSPOSE(($D110:$E110))),0) -> 0 | AF110: =AF$106+IF($C110<>0,SUMPRODUCT((AF$107:AF$108)*TRANSPOSE(($D110:$E110))),0) -> 0 | AG110: =AG$106+IF($C110<>0,SUMPRODUCT((AG$107:AG$108)*TRANSPOSE(($D110:$E110))),0) -> 0
A111: ="sens"&Assumptions!B46 -> sens2 | C111: =Assumptions!C46 -> Capex 10% lower | D111: =Assumptions!G46 -> -0.1 | E111: =Assumptions!H46 -> 0 | G111: =PROPER($A$3)&A111 -> Option 1 (Base Case)sens2 | I111: =I$106+IF($C111<>0,SUMPRODUCT((I$107:I$108)*TRANSPOSE(($D111:$E111))),0) -> 0 | J111: =J$106+IF($C111<>0,SUMPRODUCT((J$107:J$108)*TRANSPOSE(($D111:$E111))),0) -> 0 | K111: =K$106+IF($C111<>0,SUMPRODUCT((K$107:K$108)*TRANSPOSE(($D111:$E111))),0) -> 0 | L111: =L$106+IF($C111<>0,SUMPRODUCT((L$107:L$108)*TRANSPOSE(($D111:$E111))),0) -> 0 | M111: =M$106+IF($C111<>0,SUMPRODUCT((M$107:M$108)*TRANSPOSE(($D111:$E111))),0) -> 0 | N111: =N$106+IF($C111<>0,SUMPRODUCT((N$107:N$108)*TRANSPOSE(($D111:$E111))),0) -> 0 | O111: =O$106+IF($C111<>0,SUMPRODUCT((O$107:O$108)*TRANSPOSE(($D111:$E111))),0) -> 0 | P111: =P$106+IF($C111<>0,SUMPRODUCT((P$107:P$108)*TRANSPOSE(($D111:$E111))),0) -> 0 | Q111: =Q$106+IF($C111<>0,SUMPRODUCT((Q$107:Q$108)*TRANSPOSE(($D111:$E111))),0) -> 0 | R111: =R$106+IF($C111<>0,SUMPRODUCT((R$107:R$108)*TRANSPOSE(($D111:$E111))),0) -> 0 | S111: =S$106+IF($C111<>0,SUMPRODUCT((S$107:S$108)*TRANSPOSE(($D111:$E111))),0) -> 0 | T111: =T$106+IF($C111<>0,SUMPRODUCT((T$107:T$108)*TRANSPOSE(($D111:$E111))),0) -> 0 | U111: =U$106+IF($C111<>0,SUMPRODUCT((U$107:U$108)*TRANSPOSE(($D111:$E111))),0) -> 0 | V111: =V$106+IF($C111<>0,SUMPRODUCT((V$107:V$108)*TRANSPOSE(($D111:$E111))),0) -> 0 | W111: =W$106+IF($C111<>0,SUMPRODUCT((W$107:W$108)*TRANSPOSE(($D111:$E111))),0) -> 0 | X111: =X$106+IF($C111<>0,SUMPRODUCT((X$107:X$108)*TRANSPOSE(($D111:$E111))),0) -> 0 | Y111: =Y$106+IF($C111<>0,SUMPRODUCT((Y$107:Y$108)*TRANSPOSE(($D111:$E111))),0) -> 0 | Z111: =Z$106+IF($C111<>0,SUMPRODUCT((Z$107:Z$108)*TRANSPOSE(($D111:$E111))),0) -> 0 | AA111: =AA$106+IF($C111<>0,SUMPRODUCT((AA$107:AA$108)*TRANSPOSE(($D111:$E111))),0) -> 0 | AB111: =AB$106+IF($C111<>0,SUMPRODUCT((AB$107:AB$108)*TRANSPOSE(($D111:$E111))),0) -> 0 | AC111: =AC$106+IF($C111<>0,SUMPRODUCT((AC$107:AC$108)*TRANSPOSE(($D111:$E111))),0) -> 0 | AD111: =AD$106+IF($C111<>0,SUMPRODUCT((AD$107:AD$108)*TRANSPOSE(($D111:$E111))),0) -> 0 | AE111: =AE$106+IF($C111<>0,SUMPRODUCT((AE$107:AE$108)*TRANSPOSE(($D111:$E111))),0) -> 0 | AF111: =AF$106+IF($C111<>0,SUMPRODUCT((AF$107:AF$108)*TRANSPOSE(($D111:$E111))),0) -> 0 | AG111: =AG$106+IF($C111<>0,SUMPRODUCT((AG$107:AG$108)*TRANSPOSE(($D111:$E111))),0) -> 0
A112: ="sens"&Assumptions!B47 -> sens3 | C112: =Assumptions!C47 -> Total benefits 10% higher | D112: =Assumptions!G47 -> 0 | E112: =Assumptions!H47 -> 0.1 | G112: Option 1 (Base Case)sens3 | I112: =I$106+IF($C112<>0,SUMPRODUCT((I$107:I$108)*TRANSPOSE(($D112:$E112))),0) -> 0 | J112: =J$106+IF($C112<>0,SUMPRODUCT((J$107:J$108)*TRANSPOSE(($D112:$E112))),0) -> 0 | K112: =K$106+IF($C112<>0,SUMPRODUCT((K$107:K$108)*TRANSPOSE(($D112:$E112))),0) -> 0 | L112: =L$106+IF($C112<>0,SUMPRODUCT((L$107:L$108)*TRANSPOSE(($D112:$E112))),0) -> 0 | M112: =M$106+IF($C112<>0,SUMPRODUCT((M$107:M$108)*TRANSPOSE(($D112:$E112))),0) -> 0 | N112: =N$106+IF($C112<>0,SUMPRODUCT((N$107:N$108)*TRANSPOSE(($D112:$E112))),0) -> 0 | O112: =O$106+IF($C112<>0,SUMPRODUCT((O$107:O$108)*TRANSPOSE(($D112:$E112))),0) -> 0 | P112: =P$106+IF($C112<>0,SUMPRODUCT((P$107:P$108)*TRANSPOSE(($D112:$E112))),0) -> 0 | Q112: =Q$106+IF($C112<>0,SUMPRODUCT((Q$107:Q$108)*TRANSPOSE(($D112:$E112))),0) -> 0 | R112: =R$106+IF($C112<>0,SUMPRODUCT((R$107:R$108)*TRANSPOSE(($D112:$E112))),0) -> 0 | S112: =S$106+IF($C112<>0,SUMPRODUCT((S$107:S$108)*TRANSPOSE(($D112:$E112))),0) -> 0 | T112: =T$106+IF($C112<>0,SUMPRODUCT((T$107:T$108)*TRANSPOSE(($D112:$E112))),0) -> 0 | U112: =U$106+IF($C112<>0,SUMPRODUCT((U$107:U$108)*TRANSPOSE(($D112:$E112))),0) -> 0 | V112: =V$106+IF($C112<>0,SUMPRODUCT((V$107:V$108)*TRANSPOSE(($D112:$E112))),0) -> 0 | W112: =W$106+IF($C112<>0,SUMPRODUCT((W$107:W$108)*TRANSPOSE(($D112:$E112))),0) -> 0 | X112: =X$106+IF($C112<>0,SUMPRODUCT((X$107:X$108)*TRANSPOSE(($D112:$E112))),0) -> 0 | Y112: =Y$106+IF($C112<>0,SUMPRODUCT((Y$107:Y$108)*TRANSPOSE(($D112:$E112))),0) -> 0 | Z112: =Z$106+IF($C112<>0,SUMPRODUCT((Z$107:Z$108)*TRANSPOSE(($D112:$E112))),0) -> 0 | AA112: =AA$106+IF($C112<>0,SUMPRODUCT((AA$107:AA$108)*TRANSPOSE(($D112:$E112))),0) -> 0 | AB112: =AB$106+IF($C112<>0,SUMPRODUCT((AB$107:AB$108)*TRANSPOSE(($D112:$E112))),0) -> 0 | AC112: =AC$106+IF($C112<>0,SUMPRODUCT((AC$107:AC$108)*TRANSPOSE(($D112:$E112))),0) -> 0 | AD112: =AD$106+IF($C112<>0,SUMPRODUCT((AD$107:AD$108)*TRANSPOSE(($D112:$E112))),0) -> 0 | AE112: =AE$106+IF($C112<>0,SUMPRODUCT((AE$107:AE$108)*TRANSPOSE(($D112:$E112))),0) -> 0 | AF112: =AF$106+IF($C112<>0,SUMPRODUCT((AF$107:AF$108)*TRANSPOSE(($D112:$E112))),0) -> 0 | AG112: =AG$106+IF($C112<>0,SUMPRODUCT((AG$107:AG$108)*TRANSPOSE(($D112:$E112))),0) -> 0
A113: ="sens"&Assumptions!B48 -> sens4 | C113: =Assumptions!C48 -> Total benefits 10% lower | D113: =Assumptions!G48 -> 0 | E113: =Assumptions!H48 -> -0.1 | G113: Option 1 (Base Case)sens4 | I113: =I$106+IF($C113<>0,SUMPRODUCT((I$107:I$108)*TRANSPOSE(($D113:$E113))),0) -> 0 | J113: =J$106+IF($C113<>0,SUMPRODUCT((J$107:J$108)*TRANSPOSE(($D113:$E113))),0) -> 0 | K113: =K$106+IF($C113<>0,SUMPRODUCT((K$107:K$108)*TRANSPOSE(($D113:$E113))),0) -> 0 | L113: =L$106+IF($C113<>0,SUMPRODUCT((L$107:L$108)*TRANSPOSE(($D113:$E113))),0) -> 0 | M113: =M$106+IF($C113<>0,SUMPRODUCT((M$107:M$108)*TRANSPOSE(($D113:$E113))),0) -> 0 | N113: =N$106+IF($C113<>0,SUMPRODUCT((N$107:N$108)*TRANSPOSE(($D113:$E113))),0) -> 0 | O113: =O$106+IF($C113<>0,SUMPRODUCT((O$107:O$108)*TRANSPOSE(($D113:$E113))),0) -> 0 | P113: =P$106+IF($C113<>0,SUMPRODUCT((P$107:P$108)*TRANSPOSE(($D113:$E113))),0) -> 0 | Q113: =Q$106+IF($C113<>0,SUMPRODUCT((Q$107:Q$108)*TRANSPOSE(($D113:$E113))),0) -> 0 | R113: =R$106+IF($C113<>0,SUMPRODUCT((R$107:R$108)*TRANSPOSE(($D113:$E113))),0) -> 0 | S113: =S$106+IF($C113<>0,SUMPRODUCT((S$107:S$108)*TRANSPOSE(($D113:$E113))),0) -> 0 | T113: =T$106+IF($C113<>0,SUMPRODUCT((T$107:T$108)*TRANSPOSE(($D113:$E113))),0) -> 0 | U113: =U$106+IF($C113<>0,SUMPRODUCT((U$107:U$108)*TRANSPOSE(($D113:$E113))),0) -> 0 | V113: =V$106+IF($C113<>0,SUMPRODUCT((V$107:V$108)*TRANSPOSE(($D113:$E113))),0) -> 0 | W113: =W$106+IF($C113<>0,SUMPRODUCT((W$107:W$108)*TRANSPOSE(($D113:$E113))),0) -> 0 | X113: =X$106+IF($C113<>0,SUMPRODUCT((X$107:X$108)*TRANSPOSE(($D113:$E113))),0) -> 0 | Y113: =Y$106+IF($C113<>0,SUMPRODUCT((Y$107:Y$108)*TRANSPOSE(($D113:$E113))),0) -> 0 | Z113: =Z$106+IF($C113<>0,SUMPRODUCT((Z$107:Z$108)*TRANSPOSE(($D113:$E113))),0) -> 0 | AA113: =AA$106+IF($C113<>0,SUMPRODUCT((AA$107:AA$108)*TRANSPOSE(($D113:$E113))),0) -> 0 | AB113: =AB$106+IF($C113<>0,SUMPRODUCT((AB$107:AB$108)*TRANSPOSE(($D113:$E113))),0) -> 0 | AC113: =AC$106+IF($C113<>0,SUMPRODUCT((AC$107:AC$108)*TRANSPOSE(($D113:$E113))),0) -> 0 | AD113: =AD$106+IF($C113<>0,SUMPRODUCT((AD$107:AD$108)*TRANSPOSE(($D113:$E113))),0) -> 0 | AE113: =AE$106+IF($C113<>0,SUMPRODUCT((AE$107:AE$108)*TRANSPOSE(($D113:$E113))),0) -> 0 | AF113: =AF$106+IF($C113<>0,SUMPRODUCT((AF$107:AF$108)*TRANSPOSE(($D113:$E113))),0) -> 0 | AG113: =AG$106+IF($C113<>0,SUMPRODUCT((AG$107:AG$108)*TRANSPOSE(($D113:$E113))),0) -> 0
A114: ="sens"&Assumptions!B49 -> sens5 | C114: =Assumptions!C49 -> Capex 10% higher & Total benefits 10% lower | D114: =Assumptions!G49 -> 0.1 | E114: =Assumptions!H49 -> -0.1 | G114: Option 1 (Base Case)sens5 | I114: =I$106+IF($C114<>0,SUMPRODUCT((I$107:I$108)*TRANSPOSE(($D114:$E114))),0) -> 0 | J114: =J$106+IF($C114<>0,SUMPRODUCT((J$107:J$108)*TRANSPOSE(($D114:$E114))),0) -> 0 | K114: =K$106+IF($C114<>0,SUMPRODUCT((K$107:K$108)*TRANSPOSE(($D114:$E114))),0) -> 0 | L114: =L$106+IF($C114<>0,SUMPRODUCT((L$107:L$108)*TRANSPOSE(($D114:$E114))),0) -> 0 | M114: =M$106+IF($C114<>0,SUMPRODUCT((M$107:M$108)*TRANSPOSE(($D114:$E114))),0) -> 0 | N114: =N$106+IF($C114<>0,SUMPRODUCT((N$107:N$108)*TRANSPOSE(($D114:$E114))),0) -> 0 | O114: =O$106+IF($C114<>0,SUMPRODUCT((O$107:O$108)*TRANSPOSE(($D114:$E114))),0) -> 0 | P114: =P$106+IF($C114<>0,SUMPRODUCT((P$107:P$108)*TRANSPOSE(($D114:$E114))),0) -> 0 | Q114: =Q$106+IF($C114<>0,SUMPRODUCT((Q$107:Q$108)*TRANSPOSE(($D114:$E114))),0) -> 0 | R114: =R$106+IF($C114<>0,SUMPRODUCT((R$107:R$108)*TRANSPOSE(($D114:$E114))),0) -> 0 | S114: =S$106+IF($C114<>0,SUMPRODUCT((S$107:S$108)*TRANSPOSE(($D114:$E114))),0) -> 0 | T114: =T$106+IF($C114<>0,SUMPRODUCT((T$107:T$108)*TRANSPOSE(($D114:$E114))),0) -> 0 | U114: =U$106+IF($C114<>0,SUMPRODUCT((U$107:U$108)*TRANSPOSE(($D114:$E114))),0) -> 0 | V114: =V$106+IF($C114<>0,SUMPRODUCT((V$107:V$108)*TRANSPOSE(($D114:$E114))),0) -> 0 | W114: =W$106+IF($C114<>0,SUMPRODUCT((W$107:W$108)*TRANSPOSE(($D114:$E114))),0) -> 0 | X114: =X$106+IF($C114<>0,SUMPRODUCT((X$107:X$108)*TRANSPOSE(($D114:$E114))),0) -> 0 | Y114: =Y$106+IF($C114<>0,SUMPRODUCT((Y$107:Y$108)*TRANSPOSE(($D114:$E114))),0) -> 0 | Z114: =Z$106+IF($C114<>0,SUMPRODUCT((Z$107:Z$108)*TRANSPOSE(($D114:$E114))),0) -> 0 | AA114: =AA$106+IF($C114<>0,SUMPRODUCT((AA$107:AA$108)*TRANSPOSE(($D114:$E114))),0) -> 0 | AB114: =AB$106+IF($C114<>0,SUMPRODUCT((AB$107:AB$108)*TRANSPOSE(($D114:$E114))),0) -> 0 | AC114: =AC$106+IF($C114<>0,SUMPRODUCT((AC$107:AC$108)*TRANSPOSE(($D114:$E114))),0) -> 0 | AD114: =AD$106+IF($C114<>0,SUMPRODUCT((AD$107:AD$108)*TRANSPOSE(($D114:$E114))),0) -> 0 | AE114: =AE$106+IF($C114<>0,SUMPRODUCT((AE$107:AE$108)*TRANSPOSE(($D114:$E114))),0) -> 0 | AF114: =AF$106+IF($C114<>0,SUMPRODUCT((AF$107:AF$108)*TRANSPOSE(($D114:$E114))),0) -> 0 | AG114: =AG$106+IF($C114<>0,SUMPRODUCT((AG$107:AG$108)*TRANSPOSE(($D114:$E114))),0) -> 0
A115: ="sens"&Assumptions!B50 -> sens | C115: =Assumptions!C50 -> 0 | D115: =Assumptions!G50 -> 0 | E115: =Assumptions!H50 -> 0 | G115: Option 1 (Base Case)sens | I115: =I$106+IF($C115<>0,SUMPRODUCT((I$107:I$108)*TRANSPOSE(($D115:$E115))),0) -> 0 | J115: =J$106+IF($C115<>0,SUMPRODUCT((J$107:J$108)*TRANSPOSE(($D115:$E115))),0) -> 0 | K115: =K$106+IF($C115<>0,SUMPRODUCT((K$107:K$108)*TRANSPOSE(($D115:$E115))),0) -> 0 | L115: =L$106+IF($C115<>0,SUMPRODUCT((L$107:L$108)*TRANSPOSE(($D115:$E115))),0) -> 0 | M115: =M$106+IF($C115<>0,SUMPRODUCT((M$107:M$108)*TRANSPOSE(($D115:$E115))),0) -> 0 | N115: =N$106+IF($C115<>0,SUMPRODUCT((N$107:N$108)*TRANSPOSE(($D115:$E115))),0) -> 0 | O115: =O$106+IF($C115<>0,SUMPRODUCT((O$107:O$108)*TRANSPOSE(($D115:$E115))),0) -> 0 | P115: =P$106+IF($C115<>0,SUMPRODUCT((P$107:P$108)*TRANSPOSE(($D115:$E115))),0) -> 0 | Q115: =Q$106+IF($C115<>0,SUMPRODUCT((Q$107:Q$108)*TRANSPOSE(($D115:$E115))),0) -> 0 | R115: =R$106+IF($C115<>0,SUMPRODUCT((R$107:R$108)*TRANSPOSE(($D115:$E115))),0) -> 0 | S115: =S$106+IF($C115<>0,SUMPRODUCT((S$107:S$108)*TRANSPOSE(($D115:$E115))),0) -> 0 | T115: =T$106+IF($C115<>0,SUMPRODUCT((T$107:T$108)*TRANSPOSE(($D115:$E115))),0) -> 0 | U115: =U$106+IF($C115<>0,SUMPRODUCT((U$107:U$108)*TRANSPOSE(($D115:$E115))),0) -> 0 | V115: =V$106+IF($C115<>0,SUMPRODUCT((V$107:V$108)*TRANSPOSE(($D115:$E115))),0) -> 0 | W115: =W$106+IF($C115<>0,SUMPRODUCT((W$107:W$108)*TRANSPOSE(($D115:$E115))),0) -> 0 | X115: =X$106+IF($C115<>0,SUMPRODUCT((X$107:X$108)*TRANSPOSE(($D115:$E115))),0) -> 0 | Y115: =Y$106+IF($C115<>0,SUMPRODUCT((Y$107:Y$108)*TRANSPOSE(($D115:$E115))),0) -> 0 | Z115: =Z$106+IF($C115<>0,SUMPRODUCT((Z$107:Z$108)*TRANSPOSE(($D115:$E115))),0) -> 0 | AA115: =AA$106+IF($C115<>0,SUMPRODUCT((AA$107:AA$108)*TRANSPOSE(($D115:$E115))),0) -> 0 | AB115: =AB$106+IF($C115<>0,SUMPRODUCT((AB$107:AB$108)*TRANSPOSE(($D115:$E115))),0) -> 0 | AC115: =AC$106+IF($C115<>0,SUMPRODUCT((AC$107:AC$108)*TRANSPOSE(($D115:$E115))),0) -> 0 | AD115: =AD$106+IF($C115<>0,SUMPRODUCT((AD$107:AD$108)*TRANSPOSE(($D115:$E115))),0) -> 0 | AE115: =AE$106+IF($C115<>0,SUMPRODUCT((AE$107:AE$108)*TRANSPOSE(($D115:$E115))),0) -> 0 | AF115: =AF$106+IF($C115<>0,SUMPRODUCT((AF$107:AF$108)*TRANSPOSE(($D115:$E115))),0) -> 0 | AG115: =AG$106+IF($C115<>0,SUMPRODUCT((AG$107:AG$108)*TRANSPOSE(($D115:$E115))),0) -> 0
A116: ="sens"&Assumptions!B51 -> sens | C116: =Assumptions!C51 -> 0 | D116: =Assumptions!G51 -> 0 | E116: =Assumptions!H51 -> 0 | G116: Option 1 (Base Case)sens | I116: =I$106+IF($C116<>0,SUMPRODUCT((I$107:I$108)*TRANSPOSE(($D116:$E116))),0) -> 0 | J116: =J$106+IF($C116<>0,SUMPRODUCT((J$107:J$108)*TRANSPOSE(($D116:$E116))),0) -> 0 | K116: =K$106+IF($C116<>0,SUMPRODUCT((K$107:K$108)*TRANSPOSE(($D116:$E116))),0) -> 0 | L116: =L$106+IF($C116<>0,SUMPRODUCT((L$107:L$108)*TRANSPOSE(($D116:$E116))),0) -> 0 | M116: =M$106+IF($C116<>0,SUMPRODUCT((M$107:M$108)*TRANSPOSE(($D116:$E116))),0) -> 0 | N116: =N$106+IF($C116<>0,SUMPRODUCT((N$107:N$108)*TRANSPOSE(($D116:$E116))),0) -> 0 | O116: =O$106+IF($C116<>0,SUMPRODUCT((O$107:O$108)*TRANSPOSE(($D116:$E116))),0) -> 0 | P116: =P$106+IF($C116<>0,SUMPRODUCT((P$107:P$108)*TRANSPOSE(($D116:$E116))),0) -> 0 | Q116: =Q$106+IF($C116<>0,SUMPRODUCT((Q$107:Q$108)*TRANSPOSE(($D116:$E116))),0) -> 0 | R116: =R$106+IF($C116<>0,SUMPRODUCT((R$107:R$108)*TRANSPOSE(($D116:$E116))),0) -> 0 | S116: =S$106+IF($C116<>0,SUMPRODUCT((S$107:S$108)*TRANSPOSE(($D116:$E116))),0) -> 0 | T116: =T$106+IF($C116<>0,SUMPRODUCT((T$107:T$108)*TRANSPOSE(($D116:$E116))),0) -> 0 | U116: =U$106+IF($C116<>0,SUMPRODUCT((U$107:U$108)*TRANSPOSE(($D116:$E116))),0) -> 0 | V116: =V$106+IF($C116<>0,SUMPRODUCT((V$107:V$108)*TRANSPOSE(($D116:$E116))),0) -> 0 | W116: =W$106+IF($C116<>0,SUMPRODUCT((W$107:W$108)*TRANSPOSE(($D116:$E116))),0) -> 0 | X116: =X$106+IF($C116<>0,SUMPRODUCT((X$107:X$108)*TRANSPOSE(($D116:$E116))),0) -> 0 | Y116: =Y$106+IF($C116<>0,SUMPRODUCT((Y$107:Y$108)*TRANSPOSE(($D116:$E116))),0) -> 0 | Z116: =Z$106+IF($C116<>0,SUMPRODUCT((Z$107:Z$108)*TRANSPOSE(($D116:$E116))),0) -> 0 | AA116: =AA$106+IF($C116<>0,SUMPRODUCT((AA$107:AA$108)*TRANSPOSE(($D116:$E116))),0) -> 0 | AB116: =AB$106+IF($C116<>0,SUMPRODUCT((AB$107:AB$108)*TRANSPOSE(($D116:$E116))),0) -> 0 | AC116: =AC$106+IF($C116<>0,SUMPRODUCT((AC$107:AC$108)*TRANSPOSE(($D116:$E116))),0) -> 0 | AD116: =AD$106+IF($C116<>0,SUMPRODUCT((AD$107:AD$108)*TRANSPOSE(($D116:$E116))),0) -> 0 | AE116: =AE$106+IF($C116<>0,SUMPRODUCT((AE$107:AE$108)*TRANSPOSE(($D116:$E116))),0) -> 0 | AF116: =AF$106+IF($C116<>0,SUMPRODUCT((AF$107:AF$108)*TRANSPOSE(($D116:$E116))),0) -> 0 | AG116: =AG$106+IF($C116<>0,SUMPRODUCT((AG$107:AG$108)*TRANSPOSE(($D116:$E116))),0) -> 0
A117: ="sens"&Assumptions!B52 -> sens | C117: =Assumptions!C52 -> 0 | D117: =Assumptions!G52 -> 0 | E117: =Assumptions!H52 -> 0 | G117: Option 1 (Base Case)sens | I117: =I$106+IF($C117<>0,SUMPRODUCT((I$107:I$108)*TRANSPOSE(($D117:$E117))),0) -> 0 | J117: =J$106+IF($C117<>0,SUMPRODUCT((J$107:J$108)*TRANSPOSE(($D117:$E117))),0) -> 0 | K117: =K$106+IF($C117<>0,SUMPRODUCT((K$107:K$108)*TRANSPOSE(($D117:$E117))),0) -> 0 | L117: =L$106+IF($C117<>0,SUMPRODUCT((L$107:L$108)*TRANSPOSE(($D117:$E117))),0) -> 0 | M117: =M$106+IF($C117<>0,SUMPRODUCT((M$107:M$108)*TRANSPOSE(($D117:$E117))),0) -> 0 | N117: =N$106+IF($C117<>0,SUMPRODUCT((N$107:N$108)*TRANSPOSE(($D117:$E117))),0) -> 0 | O117: =O$106+IF($C117<>0,SUMPRODUCT((O$107:O$108)*TRANSPOSE(($D117:$E117))),0) -> 0 | P117: =P$106+IF($C117<>0,SUMPRODUCT((P$107:P$108)*TRANSPOSE(($D117:$E117))),0) -> 0 | Q117: =Q$106+IF($C117<>0,SUMPRODUCT((Q$107:Q$108)*TRANSPOSE(($D117:$E117))),0) -> 0 | R117: =R$106+IF($C117<>0,SUMPRODUCT((R$107:R$108)*TRANSPOSE(($D117:$E117))),0) -> 0 | S117: =S$106+IF($C117<>0,SUMPRODUCT((S$107:S$108)*TRANSPOSE(($D117:$E117))),0) -> 0 | T117: =T$106+IF($C117<>0,SUMPRODUCT((T$107:T$108)*TRANSPOSE(($D117:$E117))),0) -> 0 | U117: =U$106+IF($C117<>0,SUMPRODUCT((U$107:U$108)*TRANSPOSE(($D117:$E117))),0) -> 0 | V117: =V$106+IF($C117<>0,SUMPRODUCT((V$107:V$108)*TRANSPOSE(($D117:$E117))),0) -> 0 | W117: =W$106+IF($C117<>0,SUMPRODUCT((W$107:W$108)*TRANSPOSE(($D117:$E117))),0) -> 0 | X117: =X$106+IF($C117<>0,SUMPRODUCT((X$107:X$108)*TRANSPOSE(($D117:$E117))),0) -> 0 | Y117: =Y$106+IF($C117<>0,SUMPRODUCT((Y$107:Y$108)*TRANSPOSE(($D117:$E117))),0) -> 0 | Z117: =Z$106+IF($C117<>0,SUMPRODUCT((Z$107:Z$108)*TRANSPOSE(($D117:$E117))),0) -> 0 | AA117: =AA$106+IF($C117<>0,SUMPRODUCT((AA$107:AA$108)*TRANSPOSE(($D117:$E117))),0) -> 0 | AB117: =AB$106+IF($C117<>0,SUMPRODUCT((AB$107:AB$108)*TRANSPOSE(($D117:$E117))),0) -> 0 | AC117: =AC$106+IF($C117<>0,SUMPRODUCT((AC$107:AC$108)*TRANSPOSE(($D117:$E117))),0) -> 0 | AD117: =AD$106+IF($C117<>0,SUMPRODUCT((AD$107:AD$108)*TRANSPOSE(($D117:$E117))),0) -> 0 | AE117: =AE$106+IF($C117<>0,SUMPRODUCT((AE$107:AE$108)*TRANSPOSE(($D117:$E117))),0) -> 0 | AF117: =AF$106+IF($C117<>0,SUMPRODUCT((AF$107:AF$108)*TRANSPOSE(($D117:$E117))),0) -> 0 | AG117: =AG$106+IF($C117<>0,SUMPRODUCT((AG$107:AG$108)*TRANSPOSE(($D117:$E117))),0) -> 0

Sheet Option2
A1: =bus -> Powercor
A2: =proj -> Regional and rural supply upgrades
A3: OPTION 2 | C3: =INDEX(Assumptions!$E$14:$E$18, MATCH(A3,_xlfn.ANCHORARRAY( Assumptions!$C$14),0)) -> Regulatory proposal economic SWER upgrades
A4: =(INDEX(Data!$D$9:$D$13, MATCH(A3, options,0))) -> 
A6: ='Option1 (base case)'!A6 -> Count | I6: ='Option1 (base case)'!I6 -> 1 | J6: ='Option1 (base case)'!J6 -> 2 | K6: ='Option1 (base case)'!K6 -> 3 | L6: ='Option1 (base case)'!L6 -> 4 | M6: ='Option1 (base case)'!M6 -> 5 | N6: ='Option1 (base case)'!N6 -> 6 | O6: ='Option1 (base case)'!O6 -> 7 | P6: ='Option1 (base case)'!P6 -> 8 | Q6: ='Option1 (base case)'!Q6 -> 9 | R6: ='Option1 (base case)'!R6 -> 10 | S6: ='Option1 (base case)'!S6 -> 11 | T6: ='Option1 (base case)'!T6 -> 12 | U6: ='Option1 (base case)'!U6 -> 13 | V6: ='Option1 (base case)'!V6 -> 14 | W6: ='Option1 (base case)'!W6 -> 15 | X6: ='Option1 (base case)'!X6 -> 16 | Y6: ='Option1 (base case)'!Y6 -> 17 | Z6: ='Option1 (base case)'!Z6 -> 18 | AA6: ='Option1 (base case)'!AA6 -> 19 | AB6: ='Option1 (base case)'!AB6 -> 20 | AC6: ='Option1 (base case)'!AC6 -> 21 | AD6: ='Option1 (base case)'!AD6 -> 22 | AE6: ='Option1 (base case)'!AE6 -> 23 | AF6: ='Option1 (base case)'!AF6 -> 24 | AG6: ='Option1 (base case)'!AG6 -> 25
A7: ='Option1 (base case)'!A7 -> Value of CO2 reductions | G7: $/MWh | I7: ='Option1 (base case)'!I7 ->  | J7: ='Option1 (base case)'!J7 ->  | K7: ='Option1 (base case)'!K7 ->  | L7: ='Option1 (base case)'!L7 ->  | M7: ='Option1 (base case)'!M7 ->  | N7: ='Option1 (base case)'!N7 ->  | O7: ='Option1 (base case)'!O7 ->  | P7: ='Option1 (base case)'!P7 ->  | Q7: ='Option1 (base case)'!Q7 ->  | R7: ='Option1 (base case)'!R7 ->  | S7: ='Option1 (base case)'!S7 ->  | T7: ='Option1 (base case)'!T7 ->  | U7: ='Option1 (base case)'!U7 ->  | V7: ='Option1 (base case)'!V7 ->  | W7: ='Option1 (base case)'!W7 ->  | X7: ='Option1 (base case)'!X7 ->  | Y7: ='Option1 (base case)'!Y7 ->  | Z7: ='Option1 (base case)'!Z7 ->  | AA7: ='Option1 (base case)'!AA7 ->  | AB7: ='Option1 (base case)'!AB7 ->  | AC7: ='Option1 (base case)'!AC7 ->  | AD7: ='Option1 (base case)'!AD7 ->  | AE7: ='Option1 (base case)'!AE7 ->  | AF7: ='Option1 (base case)'!AF7 ->  | AG7: ='Option1 (base case)'!AG7 -> 
G9: Units | I9: ='Option1 (base case)'!I9 -> 2026-27 | J9: ='Option1 (base case)'!J9 -> 2027-28 | K9: ='Option1 (base case)'!K9 -> 2028-29 | L9: ='Option1 (base case)'!L9 -> 2029-30 | M9: ='Option1 (base case)'!M9 -> 2030-31 | N9: ='Option1 (base case)'!N9 -> 2031-32 | O9: ='Option1 (base case)'!O9 -> 2032-33 | P9: ='Option1 (base case)'!P9 -> 2033-34 | Q9: ='Option1 (base case)'!Q9 -> 2034-35 | R9: ='Option1 (base case)'!R9 -> 2035-36 | S9: ='Option1 (base case)'!S9 -> 2036-37 | T9: ='Option1 (base case)'!T9 -> 2037-38 | U9: ='Option1 (base case)'!U9 -> 2038-39 | V9: ='Option1 (base case)'!V9 -> 2039-40 | W9: ='Option1 (base case)'!W9 -> 2040-41 | X9: ='Option1 (base case)'!X9 -> 2041-42 | Y9: ='Option1 (base case)'!Y9 -> 2042-43 | Z9: ='Option1 (base case)'!Z9 -> 2043-44 | AA9: ='Option1 (base case)'!AA9 -> 2044-45 | AB9: ='Option1 (base case)'!AB9 -> 2045-46 | AC9: ='Option1 (base case)'!AC9 -> 2046-47 | AD9: ='Option1 (base case)'!AD9 -> 2047-48 | AE9: ='Option1 (base case)'!AE9 -> 2048-49 | AF9: ='Option1 (base case)'!AF9 -> 2049-50 | AG9: ='Option1 (base case)'!AG9 -> 2050-51
A11: INVESTMENT & OPERATING COST
C13: Capex | E13: Asset life (yrs)
C14: SWER upgrades | E14: 50 | G14: =input_dollars -> 2023-12-31 | I14: =INDEX(Options_Summary!E$9:E$12, MATCH($A$3, Options_Summary!$C$9:$C$12,0)) -> 9600000 | J14: =INDEX(Options_Summary!F$9:F$12, MATCH($A$3, Options_Summary!$C$9:$C$12,0)) -> 6600000 | K14: =INDEX(Options_Summary!G$9:G$12, MATCH($A$3, Options_Summary!$C$9:$C$12,0)) -> 11400000 | L14: =INDEX(Options_Summary!H$9:H$12, MATCH($A$3, Options_Summary!$C$9:$C$12,0)) -> 14000000 | M14: =INDEX(Options_Summary!I$9:I$12, MATCH($A$3, Options_Summary!$C$9:$C$12,0)) -> 15100000 | N14: 0 | O14: 0 | P14: 0 | Q14: 0 | R14: 0 | S14: 0 | T14: 0 | U14: 0 | V14: 0 | W14: 0 | X14: 0 | Y14: 0 | Z14: 0 | AA14: 0 | AB14: 0 | AC14: 0 | AD14: 0 | AE14: 0 | AF14: 0 | AG14: 0
E15: 0 | G15: =input_dollars -> 2023-12-31 | I15: 0 | J15: 0 | K15: 0 | L15: 0 | M15: 0 | N15: 0 | O15: 0 | P15: 0 | Q15: 0 | R15: 0 | S15: 0 | T15: 0 | U15: 0 | V15: 0 | W15: 0 | X15: 0 | Y15: 0 | Z15: 0 | AA15: 0 | AB15: 0 | AC15: 0 | AD15: 0 | AE15: 0 | AF15: 0 | AG15: 0
E16: 0 | G16: =input_dollars -> 2023-12-31 | I16: 0 | J16: 0 | K16: 0 | L16: 0 | M16: 0 | N16: 0 | O16: 0 | P16: 0 | Q16: 0 | R16: 0 | S16: 0 | T16: 0 | U16: 0 | V16: 0 | W16: 0 | X16: 0 | Y16: 0 | Z16: 0 | AA16: 0 | AB16: 0 | AC16: 0 | AD16: 0 | AE16: 0 | AF16: 0 | AG16: 0
C17: Capital expenditure | G17: =input_dollars -> 2023-12-31 | I17: =SUM(I14:I16) -> 9600000 | J17: 6600000 | K17: 11400000 | L17: 14000000 | M17: 15100000 | N17: 0 | O17: 0 | P17: 0 | Q17: 0 | R17: =SUM(R14:R16) -> 0 | S17: 0 | T17: 0 | U17: 0 | V17: 0 | W17: 0 | X17: 0 | Y17: 0 | Z17: 0 | AA17: 0 | AB17: 0 | AC17: 0 | AD17: 0 | AE17: 0 | AF17: 0 | AG17: 0
C19: Operating expenditure | G19: =input_dollars -> 2023-12-31 | I19: 0 | J19: 0 | K19: 0 | L19: 0 | M19: 0 | N19: 0 | O19: 0 | P19: 0 | Q19: 0 | R19: 0 | S19: 0 | T19: 0 | U19: 0 | V19: 0 | W19: 0 | X19: 0 | Y19: 0 | Z19: 0 | AA19: 0 | AB19: 0 | AC19: 0 | AD19: 0 | AE19: 0 | AF19: 0 | AG19: 0
A22: RISK ASSUMPTIONS
C24: PoF (major) | I24: 0 | J24: 0 | K24: 0 | L24: 0 | M24: 0 | N24: 0 | O24: 0 | P24: 0 | Q24: 0 | R24: 0 | S24: 0 | T24: 0 | U24: 0 | V24: 0 | W24: 0 | X24: 0 | Y24: 0 | Z24: 0 | AA24: 0 | AB24: 0 | AC24: 0 | AD24: 0 | AE24: 0 | AF24: 0 | AG24: 0
C25: PoF (reparable) | I25: 0 | J25: 0 | K25: 0 | L25: 0 | M25: 0 | N25: 0 | O25: 0 | P25: 0 | Q25: 0 | R25: 0 | S25: 0 | T25: 0 | U25: 0 | V25: 0 | W25: 0 | X25: 0 | Y25: 0 | Z25: 0 | AA25: 0 | AB25: 0 | AC25: 0 | AD25: 0 | AE25: 0 | AF25: 0 | AG25: 0
C27: Energy at risk (weighted) | G27: MWh | I27: 0 | J27: 0 | K27: 0 | L27: 0 | M27: 0 | N27: 0 | O27: 0 | P27: 0 | Q27: 0 | R27: 0 | S27: 0 | T27: 0 | U27: 0 | V27: 0 | W27: 0 | X27: 0 | Y27: 0 | Z27: 0 | AA27: 0 | AB27: 0 | AC27: 0 | AD27: 0 | AE27: 0 | AF27: 0 | AG27: 0
C28: Energy at risk value (CECV + CO2 + VCR+Bushfire) | D28: $/MWh | F28: =IF(AND(SUM(I27:AG27)<>0, E28=0), "!", "") ->  | G28: =input_dollars -> 2023-12-31 | I28: =INDEX(Options_Summary!E$38:E$42, MATCH($A$3, Options_Summary!$C$38:$C$42,0)) -> 40441152 | J28: =INDEX(Options_Summary!F$38:F$42, MATCH($A$3, Options_Summary!$C$38:$C$42,0)) -> 32387835.85 | K28: =INDEX(Options_Summary!G$38:G$42, MATCH($A$3, Options_Summary!$C$38:$C$42,0)) -> 27598410.28 | L28: =INDEX(Options_Summary!H$38:H$42, MATCH($A$3, Options_Summary!$C$38:$C$42,0)) -> 24308443.28 | M28: =INDEX(Options_Summary!I$38:I$42, MATCH($A$3, Options_Summary!$C$38:$C$42,0)) -> 20892702.37 | N28: =INDEX(Options_Summary!J$38:J$42, MATCH($A$3, Options_Summary!$C$38:$C$42,0)) -> 21325596.59 | O28: =INDEX(Options_Summary!K$38:K$42, MATCH($A$3, Options_Summary!$C$38:$C$42,0)) -> 24598666.94 | P28: =INDEX(Options_Summary!L$38:L$42, MATCH($A$3, Options_Summary!$C$38:$C$42,0)) -> 25548643.43 | Q28: =INDEX(Options_Summary!M$38:M$42, MATCH($A$3, Options_Summary!$C$38:$C$42,0)) -> 26518410.19 | R28: =INDEX(Options_Summary!N$38:N$42, MATCH($A$3, Options_Summary!$C$38:$C$42,0)) -> 26518410.19 | S28: =INDEX(Options_Summary!O$38:O$42, MATCH($A$3, Options_Summary!$C$38:$C$42,0)) -> 26518410.19 | T28: =INDEX(Options_Summary!P$38:P$42, MATCH($A$3, Options_Summary!$C$38:$C$42,0)) -> 26518410.19 | U28: =INDEX(Options_Summary!Q$38:Q$42, MATCH($A$3, Options_Summary!$C$38:$C$42,0)) -> 26518410.19 | V28: =INDEX(Options_Summary!R$38:R$42, MATCH($A$3, Options_Summary!$C$38:$C$42,0)) -> 26518410.19 | W28: =INDEX(Options_Summary!S$38:S$42, MATCH($A$3, Options_Summary!$C$38:$C$42,0)) -> 26518410.19 | X28: =INDEX(Options_Summary!T$38:T$42, MATCH($A$3, Options_Summary!$C$38:$C$42,0)) -> 0 | Y28: =INDEX(Options_Summary!U$38:U$42, MATCH($A$3, Options_Summary!$C$38:$C$42,0)) -> 0 | Z28: =INDEX(Options_Summary!V$38:V$42, MATCH($A$3, Options_Summary!$C$38:$C$42,0)) -> 0 | AA28: =INDEX(Options_Summary!W$38:W$42, MATCH($A$3, Options_Summary!$C$38:$C$42,0)) -> 0 | AB28: =INDEX(Options_Summary!X$38:X$42, MATCH($A$3, Options_Summary!$C$38:$C$42,0)) -> 0 | AC28: =INDEX(Options_Summary!Y$38:Y$42, MATCH($A$3, Options_Summary!$C$38:$C$42,0)) -> 0 | AD28: =INDEX(Options_Summary!Z$38:Z$42, MATCH($A$3, Options_Summary!$C$38:$C$42,0)) -> 0 | AE28: =INDEX(Options_Summary!AA$38:AA$42, MATCH($A$3, Options_Summary!$C$38:$C$42,0)) -> 0 | AF28: =INDEX(Options_Summary!AB$38:AB$42, MATCH($A$3, Options_Summary!$C$38:$C$42,0)) -> 0 | AG28: =INDEX(Options_Summary!AC$38:AC$42, MATCH($A$3, Options_Summary!$C$38:$C$42,0)) -> 0
C30: Safety consequence | D30: (after DF) | G30: =input_dollars -> 2023-12-31 | I30: 0 | J30: 0 | K30: 0 | L30: 0 | M30: 0 | N30: 0 | O30: 0 | P30: 0 | Q30: 0 | R30: 0 | S30: 0 | T30: 0 | U30: 0 | V30: 0 | W30: 0 | X30: 0 | Y30: 0 | Z30: 0 | AA30: 0 | AB30: 0 | AC30: 0 | AD30: 0 | AE30: 0 | AF30: 0 | AG30: 0
C31: Unplanned replacements | G31: =input_dollars -> 2023-12-31 | I31: 0 | J31: 0 | K31: 0 | L31: 0 | M31: 0 | N31: 0 | O31: 0 | P31: 0 | Q31: 0 | R31: 0 | S31: 0 | T31: 0 | U31: 0 | V31: 0 | W31: 0 | X31: 0 | Y31: 0 | Z31: 0 | AA31: 0 | AB31: 0 | AC31: 0 | AD31: 0 | AE31: 0 | AF31: 0 | AG31: 0
C32: Environmental consequence | D32: (after DF) | G32: =input_dollars -> 2023-12-31 | I32: 0 | J32: 0 | K32: 0 | L32: 0 | M32: 0 | N32: 0 | O32: 0 | P32: 0 | Q32: 0 | R32: 0 | S32: 0 | T32: 0 | U32: 0 | V32: 0 | W32: 0 | X32: 0 | Y32: 0 | Z32: 0 | AA32: 0 | AB32: 0 | AC32: 0 | AD32: 0 | AE32: 0 | AF32: 0 | AG32: 0
C33: < Other risk - enter description > | G33: =input_dollars -> 2023-12-31 | I33: 0 | J33: 0 | K33: 0 | L33: 0 | M33: 0 | N33: 0 | O33: 0 | P33: 0 | Q33: 0 | R33: 0 | S33: 0 | T33: 0 | U33: 0 | V33: 0 | W33: 0 | X33: 0 | Y33: 0 | Z33: 0 | AA33: 0 | AB33: 0 | AC33: 0 | AD33: 0 | AE33: 0 | AF33: 0 | AG33: 0
C34: < Other risk - enter description > | G34: =input_dollars -> 2023-12-31 | I34: 0 | J34: 0 | K34: 0 | L34: 0 | M34: 0 | N34: 0 | O34: 0 | P34: 0 | Q34: 0 | R34: 0 | S34: 0 | T34: 0 | U34: 0 | V34: 0 | W34: 0 | X34: 0 | Y34: 0 | Z34: 0 | AA34: 0 | AB34: 0 | AC34: 0 | AD34: 0 | AE34: 0 | AF34: 0 | AG34: 0
C36: Total risk cost | I36: =SUM(I28:I34) -> 40441152 | J36: =SUM(J28:J34) -> 32387835.85 | K36: 27598410.28 | L36: 24308443.28 | M36: 20892702.37 | N36: 21325596.59 | O36: 24598666.94 | P36: 25548643.43 | Q36: 26518410.19 | R36: 26518410.19 | S36: 26518410.19 | T36: 26518410.19 | U36: 26518410.19 | V36: 26518410.19 | W36: 26518410.19 | X36: 0 | Y36: 0 | Z36: 0 | AA36: 0 | AB36: 0 | AC36: 0 | AD36: 0 | AE36: 0 | AF36: 0 | AG36: 0
A38: OTHER BENEFITS
C41: Reduction in CO2 emissions | G41: MWh | I41: 0 | J41: 0 | K41: 0 | L41: 0 | M41: 0 | N41: 0 | O41: 0 | P41: 0 | Q41: 0 | R41: 0 | S41: 0 | T41: 0 | U41: 0 | V41: 0 | W41: 0 | X41: 0 | Y41: 0 | Z41: 0 | AA41: 0 | AB41: 0 | AC41: 0 | AD41: 0 | AE41: 0 | AF41: 0 | AG41: 0
C42: Value of reduction in CO2 emissions | G42: $ | I42: 0 | J42: 0 | K42: 0 | L42: 0 | M42: 0 | N42: 0 | O42: 0 | P42: 0 | Q42: 0 | R42: 0 | S42: 0 | T42: 0 | U42: 0 | V42: 0 | W42: 0 | X42: 0 | Y42: 0 | Z42: 0 | AA42: 0 | AB42: 0 | AC42: 0 | AD42: 0 | AE42: 0 | AF42: 0 | AG42: 0
C45: Reliability in worst-served areas | D45: $/MWh | E45: 0 | G45: MWh | I45: 0 | J45: 0 | K45: 0 | L45: 0 | M45: 0 | N45: 0 | O45: 0 | P45: 0 | Q45: 0 | R45: 0 | S45: 0 | T45: 0 | U45: 0 | V45: 0 | W45: 0 | X45: 0 | Y45: 0 | Z45: 0 | AA45: 0 | AB45: 0 | AC45: 0 | AD45: 0 | AE45: 0 | AF45: 0 | AG45: 0
C46: Network resilience | D46: $/MWh | E46: 0 | G46: MWh | I46: 0 | J46: 0 | K46: 0 | L46: 0 | M46: 0 | N46: 0 | O46: 0 | P46: 0 | Q46: 0 | R46: 0 | S46: 0 | T46: 0 | U46: 0 | V46: 0 | W46: 0 | X46: 0 | Y46: 0 | Z46: 0 | AA46: 0 | AB46: 0 | AC46: 0 | AD46: 0 | AE46: 0 | AF46: 0 | AG46: 0
C47: Enabling solar exports | D47: $/MWh | E47: 0 | G47: MWh | I47: 0 | J47: 0 | K47: 0 | L47: 0 | M47: 0 | N47: 0 | O47: 0 | P47: 0 | Q47: 0 | R47: 0 | S47: 0 | T47: 0 | U47: 0 | V47: 0 | W47: 0 | X47: 0 | Y47: 0 | Z47: 0 | AA47: 0 | AB47: 0 | AC47: 0 | AD47: 0 | AE47: 0 | AF47: 0 | AG47: 0
C48: Aesthetics | D48: $/customer | E48: 0 | G48: customers | I48: 0 | J48: 0 | K48: 0 | L48: 0 | M48: 0 | N48: 0 | O48: 0 | P48: 0 | Q48: 0 | R48: 0 | S48: 0 | T48: 0 | U48: 0 | V48: 0 | W48: 0 | X48: 0 | Y48: 0 | Z48: 0 | AA48: 0 | AB48: 0 | AC48: 0 | AD48: 0 | AE48: 0 | AF48: 0 | AG48: 0
C49: Customer value of time - residential | D49: $/customer min | E49: 0 | G49: mins | I49: 0 | J49: 0 | K49: 0 | L49: 0 | M49: 0 | N49: 0 | O49: 0 | P49: 0 | Q49: 0 | R49: 0 | S49: 0 | T49: 0 | U49: 0 | V49: 0 | W49: 0 | X49: 0 | Y49: 0 | Z49: 0 | AA49: 0 | AB49: 0 | AC49: 0 | AD49: 0 | AE49: 0 | AF49: 0 | AG49: 0
C50: Customer value of time - business | D50: $/customer min | E50: 0 | G50: mins | I50: 0 | J50: 0 | K50: 0 | L50: 0 | M50: 0 | N50: 0 | O50: 0 | P50: 0 | Q50: 0 | R50: 0 | S50: 0 | T50: 0 | U50: 0 | V50: 0 | W50: 0 | X50: 0 | Y50: 0 | Z50: 0 | AA50: 0 | AB50: 0 | AC50: 0 | AD50: 0 | AE50: 0 | AF50: 0 | AG50: 0
C51: Communication | D51: $/customer | E51: 0 | G51: customers | I51: 0 | J51: 0 | K51: 0 | L51: 0 | M51: 0 | N51: 0 | O51: 0 | P51: 0 | Q51: 0 | R51: 0 | S51: 0 | T51: 0 | U51: 0 | V51: 0 | W51: 0 | X51: 0 | Y51: 0 | Z51: 0 | AA51: 0 | AB51: 0 | AC51: 0 | AD51: 0 | AE51: 0 | AF51: 0 | AG51: 0
C52: Information accessibility | D52: $/customer | E52: 0 | G52: customers | I52: 0 | J52: 0 | K52: 0 | L52: 0 | M52: 0 | N52: 0 | O52: 0 | P52: 0 | Q52: 0 | R52: 0 | S52: 0 | T52: 0 | U52: 0 | V52: 0 | W52: 0 | X52: 0 | Y52: 0 | Z52: 0 | AA52: 0 | AB52: 0 | AC52: 0 | AD52: 0 | AE52: 0 | AF52: 0 | AG52: 0
C54: Other benefits 1 | G54: =input_dollars -> 2023-12-31 | I54: 0 | J54: 0 | K54: 0 | L54: 0 | M54: 0 | N54: 0 | O54: 0 | P54: 0 | Q54: 0 | R54: 0 | S54: 0 | T54: 0 | U54: 0 | V54: 0 | W54: 0 | X54: 0 | Y54: 0 | Z54: 0 | AA54: 0 | AB54: 0 | AC54: 0 | AD54: 0 | AE54: 0 | AF54: 0 | AG54: 0
C55: Other benefits 2 | G55: =input_dollars -> 2023-12-31 | I55: 0 | J55: 0 | K55: 0 | L55: 0 | M55: 0 | N55: 0 | O55: 0 | P55: 0 | Q55: 0 | R55: 0 | S55: 0 | T55: 0 | U55: 0 | V55: 0 | W55: 0 | X55: 0 | Y55: 0 | Z55: 0 | AA55: 0 | AB55: 0 | AC55: 0 | AD55: 0 | AE55: 0 | AF55: 0 | AG55: 0
C57: Total other benefits | G57: =input_dollars -> 2023-12-31 | I57: =SUMPRODUCT((I$45:I$52)*($E$45:$E$52))+SUM(I54:I55)+I42 -> 0 | J57: =SUMPRODUCT((J$45:J$52)*($E$45:$E$52))+SUM(J54:J55)+J42 -> 0 | K57: =SUMPRODUCT((K$45:K$52)*($E$45:$E$52))+SUM(K54:K55)+K42 -> 0 | L57: =SUMPRODUCT((L$45:L$52)*($E$45:$E$52))+SUM(L54:L55)+L42 -> 0 | M57: =SUMPRODUCT((M$45:M$52)*($E$45:$E$52))+SUM(M54:M55)+M42 -> 0 | N57: =SUMPRODUCT((N$45:N$52)*($E$45:$E$52))+SUM(N54:N55)+N42 -> 0 | O57: =SUMPRODUCT((O$45:O$52)*($E$45:$E$52))+SUM(O54:O55)+O42 -> 0 | P57: =SUMPRODUCT((P$45:P$52)*($E$45:$E$52))+SUM(P54:P55)+P42 -> 0 | Q57: =SUMPRODUCT((Q$45:Q$52)*($E$45:$E$52))+SUM(Q54:Q55)+Q42 -> 0 | R57: =SUMPRODUCT((R$45:R$52)*($E$45:$E$52))+SUM(R54:R55)+R42 -> 0 | S57: =SUMPRODUCT((S$45:S$52)*($E$45:$E$52))+SUM(S54:S55)+S42 -> 0 | T57: =SUMPRODUCT((T$45:T$52)*($E$45:$E$52))+SUM(T54:T55)+T42 -> 0 | U57: =SUMPRODUCT((U$45:U$52)*($E$45:$E$52))+SUM(U54:U55)+U42 -> 0 | V57: =SUMPRODUCT((V$45:V$52)*($E$45:$E$52))+SUM(V54:V55)+V42 -> 0 | W57: =SUMPRODUCT((W$45:W$52)*($E$45:$E$52))+SUM(W54:W55)+W42 -> 0 | X57: =SUMPRODUCT((X$45:X$52)*($E$45:$E$52))+SUM(X54:X55)+X42 -> 0 | Y57: =SUMPRODUCT((Y$45:Y$52)*($E$45:$E$52))+SUM(Y54:Y55)+Y42 -> 0 | Z57: =SUMPRODUCT((Z$45:Z$52)*($E$45:$E$52))+SUM(Z54:Z55)+Z42 -> 0 | AA57: =SUMPRODUCT((AA$45:AA$52)*($E$45:$E$52))+SUM(AA54:AA55)+AA42 -> 0 | AB57: =SUMPRODUCT((AB$45:AB$52)*($E$45:$E$52))+SUM(AB54:AB55)+AB42 -> 0 | AC57: =SUMPRODUCT((AC$45:AC$52)*($E$45:$E$52))+SUM(AC54:AC55)+AC42 -> 0 | AD57: =SUMPRODUCT((AD$45:AD$52)*($E$45:$E$52))+SUM(AD54:AD55)+AD42 -> 0 | AE57: =SUMPRODUCT((AE$45:AE$52)*($E$45:$E$52))+SUM(AE54:AE55)+AE42 -> 0 | AF57: =SUMPRODUCT((AF$45:AF$52)*($E$45:$E$52))+SUM(AF54:AF55)+AF42 -> 0 | AG57: =SUMPRODUCT((AG$45:AG$52)*($E$45:$E$52))+SUM(AG54:AG55)+AG42 -> 0
A60: SUMMARY
C64: ='Option1 (base case)'!C64 -> Risks mitigated vs base case | G64: =input_dollars -> 2023-12-31 | I64: =(1-INDEX(Data!$C$9:$C$13, MATCH($A$3, options,0)))*('Option1 (base case)'!I36-I36) -> 13817017.73 | J64: =(1-INDEX(Data!$C$9:$C$13, MATCH($A$3, options,0)))*('Option1 (base case)'!J36-J36) -> 21613960.93 | K64: =(1-INDEX(Data!$C$9:$C$13, MATCH($A$3, options,0)))*('Option1 (base case)'!K36-K36) -> 25388842.12 | L64: =(1-INDEX(Data!$C$9:$C$13, MATCH($A$3, options,0)))*('Option1 (base case)'!L36-L36) -> 28042469.95 | M64: =(1-INDEX(Data!$C$9:$C$13, MATCH($A$3, options,0)))*('Option1 (base case)'!M36-M36) -> 32879642.05 | N64: =(1-INDEX(Data!$C$9:$C$13, MATCH($A$3, options,0)))*('Option1 (base case)'!N36-N36) -> 33399181.04 | O64: =(1-INDEX(Data!$C$9:$C$13, MATCH($A$3, options,0)))*('Option1 (base case)'!O36-O36) -> 33672466.87 | P64: =(1-INDEX(Data!$C$9:$C$13, MATCH($A$3, options,0)))*('Option1 (base case)'!P36-P36) -> 33686747.96 | Q64: =(1-INDEX(Data!$C$9:$C$13, MATCH($A$3, options,0)))*('Option1 (base case)'!Q36-Q36) -> 33628820.63 | R64: =(1-INDEX(Data!$C$9:$C$13, MATCH($A$3, options,0)))*('Option1 (base case)'!R36-R36) -> 33628820.63 | S64: =(1-INDEX(Data!$C$9:$C$13, MATCH($A$3, options,0)))*('Option1 (base case)'!S36-S36) -> 33628820.63 | T64: =(1-INDEX(Data!$C$9:$C$13, MATCH($A$3, options,0)))*('Option1 (base case)'!T36-T36) -> 33628820.63 | U64: =(1-INDEX(Data!$C$9:$C$13, MATCH($A$3, options,0)))*('Option1 (base case)'!U36-U36) -> 33628820.63 | V64: =(1-INDEX(Data!$C$9:$C$13, MATCH($A$3, options,0)))*('Option1 (base case)'!V36-V36) -> 33628820.63 | W64: =(1-INDEX(Data!$C$9:$C$13, MATCH($A$3, options,0)))*('Option1 (base case)'!W36-W36) -> 33628820.63 | X64: =(1-INDEX(Data!$C$9:$C$13, MATCH($A$3, options,0)))*('Option1 (base case)'!X36-X36) -> 0 | Y64: =(1-INDEX(Data!$C$9:$C$13, MATCH($A$3, options,0)))*('Option1 (base case)'!Y36-Y36) -> 0 | Z64: =(1-INDEX(Data!$C$9:$C$13, MATCH($A$3, options,0)))*('Option1 (base case)'!Z36-Z36) -> 0 | AA64: =(1-INDEX(Data!$C$9:$C$13, MATCH($A$3, options,0)))*('Option1 (base case)'!AA36-AA36) -> 0 | AB64: =(1-INDEX(Data!$C$9:$C$13, MATCH($A$3, options,0)))*('Option1 (base case)'!AB36-AB36) -> 0 | AC64: =(1-INDEX(Data!$C$9:$C$13, MATCH($A$3, options,0)))*('Option1 (base case)'!AC36-AC36) -> 0 | AD64: =(1-INDEX(Data!$C$9:$C$13, MATCH($A$3, options,0)))*('Option1 (base case)'!AD36-AD36) -> 0 | AE64: =(1-INDEX(Data!$C$9:$C$13, MATCH($A$3, options,0)))*('Option1 (base case)'!AE36-AE36) -> 0 | AF64: =(1-INDEX(Data!$C$9:$C$13, MATCH($A$3, options,0)))*('Option1 (base case)'!AF36-AF36) -> 0 | AG64: =(1-INDEX(Data!$C$9:$C$13, MATCH($A$3, options,0)))*('Option1 (base case)'!AG36-AG36) -> 0
C66: Capital expenditure
C67: =C14 -> SWER upgrades | G67: =input_dollars -> 2023-12-31 | I67: =-I14 -> -9600000 | J67: -6600000 | K67: -11400000 | L67: -14000000 | M67: -15100000 | N67: 0 | O67: 0 | P67: 0 | Q67: 0 | R67: 0 | S67: 0 | T67: 0 | U67: 0 | V67: 0 | W67: 0 | X67: 0 | Y67: 0 | Z67: 0 | AA67: 0 | AB67: 0 | AC67: 0 | AD67: 0 | AE67: 0 | AF67: 0 | AG67: 0
C68: =C15 -> 0 | G68: =input_dollars -> 2023-12-31 | I68: =-I15 -> 0 | J68: 0 | K68: 0 | L68: 0 | M68: 0 | N68: 0 | O68: 0 | P68: 0 | Q68: 0 | R68: 0 | S68: 0 | T68: 0 | U68: 0 | V68: 0 | W68: 0 | X68: 0 | Y68: 0 | Z68: 0 | AA68: 0 | AB68: 0 | AC68: 0 | AD68: 0 | AE68: 0 | AF68: 0 | AG68: 0
C69: =C16 -> 0 | G69: =input_dollars -> 2023-12-31 | I69: =-I16 -> 0 | J69: 0 | K69: 0 | L69: 0 | M69: 0 | N69: 0 | O69: 0 | P69: 0 | Q69: 0 | R69: 0 | S69: 0 | T69: 0 | U69: 0 | V69: 0 | W69: 0 | X69: 0 | Y69: 0 | Z69: 0 | AA69: 0 | AB69: 0 | AC69: 0 | AD69: 0 | AE69: 0 | AF69: 0 | AG69: 0
C71: Cumulative capex
C72: =C14 -> SWER upgrades | G72: =input_dollars -> 2023-12-31 | I72: =SUMPRODUCT(($I67:I67))-SUMPRODUCT(($I67:I67)*($I$6:I$6<=(I$6-$E14))) -> -9600000 | J72: =SUMPRODUCT(($I67:J67))-SUMPRODUCT(($I67:J67)*($I$6:J$6<=(J$6-$E14))) -> -16200000 | K72: =SUMPRODUCT(($I67:K67))-SUMPRODUCT(($I67:K67)*($I$6:K$6<=(K$6-$E14))) -> -27600000 | L72: =SUMPRODUCT(($I67:L67))-SUMPRODUCT(($I67:L67)*($I$6:L$6<=(L$6-$E14))) -> -41600000 | M72: =SUMPRODUCT(($I67:M67))-SUMPRODUCT(($I67:M67)*($I$6:M$6<=(M$6-$E14))) -> -56700000 | N72: =SUMPRODUCT(($I67:N67))-SUMPRODUCT(($I67:N67)*($I$6:N$6<=(N$6-$E14))) -> -56700000 | O72: =SUMPRODUCT(($I67:O67))-SUMPRODUCT(($I67:O67)*($I$6:O$6<=(O$6-$E14))) -> -56700000 | P72: =SUMPRODUCT(($I67:P67))-SUMPRODUCT(($I67:P67)*($I$6:P$6<=(P$6-$E14))) -> -56700000 | Q72: =SUMPRODUCT(($I67:Q67))-SUMPRODUCT(($I67:Q67)*($I$6:Q$6<=(Q$6-$E14))) -> -56700000 | R72: =SUMPRODUCT(($I67:R67))-SUMPRODUCT(($I67:R67)*($I$6:R$6<=(R$6-$E14))) -> -56700000 | S72: =SUMPRODUCT(($I67:S67))-SUMPRODUCT(($I67:S67)*($I$6:S$6<=(S$6-$E14))) -> -56700000 | T72: =SUMPRODUCT(($I67:T67))-SUMPRODUCT(($I67:T67)*($I$6:T$6<=(T$6-$E14))) -> -56700000 | U72: =SUMPRODUCT(($I67:U67))-SUMPRODUCT(($I67:U67)*($I$6:U$6<=(U$6-$E14))) -> -56700000 | V72: =SUMPRODUCT(($I67:V67))-SUMPRODUCT(($I67:V67)*($I$6:V$6<=(V$6-$E14))) -> -56700000 | W72: =SUMPRODUCT(($I67:W67))-SUMPRODUCT(($I67:W67)*($I$6:W$6<=(W$6-$E14))) -> -56700000 | X72: =SUMPRODUCT(($I67:X67))-SUMPRODUCT(($I67:X67)*($I$6:X$6<=(X$6-$E14))) -> -56700000 | Y72: =SUMPRODUCT(($I67:Y67))-SUMPRODUCT(($I67:Y67)*($I$6:Y$6<=(Y$6-$E14))) -> -56700000 | Z72: =SUMPRODUCT(($I67:Z67))-SUMPRODUCT(($I67:Z67)*($I$6:Z$6<=(Z$6-$E14))) -> -56700000 | AA72: =SUMPRODUCT(($I67:AA67))-SUMPRODUCT(($I67:AA67)*($I$6:AA$6<=(AA$6-$E14))) -> -56700000 | AB72: =SUMPRODUCT(($I67:AB67))-SUMPRODUCT(($I67:AB67)*($I$6:AB$6<=(AB$6-$E14))) -> -56700000 | AC72: =SUMPRODUCT(($I67:AC67))-SUMPRODUCT(($I67:AC67)*($I$6:AC$6<=(AC$6-$E14))) -> -56700000 | AD72: =SUMPRODUCT(($I67:AD67))-SUMPRODUCT(($I67:AD67)*($I$6:AD$6<=(AD$6-$E14))) -> -56700000 | AE72: =SUMPRODUCT(($I67:AE67))-SUMPRODUCT(($I67:AE67)*($I$6:AE$6<=(AE$6-$E14))) -> -56700000 | AF72: =SUMPRODUCT(($I67:AF67))-SUMPRODUCT(($I67:AF67)*($I$6:AF$6<=(AF$6-$E14))) -> -56700000 | AG72: =SUMPRODUCT(($I67:AG67))-SUMPRODUCT(($I67:AG67)*($I$6:AG$6<=(AG$6-$E14))) -> -56700000
C73: =C15 -> 0 | G73: =input_dollars -> 2023-12-31 | I73: =SUMPRODUCT(($I68:I68))-SUMPRODUCT(($I68:I68)*($I$6:I$6<=(I$6-$E15))) -> 0 | J73: =SUMPRODUCT(($I68:J68))-SUMPRODUCT(($I68:J68)*($I$6:J$6<=(J$6-$E15))) -> 0 | K73: =SUMPRODUCT(($I68:K68))-SUMPRODUCT(($I68:K68)*($I$6:K$6<=(K$6-$E15))) -> 0 | L73: =SUMPRODUCT(($I68:L68))-SUMPRODUCT(($I68:L68)*($I$6:L$6<=(L$6-$E15))) -> 0 | M73: =SUMPRODUCT(($I68:M68))-SUMPRODUCT(($I68:M68)*($I$6:M$6<=(M$6-$E15))) -> 0 | N73: =SUMPRODUCT(($I68:N68))-SUMPRODUCT(($I68:N68)*($I$6:N$6<=(N$6-$E15))) -> 0 | O73: =SUMPRODUCT(($I68:O68))-SUMPRODUCT(($I68:O68)*($I$6:O$6<=(O$6-$E15))) -> 0 | P73: =SUMPRODUCT(($I68:P68))-SUMPRODUCT(($I68:P68)*($I$6:P$6<=(P$6-$E15))) -> 0 | Q73: =SUMPRODUCT(($I68:Q68))-SUMPRODUCT(($I68:Q68)*($I$6:Q$6<=(Q$6-$E15))) -> 0 | R73: =SUMPRODUCT(($I68:R68))-SUMPRODUCT(($I68:R68)*($I$6:R$6<=(R$6-$E15))) -> 0 | S73: =SUMPRODUCT(($I68:S68))-SUMPRODUCT(($I68:S68)*($I$6:S$6<=(S$6-$E15))) -> 0 | T73: =SUMPRODUCT(($I68:T68))-SUMPRODUCT(($I68:T68)*($I$6:T$6<=(T$6-$E15))) -> 0 | U73: =SUMPRODUCT(($I68:U68))-SUMPRODUCT(($I68:U68)*($I$6:U$6<=(U$6-$E15))) -> 0 | V73: =SUMPRODUCT(($I68:V68))-SUMPRODUCT(($I68:V68)*($I$6:V$6<=(V$6-$E15))) -> 0 | W73: =SUMPRODUCT(($I68:W68))-SUMPRODUCT(($I68:W68)*($I$6:W$6<=(W$6-$E15))) -> 0 | X73: =SUMPRODUCT(($I68:X68))-SUMPRODUCT(($I68:X68)*($I$6:X$6<=(X$6-$E15))) -> 0 | Y73: =SUMPRODUCT(($I68:Y68))-SUMPRODUCT(($I68:Y68)*($I$6:Y$6<=(Y$6-$E15))) -> 0 | Z73: =SUMPRODUCT(($I68:Z68))-SUMPRODUCT(($I68:Z68)*($I$6:Z$6<=(Z$6-$E15))) -> 0 | AA73: =SUMPRODUCT(($I68:AA68))-SUMPRODUCT(($I68:AA68)*($I$6:AA$6<=(AA$6-$E15))) -> 0 | AB73: =SUMPRODUCT(($I68:AB68))-SUMPRODUCT(($I68:AB68)*($I$6:AB$6<=(AB$6-$E15))) -> 0 | AC73: =SUMPRODUCT(($I68:AC68))-SUMPRODUCT(($I68:AC68)*($I$6:AC$6<=(AC$6-$E15))) -> 0 | AD73: =SUMPRODUCT(($I68:AD68))-SUMPRODUCT(($I68:AD68)*($I$6:AD$6<=(AD$6-$E15))) -> 0 | AE73: =SUMPRODUCT(($I68:AE68))-SUMPRODUCT(($I68:AE68)*($I$6:AE$6<=(AE$6-$E15))) -> 0 | AF73: =SUMPRODUCT(($I68:AF68))-SUMPRODUCT(($I68:AF68)*($I$6:AF$6<=(AF$6-$E15))) -> 0 | AG73: =SUMPRODUCT(($I68:AG68))-SUMPRODUCT(($I68:AG68)*($I$6:AG$6<=(AG$6-$E15))) -> 0
C74: =C16 -> 0 | G74: =input_dollars -> 2023-12-31 | I74: =SUMPRODUCT(($I69:I69))-SUMPRODUCT(($I69:I69)*($I$6:I$6<=(I$6-$E16))) -> 0 | J74: =SUMPRODUCT(($I69:J69))-SUMPRODUCT(($I69:J69)*($I$6:J$6<=(J$6-$E16))) -> 0 | K74: =SUMPRODUCT(($I69:K69))-SUMPRODUCT(($I69:K69)*($I$6:K$6<=(K$6-$E16))) -> 0 | L74: =SUMPRODUCT(($I69:L69))-SUMPRODUCT(($I69:L69)*($I$6:L$6<=(L$6-$E16))) -> 0 | M74: =SUMPRODUCT(($I69:M69))-SUMPRODUCT(($I69:M69)*($I$6:M$6<=(M$6-$E16))) -> 0 | N74: =SUMPRODUCT(($I69:N69))-SUMPRODUCT(($I69:N69)*($I$6:N$6<=(N$6-$E16))) -> 0 | O74: =SUMPRODUCT(($I69:O69))-SUMPRODUCT(($I69:O69)*($I$6:O$6<=(O$6-$E16))) -> 0 | P74: =SUMPRODUCT(($I69:P69))-SUMPRODUCT(($I69:P69)*($I$6:P$6<=(P$6-$E16))) -> 0 | Q74: =SUMPRODUCT(($I69:Q69))-SUMPRODUCT(($I69:Q69)*($I$6:Q$6<=(Q$6-$E16))) -> 0 | R74: =SUMPRODUCT(($I69:R69))-SUMPRODUCT(($I69:R69)*($I$6:R$6<=(R$6-$E16))) -> 0 | S74: =SUMPRODUCT(($I69:S69))-SUMPRODUCT(($I69:S69)*($I$6:S$6<=(S$6-$E16))) -> 0 | T74: =SUMPRODUCT(($I69:T69))-SUMPRODUCT(($I69:T69)*($I$6:T$6<=(T$6-$E16))) -> 0 | U74: =SUMPRODUCT(($I69:U69))-SUMPRODUCT(($I69:U69)*($I$6:U$6<=(U$6-$E16))) -> 0 | V74: =SUMPRODUCT(($I69:V69))-SUMPRODUCT(($I69:V69)*($I$6:V$6<=(V$6-$E16))) -> 0 | W74: =SUMPRODUCT(($I69:W69))-SUMPRODUCT(($I69:W69)*($I$6:W$6<=(W$6-$E16))) -> 0 | X74: =SUMPRODUCT(($I69:X69))-SUMPRODUCT(($I69:X69)*($I$6:X$6<=(X$6-$E16))) -> 0 | Y74: =SUMPRODUCT(($I69:Y69))-SUMPRODUCT(($I69:Y69)*($I$6:Y$6<=(Y$6-$E16))) -> 0 | Z74: =SUMPRODUCT(($I69:Z69))-SUMPRODUCT(($I69:Z69)*($I$6:Z$6<=(Z$6-$E16))) -> 0 | AA74: =SUMPRODUCT(($I69:AA69))-SUMPRODUCT(($I69:AA69)*($I$6:AA$6<=(AA$6-$E16))) -> 0 | AB74: =SUMPRODUCT(($I69:AB69))-SUMPRODUCT(($I69:AB69)*($I$6:AB$6<=(AB$6-$E16))) -> 0 | AC74: =SUMPRODUCT(($I69:AC69))-SUMPRODUCT(($I69:AC69)*($I$6:AC$6<=(AC$6-$E16))) -> 0 | AD74: =SUMPRODUCT(($I69:AD69))-SUMPRODUCT(($I69:AD69)*($I$6:AD$6<=(AD$6-$E16))) -> 0 | AE74: =SUMPRODUCT(($I69:AE69))-SUMPRODUCT(($I69:AE69)*($I$6:AE$6<=(AE$6-$E16))) -> 0 | AF74: =SUMPRODUCT(($I69:AF69))-SUMPRODUCT(($I69:AF69)*($I$6:AF$6<=(AF$6-$E16))) -> 0 | AG74: =SUMPRODUCT(($I69:AG69))-SUMPRODUCT(($I69:AG69)*($I$6:AG$6<=(AG$6-$E16))) -> 0
C76: Annualised capex
C77: =$C$76&" - "&C14 -> Annualised capex - SWER upgrades | G77: =input_dollars -> 2023-12-31 | I77: =IF($E14=0,0,-PMT(real_disc, $E14,H72,)) -> 0 | J77: -409283.6118 | K77: -690666.095 | L77: -1176690.384 | M77: -1773562.318 | N77: -2417331.332 | O77: -2417331.332 | P77: -2417331.332 | Q77: -2417331.332 | R77: -2417331.332 | S77: -2417331.332 | T77: -2417331.332 | U77: -2417331.332 | V77: -2417331.332 | W77: -2417331.332 | X77: -2417331.332 | Y77: -2417331.332 | Z77: -2417331.332 | AA77: -2417331.332 | AB77: -2417331.332 | AC77: -2417331.332 | AD77: -2417331.332 | AE77: -2417331.332 | AF77: -2417331.332 | AG77: -2417331.332
C78: =$C$76&" - "&C15 -> Annualised capex - | G78: =input_dollars -> 2023-12-31 | I78: =IF($E15=0,0,-PMT(real_disc, $E15,H73,)) -> 0 | J78: 0 | K78: 0 | L78: 0 | M78: 0 | N78: 0 | O78: 0 | P78: 0 | Q78: 0 | R78: 0 | S78: 0 | T78: 0 | U78: 0 | V78: 0 | W78: 0 | X78: 0 | Y78: 0 | Z78: 0 | AA78: 0 | AB78: 0 | AC78: 0 | AD78: 0 | AE78: 0 | AF78: 0 | AG78: 0
C79: =$C$76&" - "&C16 -> Annualised capex - | G79: =input_dollars -> 2023-12-31 | I79: =IF($E16=0,0,-PMT(real_disc, $E16,H74,)) -> 0 | J79: 0 | K79: 0 | L79: 0 | M79: 0 | N79: 0 | O79: 0 | P79: 0 | Q79: 0 | R79: 0 | S79: 0 | T79: 0 | U79: 0 | V79: 0 | W79: 0 | X79: 0 | Y79: 0 | Z79: 0 | AA79: 0 | AB79: 0 | AC79: 0 | AD79: 0 | AE79: 0 | AF79: 0 | AG79: 0
C80: Total annualised capex | G80: =input_dollars -> 2023-12-31 | I80: =SUM(I77:I79) -> 0 | J80: =SUM(J77:J79) -> -409283.6118 | K80: -690666.095 | L80: -1176690.384 | M80: -1773562.318 | N80: -2417331.332 | O80: -2417331.332 | P80: -2417331.332 | Q80: -2417331.332 | R80: -2417331.332 | S80: -2417331.332 | T80: -2417331.332 | U80: -2417331.332 | V80: -2417331.332 | W80: -2417331.332 | X80: -2417331.332 | Y80: -2417331.332 | Z80: -2417331.332 | AA80: -2417331.332 | AB80: -2417331.332 | AC80: =SUM(AC77:AC79) -> -2417331.332 | AD80: =SUM(AD77:AD79) -> -2417331.332 | AE80: =SUM(AE77:AE79) -> -2417331.332 | AF80: =SUM(AF77:AF79) -> -2417331.332 | AG80: =SUM(AG77:AG79) -> -2417331.332
C82: Annualised capex | G82: =input_dollars -> 2023-12-31 | I82: =I80 -> 0 | J82: =J80 -> -409283.6118 | K82: -690666.095 | L82: -1176690.384 | M82: -1773562.318 | N82: -2417331.332 | O82: -2417331.332 | P82: -2417331.332 | Q82: -2417331.332 | R82: -2417331.332 | S82: -2417331.332 | T82: -2417331.332 | U82: -2417331.332 | V82: -2417331.332 | W82: -2417331.332 | X82: -2417331.332 | Y82: -2417331.332 | Z82: -2417331.332 | AA82: -2417331.332 | AB82: -2417331.332 | AC82: =AC80 -> -2417331.332 | AD82: =AD80 -> -2417331.332 | AE82: =AE80 -> -2417331.332 | AF82: =AF80 -> -2417331.332 | AG82: =AG80 -> -2417331.332
C83: Operating expenditure | G83: 2023-12-31 | I83: =-I19 -> 0 | J83: 0 | K83: 0 | L83: 0 | M83: 0 | N83: 0 | O83: 0 | P83: 0 | Q83: 0 | R83: 0 | S83: 0 | T83: 0 | U83: 0 | V83: 0 | W83: 0 | X83: 0 | Y83: 0 | Z83: 0 | AA83: 0 | AB83: 0 | AC83: 0 | AD83: 0 | AE83: 0 | AF83: 0 | AG83: 0
C84: Risk mitigated | G84: 2023-12-31 | I84: =I64 -> 13817017.73 | J84: =J64 -> 21613960.93 | K84: 25388842.12 | L84: 28042469.95 | M84: 32879642.05 | N84: 33399181.04 | O84: 33672466.87 | P84: 33686747.96 | Q84: 33628820.63 | R84: 33628820.63 | S84: 33628820.63 | T84: 33628820.63 | U84: 33628820.63 | V84: 33628820.63 | W84: 33628820.63 | X84: 0 | Y84: 0 | Z84: 0 | AA84: 0 | AB84: 0 | AC84: =AC64 -> 0 | AD84: =AD64 -> 0 | AE84: =AE64 -> 0 | AF84: =AF64 -> 0 | AG84: =AG64 -> 0
C85: Other benefits value | G85: 2023-12-31 | I85: =I57 -> 0 | J85: 0 | K85: 0 | L85: 0 | M85: 0 | N85: 0 | O85: 0 | P85: 0 | Q85: 0 | R85: 0 | S85: 0 | T85: 0 | U85: 0 | V85: 0 | W85: 0 | X85: 0 | Y85: 0 | Z85: 0 | AA85: 0 | AB85: 0 | AC85: 0 | AD85: 0 | AE85: 0 | AF85: 0 | AG85: 0
C87: Net benefits | G87: 2023-12-31 | I87: =SUM(I82:I86) -> 13817017.73 | J87: 21204677.32 | K87: 24698176.02 | L87: 26865779.57 | M87: 31106079.74 | N87: 30981849.71 | O87: 31255135.54 | P87: 31269416.62 | Q87: 31211489.3 | R87: 31211489.3 | S87: 31211489.3 | T87: 31211489.3 | U87: 31211489.3 | V87: 31211489.3 | W87: 31211489.3 | X87: -2417331.332 | Y87: -2417331.332 | Z87: -2417331.332 | AA87: -2417331.332 | AB87: -2417331.332 | AC87: =SUM(AC82:AC86) -> -2417331.332 | AD87: =SUM(AD82:AD86) -> -2417331.332 | AE87: =SUM(AE82:AE86) -> -2417331.332 | AF87: =SUM(AF82:AF86) -> -2417331.332 | AG87: =SUM(AG82:AG86) -> -2417331.332
C90: First capex year | G90: =IF(SUM($I17:$AG17)=0,0,(INDEX(I$6:AG$6,MATCH(TRUE,INDEX($I17:$AG17<>0,),0)))) -> 1
C92: First year | G92: =IF(_xlfn.MINIFS($G$90:$G$91, $G$90:$G$91, ">"&0)=0, $A$4, _xlfn.MINIFS($G$90:$G$91, $G$90:$G$91, ">"&0)) -> 1
A102: SENSITIVITIES
A106: NPV | C106: Net benefits | G106: =PROPER($A$3)&A106 -> Option 2NPV | I106: =I87 -> 13817017.73 | J106: =J87 -> 21204677.32 | K106: 24698176.02 | L106: 26865779.57 | M106: 31106079.74 | N106: 30981849.71 | O106: 31255135.54 | P106: 31269416.62 | Q106: 31211489.3 | R106: 31211489.3 | S106: 31211489.3 | T106: 31211489.3 | U106: 31211489.3 | V106: 31211489.3 | W106: 31211489.3 | X106: -2417331.332 | Y106: -2417331.332 | Z106: -2417331.332 | AA106: -2417331.332 | AB106: -2417331.332 | AC106: -2417331.332 | AD106: -2417331.332 | AE106: -2417331.332 | AF106: -2417331.332 | AG106: -2417331.332
C107: Total annualised capex | I107: =I82 -> 0 | J107: =J82 -> -409283.6118 | K107: -690666.095 | L107: -1176690.384 | M107: -1773562.318 | N107: -2417331.332 | O107: -2417331.332 | P107: -2417331.332 | Q107: -2417331.332 | R107: -2417331.332 | S107: -2417331.332 | T107: -2417331.332 | U107: -2417331.332 | V107: -2417331.332 | W107: -2417331.332 | X107: -2417331.332 | Y107: -2417331.332 | Z107: -2417331.332 | AA107: -2417331.332 | AB107: -2417331.332 | AC107: -2417331.332 | AD107: -2417331.332 | AE107: -2417331.332 | AF107: -2417331.332 | AG107: -2417331.332
C108: Total benefits | I108: =SUM(I84:I85) -> 13817017.73 | J108: =SUM(J84:J85) -> 21613960.93 | K108: 25388842.12 | L108: 28042469.95 | M108: 32879642.05 | N108: 33399181.04 | O108: 33672466.87 | P108: 33686747.96 | Q108: 33628820.63 | R108: 33628820.63 | S108: 33628820.63 | T108: 33628820.63 | U108: 33628820.63 | V108: 33628820.63 | W108: 33628820.63 | X108: 0 | Y108: 0 | Z108: 0 | AA108: 0 | AB108: 0 | AC108: 0 | AD108: 0 | AE108: 0 | AF108: 0 | AG108: 0
D109: =Assumptions!G44 -> Capex | E109: =Assumptions!H44 -> Total benefits
A110: ="sens"&Assumptions!B45 -> sens1 | C110: =Assumptions!C45 -> Capex 10% higher | D110: =Assumptions!G45 -> 0.1 | E110: =Assumptions!H45 -> 0 | G110: =PROPER($A$3)&A110 -> Option 2sens1 | I110: =I$106+IF($C110<>0,SUMPRODUCT((I$107:I$108)*TRANSPOSE(($D110:$E110))),0) -> 13817017.73 | J110: =J$106+IF($C110<>0,SUMPRODUCT((J$107:J$108)*TRANSPOSE(($D110:$E110))),0) -> 21163748.95 | K110: =K$106+IF($C110<>0,SUMPRODUCT((K$107:K$108)*TRANSPOSE(($D110:$E110))),0) -> 24629109.41 | L110: =L$106+IF($C110<>0,SUMPRODUCT((L$107:L$108)*TRANSPOSE(($D110:$E110))),0) -> 26748110.53 | M110: =M$106+IF($C110<>0,SUMPRODUCT((M$107:M$108)*TRANSPOSE(($D110:$E110))),0) -> 30928723.5 | N110: =N$106+IF($C110<>0,SUMPRODUCT((N$107:N$108)*TRANSPOSE(($D110:$E110))),0) -> 30740116.57 | O110: =O$106+IF($C110<>0,SUMPRODUCT((O$107:O$108)*TRANSPOSE(($D110:$E110))),0) -> 31013402.41 | P110: =P$106+IF($C110<>0,SUMPRODUCT((P$107:P$108)*TRANSPOSE(($D110:$E110))),0) -> 31027683.49 | Q110: =Q$106+IF($C110<>0,SUMPRODUCT((Q$107:Q$108)*TRANSPOSE(($D110:$E110))),0) -> 30969756.17 | R110: =R$106+IF($C110<>0,SUMPRODUCT((R$107:R$108)*TRANSPOSE(($D110:$E110))),0) -> 30969756.17 | S110: =S$106+IF($C110<>0,SUMPRODUCT((S$107:S$108)*TRANSPOSE(($D110:$E110))),0) -> 30969756.17 | T110: =T$106+IF($C110<>0,SUMPRODUCT((T$107:T$108)*TRANSPOSE(($D110:$E110))),0) -> 30969756.17 | U110: =U$106+IF($C110<>0,SUMPRODUCT((U$107:U$108)*TRANSPOSE(($D110:$E110))),0) -> 30969756.17 | V110: =V$106+IF($C110<>0,SUMPRODUCT((V$107:V$108)*TRANSPOSE(($D110:$E110))),0) -> 30969756.17 | W110: =W$106+IF($C110<>0,SUMPRODUCT((W$107:W$108)*TRANSPOSE(($D110:$E110))),0) -> 30969756.17 | X110: =X$106+IF($C110<>0,SUMPRODUCT((X$107:X$108)*TRANSPOSE(($D110:$E110))),0) -> -2659064.466 | Y110: =Y$106+IF($C110<>0,SUMPRODUCT((Y$107:Y$108)*TRANSPOSE(($D110:$E110))),0) -> -2659064.466 | Z110: =Z$106+IF($C110<>0,SUMPRODUCT((Z$107:Z$108)*TRANSPOSE(($D110:$E110))),0) -> -2659064.466 | AA110: =AA$106+IF($C110<>0,SUMPRODUCT((AA$107:AA$108)*TRANSPOSE(($D110:$E110))),0) -> -2659064.466 | AB110: =AB$106+IF($C110<>0,SUMPRODUCT((AB$107:AB$108)*TRANSPOSE(($D110:$E110))),0) -> -2659064.466 | AC110: =AC$106+IF($C110<>0,SUMPRODUCT((AC$107:AC$108)*TRANSPOSE(($D110:$E110))),0) -> -2659064.466 | AD110: =AD$106+IF($C110<>0,SUMPRODUCT((AD$107:AD$108)*TRANSPOSE(($D110:$E110))),0) -> -2659064.466 | AE110: =AE$106+IF($C110<>0,SUMPRODUCT((AE$107:AE$108)*TRANSPOSE(($D110:$E110))),0) -> -2659064.466 | AF110: =AF$106+IF($C110<>0,SUMPRODUCT((AF$107:AF$108)*TRANSPOSE(($D110:$E110))),0) -> -2659064.466 | AG110: =AG$106+IF($C110<>0,SUMPRODUCT((AG$107:AG$108)*TRANSPOSE(($D110:$E110))),0) -> -2659064.466
A111: ="sens"&Assumptions!B46 -> sens2 | C111: =Assumptions!C46 -> Capex 10% lower | D111: =Assumptions!G46 -> -0.1 | E111: =Assumptions!H46 -> 0 | G111: =PROPER($A$3)&A111 -> Option 2sens2 | I111: =I$106+IF($C111<>0,SUMPRODUCT((I$107:I$108)*TRANSPOSE(($D111:$E111))),0) -> 13817017.73 | J111: =J$106+IF($C111<>0,SUMPRODUCT((J$107:J$108)*TRANSPOSE(($D111:$E111))),0) -> 21245605.68 | K111: =K$106+IF($C111<>0,SUMPRODUCT((K$107:K$108)*TRANSPOSE(($D111:$E111))),0) -> 24767242.63 | L111: =L$106+IF($C111<>0,SUMPRODUCT((L$107:L$108)*TRANSPOSE(($D111:$E111))),0) -> 26983448.6 | M111: =M$106+IF($C111<>0,SUMPRODUCT((M$107:M$108)*TRANSPOSE(($D111:$E111))),0) -> 31283435.97 | N111: =N$106+IF($C111<>0,SUMPRODUCT((N$107:N$108)*TRANSPOSE(($D111:$E111))),0) -> 31223582.84 | O111: =O$106+IF($C111<>0,SUMPRODUCT((O$107:O$108)*TRANSPOSE(($D111:$E111))),0) -> 31496868.67 | P111: =P$106+IF($C111<>0,SUMPRODUCT((P$107:P$108)*TRANSPOSE(($D111:$E111))),0) -> 31511149.76 | Q111: =Q$106+IF($C111<>0,SUMPRODUCT((Q$107:Q$108)*TRANSPOSE(($D111:$E111))),0) -> 31453222.43 | R111: =R$106+IF($C111<>0,SUMPRODUCT((R$107:R$108)*TRANSPOSE(($D111:$E111))),0) -> 31453222.43 | S111: =S$106+IF($C111<>0,SUMPRODUCT((S$107:S$108)*TRANSPOSE(($D111:$E111))),0) -> 31453222.43 | T111: =T$106+IF($C111<>0,SUMPRODUCT((T$107:T$108)*TRANSPOSE(($D111:$E111))),0) -> 31453222.43 | U111: =U$106+IF($C111<>0,SUMPRODUCT((U$107:U$108)*TRANSPOSE(($D111:$E111))),0) -> 31453222.43 | V111: =V$106+IF($C111<>0,SUMPRODUCT((V$107:V$108)*TRANSPOSE(($D111:$E111))),0) -> 31453222.43 | W111: =W$106+IF($C111<>0,SUMPRODUCT((W$107:W$108)*TRANSPOSE(($D111:$E111))),0) -> 31453222.43 | X111: =X$106+IF($C111<>0,SUMPRODUCT((X$107:X$108)*TRANSPOSE(($D111:$E111))),0) -> -2175598.199 | Y111: =Y$106+IF($C111<>0,SUMPRODUCT((Y$107:Y$108)*TRANSPOSE(($D111:$E111))),0) -> -2175598.199 | Z111: =Z$106+IF($C111<>0,SUMPRODUCT((Z$107:Z$108)*TRANSPOSE(($D111:$E111))),0) -> -2175598.199 | AA111: =AA$106+IF($C111<>0,SUMPRODUCT((AA$107:AA$108)*TRANSPOSE(($D111:$E111))),0) -> -2175598.199 | AB111: =AB$106+IF($C111<>0,SUMPRODUCT((AB$107:AB$108)*TRANSPOSE(($D111:$E111))),0) -> -2175598.199 | AC111: =AC$106+IF($C111<>0,SUMPRODUCT((AC$107:AC$108)*TRANSPOSE(($D111:$E111))),0) -> -2175598.199 | AD111: =AD$106+IF($C111<>0,SUMPRODUCT((AD$107:AD$108)*TRANSPOSE(($D111:$E111))),0) -> -2175598.199 | AE111: =AE$106+IF($C111<>0,SUMPRODUCT((AE$107:AE$108)*TRANSPOSE(($D111:$E111))),0) -> -2175598.199 | AF111: =AF$106+IF($C111<>0,SUMPRODUCT((AF$107:AF$108)*TRANSPOSE(($D111:$E111))),0) -> -2175598.199 | AG111: =AG$106+IF($C111<>0,SUMPRODUCT((AG$107:AG$108)*TRANSPOSE(($D111:$E111))),0) -> -2175598.199
A112: ="sens"&Assumptions!B47 -> sens3 | C112: =Assumptions!C47 -> Total benefits 10% higher | D112: =Assumptions!G47 -> 0 | E112: =Assumptions!H47 -> 0.1 | G112: Option 2sens3 | I112: =I$106+IF($C112<>0,SUMPRODUCT((I$107:I$108)*TRANSPOSE(($D112:$E112))),0) -> 15198719.51 | J112: =J$106+IF($C112<>0,SUMPRODUCT((J$107:J$108)*TRANSPOSE(($D112:$E112))),0) -> 23366073.41 | K112: =K$106+IF($C112<>0,SUMPRODUCT((K$107:K$108)*TRANSPOSE(($D112:$E112))),0) -> 27237060.23 | L112: =L$106+IF($C112<>0,SUMPRODUCT((L$107:L$108)*TRANSPOSE(($D112:$E112))),0) -> 29670026.56 | M112: =M$106+IF($C112<>0,SUMPRODUCT((M$107:M$108)*TRANSPOSE(($D112:$E112))),0) -> 34394043.94 | N112: =N$106+IF($C112<>0,SUMPRODUCT((N$107:N$108)*TRANSPOSE(($D112:$E112))),0) -> 34321767.81 | O112: =O$106+IF($C112<>0,SUMPRODUCT((O$107:O$108)*TRANSPOSE(($D112:$E112))),0) -> 34622382.23 | P112: =P$106+IF($C112<>0,SUMPRODUCT((P$107:P$108)*TRANSPOSE(($D112:$E112))),0) -> 34638091.42 | Q112: =Q$106+IF($C112<>0,SUMPRODUCT((Q$107:Q$108)*TRANSPOSE(($D112:$E112))),0) -> 34574371.36 | R112: =R$106+IF($C112<>0,SUMPRODUCT((R$107:R$108)*TRANSPOSE(($D112:$E112))),0) -> 34574371.36 | S112: =S$106+IF($C112<>0,SUMPRODUCT((S$107:S$108)*TRANSPOSE(($D112:$E112))),0) -> 34574371.36 | T112: =T$106+IF($C112<>0,SUMPRODUCT((T$107:T$108)*TRANSPOSE(($D112:$E112))),0) -> 34574371.36 | U112: =U$106+IF($C112<>0,SUMPRODUCT((U$107:U$108)*TRANSPOSE(($D112:$E112))),0) -> 34574371.36 | V112: =V$106+IF($C112<>0,SUMPRODUCT((V$107:V$108)*TRANSPOSE(($D112:$E112))),0) -> 34574371.36 | W112: =W$106+IF($C112<>0,SUMPRODUCT((W$107:W$108)*TRANSPOSE(($D112:$E112))),0) -> 34574371.36 | X112: =X$106+IF($C112<>0,SUMPRODUCT((X$107:X$108)*TRANSPOSE(($D112:$E112))),0) -> -2417331.332 | Y112: =Y$106+IF($C112<>0,SUMPRODUCT((Y$107:Y$108)*TRANSPOSE(($D112:$E112))),0) -> -2417331.332 | Z112: =Z$106+IF($C112<>0,SUMPRODUCT((Z$107:Z$108)*TRANSPOSE(($D112:$E112))),0) -> -2417331.332 | AA112: =AA$106+IF($C112<>0,SUMPRODUCT((AA$107:AA$108)*TRANSPOSE(($D112:$E112))),0) -> -2417331.332 | AB112: =AB$106+IF($C112<>0,SUMPRODUCT((AB$107:AB$108)*TRANSPOSE(($D112:$E112))),0) -> -2417331.332 | AC112: =AC$106+IF($C112<>0,SUMPRODUCT((AC$107:AC$108)*TRANSPOSE(($D112:$E112))),0) -> -2417331.332 | AD112: =AD$106+IF($C112<>0,SUMPRODUCT((AD$107:AD$108)*TRANSPOSE(($D112:$E112))),0) -> -2417331.332 | AE112: =AE$106+IF($C112<>0,SUMPRODUCT((AE$107:AE$108)*TRANSPOSE(($D112:$E112))),0) -> -2417331.332 | AF112: =AF$106+IF($C112<>0,SUMPRODUCT((AF$107:AF$108)*TRANSPOSE(($D112:$E112))),0) -> -2417331.332 | AG112: =AG$106+IF($C112<>0,SUMPRODUCT((AG$107:AG$108)*TRANSPOSE(($D112:$E112))),0) -> -2417331.332
A113: ="sens"&Assumptions!B48 -> sens4 | C113: =Assumptions!C48 -> Total benefits 10% lower | D113: =Assumptions!G48 -> 0 | E113: =Assumptions!H48 -> -0.1 | G113: Option 2sens4 | I113: =I$106+IF($C113<>0,SUMPRODUCT((I$107:I$108)*TRANSPOSE(($D113:$E113))),0) -> 12435315.96 | J113: =J$106+IF($C113<>0,SUMPRODUCT((J$107:J$108)*TRANSPOSE(($D113:$E113))),0) -> 19043281.22 | K113: =K$106+IF($C113<>0,SUMPRODUCT((K$107:K$108)*TRANSPOSE(($D113:$E113))),0) -> 22159291.81 | L113: =L$106+IF($C113<>0,SUMPRODUCT((L$107:L$108)*TRANSPOSE(($D113:$E113))),0) -> 24061532.57 | M113: =M$106+IF($C113<>0,SUMPRODUCT((M$107:M$108)*TRANSPOSE(($D113:$E113))),0) -> 27818115.53 | N113: =N$106+IF($C113<>0,SUMPRODUCT((N$107:N$108)*TRANSPOSE(($D113:$E113))),0) -> 27641931.6 | O113: =O$106+IF($C113<>0,SUMPRODUCT((O$107:O$108)*TRANSPOSE(($D113:$E113))),0) -> 27887888.85 | P113: =P$106+IF($C113<>0,SUMPRODUCT((P$107:P$108)*TRANSPOSE(($D113:$E113))),0) -> 27900741.83 | Q113: =Q$106+IF($C113<>0,SUMPRODUCT((Q$107:Q$108)*TRANSPOSE(($D113:$E113))),0) -> 27848607.24 | R113: =R$106+IF($C113<>0,SUMPRODUCT((R$107:R$108)*TRANSPOSE(($D113:$E113))),0) -> 27848607.24 | S113: =S$106+IF($C113<>0,SUMPRODUCT((S$107:S$108)*TRANSPOSE(($D113:$E113))),0) -> 27848607.24 | T113: =T$106+IF($C113<>0,SUMPRODUCT((T$107:T$108)*TRANSPOSE(($D113:$E113))),0) -> 27848607.24 | U113: =U$106+IF($C113<>0,SUMPRODUCT((U$107:U$108)*TRANSPOSE(($D113:$E113))),0) -> 27848607.24 | V113: =V$106+IF($C113<>0,SUMPRODUCT((V$107:V$108)*TRANSPOSE(($D113:$E113))),0) -> 27848607.24 | W113: =W$106+IF($C113<>0,SUMPRODUCT((W$107:W$108)*TRANSPOSE(($D113:$E113))),0) -> 27848607.24 | X113: =X$106+IF($C113<>0,SUMPRODUCT((X$107:X$108)*TRANSPOSE(($D113:$E113))),0) -> -2417331.332 | Y113: =Y$106+IF($C113<>0,SUMPRODUCT((Y$107:Y$108)*TRANSPOSE(($D113:$E113))),0) -> -2417331.332 | Z113: =Z$106+IF($C113<>0,SUMPRODUCT((Z$107:Z$108)*TRANSPOSE(($D113:$E113))),0) -> -2417331.332 | AA113: =AA$106+IF($C113<>0,SUMPRODUCT((AA$107:AA$108)*TRANSPOSE(($D113:$E113))),0) -> -2417331.332 | AB113: =AB$106+IF($C113<>0,SUMPRODUCT((AB$107:AB$108)*TRANSPOSE(($D113:$E113))),0) -> -2417331.332 | AC113: =AC$106+IF($C113<>0,SUMPRODUCT((AC$107:AC$108)*TRANSPOSE(($D113:$E113))),0) -> -2417331.332 | AD113: =AD$106+IF($C113<>0,SUMPRODUCT((AD$107:AD$108)*TRANSPOSE(($D113:$E113))),0) -> -2417331.332 | AE113: =AE$106+IF($C113<>0,SUMPRODUCT((AE$107:AE$108)*TRANSPOSE(($D113:$E113))),0) -> -2417331.332 | AF113: =AF$106+IF($C113<>0,SUMPRODUCT((AF$107:AF$108)*TRANSPOSE(($D113:$E113))),0) -> -2417331.332 | AG113: =AG$106+IF($C113<>0,SUMPRODUCT((AG$107:AG$108)*TRANSPOSE(($D113:$E113))),0) -> -2417331.332
A114: ="sens"&Assumptions!B49 -> sens5 | C114: =Assumptions!C49 -> Capex 10% higher & Total benefits 10% lower | D114: =Assumptions!G49 -> 0.1 | E114: =Assumptions!H49 -> -0.1 | G114: Option 2sens5 | I114: =I$106+IF($C114<>0,SUMPRODUCT((I$107:I$108)*TRANSPOSE(($D114:$E114))),0) -> 12435315.96 | J114: =J$106+IF($C114<>0,SUMPRODUCT((J$107:J$108)*TRANSPOSE(($D114:$E114))),0) -> 19002352.86 | K114: =K$106+IF($C114<>0,SUMPRODUCT((K$107:K$108)*TRANSPOSE(($D114:$E114))),0) -> 22090225.2 | L114: =L$106+IF($C114<>0,SUMPRODUCT((L$107:L$108)*TRANSPOSE(($D114:$E114))),0) -> 23943863.53 | M114: =M$106+IF($C114<>0,SUMPRODUCT((M$107:M$108)*TRANSPOSE(($D114:$E114))),0) -> 27640759.3 | N114: =N$106+IF($C114<>0,SUMPRODUCT((N$107:N$108)*TRANSPOSE(($D114:$E114))),0) -> 27400198.47 | O114: =O$106+IF($C114<>0,SUMPRODUCT((O$107:O$108)*TRANSPOSE(($D114:$E114))),0) -> 27646155.72 | P114: =P$106+IF($C114<>0,SUMPRODUCT((P$107:P$108)*TRANSPOSE(($D114:$E114))),0) -> 27659008.69 | Q114: =Q$106+IF($C114<>0,SUMPRODUCT((Q$107:Q$108)*TRANSPOSE(($D114:$E114))),0) -> 27606874.1 | R114: =R$106+IF($C114<>0,SUMPRODUCT((R$107:R$108)*TRANSPOSE(($D114:$E114))),0) -> 27606874.1 | S114: =S$106+IF($C114<>0,SUMPRODUCT((S$107:S$108)*TRANSPOSE(($D114:$E114))),0) -> 27606874.1 | T114: =T$106+IF($C114<>0,SUMPRODUCT((T$107:T$108)*TRANSPOSE(($D114:$E114))),0) -> 27606874.1 | U114: =U$106+IF($C114<>0,SUMPRODUCT((U$107:U$108)*TRANSPOSE(($D114:$E114))),0) -> 27606874.1 | V114: =V$106+IF($C114<>0,SUMPRODUCT((V$107:V$108)*TRANSPOSE(($D114:$E114))),0) -> 27606874.1 | W114: =W$106+IF($C114<>0,SUMPRODUCT((W$107:W$108)*TRANSPOSE(($D114:$E114))),0) -> 27606874.1 | X114: =X$106+IF($C114<>0,SUMPRODUCT((X$107:X$108)*TRANSPOSE(($D114:$E114))),0) -> -2659064.466 | Y114: =Y$106+IF($C114<>0,SUMPRODUCT((Y$107:Y$108)*TRANSPOSE(($D114:$E114))),0) -> -2659064.466 | Z114: =Z$106+IF($C114<>0,SUMPRODUCT((Z$107:Z$108)*TRANSPOSE(($D114:$E114))),0) -> -2659064.466 | AA114: =AA$106+IF($C114<>0,SUMPRODUCT((AA$107:AA$108)*TRANSPOSE(($D114:$E114))),0) -> -2659064.466 | AB114: =AB$106+IF($C114<>0,SUMPRODUCT((AB$107:AB$108)*TRANSPOSE(($D114:$E114))),0) -> -2659064.466 | AC114: =AC$106+IF($C114<>0,SUMPRODUCT((AC$107:AC$108)*TRANSPOSE(($D114:$E114))),0) -> -2659064.466 | AD114: =AD$106+IF($C114<>0,SUMPRODUCT((AD$107:AD$108)*TRANSPOSE(($D114:$E114))),0) -> -2659064.466 | AE114: =AE$106+IF($C114<>0,SUMPRODUCT((AE$107:AE$108)*TRANSPOSE(($D114:$E114))),0) -> -2659064.466 | AF114: =AF$106+IF($C114<>0,SUMPRODUCT((AF$107:AF$108)*TRANSPOSE(($D114:$E114))),0) -> -2659064.466 | AG114: =AG$106+IF($C114<>0,SUMPRODUCT((AG$107:AG$108)*TRANSPOSE(($D114:$E114))),0) -> -2659064.466
A115: ="sens"&Assumptions!B50 -> sens | C115: =Assumptions!C50 -> 0 | D115: =Assumptions!G50 -> 0 | E115: =Assumptions!H50 -> 0 | G115: Option 2sens | I115: =I$106+IF($C115<>0,SUMPRODUCT((I$107:I$108)*TRANSPOSE(($D115:$E115))),0) -> 13817017.73 | J115: =J$106+IF($C115<>0,SUMPRODUCT((J$107:J$108)*TRANSPOSE(($D115:$E115))),0) -> 21204677.32 | K115: =K$106+IF($C115<>0,SUMPRODUCT((K$107:K$108)*TRANSPOSE(($D115:$E115))),0) -> 24698176.02 | L115: =L$106+IF($C115<>0,SUMPRODUCT((L$107:L$108)*TRANSPOSE(($D115:$E115))),0) -> 26865779.57 | M115: =M$106+IF($C115<>0,SUMPRODUCT((M$107:M$108)*TRANSPOSE(($D115:$E115))),0) -> 31106079.74 | N115: =N$106+IF($C115<>0,SUMPRODUCT((N$107:N$108)*TRANSPOSE(($D115:$E115))),0) -> 30981849.71 | O115: =O$106+IF($C115<>0,SUMPRODUCT((O$107:O$108)*TRANSPOSE(($D115:$E115))),0) -> 31255135.54 | P115: =P$106+IF($C115<>0,SUMPRODUCT((P$107:P$108)*TRANSPOSE(($D115:$E115))),0) -> 31269416.62 | Q115: =Q$106+IF($C115<>0,SUMPRODUCT((Q$107:Q$108)*TRANSPOSE(($D115:$E115))),0) -> 31211489.3 | R115: =R$106+IF($C115<>0,SUMPRODUCT((R$107:R$108)*TRANSPOSE(($D115:$E115))),0) -> 31211489.3 | S115: =S$106+IF($C115<>0,SUMPRODUCT((S$107:S$108)*TRANSPOSE(($D115:$E115))),0) -> 31211489.3 | T115: =T$106+IF($C115<>0,SUMPRODUCT((T$107:T$108)*TRANSPOSE(($D115:$E115))),0) -> 31211489.3 | U115: =U$106+IF($C115<>0,SUMPRODUCT((U$107:U$108)*TRANSPOSE(($D115:$E115))),0) -> 31211489.3 | V115: =V$106+IF($C115<>0,SUMPRODUCT((V$107:V$108)*TRANSPOSE(($D115:$E115))),0) -> 31211489.3 | W115: =W$106+IF($C115<>0,SUMPRODUCT((W$107:W$108)*TRANSPOSE(($D115:$E115))),0) -> 31211489.3 | X115: =X$106+IF($C115<>0,SUMPRODUCT((X$107:X$108)*TRANSPOSE(($D115:$E115))),0) -> -2417331.332 | Y115: =Y$106+IF($C115<>0,SUMPRODUCT((Y$107:Y$108)*TRANSPOSE(($D115:$E115))),0) -> -2417331.332 | Z115: =Z$106+IF($C115<>0,SUMPRODUCT((Z$107:Z$108)*TRANSPOSE(($D115:$E115))),0) -> -2417331.332 | AA115: =AA$106+IF($C115<>0,SUMPRODUCT((AA$107:AA$108)*TRANSPOSE(($D115:$E115))),0) -> -2417331.332 | AB115: =AB$106+IF($C115<>0,SUMPRODUCT((AB$107:AB$108)*TRANSPOSE(($D115:$E115))),0) -> -2417331.332 | AC115: =AC$106+IF($C115<>0,SUMPRODUCT((AC$107:AC$108)*TRANSPOSE(($D115:$E115))),0) -> -2417331.332 | AD115: =AD$106+IF($C115<>0,SUMPRODUCT((AD$107:AD$108)*TRANSPOSE(($D115:$E115))),0) -> -2417331.332 | AE115: =AE$106+IF($C115<>0,SUMPRODUCT((AE$107:AE$108)*TRANSPOSE(($D115:$E115))),0) -> -2417331.332 | AF115: =AF$106+IF($C115<>0,SUMPRODUCT((AF$107:AF$108)*TRANSPOSE(($D115:$E115))),0) -> -2417331.332 | AG115: =AG$106+IF($C115<>0,SUMPRODUCT((AG$107:AG$108)*TRANSPOSE(($D115:$E115))),0) -> -2417331.332
A116: ="sens"&Assumptions!B51 -> sens | C116: =Assumptions!C51 -> 0 | D116: =Assumptions!G51 -> 0 | E116: =Assumptions!H51 -> 0 | G116: Option 2sens | I116: =I$106+IF($C116<>0,SUMPRODUCT((I$107:I$108)*TRANSPOSE(($D116:$E116))),0) -> 13817017.73 | J116: =J$106+IF($C116<>0,SUMPRODUCT((J$107:J$108)*TRANSPOSE(($D116:$E116))),0) -> 21204677.32 | K116: =K$106+IF($C116<>0,SUMPRODUCT((K$107:K$108)*TRANSPOSE(($D116:$E116))),0) -> 24698176.02 | L116: =L$106+IF($C116<>0,SUMPRODUCT((L$107:L$108)*TRANSPOSE(($D116:$E116))),0) -> 26865779.57 | M116: =M$106+IF($C116<>0,SUMPRODUCT((M$107:M$108)*TRANSPOSE(($D116:$E116))),0) -> 31106079.74 | N116: =N$106+IF($C116<>0,SUMPRODUCT((N$107:N$108)*TRANSPOSE(($D116:$E116))),0) -> 30981849.71 | O116: =O$106+IF($C116<>0,SUMPRODUCT((O$107:O$108)*TRANSPOSE(($D116:$E116))),0) -> 31255135.54 | P116: =P$106+IF($C116<>0,SUMPRODUCT((P$107:P$108)*TRANSPOSE(($D116:$E116))),0) -> 31269416.62 | Q116: =Q$106+IF($C116<>0,SUMPRODUCT((Q$107:Q$108)*TRANSPOSE(($D116:$E116))),0) -> 31211489.3 | R116: =R$106+IF($C116<>0,SUMPRODUCT((R$107:R$108)*TRANSPOSE(($D116:$E116))),0) -> 31211489.3 | S116: =S$106+IF($C116<>0,SUMPRODUCT((S$107:S$108)*TRANSPOSE(($D116:$E116))),0) -> 31211489.3 | T116: =T$106+IF($C116<>0,SUMPRODUCT((T$107:T$108)*TRANSPOSE(($D116:$E116))),0) -> 31211489.3 | U116: =U$106+IF($C116<>0,SUMPRODUCT((U$107:U$108)*TRANSPOSE(($D116:$E116))),0) -> 31211489.3 | V116: =V$106+IF($C116<>0,SUMPRODUCT((V$107:V$108)*TRANSPOSE(($D116:$E116))),0) -> 31211489.3 | W116: =W$106+IF($C116<>0,SUMPRODUCT((W$107:W$108)*TRANSPOSE(($D116:$E116))),0) -> 31211489.3 | X116: =X$106+IF($C116<>0,SUMPRODUCT((X$107:X$108)*TRANSPOSE(($D116:$E116))),0) -> -2417331.332 | Y116: =Y$106+IF($C116<>0,SUMPRODUCT((Y$107:Y$108)*TRANSPOSE(($D116:$E116))),0) -> -2417331.332 | Z116: =Z$106+IF($C116<>0,SUMPRODUCT((Z$107:Z$108)*TRANSPOSE(($D116:$E116))),0) -> -2417331.332 | AA116: =AA$106+IF($C116<>0,SUMPRODUCT((AA$107:AA$108)*TRANSPOSE(($D116:$E116))),0) -> -2417331.332 | AB116: =AB$106+IF($C116<>0,SUMPRODUCT((AB$107:AB$108)*TRANSPOSE(($D116:$E116))),0) -> -2417331.332 | AC116: =AC$106+IF($C116<>0,SUMPRODUCT((AC$107:AC$108)*TRANSPOSE(($D116:$E116))),0) -> -2417331.332 | AD116: =AD$106+IF($C116<>0,SUMPRODUCT((AD$107:AD$108)*TRANSPOSE(($D116:$E116))),0) -> -2417331.332 | AE116: =AE$106+IF($C116<>0,SUMPRODUCT((AE$107:AE$108)*TRANSPOSE(($D116:$E116))),0) -> -2417331.332 | AF116: =AF$106+IF($C116<>0,SUMPRODUCT((AF$107:AF$108)*TRANSPOSE(($D116:$E116))),0) -> -2417331.332 | AG116: =AG$106+IF($C116<>0,SUMPRODUCT((AG$107:AG$108)*TRANSPOSE(($D116:$E116))),0) -> -2417331.332
A117: ="sens"&Assumptions!B52 -> sens | C117: =Assumptions!C52 -> 0 | D117: =Assumptions!G52 -> 0 | E117: =Assumptions!H52 -> 0 | G117: Option 2sens | I117: =I$106+IF($C117<>0,SUMPRODUCT((I$107:I$108)*TRANSPOSE(($D117:$E117))),0) -> 13817017.73 | J117: =J$106+IF($C117<>0,SUMPRODUCT((J$107:J$108)*TRANSPOSE(($D117:$E117))),0) -> 21204677.32 | K117: =K$106+IF($C117<>0,SUMPRODUCT((K$107:K$108)*TRANSPOSE(($D117:$E117))),0) -> 24698176.02 | L117: =L$106+IF($C117<>0,SUMPRODUCT((L$107:L$108)*TRANSPOSE(($D117:$E117))),0) -> 26865779.57 | M117: =M$106+IF($C117<>0,SUMPRODUCT((M$107:M$108)*TRANSPOSE(($D117:$E117))),0) -> 31106079.74 | N117: =N$106+IF($C117<>0,SUMPRODUCT((N$107:N$108)*TRANSPOSE(($D117:$E117))),0) -> 30981849.71 | O117: =O$106+IF($C117<>0,SUMPRODUCT((O$107:O$108)*TRANSPOSE(($D117:$E117))),0) -> 31255135.54 | P117: =P$106+IF($C117<>0,SUMPRODUCT((P$107:P$108)*TRANSPOSE(($D117:$E117))),0) -> 31269416.62 | Q117: =Q$106+IF($C117<>0,SUMPRODUCT((Q$107:Q$108)*TRANSPOSE(($D117:$E117))),0) -> 31211489.3 | R117: =R$106+IF($C117<>0,SUMPRODUCT((R$107:R$108)*TRANSPOSE(($D117:$E117))),0) -> 31211489.3 | S117: =S$106+IF($C117<>0,SUMPRODUCT((S$107:S$108)*TRANSPOSE(($D117:$E117))),0) -> 31211489.3 | T117: =T$106+IF($C117<>0,SUMPRODUCT((T$107:T$108)*TRANSPOSE(($D117:$E117))),0) -> 31211489.3 | U117: =U$106+IF($C117<>0,SUMPRODUCT((U$107:U$108)*TRANSPOSE(($D117:$E117))),0) -> 31211489.3 | V117: =V$106+IF($C117<>0,SUMPRODUCT((V$107:V$108)*TRANSPOSE(($D117:$E117))),0) -> 31211489.3 | W117: =W$106+IF($C117<>0,SUMPRODUCT((W$107:W$108)*TRANSPOSE(($D117:$E117))),0) -> 31211489.3 | X117: =X$106+IF($C117<>0,SUMPRODUCT((X$107:X$108)*TRANSPOSE(($D117:$E117))),0) -> -2417331.332 | Y117: =Y$106+IF($C117<>0,SUMPRODUCT((Y$107:Y$108)*TRANSPOSE(($D117:$E117))),0) -> -2417331.332 | Z117: =Z$106+IF($C117<>0,SUMPRODUCT((Z$107:Z$108)*TRANSPOSE(($D117:$E117))),0) -> -2417331.332 | AA117: =AA$106+IF($C117<>0,SUMPRODUCT((AA$107:AA$108)*TRANSPOSE(($D117:$E117))),0) -> -2417331.332 | AB117: =AB$106+IF($C117<>0,SUMPRODUCT((AB$107:AB$108)*TRANSPOSE(($D117:$E117))),0) -> -2417331.332 | AC117: =AC$106+IF($C117<>0,SUMPRODUCT((AC$107:AC$108)*TRANSPOSE(($D117:$E117))),0) -> -2417331.332 | AD117: =AD$106+IF($C117<>0,SUMPRODUCT((AD$107:AD$108)*TRANSPOSE(($D117:$E117))),0) -> -2417331.332 | AE117: =AE$106+IF($C117<>0,SUMPRODUCT((AE$107:AE$108)*TRANSPOSE(($D117:$E117))),0) -> -2417331.332 | AF117: =AF$106+IF($C117<>0,SUMPRODUCT((AF$107:AF$108)*TRANSPOSE(($D117:$E117))),0) -> -2417331.332 | AG117: =AG$106+IF($C117<>0,SUMPRODUCT((AG$107:AG$108)*TRANSPOSE(($D117:$E117))),0) -> -2417331.332

Sheet Option3
A1: =bus -> Powercor
A2: =proj -> Regional and rural supply upgrades
A3: OPTION 3 | C3: =INDEX(Assumptions!$E$14:$E$18, MATCH(A3,_xlfn.ANCHORARRAY( Assumptions!$C$14),0)) -> Revised proposal economic SWER upgrades
A4: =(INDEX(Data!$D$9:$D$13, MATCH(A3, options,0))) -> 
A6: ='Option1 (base case)'!A6 -> Count | I6: ='Option1 (base case)'!I6 -> 1 | J6: ='Option1 (base case)'!J6 -> 2 | K6: ='Option1 (base case)'!K6 -> 3 | L6: ='Option1 (base case)'!L6 -> 4 | M6: ='Option1 (base case)'!M6 -> 5 | N6: ='Option1 (base case)'!N6 -> 6 | O6: ='Option1 (base case)'!O6 -> 7 | P6: ='Option1 (base case)'!P6 -> 8 | Q6: ='Option1 (base case)'!Q6 -> 9 | R6: ='Option1 (base case)'!R6 -> 10 | S6: ='Option1 (base case)'!S6 -> 11 | T6: ='Option1 (base case)'!T6 -> 12 | U6: ='Option1 (base case)'!U6 -> 13 | V6: ='Option1 (base case)'!V6 -> 14 | W6: ='Option1 (base case)'!W6 -> 15 | X6: ='Option1 (base case)'!X6 -> 16 | Y6: ='Option1 (base case)'!Y6 -> 17 | Z6: ='Option1 (base case)'!Z6 -> 18 | AA6: ='Option1 (base case)'!AA6 -> 19 | AB6: ='Option1 (base case)'!AB6 -> 20 | AC6: ='Option1 (base case)'!AC6 -> 21 | AD6: ='Option1 (base case)'!AD6 -> 22 | AE6: ='Option1 (base case)'!AE6 -> 23 | AF6: ='Option1 (base case)'!AF6 -> 24 | AG6: ='Option1 (base case)'!AG6 -> 25
A7: ='Option1 (base case)'!A7 -> Value of CO2 reductions | G7: $/MWh | I7: ='Option1 (base case)'!I7 ->  | J7: ='Option1 (base case)'!J7 ->  | K7: ='Option1 (base case)'!K7 ->  | L7: ='Option1 (base case)'!L7 ->  | M7: ='Option1 (base case)'!M7 ->  | N7: ='Option1 (base case)'!N7 ->  | O7: ='Option1 (base case)'!O7 ->  | P7: ='Option1 (base case)'!P7 ->  | Q7: ='Option1 (base case)'!Q7 ->  | R7: ='Option1 (base case)'!R7 ->  | S7: ='Option1 (base case)'!S7 ->  | T7: ='Option1 (base case)'!T7 ->  | U7: ='Option1 (base case)'!U7 ->  | V7: ='Option1 (base case)'!V7 ->  | W7: ='Option1 (base case)'!W7 ->  | X7: ='Option1 (base case)'!X7 ->  | Y7: ='Option1 (base case)'!Y7 ->  | Z7: ='Option1 (base case)'!Z7 ->  | AA7: ='Option1 (base case)'!AA7 ->  | AB7: ='Option1 (base case)'!AB7 ->  | AC7: ='Option1 (base case)'!AC7 ->  | AD7: ='Option1 (base case)'!AD7 ->  | AE7: ='Option1 (base case)'!AE7 ->  | AF7: ='Option1 (base case)'!AF7 ->  | AG7: ='Option1 (base case)'!AG7 -> 
G9: Units | I9: ='Option1 (base case)'!I9 -> 2026-27 | J9: ='Option1 (base case)'!J9 -> 2027-28 | K9: ='Option1 (base case)'!K9 -> 2028-29 | L9: ='Option1 (base case)'!L9 -> 2029-30 | M9: ='Option1 (base case)'!M9 -> 2030-31 | N9: ='Option1 (base case)'!N9 -> 2031-32 | O9: ='Option1 (base case)'!O9 -> 2032-33 | P9: ='Option1 (base case)'!P9 -> 2033-34 | Q9: ='Option1 (base case)'!Q9 -> 2034-35 | R9: ='Option1 (base case)'!R9 -> 2035-36 | S9: ='Option1 (base case)'!S9 -> 2036-37 | T9: ='Option1 (base case)'!T9 -> 2037-38 | U9: ='Option1 (base case)'!U9 -> 2038-39 | V9: ='Option1 (base case)'!V9 -> 2039-40 | W9: ='Option1 (base case)'!W9 -> 2040-41 | X9: ='Option1 (base case)'!X9 -> 2041-42 | Y9: ='Option1 (base case)'!Y9 -> 2042-43 | Z9: ='Option1 (base case)'!Z9 -> 2043-44 | AA9: ='Option1 (base case)'!AA9 -> 2044-45 | AB9: ='Option1 (base case)'!AB9 -> 2045-46 | AC9: ='Option1 (base case)'!AC9 -> 2046-47 | AD9: ='Option1 (base case)'!AD9 -> 2047-48 | AE9: ='Option1 (base case)'!AE9 -> 2048-49 | AF9: ='Option1 (base case)'!AF9 -> 2049-50 | AG9: ='Option1 (base case)'!AG9 -> 2050-51
A11: INVESTMENT & OPERATING COST
C13: Capex | E13: Asset life (yrs)
C14: SWER upgrades | E14: 50 | G14: =input_dollars -> 2023-12-31 | I14: =INDEX(Options_Summary!E$9:E$12, MATCH($A$3, Options_Summary!$C$9:$C$12,0)) -> 16300000 | J14: =INDEX(Options_Summary!F$9:F$12, MATCH($A$3, Options_Summary!$C$9:$C$12,0)) -> 26500000 | K14: =INDEX(Options_Summary!G$9:G$12, MATCH($A$3, Options_Summary!$C$9:$C$12,0)) -> 28900000 | L14: =INDEX(Options_Summary!H$9:H$12, MATCH($A$3, Options_Summary!$C$9:$C$12,0)) -> 21600000 | M14: =INDEX(Options_Summary!I$9:I$12, MATCH($A$3, Options_Summary!$C$9:$C$12,0)) -> 30000000 | N14: 0 | O14: 0 | P14: 0 | Q14: 0 | R14: 0 | S14: 0 | T14: 0 | U14: 0 | V14: 0 | W14: 0 | X14: 0 | Y14: 0 | Z14: 0 | AA14: 0 | AB14: 0 | AC14: 0 | AD14: 0 | AE14: 0 | AF14: 0 | AG14: 0
E15: 0 | G15: =input_dollars -> 2023-12-31 | I15: 0 | J15: 0 | K15: 0 | L15: 0 | M15: 0 | N15: 0 | O15: 0 | P15: 0 | Q15: 0 | R15: 0 | S15: 0 | T15: 0 | U15: 0 | V15: 0 | W15: 0 | X15: 0 | Y15: 0 | Z15: 0 | AA15: 0 | AB15: 0 | AC15: 0 | AD15: 0 | AE15: 0 | AF15: 0 | AG15: 0
E16: 0 | G16: =input_dollars -> 2023-12-31 | I16: 0 | J16: 0 | K16: 0 | L16: 0 | M16: 0 | N16: 0 | O16: 0 | P16: 0 | Q16: 0 | R16: 0 | S16: 0 | T16: 0 | U16: 0 | V16: 0 | W16: 0 | X16: 0 | Y16: 0 | Z16: 0 | AA16: 0 | AB16: 0 | AC16: 0 | AD16: 0 | AE16: 0 | AF16: 0 | AG16: 0
C17: Capital expenditure | G17: =input_dollars -> 2023-12-31 | I17: =SUM(I14:I16) -> 16300000 | J17: 26500000 | K17: 28900000 | L17: 21600000 | M17: 30000000 | N17: 0 | O17: 0 | P17: 0 | Q17: 0 | R17: =SUM(R14:R16) -> 0 | S17: 0 | T17: 0 | U17: 0 | V17: 0 | W17: 0 | X17: 0 | Y17: 0 | Z17: 0 | AA17: 0 | AB17: 0 | AC17: =SUM(AC14:AC16) -> 0 | AD17: =SUM(AD14:AD16) -> 0 | AE17: =SUM(AE14:AE16) -> 0 | AF17: =SUM(AF14:AF16) -> 0 | AG17: =SUM(AG14:AG16) -> 0
C19: Operating expenditure | G19: =input_dollars -> 2023-12-31 | I19: 0 | J19: 0 | K19: 0 | L19: 0 | M19: 0 | N19: 0 | O19: 0 | P19: 0 | Q19: 0 | R19: 0 | S19: 0 | T19: 0 | U19: 0 | V19: 0 | W19: 0 | X19: 0 | Y19: 0 | Z19: 0 | AA19: 0 | AB19: 0 | AC19: 0 | AD19: 0 | AE19: 0 | AF19: 0 | AG19: 0
A22: RISK ASSUMPTIONS
C24: PoF (major) | I24: 0 | J24: 0 | K24: 0 | L24: 0 | M24: 0 | N24: 0 | O24: 0 | P24: 0 | Q24: 0 | R24: 0 | S24: 0 | T24: 0 | U24: 0 | V24: 0 | W24: 0 | X24: 0 | Y24: 0 | Z24: 0 | AA24: 0 | AB24: 0 | AC24: 0 | AD24: 0 | AE24: 0 | AF24: 0 | AG24: 0
C25: PoF (reparable) | I25: 0 | J25: 0 | K25: 0 | L25: 0 | M25: 0 | N25: 0 | O25: 0 | P25: 0 | Q25: 0 | R25: 0 | S25: 0 | T25: 0 | U25: 0 | V25: 0 | W25: 0 | X25: 0 | Y25: 0 | Z25: 0 | AA25: 0 | AB25: 0 | AC25: 0 | AD25: 0 | AE25: 0 | AF25: 0 | AG25: 0
C27: Energy at risk (weighted) | G27: MWh | I27: 0 | J27: 0 | K27: 0 | L27: 0 | M27: 0 | N27: 0 | O27: 0 | P27: 0 | Q27: 0 | R27: 0 | S27: 0 | T27: 0 | U27: 0 | V27: 0 | W27: 0 | X27: 0 | Y27: 0 | Z27: 0 | AA27: 0 | AB27: 0 | AC27: 0 | AD27: 0 | AE27: 0 | AF27: 0 | AG27: 0
C28: Energy at risk value (CECV + CO2 + VCR+Bushfire) | D28: $/MWh | F28: =IF(AND(SUM(I27:AG27)<>0, E28=0), "!", "") ->  | G28: =input_dollars -> 2023-12-31 | I28: =INDEX(Options_Summary!E$38:E$42, MATCH($A$3, Options_Summary!$C$38:$C$42,0)) -> 30536208.77 | J28: =INDEX(Options_Summary!F$38:F$42, MATCH($A$3, Options_Summary!$C$38:$C$42,0)) -> 19358235.82 | K28: =INDEX(Options_Summary!G$38:G$42, MATCH($A$3, Options_Summary!$C$38:$C$42,0)) -> 11994226.88 | L28: =INDEX(Options_Summary!H$38:H$42, MATCH($A$3, Options_Summary!$C$38:$C$42,0)) -> 9262474.343 | M28: =INDEX(Options_Summary!I$38:I$42, MATCH($A$3, Options_Summary!$C$38:$C$42,0)) -> 6680739.412 | N28: =INDEX(Options_Summary!J$38:J$42, MATCH($A$3, Options_Summary!$C$38:$C$42,0)) -> 6687513.59 | O28: =INDEX(Options_Summary!K$38:K$42, MATCH($A$3, Options_Summary!$C$38:$C$42,0)) -> 7261105.11 | P28: =INDEX(Options_Summary!L$38:L$42, MATCH($A$3, Options_Summary!$C$38:$C$42,0)) -> 7423024.486 | Q28: =INDEX(Options_Summary!M$38:M$42, MATCH($A$3, Options_Summary!$C$38:$C$42,0)) -> 7405257.581 | R28: =INDEX(Options_Summary!N$38:N$42, MATCH($A$3, Options_Summary!$C$38:$C$42,0)) -> 7405257.581 | S28: =INDEX(Options_Summary!O$38:O$42, MATCH($A$3, Options_Summary!$C$38:$C$42,0)) -> 7405257.581 | T28: =INDEX(Options_Summary!P$38:P$42, MATCH($A$3, Options_Summary!$C$38:$C$42,0)) -> 7405257.581 | U28: =INDEX(Options_Summary!Q$38:Q$42, MATCH($A$3, Options_Summary!$C$38:$C$42,0)) -> 7405257.581 | V28: =INDEX(Options_Summary!R$38:R$42, MATCH($A$3, Options_Summary!$C$38:$C$42,0)) -> 7405257.581 | W28: =INDEX(Options_Summary!S$38:S$42, MATCH($A$3, Options_Summary!$C$38:$C$42,0)) -> 7405257.581 | X28: =INDEX(Options_Summary!T$38:T$42, MATCH($A$3, Options_Summary!$C$38:$C$42,0)) -> 0 | Y28: =INDEX(Options_Summary!U$38:U$42, MATCH($A$3, Options_Summary!$C$38:$C$42,0)) -> 0 | Z28: =INDEX(Options_Summary!V$38:V$42, MATCH($A$3, Options_Summary!$C$38:$C$42,0)) -> 0 | AA28: =INDEX(Options_Summary!W$38:W$42, MATCH($A$3, Options_Summary!$C$38:$C$42,0)) -> 0 | AB28: =INDEX(Options_Summary!X$38:X$42, MATCH($A$3, Options_Summary!$C$38:$C$42,0)) -> 0 | AC28: =INDEX(Options_Summary!Y$38:Y$42, MATCH($A$3, Options_Summary!$C$38:$C$42,0)) -> 0 | AD28: =INDEX(Options_Summary!Z$38:Z$42, MATCH($A$3, Options_Summary!$C$38:$C$42,0)) -> 0 | AE28: =INDEX(Options_Summary!AA$38:AA$42, MATCH($A$3, Options_Summary!$C$38:$C$42,0)) -> 0 | AF28: =INDEX(Options_Summary!AB$38:AB$42, MATCH($A$3, Options_Summary!$C$38:$C$42,0)) -> 0 | AG28: =INDEX(Options_Summary!AC$38:AC$42, MATCH($A$3, Options_Summary!$C$38:$C$42,0)) -> 0
C30: Safety consequence | D30: (after DF) | G30: =input_dollars -> 2023-12-31 | I30: 0 | J30: 0 | K30: 0 | L30: 0 | M30: 0 | N30: 0 | O30: 0 | P30: 0 | Q30: 0 | R30: 0 | S30: 0 | T30: 0 | U30: 0 | V30: 0 | W30: 0 | X30: 0 | Y30: 0 | Z30: 0 | AA30: 0 | AB30: 0 | AC30: 0 | AD30: 0 | AE30: 0 | AF30: 0 | AG30: 0
C31: Unplanned replacements | G31: =input_dollars -> 2023-12-31 | I31: 0 | J31: 0 | K31: 0 | L31: 0 | M31: 0 | N31: 0 | O31: 0 | P31: 0 | Q31: 0 | R31: 0 | S31: 0 | T31: 0 | U31: 0 | V31: 0 | W31: 0 | X31: 0 | Y31: 0 | Z31: 0 | AA31: 0 | AB31: 0 | AC31: 0 | AD31: 0 | AE31: 0 | AF31: 0 | AG31: 0
C32: Environmental consequence | D32: (after DF) | G32: =input_dollars -> 2023-12-31 | I32: 0 | J32: 0 | K32: 0 | L32: 0 | M32: 0 | N32: 0 | O32: 0 | P32: 0 | Q32: 0 | R32: 0 | S32: 0 | T32: 0 | U32: 0 | V32: 0 | W32: 0 | X32: 0 | Y32: 0 | Z32: 0 | AA32: 0 | AB32: 0 | AC32: 0 | AD32: 0 | AE32: 0 | AF32: 0 | AG32: 0
C33: < Other risk - enter description > | G33: =input_dollars -> 2023-12-31 | I33: 0 | J33: 0 | K33: 0 | L33: 0 | M33: 0 | N33: 0 | O33: 0 | P33: 0 | Q33: 0 | R33: 0 | S33: 0 | T33: 0 | U33: 0 | V33: 0 | W33: 0 | X33: 0 | Y33: 0 | Z33: 0 | AA33: 0 | AB33: 0 | AC33: 0 | AD33: 0 | AE33: 0 | AF33: 0 | AG33: 0
C34: < Other risk - enter description > | G34: =input_dollars -> 2023-12-31 | I34: 0 | J34: 0 | K34: 0 | L34: 0 | M34: 0 | N34: 0 | O34: 0 | P34: 0 | Q34: 0 | R34: 0 | S34: 0 | T34: 0 | U34: 0 | V34: 0 | W34: 0 | X34: 0 | Y34: 0 | Z34: 0 | AA34: 0 | AB34: 0 | AC34: 0 | AD34: 0 | AE34: 0 | AF34: 0 | AG34: 0
C36: Total risk cost | I36: =SUM(I28:I34) -> 30536208.77 | J36: =SUM(J28:J34) -> 19358235.82 | K36: 11994226.88 | L36: 9262474.343 | M36: 6680739.412 | N36: 6687513.59 | O36: 7261105.11 | P36: 7423024.486 | Q36: 7405257.581 | R36: 7405257.581 | S36: 7405257.581 | T36: 7405257.581 | U36: 7405257.581 | V36: 7405257.581 | W36: 7405257.581 | X36: 0 | Y36: 0 | Z36: 0 | AA36: 0 | AB36: 0 | AC36: =SUM(AC28:AC34) -> 0 | AD36: =SUM(AD28:AD34) -> 0 | AE36: =SUM(AE28:AE34) -> 0 | AF36: =SUM(AF28:AF34) -> 0 | AG36: =SUM(AG28:AG34) -> 0
A38: OTHER BENEFITS
C41: Reduction in CO2 emissions | G41: MWh | I41: 0 | J41: 0 | K41: 0 | L41: 0 | M41: 0 | N41: 0 | O41: 0 | P41: 0 | Q41: 0 | R41: 0 | S41: 0 | T41: 0 | U41: 0 | V41: 0 | W41: 0 | X41: 0 | Y41: 0 | Z41: 0 | AA41: 0 | AB41: 0 | AC41: 0 | AD41: 0 | AE41: 0 | AF41: 0 | AG41: 0
C42: Value of reduction in CO2 emissions | G42: $ | I42: 0 | J42: 0 | K42: 0 | L42: 0 | M42: 0 | N42: 0 | O42: 0 | P42: 0 | Q42: 0 | R42: 0 | S42: 0 | T42: 0 | U42: 0 | V42: 0 | W42: 0 | X42: 0 | Y42: 0 | Z42: 0 | AA42: 0 | AB42: 0 | AC42: 0 | AD42: 0 | AE42: 0 | AF42: 0 | AG42: 0
C45: Reliability in worst-served areas | D45: $/MWh | E45: 0 | G45: MWh | I45: 0 | J45: 0 | K45: 0 | L45: 0 | M45: 0 | N45: 0 | O45: 0 | P45: 0 | Q45: 0 | R45: 0 | S45: 0 | T45: 0 | U45: 0 | V45: 0 | W45: 0 | X45: 0 | Y45: 0 | Z45: 0 | AA45: 0 | AB45: 0 | AC45: 0 | AD45: 0 | AE45: 0 | AF45: 0 | AG45: 0
C46: Network resilience | D46: $/MWh | E46: 0 | G46: MWh | I46: 0 | J46: 0 | K46: 0 | L46: 0 | M46: 0 | N46: 0 | O46: 0 | P46: 0 | Q46: 0 | R46: 0 | S46: 0 | T46: 0 | U46: 0 | V46: 0 | W46: 0 | X46: 0 | Y46: 0 | Z46: 0 | AA46: 0 | AB46: 0 | AC46: 0 | AD46: 0 | AE46: 0 | AF46: 0 | AG46: 0
C47: Enabling solar exports | D47: $/MWh | E47: 0 | G47: MWh | I47: 0 | J47: 0 | K47: 0 | L47: 0 | M47: 0 | N47: 0 | O47: 0 | P47: 0 | Q47: 0 | R47: 0 | S47: 0 | T47: 0 | U47: 0 | V47: 0 | W47: 0 | X47: 0 | Y47: 0 | Z47: 0 | AA47: 0 | AB47: 0 | AC47: 0 | AD47: 0 | AE47: 0 | AF47: 0 | AG47: 0
C48: Aesthetics | D48: $/customer | E48: 0 | G48: customers | I48: 0 | J48: 0 | K48: 0 | L48: 0 | M48: 0 | N48: 0 | O48: 0 | P48: 0 | Q48: 0 | R48: 0 | S48: 0 | T48: 0 | U48: 0 | V48: 0 | W48: 0 | X48: 0 | Y48: 0 | Z48: 0 | AA48: 0 | AB48: 0 | AC48: 0 | AD48: 0 | AE48: 0 | AF48: 0 | AG48: 0
C49: Customer value of time (res) | D49: $/customer min | E49: 0 | G49: mins | I49: 0 | J49: 0 | K49: 0 | L49: 0 | M49: 0 | N49: 0 | O49: 0 | P49: 0 | Q49: 0 | R49: 0 | S49: 0 | T49: 0 | U49: 0 | V49: 0 | W49: 0 | X49: 0 | Y49: 0 | Z49: 0 | AA49: 0 | AB49: 0 | AC49: 0 | AD49: 0 | AE49: 0 | AF49: 0 | AG49: 0
C50: Customer value of time (bus) | D50: $/customer min | E50: 0 | G50: mins | I50: 0 | J50: 0 | K50: 0 | L50: 0 | M50: 0 | N50: 0 | O50: 0 | P50: 0 | Q50: 0 | R50: 0 | S50: 0 | T50: 0 | U50: 0 | V50: 0 | W50: 0 | X50: 0 | Y50: 0 | Z50: 0 | AA50: 0 | AB50: 0 | AC50: 0 | AD50: 0 | AE50: 0 | AF50: 0 | AG50: 0
C51: Communication | D51: $/customer | E51: 0 | G51: customers | I51: 0 | J51: 0 | K51: 0 | L51: 0 | M51: 0 | N51: 0 | O51: 0 | P51: 0 | Q51: 0 | R51: 0 | S51: 0 | T51: 0 | U51: 0 | V51: 0 | W51: 0 | X51: 0 | Y51: 0 | Z51: 0 | AA51: 0 | AB51: 0 | AC51: 0 | AD51: 0 | AE51: 0 | AF51: 0 | AG51: 0
C52: Information accessibility | D52: $/customer | E52: 0 | G52: customers | I52: 0 | J52: 0 | K52: 0 | L52: 0 | M52: 0 | N52: 0 | O52: 0 | P52: 0 | Q52: 0 | R52: 0 | S52: 0 | T52: 0 | U52: 0 | V52: 0 | W52: 0 | X52: 0 | Y52: 0 | Z52: 0 | AA52: 0 | AB52: 0 | AC52: 0 | AD52: 0 | AE52: 0 | AF52: 0 | AG52: 0
C54: Other benefits 1 | G54: =input_dollars -> 2023-12-31 | I54: 0 | J54: 0 | K54: 0 | L54: 0 | M54: 0 | N54: 0 | O54: 0 | P54: 0 | Q54: 0 | R54: 0 | S54: 0 | T54: 0 | U54: 0 | V54: 0 | W54: 0 | X54: 0 | Y54: 0 | Z54: 0 | AA54: 0 | AB54: 0 | AC54: 0 | AD54: 0 | AE54: 0 | AF54: 0 | AG54: 0
C55: Other benefits 2 | G55: =input_dollars -> 2023-12-31 | I55: 0 | J55: 0 | K55: 0 | L55: 0 | M55: 0 | N55: 0 | O55: 0 | P55: 0 | Q55: 0 | R55: 0 | S55: 0 | T55: 0 | U55: 0 | V55: 0 | W55: 0 | X55: 0 | Y55: 0 | Z55: 0 | AA55: 0 | AB55: 0 | AC55: 0 | AD55: 0 | AE55: 0 | AF55: 0 | AG55: 0
C57: Total other benefits | G57: =input_dollars -> 2023-12-31 | I57: =SUMPRODUCT((I$45:I$52)*($E$45:$E$52))+SUM(I54:I55)+I42 -> 0 | J57: =SUMPRODUCT((J$45:J$52)*($E$45:$E$52))+SUM(J54:J55)+J42 -> 0 | K57: =SUMPRODUCT((K$45:K$52)*($E$45:$E$52))+SUM(K54:K55)+K42 -> 0 | L57: =SUMPRODUCT((L$45:L$52)*($E$45:$E$52))+SUM(L54:L55)+L42 -> 0 | M57: =SUMPRODUCT((M$45:M$52)*($E$45:$E$52))+SUM(M54:M55)+M42 -> 0 | N57: =SUMPRODUCT((N$45:N$52)*($E$45:$E$52))+SUM(N54:N55)+N42 -> 0 | O57: =SUMPRODUCT((O$45:O$52)*($E$45:$E$52))+SUM(O54:O55)+O42 -> 0 | P57: =SUMPRODUCT((P$45:P$52)*($E$45:$E$52))+SUM(P54:P55)+P42 -> 0 | Q57: =SUMPRODUCT((Q$45:Q$52)*($E$45:$E$52))+SUM(Q54:Q55)+Q42 -> 0 | R57: =SUMPRODUCT((R$45:R$52)*($E$45:$E$52))+SUM(R54:R55)+R42 -> 0 | S57: =SUMPRODUCT((S$45:S$52)*($E$45:$E$52))+SUM(S54:S55)+S42 -> 0 | T57: =SUMPRODUCT((T$45:T$52)*($E$45:$E$52))+SUM(T54:T55)+T42 -> 0 | U57: =SUMPRODUCT((U$45:U$52)*($E$45:$E$52))+SUM(U54:U55)+U42 -> 0 | V57: =SUMPRODUCT((V$45:V$52)*($E$45:$E$52))+SUM(V54:V55)+V42 -> 0 | W57: =SUMPRODUCT((W$45:W$52)*($E$45:$E$52))+SUM(W54:W55)+W42 -> 0 | X57: =SUMPRODUCT((X$45:X$52)*($E$45:$E$52))+SUM(X54:X55)+X42 -> 0 | Y57: =SUMPRODUCT((Y$45:Y$52)*($E$45:$E$52))+SUM(Y54:Y55)+Y42 -> 0 | Z57: =SUMPRODUCT((Z$45:Z$52)*($E$45:$E$52))+SUM(Z54:Z55)+Z42 -> 0 | AA57: =SUMPRODUCT((AA$45:AA$52)*($E$45:$E$52))+SUM(AA54:AA55)+AA42 -> 0 | AB57: =SUMPRODUCT((AB$45:AB$52)*($E$45:$E$52))+SUM(AB54:AB55)+AB42 -> 0 | AC57: =SUMPRODUCT((AC$45:AC$52)*($E$45:$E$52))+SUM(AC54:AC55)+AC42 -> 0 | AD57: =SUMPRODUCT((AD$45:AD$52)*($E$45:$E$52))+SUM(AD54:AD55)+AD42 -> 0 | AE57: =SUMPRODUCT((AE$45:AE$52)*($E$45:$E$52))+SUM(AE54:AE55)+AE42 -> 0 | AF57: =SUMPRODUCT((AF$45:AF$52)*($E$45:$E$52))+SUM(AF54:AF55)+AF42 -> 0 | AG57: =SUMPRODUCT((AG$45:AG$52)*($E$45:$E$52))+SUM(AG54:AG55)+AG42 -> 0
A60: SUMMARY
C64: ='Option1 (base case)'!C64 -> Risks mitigated vs base case | G64: =input_dollars -> 2023-12-31 | I64: =(1-INDEX(Data!$C$9:$C$13, MATCH($A$3, options,0)))*('Option1 (base case)'!I36-I36) -> 23721960.97 | J64: =(1-INDEX(Data!$C$9:$C$13, MATCH($A$3, options,0)))*('Option1 (base case)'!J36-J36) -> 34643560.96 | K64: =(1-INDEX(Data!$C$9:$C$13, MATCH($A$3, options,0)))*('Option1 (base case)'!K36-K36) -> 40993025.51 | L64: =(1-INDEX(Data!$C$9:$C$13, MATCH($A$3, options,0)))*('Option1 (base case)'!L36-L36) -> 43088438.88 | M64: =(1-INDEX(Data!$C$9:$C$13, MATCH($A$3, options,0)))*('Option1 (base case)'!M36-M36) -> 47091605.01 | N64: =(1-INDEX(Data!$C$9:$C$13, MATCH($A$3, options,0)))*('Option1 (base case)'!N36-N36) -> 48037264.04 | O64: =(1-INDEX(Data!$C$9:$C$13, MATCH($A$3, options,0)))*('Option1 (base case)'!O36-O36) -> 51010028.7 | P64: =(1-INDEX(Data!$C$9:$C$13, MATCH($A$3, options,0)))*('Option1 (base case)'!P36-P36) -> 51812366.9 | Q64: =(1-INDEX(Data!$C$9:$C$13, MATCH($A$3, options,0)))*('Option1 (base case)'!Q36-Q36) -> 52741973.24 | R64: =(1-INDEX(Data!$C$9:$C$13, MATCH($A$3, options,0)))*('Option1 (base case)'!R36-R36) -> 52741973.24 | S64: =(1-INDEX(Data!$C$9:$C$13, MATCH($A$3, options,0)))*('Option1 (base case)'!S36-S36) -> 52741973.24 | T64: =(1-INDEX(Data!$C$9:$C$13, MATCH($A$3, options,0)))*('Option1 (base case)'!T36-T36) -> 52741973.24 | U64: =(1-INDEX(Data!$C$9:$C$13, MATCH($A$3, options,0)))*('Option1 (base case)'!U36-U36) -> 52741973.24 | V64: =(1-INDEX(Data!$C$9:$C$13, MATCH($A$3, options,0)))*('Option1 (base case)'!V36-V36) -> 52741973.24 | W64: =(1-INDEX(Data!$C$9:$C$13, MATCH($A$3, options,0)))*('Option1 (base case)'!W36-W36) -> 52741973.24 | X64: =(1-INDEX(Data!$C$9:$C$13, MATCH($A$3, options,0)))*('Option1 (base case)'!X36-X36) -> 0 | Y64: =(1-INDEX(Data!$C$9:$C$13, MATCH($A$3, options,0)))*('Option1 (base case)'!Y36-Y36) -> 0 | Z64: =(1-INDEX(Data!$C$9:$C$13, MATCH($A$3, options,0)))*('Option1 (base case)'!Z36-Z36) -> 0 | AA64: =(1-INDEX(Data!$C$9:$C$13, MATCH($A$3, options,0)))*('Option1 (base case)'!AA36-AA36) -> 0 | AB64: =(1-INDEX(Data!$C$9:$C$13, MATCH($A$3, options,0)))*('Option1 (base case)'!AB36-AB36) -> 0 | AC64: =(1-INDEX(Data!$C$9:$C$13, MATCH($A$3, options,0)))*('Option1 (base case)'!AC36-AC36) -> 0 | AD64: =(1-INDEX(Data!$C$9:$C$13, MATCH($A$3, options,0)))*('Option1 (base case)'!AD36-AD36) -> 0 | AE64: =(1-INDEX(Data!$C$9:$C$13, MATCH($A$3, options,0)))*('Option1 (base case)'!AE36-AE36) -> 0 | AF64: =(1-INDEX(Data!$C$9:$C$13, MATCH($A$3, options,0)))*('Option1 (base case)'!AF36-AF36) -> 0 | AG64: =(1-INDEX(Data!$C$9:$C$13, MATCH($A$3, options,0)))*('Option1 (base case)'!AG36-AG36) -> 0
C66: Capital expenditure
C67: =C14 -> SWER upgrades | G67: =input_dollars -> 2023-12-31 | I67: =-I14 -> -16300000 | J67: -26500000 | K67: -28900000 | L67: -21600000 | M67: -30000000 | N67: 0 | O67: 0 | P67: 0 | Q67: 0 | R67: 0 | S67: 0 | T67: 0 | U67: 0 | V67: 0 | W67: 0 | X67: 0 | Y67: 0 | Z67: 0 | AA67: 0 | AB67: 0 | AC67: 0 | AD67: 0 | AE67: 0 | AF67: 0 | AG67: 0
C68: =C15 -> 0 | G68: =input_dollars -> 2023-12-31 | I68: =-I15 -> 0 | J68: 0 | K68: 0 | L68: 0 | M68: 0 | N68: 0 | O68: 0 | P68: 0 | Q68: 0 | R68: 0 | S68: 0 | T68: 0 | U68: 0 | V68: 0 | W68: 0 | X68: 0 | Y68: 0 | Z68: 0 | AA68: 0 | AB68: 0 | AC68: 0 | AD68: 0 | AE68: 0 | AF68: 0 | AG68: 0
C69: =C16 -> 0 | G69: =input_dollars -> 2023-12-31 | I69: =-I16 -> 0 | J69: 0 | K69: 0 | L69: 0 | M69: 0 | N69: 0 | O69: 0 | P69: 0 | Q69: 0 | R69: 0 | S69: 0 | T69: 0 | U69: 0 | V69: 0 | W69: 0 | X69: 0 | Y69: 0 | Z69: 0 | AA69: 0 | AB69: 0 | AC69: 0 | AD69: 0 | AE69: 0 | AF69: 0 | AG69: 0
C71: Cumulative capex
C72: =C14 -> SWER upgrades | G72: =input_dollars -> 2023-12-31 | I72: =SUMPRODUCT(($I67:I67))-SUMPRODUCT(($I67:I67)*($I$6:I$6<=(I$6-$E14))) -> -16300000 | J72: =SUMPRODUCT(($I67:J67))-SUMPRODUCT(($I67:J67)*($I$6:J$6<=(J$6-$E14))) -> -42800000 | K72: =SUMPRODUCT(($I67:K67))-SUMPRODUCT(($I67:K67)*($I$6:K$6<=(K$6-$E14))) -> -71700000 | L72: =SUMPRODUCT(($I67:L67))-SUMPRODUCT(($I67:L67)*($I$6:L$6<=(L$6-$E14))) -> -93300000 | M72: =SUMPRODUCT(($I67:M67))-SUMPRODUCT(($I67:M67)*($I$6:M$6<=(M$6-$E14))) -> -123300000 | N72: =SUMPRODUCT(($I67:N67))-SUMPRODUCT(($I67:N67)*($I$6:N$6<=(N$6-$E14))) -> -123300000 | O72: =SUMPRODUCT(($I67:O67))-SUMPRODUCT(($I67:O67)*($I$6:O$6<=(O$6-$E14))) -> -123300000 | P72: =SUMPRODUCT(($I67:P67))-SUMPRODUCT(($I67:P67)*($I$6:P$6<=(P$6-$E14))) -> -123300000 | Q72: =SUMPRODUCT(($I67:Q67))-SUMPRODUCT(($I67:Q67)*($I$6:Q$6<=(Q$6-$E14))) -> -123300000 | R72: =SUMPRODUCT(($I67:R67))-SUMPRODUCT(($I67:R67)*($I$6:R$6<=(R$6-$E14))) -> -123300000 | S72: =SUMPRODUCT(($I67:S67))-SUMPRODUCT(($I67:S67)*($I$6:S$6<=(S$6-$E14))) -> -123300000 | T72: =SUMPRODUCT(($I67:T67))-SUMPRODUCT(($I67:T67)*($I$6:T$6<=(T$6-$E14))) -> -123300000 | U72: =SUMPRODUCT(($I67:U67))-SUMPRODUCT(($I67:U67)*($I$6:U$6<=(U$6-$E14))) -> -123300000 | V72: =SUMPRODUCT(($I67:V67))-SUMPRODUCT(($I67:V67)*($I$6:V$6<=(V$6-$E14))) -> -123300000 | W72: =SUMPRODUCT(($I67:W67))-SUMPRODUCT(($I67:W67)*($I$6:W$6<=(W$6-$E14))) -> -123300000 | X72: =SUMPRODUCT(($I67:X67))-SUMPRODUCT(($I67:X67)*($I$6:X$6<=(X$6-$E14))) -> -123300000 | Y72: =SUMPRODUCT(($I67:Y67))-SUMPRODUCT(($I67:Y67)*($I$6:Y$6<=(Y$6-$E14))) -> -123300000 | Z72: =SUMPRODUCT(($I67:Z67))-SUMPRODUCT(($I67:Z67)*($I$6:Z$6<=(Z$6-$E14))) -> -123300000 | AA72: =SUMPRODUCT(($I67:AA67))-SUMPRODUCT(($I67:AA67)*($I$6:AA$6<=(AA$6-$E14))) -> -123300000 | AB72: =SUMPRODUCT(($I67:AB67))-SUMPRODUCT(($I67:AB67)*($I$6:AB$6<=(AB$6-$E14))) -> -123300000 | AC72: =SUMPRODUCT(($I67:AC67))-SUMPRODUCT(($I67:AC67)*($I$6:AC$6<=(AC$6-$E14))) -> -123300000 | AD72: =SUMPRODUCT(($I67:AD67))-SUMPRODUCT(($I67:AD67)*($I$6:AD$6<=(AD$6-$E14))) -> -123300000 | AE72: =SUMPRODUCT(($I67:AE67))-SUMPRODUCT(($I67:AE67)*($I$6:AE$6<=(AE$6-$E14))) -> -123300000 | AF72: =SUMPRODUCT(($I67:AF67))-SUMPRODUCT(($I67:AF67)*($I$6:AF$6<=(AF$6-$E14))) -> -123300000 | AG72: =SUMPRODUCT(($I67:AG67))-SUMPRODUCT(($I67:AG67)*($I$6:AG$6<=(AG$6-$E14))) -> -123300000
C73: =C15 -> 0 | G73: =input_dollars -> 2023-12-31 | I73: =SUMPRODUCT(($I68:I68))-SUMPRODUCT(($I68:I68)*($I$6:I$6<=(I$6-$E15))) -> 0 | J73: =SUMPRODUCT(($I68:J68))-SUMPRODUCT(($I68:J68)*($I$6:J$6<=(J$6-$E15))) -> 0 | K73: =SUMPRODUCT(($I68:K68))-SUMPRODUCT(($I68:K68)*($I$6:K$6<=(K$6-$E15))) -> 0 | L73: =SUMPRODUCT(($I68:L68))-SUMPRODUCT(($I68:L68)*($I$6:L$6<=(L$6-$E15))) -> 0 | M73: =SUMPRODUCT(($I68:M68))-SUMPRODUCT(($I68:M68)*($I$6:M$6<=(M$6-$E15))) -> 0 | N73: =SUMPRODUCT(($I68:N68))-SUMPRODUCT(($I68:N68)*($I$6:N$6<=(N$6-$E15))) -> 0 | O73: =SUMPRODUCT(($I68:O68))-SUMPRODUCT(($I68:O68)*($I$6:O$6<=(O$6-$E15))) -> 0 | P73: =SUMPRODUCT(($I68:P68))-SUMPRODUCT(($I68:P68)*($I$6:P$6<=(P$6-$E15))) -> 0 | Q73: =SUMPRODUCT(($I68:Q68))-SUMPRODUCT(($I68:Q68)*($I$6:Q$6<=(Q$6-$E15))) -> 0 | R73: =SUMPRODUCT(($I68:R68))-SUMPRODUCT(($I68:R68)*($I$6:R$6<=(R$6-$E15))) -> 0 | S73: =SUMPRODUCT(($I68:S68))-SUMPRODUCT(($I68:S68)*($I$6:S$6<=(S$6-$E15))) -> 0 | T73: =SUMPRODUCT(($I68:T68))-SUMPRODUCT(($I68:T68)*($I$6:T$6<=(T$6-$E15))) -> 0 | U73: =SUMPRODUCT(($I68:U68))-SUMPRODUCT(($I68:U68)*($I$6:U$6<=(U$6-$E15))) -> 0 | V73: =SUMPRODUCT(($I68:V68))-SUMPRODUCT(($I68:V68)*($I$6:V$6<=(V$6-$E15))) -> 0 | W73: =SUMPRODUCT(($I68:W68))-SUMPRODUCT(($I68:W68)*($I$6:W$6<=(W$6-$E15))) -> 0 | X73: =SUMPRODUCT(($I68:X68))-SUMPRODUCT(($I68:X68)*($I$6:X$6<=(X$6-$E15))) -> 0 | Y73: =SUMPRODUCT(($I68:Y68))-SUMPRODUCT(($I68:Y68)*($I$6:Y$6<=(Y$6-$E15))) -> 0 | Z73: =SUMPRODUCT(($I68:Z68))-SUMPRODUCT(($I68:Z68)*($I$6:Z$6<=(Z$6-$E15))) -> 0 | AA73: =SUMPRODUCT(($I68:AA68))-SUMPRODUCT(($I68:AA68)*($I$6:AA$6<=(AA$6-$E15))) -> 0 | AB73: =SUMPRODUCT(($I68:AB68))-SUMPRODUCT(($I68:AB68)*($I$6:AB$6<=(AB$6-$E15))) -> 0 | AC73: =SUMPRODUCT(($I68:AC68))-SUMPRODUCT(($I68:AC68)*($I$6:AC$6<=(AC$6-$E15))) -> 0 | AD73: =SUMPRODUCT(($I68:AD68))-SUMPRODUCT(($I68:AD68)*($I$6:AD$6<=(AD$6-$E15))) -> 0 | AE73: =SUMPRODUCT(($I68:AE68))-SUMPRODUCT(($I68:AE68)*($I$6:AE$6<=(AE$6-$E15))) -> 0 | AF73: =SUMPRODUCT(($I68:AF68))-SUMPRODUCT(($I68:AF68)*($I$6:AF$6<=(AF$6-$E15))) -> 0 | AG73: =SUMPRODUCT(($I68:AG68))-SUMPRODUCT(($I68:AG68)*($I$6:AG$6<=(AG$6-$E15))) -> 0
C74: =C16 -> 0 | G74: =input_dollars -> 2023-12-31 | I74: =SUMPRODUCT(($I69:I69))-SUMPRODUCT(($I69:I69)*($I$6:I$6<=(I$6-$E16))) -> 0 | J74: =SUMPRODUCT(($I69:J69))-SUMPRODUCT(($I69:J69)*($I$6:J$6<=(J$6-$E16))) -> 0 | K74: =SUMPRODUCT(($I69:K69))-SUMPRODUCT(($I69:K69)*($I$6:K$6<=(K$6-$E16))) -> 0 | L74: =SUMPRODUCT(($I69:L69))-SUMPRODUCT(($I69:L69)*($I$6:L$6<=(L$6-$E16))) -> 0 | M74: =SUMPRODUCT(($I69:M69))-SUMPRODUCT(($I69:M69)*($I$6:M$6<=(M$6-$E16))) -> 0 | N74: =SUMPRODUCT(($I69:N69))-SUMPRODUCT(($I69:N69)*($I$6:N$6<=(N$6-$E16))) -> 0 | O74: =SUMPRODUCT(($I69:O69))-SUMPRODUCT(($I69:O69)*($I$6:O$6<=(O$6-$E16))) -> 0 | P74: =SUMPRODUCT(($I69:P69))-SUMPRODUCT(($I69:P69)*($I$6:P$6<=(P$6-$E16))) -> 0 | Q74: =SUMPRODUCT(($I69:Q69))-SUMPRODUCT(($I69:Q69)*($I$6:Q$6<=(Q$6-$E16))) -> 0 | R74: =SUMPRODUCT(($I69:R69))-SUMPRODUCT(($I69:R69)*($I$6:R$6<=(R$6-$E16))) -> 0 | S74: =SUMPRODUCT(($I69:S69))-SUMPRODUCT(($I69:S69)*($I$6:S$6<=(S$6-$E16))) -> 0 | T74: =SUMPRODUCT(($I69:T69))-SUMPRODUCT(($I69:T69)*($I$6:T$6<=(T$6-$E16))) -> 0 | U74: =SUMPRODUCT(($I69:U69))-SUMPRODUCT(($I69:U69)*($I$6:U$6<=(U$6-$E16))) -> 0 | V74: =SUMPRODUCT(($I69:V69))-SUMPRODUCT(($I69:V69)*($I$6:V$6<=(V$6-$E16))) -> 0 | W74: =SUMPRODUCT(($I69:W69))-SUMPRODUCT(($I69:W69)*($I$6:W$6<=(W$6-$E16))) -> 0 | X74: =SUMPRODUCT(($I69:X69))-SUMPRODUCT(($I69:X69)*($I$6:X$6<=(X$6-$E16))) -> 0 | Y74: =SUMPRODUCT(($I69:Y69))-SUMPRODUCT(($I69:Y69)*($I$6:Y$6<=(Y$6-$E16))) -> 0 | Z74: =SUMPRODUCT(($I69:Z69))-SUMPRODUCT(($I69:Z69)*($I$6:Z$6<=(Z$6-$E16))) -> 0 | AA74: =SUMPRODUCT(($I69:AA69))-SUMPRODUCT(($I69:AA69)*($I$6:AA$6<=(AA$6-$E16))) -> 0 | AB74: =SUMPRODUCT(($I69:AB69))-SUMPRODUCT(($I69:AB69)*($I$6:AB$6<=(AB$6-$E16))) -> 0 | AC74: =SUMPRODUCT(($I69:AC69))-SUMPRODUCT(($I69:AC69)*($I$6:AC$6<=(AC$6-$E16))) -> 0 | AD74: =SUMPRODUCT(($I69:AD69))-SUMPRODUCT(($I69:AD69)*($I$6:AD$6<=(AD$6-$E16))) -> 0 | AE74: =SUMPRODUCT(($I69:AE69))-SUMPRODUCT(($I69:AE69)*($I$6:AE$6<=(AE$6-$E16))) -> 0 | AF74: =SUMPRODUCT(($I69:AF69))-SUMPRODUCT(($I69:AF69)*($I$6:AF$6<=(AF$6-$E16))) -> 0 | AG74: =SUMPRODUCT(($I69:AG69))-SUMPRODUCT(($I69:AG69)*($I$6:AG$6<=(AG$6-$E16))) -> 0
C76: Annualised capex
C77: =$C$76&" - "&C14 -> Annualised capex - SWER upgrades | G77: =input_dollars -> 2023-12-31 | I77: =IF($E14=0,0,-PMT(real_disc, $E14,H72,)) -> 0 | J77: -694929.4659 | K77: -1824722.769 | L77: -3056836.976 | M77: -3977725.103 | N77: -5256736.39 | O77: -5256736.39 | P77: -5256736.39 | Q77: -5256736.39 | R77: -5256736.39 | S77: -5256736.39 | T77: -5256736.39 | U77: -5256736.39 | V77: -5256736.39 | W77: -5256736.39 | X77: -5256736.39 | Y77: -5256736.39 | Z77: -5256736.39 | AA77: -5256736.39 | AB77: -5256736.39 | AC77: -5256736.39 | AD77: -5256736.39 | AE77: -5256736.39 | AF77: -5256736.39 | AG77: -5256736.39
C78: =$C$76&" - "&C15 -> Annualised capex - | G78: =input_dollars -> 2023-12-31 | I78: =IF($E15=0,0,-PMT(real_disc, $E15,H73,)) -> 0 | J78: 0 | K78: 0 | L78: 0 | M78: 0 | N78: 0 | O78: 0 | P78: 0 | Q78: 0 | R78: 0 | S78: 0 | T78: 0 | U78: 0 | V78: 0 | W78: 0 | X78: 0 | Y78: 0 | Z78: 0 | AA78: 0 | AB78: 0 | AC78: 0 | AD78: 0 | AE78: 0 | AF78: 0 | AG78: 0
C79: =$C$76&" - "&C16 -> Annualised capex - | G79: =input_dollars -> 2023-12-31 | I79: =IF($E16=0,0,-PMT(real_disc, $E16,H74,)) -> 0 | J79: 0 | K79: 0 | L79: 0 | M79: 0 | N79: 0 | O79: 0 | P79: 0 | Q79: 0 | R79: 0 | S79: 0 | T79: 0 | U79: 0 | V79: 0 | W79: 0 | X79: 0 | Y79: 0 | Z79: 0 | AA79: 0 | AB79: 0 | AC79: 0 | AD79: 0 | AE79: 0 | AF79: 0 | AG79: 0
C80: Total annualised capex | G80: =input_dollars -> 2023-12-31 | I80: =SUM(I77:I79) -> 0 | J80: =SUM(J77:J79) -> -694929.4659 | K80: -1824722.769 | L80: -3056836.976 | M80: -3977725.103 | N80: -5256736.39 | O80: -5256736.39 | P80: -5256736.39 | Q80: -5256736.39 | R80: -5256736.39 | S80: -5256736.39 | T80: -5256736.39 | U80: -5256736.39 | V80: -5256736.39 | W80: -5256736.39 | X80: -5256736.39 | Y80: -5256736.39 | Z80: -5256736.39 | AA80: -5256736.39 | AB80: -5256736.39 | AC80: =SUM(AC77:AC79) -> -5256736.39 | AD80: =SUM(AD77:AD79) -> -5256736.39 | AE80: =SUM(AE77:AE79) -> -5256736.39 | AF80: =SUM(AF77:AF79) -> -5256736.39 | AG80: =SUM(AG77:AG79) -> -5256736.39
C82: Annualised capex | G82: =input_dollars -> 2023-12-31 | I82: =I80 -> 0 | J82: =J80 -> -694929.4659 | K82: -1824722.769 | L82: -3056836.976 | M82: -3977725.103 | N82: -5256736.39 | O82: -5256736.39 | P82: -5256736.39 | Q82: -5256736.39 | R82: -5256736.39 | S82: -5256736.39 | T82: -5256736.39 | U82: -5256736.39 | V82: -5256736.39 | W82: -5256736.39 | X82: -5256736.39 | Y82: -5256736.39 | Z82: -5256736.39 | AA82: -5256736.39 | AB82: -5256736.39 | AC82: =AC80 -> -5256736.39 | AD82: =AD80 -> -5256736.39 | AE82: =AE80 -> -5256736.39 | AF82: =AF80 -> -5256736.39 | AG82: =AG80 -> -5256736.39
C83: Operating expenditure | G83: 2023-12-31 | I83: =-I19 -> 0 | J83: 0 | K83: 0 | L83: 0 | M83: 0 | N83: 0 | O83: 0 | P83: 0 | Q83: 0 | R83: 0 | S83: 0 | T83: 0 | U83: 0 | V83: 0 | W83: 0 | X83: 0 | Y83: 0 | Z83: 0 | AA83: 0 | AB83: 0 | AC83: 0 | AD83: 0 | AE83: 0 | AF83: 0 | AG83: 0
C84: Risk mitigated | G84: 2023-12-31 | I84: =I64 -> 23721960.97 | J84: =J64 -> 34643560.96 | K84: 40993025.51 | L84: 43088438.88 | M84: 47091605.01 | N84: 48037264.04 | O84: 51010028.7 | P84: 51812366.9 | Q84: 52741973.24 | R84: 52741973.24 | S84: 52741973.24 | T84: 52741973.24 | U84: 52741973.24 | V84: 52741973.24 | W84: 52741973.24 | X84: 0 | Y84: 0 | Z84: 0 | AA84: 0 | AB84: 0 | AC84: 0 | AD84: 0 | AE84: 0 | AF84: 0 | AG84: 0
C85: Other benefits value | G85: 2023-12-31 | I85: =I57 -> 0 | J85: =J57 -> 0 | K85: =K57 -> 0 | L85: =L57 -> 0 | M85: 0 | N85: 0 | O85: 0 | P85: 0 | Q85: 0 | R85: 0 | S85: 0 | T85: 0 | U85: 0 | V85: 0 | W85: 0 | X85: 0 | Y85: 0 | Z85: 0 | AA85: 0 | AB85: 0 | AC85: 0 | AD85: 0 | AE85: 0 | AF85: 0 | AG85: 0
C87: Net benefits | G87: 2023-12-31 | I87: =SUM(I82:I86) -> 23721960.97 | J87: 33948631.5 | K87: 39168302.74 | L87: 40031601.91 | M87: 43113879.91 | N87: 42780527.65 | O87: 45753292.32 | P87: 46555630.51 | Q87: 47485236.85 | R87: 47485236.85 | S87: 47485236.85 | T87: 47485236.85 | U87: 47485236.85 | V87: 47485236.85 | W87: 47485236.85 | X87: -5256736.39 | Y87: -5256736.39 | Z87: -5256736.39 | AA87: -5256736.39 | AB87: -5256736.39 | AC87: =SUM(AC82:AC86) -> -5256736.39 | AD87: =SUM(AD82:AD86) -> -5256736.39 | AE87: =SUM(AE82:AE86) -> -5256736.39 | AF87: =SUM(AF82:AF86) -> -5256736.39 | AG87: =SUM(AG82:AG86) -> -5256736.39
C90: First capex year | G90: =IF(SUM($I17:$AG17)=0,0,(INDEX(I$6:AG$6,MATCH(TRUE,INDEX($I17:$AG17<>0,),0)))) -> 1
C92: First year | G92: =IF(_xlfn.MINIFS($G$90:$G$91, $G$90:$G$91, ">"&0)=0, $A$4, _xlfn.MINIFS($G$90:$G$91, $G$90:$G$91, ">"&0)) -> 1
A102: SENSITIVITIES
A106: NPV | C106: Net benefits | G106: =PROPER($A$3)&A106 -> Option 3NPV | I106: =I87 -> 23721960.97 | J106: =J87 -> 33948631.5 | K106: 39168302.74 | L106: 40031601.91 | M106: 43113879.91 | N106: 42780527.65 | O106: 45753292.32 | P106: 46555630.51 | Q106: 47485236.85 | R106: 47485236.85 | S106: 47485236.85 | T106: 47485236.85 | U106: 47485236.85 | V106: 47485236.85 | W106: 47485236.85 | X106: -5256736.39 | Y106: -5256736.39 | Z106: -5256736.39 | AA106: -5256736.39 | AB106: -5256736.39 | AC106: -5256736.39 | AD106: -5256736.39 | AE106: -5256736.39 | AF106: -5256736.39 | AG106: -5256736.39
C107: Total annualised capex | I107: =I82 -> 0 | J107: =J82 -> -694929.4659 | K107: -1824722.769 | L107: -3056836.976 | M107: -3977725.103 | N107: -5256736.39 | O107: -5256736.39 | P107: -5256736.39 | Q107: -5256736.39 | R107: -5256736.39 | S107: -5256736.39 | T107: -5256736.39 | U107: -5256736.39 | V107: -5256736.39 | W107: -5256736.39 | X107: -5256736.39 | Y107: -5256736.39 | Z107: -5256736.39 | AA107: -5256736.39 | AB107: -5256736.39 | AC107: -5256736.39 | AD107: -5256736.39 | AE107: -5256736.39 | AF107: -5256736.39 | AG107: -5256736.39
C108: Total benefits | I108: =SUM(I84:I85) -> 23721960.97 | J108: =SUM(J84:J85) -> 34643560.96 | K108: 40993025.51 | L108: 43088438.88 | M108: 47091605.01 | N108: 48037264.04 | O108: 51010028.7 | P108: 51812366.9 | Q108: 52741973.24 | R108: 52741973.24 | S108: 52741973.24 | T108: 52741973.24 | U108: 52741973.24 | V108: 52741973.24 | W108: 52741973.24 | X108: 0 | Y108: 0 | Z108: 0 | AA108: 0 | AB108: 0 | AC108: 0 | AD108: 0 | AE108: 0 | AF108: 0 | AG108: 0
D109: =Assumptions!G44 -> Capex | E109: =Assumptions!H44 -> Total benefits
A110: ="sens"&Assumptions!B45 -> sens1 | C110: =Assumptions!C45 -> Capex 10% higher | D110: =Assumptions!G45 -> 0.1 | E110: =Assumptions!H45 -> 0 | G110: =PROPER($A$3)&A110 -> Option 3sens1 | I110: =I$106+IF($C110<>0,SUMPRODUCT((I$107:I$108)*TRANSPOSE(($D110:$E110))),0) -> 23721960.97 | J110: =J$106+IF($C110<>0,SUMPRODUCT((J$107:J$108)*TRANSPOSE(($D110:$E110))),0) -> 33879138.55 | K110: =K$106+IF($C110<>0,SUMPRODUCT((K$107:K$108)*TRANSPOSE(($D110:$E110))),0) -> 38985830.47 | L110: =L$106+IF($C110<>0,SUMPRODUCT((L$107:L$108)*TRANSPOSE(($D110:$E110))),0) -> 39725918.21 | M110: =M$106+IF($C110<>0,SUMPRODUCT((M$107:M$108)*TRANSPOSE(($D110:$E110))),0) -> 42716107.4 | N110: =N$106+IF($C110<>0,SUMPRODUCT((N$107:N$108)*TRANSPOSE(($D110:$E110))),0) -> 42254854.01 | O110: =O$106+IF($C110<>0,SUMPRODUCT((O$107:O$108)*TRANSPOSE(($D110:$E110))),0) -> 45227618.68 | P110: =P$106+IF($C110<>0,SUMPRODUCT((P$107:P$108)*TRANSPOSE(($D110:$E110))),0) -> 46029956.87 | Q110: =Q$106+IF($C110<>0,SUMPRODUCT((Q$107:Q$108)*TRANSPOSE(($D110:$E110))),0) -> 46959563.21 | R110: =R$106+IF($C110<>0,SUMPRODUCT((R$107:R$108)*TRANSPOSE(($D110:$E110))),0) -> 46959563.21 | S110: =S$106+IF($C110<>0,SUMPRODUCT((S$107:S$108)*TRANSPOSE(($D110:$E110))),0) -> 46959563.21 | T110: =T$106+IF($C110<>0,SUMPRODUCT((T$107:T$108)*TRANSPOSE(($D110:$E110))),0) -> 46959563.21 | U110: =U$106+IF($C110<>0,SUMPRODUCT((U$107:U$108)*TRANSPOSE(($D110:$E110))),0) -> 46959563.21 | V110: =V$106+IF($C110<>0,SUMPRODUCT((V$107:V$108)*TRANSPOSE(($D110:$E110))),0) -> 46959563.21 | W110: =W$106+IF($C110<>0,SUMPRODUCT((W$107:W$108)*TRANSPOSE(($D110:$E110))),0) -> 46959563.21 | X110: =X$106+IF($C110<>0,SUMPRODUCT((X$107:X$108)*TRANSPOSE(($D110:$E110))),0) -> -5782410.029 | Y110: =Y$106+IF($C110<>0,SUMPRODUCT((Y$107:Y$108)*TRANSPOSE(($D110:$E110))),0) -> -5782410.029 | Z110: =Z$106+IF($C110<>0,SUMPRODUCT((Z$107:Z$108)*TRANSPOSE(($D110:$E110))),0) -> -5782410.029 | AA110: =AA$106+IF($C110<>0,SUMPRODUCT((AA$107:AA$108)*TRANSPOSE(($D110:$E110))),0) -> -5782410.029 | AB110: =AB$106+IF($C110<>0,SUMPRODUCT((AB$107:AB$108)*TRANSPOSE(($D110:$E110))),0) -> -5782410.029 | AC110: =AC$106+IF($C110<>0,SUMPRODUCT((AC$107:AC$108)*TRANSPOSE(($D110:$E110))),0) -> -5782410.029 | AD110: =AD$106+IF($C110<>0,SUMPRODUCT((AD$107:AD$108)*TRANSPOSE(($D110:$E110))),0) -> -5782410.029 | AE110: =AE$106+IF($C110<>0,SUMPRODUCT((AE$107:AE$108)*TRANSPOSE(($D110:$E110))),0) -> -5782410.029 | AF110: =AF$106+IF($C110<>0,SUMPRODUCT((AF$107:AF$108)*TRANSPOSE(($D110:$E110))),0) -> -5782410.029 | AG110: =AG$106+IF($C110<>0,SUMPRODUCT((AG$107:AG$108)*TRANSPOSE(($D110:$E110))),0) -> -5782410.029
A111: ="sens"&Assumptions!B46 -> sens2 | C111: =Assumptions!C46 -> Capex 10% lower | D111: =Assumptions!G46 -> -0.1 | E111: =Assumptions!H46 -> 0 | G111: =PROPER($A$3)&A111 -> Option 3sens2 | I111: =I$106+IF($C111<>0,SUMPRODUCT((I$107:I$108)*TRANSPOSE(($D111:$E111))),0) -> 23721960.97 | J111: =J$106+IF($C111<>0,SUMPRODUCT((J$107:J$108)*TRANSPOSE(($D111:$E111))),0) -> 34018124.44 | K111: =K$106+IF($C111<>0,SUMPRODUCT((K$107:K$108)*TRANSPOSE(($D111:$E111))),0) -> 39350775.02 | L111: =L$106+IF($C111<>0,SUMPRODUCT((L$107:L$108)*TRANSPOSE(($D111:$E111))),0) -> 40337285.6 | M111: =M$106+IF($C111<>0,SUMPRODUCT((M$107:M$108)*TRANSPOSE(($D111:$E111))),0) -> 43511652.42 | N111: =N$106+IF($C111<>0,SUMPRODUCT((N$107:N$108)*TRANSPOSE(($D111:$E111))),0) -> 43306201.29 | O111: =O$106+IF($C111<>0,SUMPRODUCT((O$107:O$108)*TRANSPOSE(($D111:$E111))),0) -> 46278965.95 | P111: =P$106+IF($C111<>0,SUMPRODUCT((P$107:P$108)*TRANSPOSE(($D111:$E111))),0) -> 47081304.15 | Q111: =Q$106+IF($C111<>0,SUMPRODUCT((Q$107:Q$108)*TRANSPOSE(($D111:$E111))),0) -> 48010910.49 | R111: =R$106+IF($C111<>0,SUMPRODUCT((R$107:R$108)*TRANSPOSE(($D111:$E111))),0) -> 48010910.49 | S111: =S$106+IF($C111<>0,SUMPRODUCT((S$107:S$108)*TRANSPOSE(($D111:$E111))),0) -> 48010910.49 | T111: =T$106+IF($C111<>0,SUMPRODUCT((T$107:T$108)*TRANSPOSE(($D111:$E111))),0) -> 48010910.49 | U111: =U$106+IF($C111<>0,SUMPRODUCT((U$107:U$108)*TRANSPOSE(($D111:$E111))),0) -> 48010910.49 | V111: =V$106+IF($C111<>0,SUMPRODUCT((V$107:V$108)*TRANSPOSE(($D111:$E111))),0) -> 48010910.49 | W111: =W$106+IF($C111<>0,SUMPRODUCT((W$107:W$108)*TRANSPOSE(($D111:$E111))),0) -> 48010910.49 | X111: =X$106+IF($C111<>0,SUMPRODUCT((X$107:X$108)*TRANSPOSE(($D111:$E111))),0) -> -4731062.751 | Y111: =Y$106+IF($C111<>0,SUMPRODUCT((Y$107:Y$108)*TRANSPOSE(($D111:$E111))),0) -> -4731062.751 | Z111: =Z$106+IF($C111<>0,SUMPRODUCT((Z$107:Z$108)*TRANSPOSE(($D111:$E111))),0) -> -4731062.751 | AA111: =AA$106+IF($C111<>0,SUMPRODUCT((AA$107:AA$108)*TRANSPOSE(($D111:$E111))),0) -> -4731062.751 | AB111: =AB$106+IF($C111<>0,SUMPRODUCT((AB$107:AB$108)*TRANSPOSE(($D111:$E111))),0) -> -4731062.751 | AC111: =AC$106+IF($C111<>0,SUMPRODUCT((AC$107:AC$108)*TRANSPOSE(($D111:$E111))),0) -> -4731062.751 | AD111: =AD$106+IF($C111<>0,SUMPRODUCT((AD$107:AD$108)*TRANSPOSE(($D111:$E111))),0) -> -4731062.751 | AE111: =AE$106+IF($C111<>0,SUMPRODUCT((AE$107:AE$108)*TRANSPOSE(($D111:$E111))),0) -> -4731062.751 | AF111: =AF$106+IF($C111<>0,SUMPRODUCT((AF$107:AF$108)*TRANSPOSE(($D111:$E111))),0) -> -4731062.751 | AG111: =AG$106+IF($C111<>0,SUMPRODUCT((AG$107:AG$108)*TRANSPOSE(($D111:$E111))),0) -> -4731062.751
A112: ="sens"&Assumptions!B47 -> sens3 | C112: =Assumptions!C47 -> Total benefits 10% higher | D112: =Assumptions!G47 -> 0 | E112: =Assumptions!H47 -> 0.1 | G112: Option 3sens3 | I112: =I$106+IF($C112<>0,SUMPRODUCT((I$107:I$108)*TRANSPOSE(($D112:$E112))),0) -> 26094157.07 | J112: =J$106+IF($C112<>0,SUMPRODUCT((J$107:J$108)*TRANSPOSE(($D112:$E112))),0) -> 37412987.59 | K112: =K$106+IF($C112<>0,SUMPRODUCT((K$107:K$108)*TRANSPOSE(($D112:$E112))),0) -> 43267605.3 | L112: =L$106+IF($C112<>0,SUMPRODUCT((L$107:L$108)*TRANSPOSE(($D112:$E112))),0) -> 44340445.8 | M112: =M$106+IF($C112<>0,SUMPRODUCT((M$107:M$108)*TRANSPOSE(($D112:$E112))),0) -> 47823040.41 | N112: =N$106+IF($C112<>0,SUMPRODUCT((N$107:N$108)*TRANSPOSE(($D112:$E112))),0) -> 47584254.06 | O112: =O$106+IF($C112<>0,SUMPRODUCT((O$107:O$108)*TRANSPOSE(($D112:$E112))),0) -> 50854295.19 | P112: =P$106+IF($C112<>0,SUMPRODUCT((P$107:P$108)*TRANSPOSE(($D112:$E112))),0) -> 51736867.2 | Q112: =Q$106+IF($C112<>0,SUMPRODUCT((Q$107:Q$108)*TRANSPOSE(($D112:$E112))),0) -> 52759434.18 | R112: =R$106+IF($C112<>0,SUMPRODUCT((R$107:R$108)*TRANSPOSE(($D112:$E112))),0) -> 52759434.18 | S112: =S$106+IF($C112<>0,SUMPRODUCT((S$107:S$108)*TRANSPOSE(($D112:$E112))),0) -> 52759434.18 | T112: =T$106+IF($C112<>0,SUMPRODUCT((T$107:T$108)*TRANSPOSE(($D112:$E112))),0) -> 52759434.18 | U112: =U$106+IF($C112<>0,SUMPRODUCT((U$107:U$108)*TRANSPOSE(($D112:$E112))),0) -> 52759434.18 | V112: =V$106+IF($C112<>0,SUMPRODUCT((V$107:V$108)*TRANSPOSE(($D112:$E112))),0) -> 52759434.18 | W112: =W$106+IF($C112<>0,SUMPRODUCT((W$107:W$108)*TRANSPOSE(($D112:$E112))),0) -> 52759434.18 | X112: =X$106+IF($C112<>0,SUMPRODUCT((X$107:X$108)*TRANSPOSE(($D112:$E112))),0) -> -5256736.39 | Y112: =Y$106+IF($C112<>0,SUMPRODUCT((Y$107:Y$108)*TRANSPOSE(($D112:$E112))),0) -> -5256736.39 | Z112: =Z$106+IF($C112<>0,SUMPRODUCT((Z$107:Z$108)*TRANSPOSE(($D112:$E112))),0) -> -5256736.39 | AA112: =AA$106+IF($C112<>0,SUMPRODUCT((AA$107:AA$108)*TRANSPOSE(($D112:$E112))),0) -> -5256736.39 | AB112: =AB$106+IF($C112<>0,SUMPRODUCT((AB$107:AB$108)*TRANSPOSE(($D112:$E112))),0) -> -5256736.39 | AC112: =AC$106+IF($C112<>0,SUMPRODUCT((AC$107:AC$108)*TRANSPOSE(($D112:$E112))),0) -> -5256736.39 | AD112: =AD$106+IF($C112<>0,SUMPRODUCT((AD$107:AD$108)*TRANSPOSE(($D112:$E112))),0) -> -5256736.39 | AE112: =AE$106+IF($C112<>0,SUMPRODUCT((AE$107:AE$108)*TRANSPOSE(($D112:$E112))),0) -> -5256736.39 | AF112: =AF$106+IF($C112<>0,SUMPRODUCT((AF$107:AF$108)*TRANSPOSE(($D112:$E112))),0) -> -5256736.39 | AG112: =AG$106+IF($C112<>0,SUMPRODUCT((AG$107:AG$108)*TRANSPOSE(($D112:$E112))),0) -> -5256736.39
A113: ="sens"&Assumptions!B48 -> sens4 | C113: =Assumptions!C48 -> Total benefits 10% lower | D113: =Assumptions!G48 -> 0 | E113: =Assumptions!H48 -> -0.1 | G113: Option 3sens4 | I113: =I$106+IF($C113<>0,SUMPRODUCT((I$107:I$108)*TRANSPOSE(($D113:$E113))),0) -> 21349764.87 | J113: =J$106+IF($C113<>0,SUMPRODUCT((J$107:J$108)*TRANSPOSE(($D113:$E113))),0) -> 30484275.4 | K113: =K$106+IF($C113<>0,SUMPRODUCT((K$107:K$108)*TRANSPOSE(($D113:$E113))),0) -> 35069000.19 | L113: =L$106+IF($C113<>0,SUMPRODUCT((L$107:L$108)*TRANSPOSE(($D113:$E113))),0) -> 35722758.02 | M113: =M$106+IF($C113<>0,SUMPRODUCT((M$107:M$108)*TRANSPOSE(($D113:$E113))),0) -> 38404719.41 | N113: =N$106+IF($C113<>0,SUMPRODUCT((N$107:N$108)*TRANSPOSE(($D113:$E113))),0) -> 37976801.25 | O113: =O$106+IF($C113<>0,SUMPRODUCT((O$107:O$108)*TRANSPOSE(($D113:$E113))),0) -> 40652289.44 | P113: =P$106+IF($C113<>0,SUMPRODUCT((P$107:P$108)*TRANSPOSE(($D113:$E113))),0) -> 41374393.82 | Q113: =Q$106+IF($C113<>0,SUMPRODUCT((Q$107:Q$108)*TRANSPOSE(($D113:$E113))),0) -> 42211039.53 | R113: =R$106+IF($C113<>0,SUMPRODUCT((R$107:R$108)*TRANSPOSE(($D113:$E113))),0) -> 42211039.53 | S113: =S$106+IF($C113<>0,SUMPRODUCT((S$107:S$108)*TRANSPOSE(($D113:$E113))),0) -> 42211039.53 | T113: =T$106+IF($C113<>0,SUMPRODUCT((T$107:T$108)*TRANSPOSE(($D113:$E113))),0) -> 42211039.53 | U113: =U$106+IF($C113<>0,SUMPRODUCT((U$107:U$108)*TRANSPOSE(($D113:$E113))),0) -> 42211039.53 | V113: =V$106+IF($C113<>0,SUMPRODUCT((V$107:V$108)*TRANSPOSE(($D113:$E113))),0) -> 42211039.53 | W113: =W$106+IF($C113<>0,SUMPRODUCT((W$107:W$108)*TRANSPOSE(($D113:$E113))),0) -> 42211039.53 | X113: =X$106+IF($C113<>0,SUMPRODUCT((X$107:X$108)*TRANSPOSE(($D113:$E113))),0) -> -5256736.39 | Y113: =Y$106+IF($C113<>0,SUMPRODUCT((Y$107:Y$108)*TRANSPOSE(($D113:$E113))),0) -> -5256736.39 | Z113: =Z$106+IF($C113<>0,SUMPRODUCT((Z$107:Z$108)*TRANSPOSE(($D113:$E113))),0) -> -5256736.39 | AA113: =AA$106+IF($C113<>0,SUMPRODUCT((AA$107:AA$108)*TRANSPOSE(($D113:$E113))),0) -> -5256736.39 | AB113: =AB$106+IF($C113<>0,SUMPRODUCT((AB$107:AB$108)*TRANSPOSE(($D113:$E113))),0) -> -5256736.39 | AC113: =AC$106+IF($C113<>0,SUMPRODUCT((AC$107:AC$108)*TRANSPOSE(($D113:$E113))),0) -> -5256736.39 | AD113: =AD$106+IF($C113<>0,SUMPRODUCT((AD$107:AD$108)*TRANSPOSE(($D113:$E113))),0) -> -5256736.39 | AE113: =AE$106+IF($C113<>0,SUMPRODUCT((AE$107:AE$108)*TRANSPOSE(($D113:$E113))),0) -> -5256736.39 | AF113: =AF$106+IF($C113<>0,SUMPRODUCT((AF$107:AF$108)*TRANSPOSE(($D113:$E113))),0) -> -5256736.39 | AG113: =AG$106+IF($C113<>0,SUMPRODUCT((AG$107:AG$108)*TRANSPOSE(($D113:$E113))),0) -> -5256736.39
A114: ="sens"&Assumptions!B49 -> sens5 | C114: =Assumptions!C49 -> Capex 10% higher & Total benefits 10% lower | D114: =Assumptions!G49 -> 0.1 | E114: =Assumptions!H49 -> -0.1 | G114: Option 3sens5 | I114: =I$106+IF($C114<>0,SUMPRODUCT((I$107:I$108)*TRANSPOSE(($D114:$E114))),0) -> 21349764.87 | J114: =J$106+IF($C114<>0,SUMPRODUCT((J$107:J$108)*TRANSPOSE(($D114:$E114))),0) -> 30414782.45 | K114: =K$106+IF($C114<>0,SUMPRODUCT((K$107:K$108)*TRANSPOSE(($D114:$E114))),0) -> 34886527.92 | L114: =L$106+IF($C114<>0,SUMPRODUCT((L$107:L$108)*TRANSPOSE(($D114:$E114))),0) -> 35417074.32 | M114: =M$106+IF($C114<>0,SUMPRODUCT((M$107:M$108)*TRANSPOSE(($D114:$E114))),0) -> 38006946.9 | N114: =N$106+IF($C114<>0,SUMPRODUCT((N$107:N$108)*TRANSPOSE(($D114:$E114))),0) -> 37451127.61 | O114: =O$106+IF($C114<>0,SUMPRODUCT((O$107:O$108)*TRANSPOSE(($D114:$E114))),0) -> 40126615.81 | P114: =P$106+IF($C114<>0,SUMPRODUCT((P$107:P$108)*TRANSPOSE(($D114:$E114))),0) -> 40848720.18 | Q114: =Q$106+IF($C114<>0,SUMPRODUCT((Q$107:Q$108)*TRANSPOSE(($D114:$E114))),0) -> 41685365.89 | R114: =R$106+IF($C114<>0,SUMPRODUCT((R$107:R$108)*TRANSPOSE(($D114:$E114))),0) -> 41685365.89 | S114: =S$106+IF($C114<>0,SUMPRODUCT((S$107:S$108)*TRANSPOSE(($D114:$E114))),0) -> 41685365.89 | T114: =T$106+IF($C114<>0,SUMPRODUCT((T$107:T$108)*TRANSPOSE(($D114:$E114))),0) -> 41685365.89 | U114: =U$106+IF($C114<>0,SUMPRODUCT((U$107:U$108)*TRANSPOSE(($D114:$E114))),0) -> 41685365.89 | V114: =V$106+IF($C114<>0,SUMPRODUCT((V$107:V$108)*TRANSPOSE(($D114:$E114))),0) -> 41685365.89 | W114: =W$106+IF($C114<>0,SUMPRODUCT((W$107:W$108)*TRANSPOSE(($D114:$E114))),0) -> 41685365.89 | X114: =X$106+IF($C114<>0,SUMPRODUCT((X$107:X$108)*TRANSPOSE(($D114:$E114))),0) -> -5782410.029 | Y114: =Y$106+IF($C114<>0,SUMPRODUCT((Y$107:Y$108)*TRANSPOSE(($D114:$E114))),0) -> -5782410.029 | Z114: =Z$106+IF($C114<>0,SUMPRODUCT((Z$107:Z$108)*TRANSPOSE(($D114:$E114))),0) -> -5782410.029 | AA114: =AA$106+IF($C114<>0,SUMPRODUCT((AA$107:AA$108)*TRANSPOSE(($D114:$E114))),0) -> -5782410.029 | AB114: =AB$106+IF($C114<>0,SUMPRODUCT((AB$107:AB$108)*TRANSPOSE(($D114:$E114))),0) -> -5782410.029 | AC114: =AC$106+IF($C114<>0,SUMPRODUCT((AC$107:AC$108)*TRANSPOSE(($D114:$E114))),0) -> -5782410.029 | AD114: =AD$106+IF($C114<>0,SUMPRODUCT((AD$107:AD$108)*TRANSPOSE(($D114:$E114))),0) -> -5782410.029 | AE114: =AE$106+IF($C114<>0,SUMPRODUCT((AE$107:AE$108)*TRANSPOSE(($D114:$E114))),0) -> -5782410.029 | AF114: =AF$106+IF($C114<>0,SUMPRODUCT((AF$107:AF$108)*TRANSPOSE(($D114:$E114))),0) -> -5782410.029 | AG114: =AG$106+IF($C114<>0,SUMPRODUCT((AG$107:AG$108)*TRANSPOSE(($D114:$E114))),0) -> -5782410.029
A115: ="sens"&Assumptions!B50 -> sens | C115: =Assumptions!C50 -> 0 | D115: =Assumptions!G50 -> 0 | E115: =Assumptions!H50 -> 0 | G115: Option 3sens | I115: =I$106+IF($C115<>0,SUMPRODUCT((I$107:I$108)*TRANSPOSE(($D115:$E115))),0) -> 23721960.97 | J115: =J$106+IF($C115<>0,SUMPRODUCT((J$107:J$108)*TRANSPOSE(($D115:$E115))),0) -> 33948631.5 | K115: =K$106+IF($C115<>0,SUMPRODUCT((K$107:K$108)*TRANSPOSE(($D115:$E115))),0) -> 39168302.74 | L115: =L$106+IF($C115<>0,SUMPRODUCT((L$107:L$108)*TRANSPOSE(($D115:$E115))),0) -> 40031601.91 | M115: =M$106+IF($C115<>0,SUMPRODUCT((M$107:M$108)*TRANSPOSE(($D115:$E115))),0) -> 43113879.91 | N115: =N$106+IF($C115<>0,SUMPRODUCT((N$107:N$108)*TRANSPOSE(($D115:$E115))),0) -> 42780527.65 | O115: =O$106+IF($C115<>0,SUMPRODUCT((O$107:O$108)*TRANSPOSE(($D115:$E115))),0) -> 45753292.32 | P115: =P$106+IF($C115<>0,SUMPRODUCT((P$107:P$108)*TRANSPOSE(($D115:$E115))),0) -> 46555630.51 | Q115: =Q$106+IF($C115<>0,SUMPRODUCT((Q$107:Q$108)*TRANSPOSE(($D115:$E115))),0) -> 47485236.85 | R115: =R$106+IF($C115<>0,SUMPRODUCT((R$107:R$108)*TRANSPOSE(($D115:$E115))),0) -> 47485236.85 | S115: =S$106+IF($C115<>0,SUMPRODUCT((S$107:S$108)*TRANSPOSE(($D115:$E115))),0) -> 47485236.85 | T115: =T$106+IF($C115<>0,SUMPRODUCT((T$107:T$108)*TRANSPOSE(($D115:$E115))),0) -> 47485236.85 | U115: =U$106+IF($C115<>0,SUMPRODUCT((U$107:U$108)*TRANSPOSE(($D115:$E115))),0) -> 47485236.85 | V115: =V$106+IF($C115<>0,SUMPRODUCT((V$107:V$108)*TRANSPOSE(($D115:$E115))),0) -> 47485236.85 | W115: =W$106+IF($C115<>0,SUMPRODUCT((W$107:W$108)*TRANSPOSE(($D115:$E115))),0) -> 47485236.85 | X115: =X$106+IF($C115<>0,SUMPRODUCT((X$107:X$108)*TRANSPOSE(($D115:$E115))),0) -> -5256736.39 | Y115: =Y$106+IF($C115<>0,SUMPRODUCT((Y$107:Y$108)*TRANSPOSE(($D115:$E115))),0) -> -5256736.39 | Z115: =Z$106+IF($C115<>0,SUMPRODUCT((Z$107:Z$108)*TRANSPOSE(($D115:$E115))),0) -> -5256736.39 | AA115: =AA$106+IF($C115<>0,SUMPRODUCT((AA$107:AA$108)*TRANSPOSE(($D115:$E115))),0) -> -5256736.39 | AB115: =AB$106+IF($C115<>0,SUMPRODUCT((AB$107:AB$108)*TRANSPOSE(($D115:$E115))),0) -> -5256736.39 | AC115: =AC$106+IF($C115<>0,SUMPRODUCT((AC$107:AC$108)*TRANSPOSE(($D115:$E115))),0) -> -5256736.39 | AD115: =AD$106+IF($C115<>0,SUMPRODUCT((AD$107:AD$108)*TRANSPOSE(($D115:$E115))),0) -> -5256736.39 | AE115: =AE$106+IF($C115<>0,SUMPRODUCT((AE$107:AE$108)*TRANSPOSE(($D115:$E115))),0) -> -5256736.39 | AF115: =AF$106+IF($C115<>0,SUMPRODUCT((AF$107:AF$108)*TRANSPOSE(($D115:$E115))),0) -> -5256736.39 | AG115: =AG$106+IF($C115<>0,SUMPRODUCT((AG$107:AG$108)*TRANSPOSE(($D115:$E115))),0) -> -5256736.39
A116: ="sens"&Assumptions!B51 -> sens | C116: =Assumptions!C51 -> 0 | D116: =Assumptions!G51 -> 0 | E116: =Assumptions!H51 -> 0 | G116: Option 3sens | I116: =I$106+IF($C116<>0,SUMPRODUCT((I$107:I$108)*TRANSPOSE(($D116:$E116))),0) -> 23721960.97 | J116: =J$106+IF($C116<>0,SUMPRODUCT((J$107:J$108)*TRANSPOSE(($D116:$E116))),0) -> 33948631.5 | K116: =K$106+IF($C116<>0,SUMPRODUCT((K$107:K$108)*TRANSPOSE(($D116:$E116))),0) -> 39168302.74 | L116: =L$106+IF($C116<>0,SUMPRODUCT((L$107:L$108)*TRANSPOSE(($D116:$E116))),0) -> 40031601.91 | M116: =M$106+IF($C116<>0,SUMPRODUCT((M$107:M$108)*TRANSPOSE(($D116:$E116))),0) -> 43113879.91 | N116: =N$106+IF($C116<>0,SUMPRODUCT((N$107:N$108)*TRANSPOSE(($D116:$E116))),0) -> 42780527.65 | O116: =O$106+IF($C116<>0,SUMPRODUCT((O$107:O$108)*TRANSPOSE(($D116:$E116))),0) -> 45753292.32 | P116: =P$106+IF($C116<>0,SUMPRODUCT((P$107:P$108)*TRANSPOSE(($D116:$E116))),0) -> 46555630.51 | Q116: =Q$106+IF($C116<>0,SUMPRODUCT((Q$107:Q$108)*TRANSPOSE(($D116:$E116))),0) -> 47485236.85 | R116: =R$106+IF($C116<>0,SUMPRODUCT((R$107:R$108)*TRANSPOSE(($D116:$E116))),0) -> 47485236.85 | S116: =S$106+IF($C116<>0,SUMPRODUCT((S$107:S$108)*TRANSPOSE(($D116:$E116))),0) -> 47485236.85 | T116: =T$106+IF($C116<>0,SUMPRODUCT((T$107:T$108)*TRANSPOSE(($D116:$E116))),0) -> 47485236.85 | U116: =U$106+IF($C116<>0,SUMPRODUCT((U$107:U$108)*TRANSPOSE(($D116:$E116))),0) -> 47485236.85 | V116: =V$106+IF($C116<>0,SUMPRODUCT((V$107:V$108)*TRANSPOSE(($D116:$E116))),0) -> 47485236.85 | W116: =W$106+IF($C116<>0,SUMPRODUCT((W$107:W$108)*TRANSPOSE(($D116:$E116))),0) -> 47485236.85 | X116: =X$106+IF($C116<>0,SUMPRODUCT((X$107:X$108)*TRANSPOSE(($D116:$E116))),0) -> -5256736.39 | Y116: =Y$106+IF($C116<>0,SUMPRODUCT((Y$107:Y$108)*TRANSPOSE(($D116:$E116))),0) -> -5256736.39 | Z116: =Z$106+IF($C116<>0,SUMPRODUCT((Z$107:Z$108)*TRANSPOSE(($D116:$E116))),0) -> -5256736.39 | AA116: =AA$106+IF($C116<>0,SUMPRODUCT((AA$107:AA$108)*TRANSPOSE(($D116:$E116))),0) -> -5256736.39 | AB116: =AB$106+IF($C116<>0,SUMPRODUCT((AB$107:AB$108)*TRANSPOSE(($D116:$E116))),0) -> -5256736.39 | AC116: =AC$106+IF($C116<>0,SUMPRODUCT((AC$107:AC$108)*TRANSPOSE(($D116:$E116))),0) -> -5256736.39 | AD116: =AD$106+IF($C116<>0,SUMPRODUCT((AD$107:AD$108)*TRANSPOSE(($D116:$E116))),0) -> -5256736.39 | AE116: =AE$106+IF($C116<>0,SUMPRODUCT((AE$107:AE$108)*TRANSPOSE(($D116:$E116))),0) -> -5256736.39 | AF116: =AF$106+IF($C116<>0,SUMPRODUCT((AF$107:AF$108)*TRANSPOSE(($D116:$E116))),0) -> -5256736.39 | AG116: =AG$106+IF($C116<>0,SUMPRODUCT((AG$107:AG$108)*TRANSPOSE(($D116:$E116))),0) -> -5256736.39
A117: ="sens"&Assumptions!B52 -> sens | C117: =Assumptions!C52 -> 0 | D117: =Assumptions!G52 -> 0 | E117: =Assumptions!H52 -> 0 | G117: Option 3sens | I117: =I$106+IF($C117<>0,SUMPRODUCT((I$107:I$108)*TRANSPOSE(($D117:$E117))),0) -> 23721960.97 | J117: =J$106+IF($C117<>0,SUMPRODUCT((J$107:J$108)*TRANSPOSE(($D117:$E117))),0) -> 33948631.5 | K117: =K$106+IF($C117<>0,SUMPRODUCT((K$107:K$108)*TRANSPOSE(($D117:$E117))),0) -> 39168302.74 | L117: =L$106+IF($C117<>0,SUMPRODUCT((L$107:L$108)*TRANSPOSE(($D117:$E117))),0) -> 40031601.91 | M117: =M$106+IF($C117<>0,SUMPRODUCT((M$107:M$108)*TRANSPOSE(($D117:$E117))),0) -> 43113879.91 | N117: =N$106+IF($C117<>0,SUMPRODUCT((N$107:N$108)*TRANSPOSE(($D117:$E117))),0) -> 42780527.65 | O117: =O$106+IF($C117<>0,SUMPRODUCT((O$107:O$108)*TRANSPOSE(($D117:$E117))),0) -> 45753292.32 | P117: =P$106+IF($C117<>0,SUMPRODUCT((P$107:P$108)*TRANSPOSE(($D117:$E117))),0) -> 46555630.51 | Q117: =Q$106+IF($C117<>0,SUMPRODUCT((Q$107:Q$108)*TRANSPOSE(($D117:$E117))),0) -> 47485236.85 | R117: =R$106+IF($C117<>0,SUMPRODUCT((R$107:R$108)*TRANSPOSE(($D117:$E117))),0) -> 47485236.85 | S117: =S$106+IF($C117<>0,SUMPRODUCT((S$107:S$108)*TRANSPOSE(($D117:$E117))),0) -> 47485236.85 | T117: =T$106+IF($C117<>0,SUMPRODUCT((T$107:T$108)*TRANSPOSE(($D117:$E117))),0) -> 47485236.85 | U117: =U$106+IF($C117<>0,SUMPRODUCT((U$107:U$108)*TRANSPOSE(($D117:$E117))),0) -> 47485236.85 | V117: =V$106+IF($C117<>0,SUMPRODUCT((V$107:V$108)*TRANSPOSE(($D117:$E117))),0) -> 47485236.85 | W117: =W$106+IF($C117<>0,SUMPRODUCT((W$107:W$108)*TRANSPOSE(($D117:$E117))),0) -> 47485236.85 | X117: =X$106+IF($C117<>0,SUMPRODUCT((X$107:X$108)*TRANSPOSE(($D117:$E117))),0) -> -5256736.39 | Y117: =Y$106+IF($C117<>0,SUMPRODUCT((Y$107:Y$108)*TRANSPOSE(($D117:$E117))),0) -> -5256736.39 | Z117: =Z$106+IF($C117<>0,SUMPRODUCT((Z$107:Z$108)*TRANSPOSE(($D117:$E117))),0) -> -5256736.39 | AA117: =AA$106+IF($C117<>0,SUMPRODUCT((AA$107:AA$108)*TRANSPOSE(($D117:$E117))),0) -> -5256736.39 | AB117: =AB$106+IF($C117<>0,SUMPRODUCT((AB$107:AB$108)*TRANSPOSE(($D117:$E117))),0) -> -5256736.39 | AC117: =AC$106+IF($C117<>0,SUMPRODUCT((AC$107:AC$108)*TRANSPOSE(($D117:$E117))),0) -> -5256736.39 | AD117: =AD$106+IF($C117<>0,SUMPRODUCT((AD$107:AD$108)*TRANSPOSE(($D117:$E117))),0) -> -5256736.39 | AE117: =AE$106+IF($C117<>0,SUMPRODUCT((AE$107:AE$108)*TRANSPOSE(($D117:$E117))),0) -> -5256736.39 | AF117: =AF$106+IF($C117<>0,SUMPRODUCT((AF$107:AF$108)*TRANSPOSE(($D117:$E117))),0) -> -5256736.39 | AG117: =AG$106+IF($C117<>0,SUMPRODUCT((AG$107:AG$108)*TRANSPOSE(($D117:$E117))),0) -> -5256736.39

Sheet Option4
A1: =bus -> Powercor
A2: =proj -> Regional and rural supply upgrades
A3: OPTION 4 | C3: =INDEX(Assumptions!$E$14:$E$18, MATCH(A3,_xlfn.ANCHORARRAY( Assumptions!$C$14),0)) -> 0
A4: =(INDEX(Data!$D$9:$D$13, MATCH(A3, options,0))) -> Not used
A6: ='Option1 (base case)'!A6 -> Count | I6: ='Option1 (base case)'!I6 -> 1 | J6: ='Option1 (base case)'!J6 -> 2 | K6: ='Option1 (base case)'!K6 -> 3 | L6: ='Option1 (base case)'!L6 -> 4 | M6: ='Option1 (base case)'!M6 -> 5 | N6: ='Option1 (base case)'!N6 -> 6 | O6: ='Option1 (base case)'!O6 -> 7 | P6: ='Option1 (base case)'!P6 -> 8 | Q6: ='Option1 (base case)'!Q6 -> 9 | R6: ='Option1 (base case)'!R6 -> 10 | S6: ='Option1 (base case)'!S6 -> 11 | T6: ='Option1 (base case)'!T6 -> 12 | U6: ='Option1 (base case)'!U6 -> 13 | V6: ='Option1 (base case)'!V6 -> 14 | W6: ='Option1 (base case)'!W6 -> 15 | X6: ='Option1 (base case)'!X6 -> 16 | Y6: ='Option1 (base case)'!Y6 -> 17 | Z6: ='Option1 (base case)'!Z6 -> 18 | AA6: ='Option1 (base case)'!AA6 -> 19 | AB6: ='Option1 (base case)'!AB6 -> 20 | AC6: ='Option1 (base case)'!AC6 -> 21 | AD6: ='Option1 (base case)'!AD6 -> 22 | AE6: ='Option1 (base case)'!AE6 -> 23 | AF6: ='Option1 (base case)'!AF6 -> 24 | AG6: ='Option1 (base case)'!AG6 -> 25
A7: ='Option1 (base case)'!A7 -> Value of CO2 reductions | G7: $/MWh | I7: ='Option1 (base case)'!I7 ->  | J7: ='Option1 (base case)'!J7 ->  | K7: ='Option1 (base case)'!K7 ->  | L7: ='Option1 (base case)'!L7 ->  | M7: ='Option1 (base case)'!M7 ->  | N7: ='Option1 (base case)'!N7 ->  | O7: ='Option1 (base case)'!O7 ->  | P7: ='Option1 (base case)'!P7 ->  | Q7: ='Option1 (base case)'!Q7 ->  | R7: ='Option1 (base case)'!R7 ->  | S7: ='Option1 (base case)'!S7 ->  | T7: ='Option1 (base case)'!T7 ->  | U7: ='Option1 (base case)'!U7 ->  | V7: ='Option1 (base case)'!V7 ->  | W7: ='Option1 (base case)'!W7 ->  | X7: ='Option1 (base case)'!X7 ->  | Y7: ='Option1 (base case)'!Y7 ->  | Z7: ='Option1 (base case)'!Z7 ->  | AA7: ='Option1 (base case)'!AA7 ->  | AB7: ='Option1 (base case)'!AB7 ->  | AC7: ='Option1 (base case)'!AC7 ->  | AD7: ='Option1 (base case)'!AD7 ->  | AE7: ='Option1 (base case)'!AE7 ->  | AF7: ='Option1 (base case)'!AF7 ->  | AG7: ='Option1 (base case)'!AG7 -> 
G9: Units | I9: ='Option1 (base case)'!I9 -> 2026-27 | J9: ='Option1 (base case)'!J9 -> 2027-28 | K9: ='Option1 (base case)'!K9 -> 2028-29 | L9: ='Option1 (base case)'!L9 -> 2029-30 | M9: ='Option1 (base case)'!M9 -> 2030-31 | N9: ='Option1 (base case)'!N9 -> 2031-32 | O9: ='Option1 (base case)'!O9 -> 2032-33 | P9: ='Option1 (base case)'!P9 -> 2033-34 | Q9: ='Option1 (base case)'!Q9 -> 2034-35 | R9: ='Option1 (base case)'!R9 -> 2035-36 | S9: ='Option1 (base case)'!S9 -> 2036-37 | T9: ='Option1 (base case)'!T9 -> 2037-38 | U9: ='Option1 (base case)'!U9 -> 2038-39 | V9: ='Option1 (base case)'!V9 -> 2039-40 | W9: ='Option1 (base case)'!W9 -> 2040-41 | X9: ='Option1 (base case)'!X9 -> 2041-42 | Y9: ='Option1 (base case)'!Y9 -> 2042-43 | Z9: ='Option1 (base case)'!Z9 -> 2043-44 | AA9: ='Option1 (base case)'!AA9 -> 2044-45 | AB9: ='Option1 (base case)'!AB9 -> 2045-46 | AC9: ='Option1 (base case)'!AC9 -> 2046-47 | AD9: ='Option1 (base case)'!AD9 -> 2047-48 | AE9: ='Option1 (base case)'!AE9 -> 2048-49 | AF9: ='Option1 (base case)'!AF9 -> 2049-50 | AG9: ='Option1 (base case)'!AG9 -> 2050-51
A11: INVESTMENT & OPERATING COST
C13: Capex | E13: Asset life (yrs)
C14: SWER upgrades | E14: 50 | G14: =input_dollars -> 2023-12-31 | I14: =INDEX(Options_Summary!E$9:E$12, MATCH($A$3, Options_Summary!$C$9:$C$12,0)) -> 0 | J14: =INDEX(Options_Summary!F$9:F$12, MATCH($A$3, Options_Summary!$C$9:$C$12,0)) -> 0 | K14: =INDEX(Options_Summary!G$9:G$12, MATCH($A$3, Options_Summary!$C$9:$C$12,0)) -> 0 | L14: =INDEX(Options_Summary!H$9:H$12, MATCH($A$3, Options_Summary!$C$9:$C$12,0)) -> 0 | M14: =INDEX(Options_Summary!I$9:I$12, MATCH($A$3, Options_Summary!$C$9:$C$12,0)) -> 0 | N14: 0 | O14: 0 | P14: 0 | Q14: 0 | R14: 0 | S14: 0 | T14: 0 | U14: 0 | V14: 0 | W14: 0 | X14: 0 | Y14: 0 | Z14: 0 | AA14: 0 | AB14: 0 | AC14: 0 | AD14: 0 | AE14: 0 | AF14: 0 | AG14: 0
E15: 0 | G15: =input_dollars -> 2023-12-31 | I15: 0 | J15: 0 | K15: 0 | L15: 0 | M15: 0 | N15: 0 | O15: 0 | P15: 0 | Q15: 0 | R15: 0 | S15: 0 | T15: 0 | U15: 0 | V15: 0 | W15: 0 | X15: 0 | Y15: 0 | Z15: 0 | AA15: 0 | AB15: 0 | AC15: 0 | AD15: 0 | AE15: 0 | AF15: 0 | AG15: 0
E16: 0 | G16: =input_dollars -> 2023-12-31 | I16: 0 | J16: 0 | K16: 0 | L16: 0 | M16: 0 | N16: 0 | O16: 0 | P16: 0 | Q16: 0 | R16: 0 | S16: 0 | T16: 0 | U16: 0 | V16: 0 | W16: 0 | X16: 0 | Y16: 0 | Z16: 0 | AA16: 0 | AB16: 0 | AC16: 0 | AD16: 0 | AE16: 0 | AF16: 0 | AG16: 0
C17: Capital expenditure | G17: =input_dollars -> 2023-12-31 | I17: =SUM(I14:I16) -> 0 | J17: 0 | K17: 0 | L17: 0 | M17: 0 | N17: 0 | O17: 0 | P17: 0 | Q17: 0 | R17: =SUM(R14:R16) -> 0 | S17: 0 | T17: 0 | U17: 0 | V17: 0 | W17: 0 | X17: 0 | Y17: 0 | Z17: 0 | AA17: 0 | AB17: 0 | AC17: 0 | AD17: 0 | AE17: 0 | AF17: 0 | AG17: 0
C19: Operating expenditure | G19: =input_dollars -> 2023-12-31 | I19: 0 | J19: 0 | K19: 0 | L19: 0 | M19: 0 | N19: 0 | O19: 0 | P19: 0 | Q19: 0 | R19: 0 | S19: 0 | T19: 0 | U19: 0 | V19: 0 | W19: 0 | X19: 0 | Y19: 0 | Z19: 0 | AA19: 0 | AB19: 0 | AC19: 0 | AD19: 0 | AE19: 0 | AF19: 0 | AG19: 0
A22: RISK ASSUMPTIONS
C24: PoF (major) | I24: 0 | J24: 0 | K24: 0 | L24: 0 | M24: 0 | N24: 0 | O24: 0 | P24: 0 | Q24: 0 | R24: 0 | S24: 0 | T24: 0 | U24: 0 | V24: 0 | W24: 0 | X24: 0 | Y24: 0 | Z24: 0 | AA24: 0 | AB24: 0 | AC24: 0 | AD24: 0 | AE24: 0 | AF24: 0 | AG24: 0
C25: PoF (reparable) | I25: 0 | J25: 0 | K25: 0 | L25: 0 | M25: 0 | N25: 0 | O25: 0 | P25: 0 | Q25: 0 | R25: 0 | S25: 0 | T25: 0 | U25: 0 | V25: 0 | W25: 0 | X25: 0 | Y25: 0 | Z25: 0 | AA25: 0 | AB25: 0 | AC25: 0 | AD25: 0 | AE25: 0 | AF25: 0 | AG25: 0
C27: Energy at risk (weighted) | G27: MWh | I27: 0 | J27: 0 | K27: 0 | L27: 0 | M27: 0 | N27: 0 | O27: 0 | P27: 0 | Q27: 0 | R27: 0 | S27: 0 | T27: 0 | U27: 0 | V27: 0 | W27: 0 | X27: 0 | Y27: 0 | Z27: 0 | AA27: 0 | AB27: 0 | AC27: 0 | AD27: 0 | AE27: 0 | AF27: 0 | AG27: 0
C28: Energy at risk value (CECV + CO2 + VCR+Bushfire) | D28: $/MWh | F28: =IF(AND(SUM(I27:AG27)<>0, E28=0), "!", "") ->  | G28: =input_dollars -> 2023-12-31 | I28: =INDEX(Options_Summary!E$38:E$42, MATCH($A$3, Options_Summary!$C$38:$C$42,0)) -> 0 | J28: =INDEX(Options_Summary!F$38:F$42, MATCH($A$3, Options_Summary!$C$38:$C$42,0)) -> 0 | K28: =INDEX(Options_Summary!G$38:G$42, MATCH($A$3, Options_Summary!$C$38:$C$42,0)) -> 0 | L28: =INDEX(Options_Summary!H$38:H$42, MATCH($A$3, Options_Summary!$C$38:$C$42,0)) -> 0 | M28: =INDEX(Options_Summary!I$38:I$42, MATCH($A$3, Options_Summary!$C$38:$C$42,0)) -> 0 | N28: =INDEX(Options_Summary!J$38:J$42, MATCH($A$3, Options_Summary!$C$38:$C$42,0)) -> 0 | O28: =INDEX(Options_Summary!K$38:K$42, MATCH($A$3, Options_Summary!$C$38:$C$42,0)) -> 0 | P28: =INDEX(Options_Summary!L$38:L$42, MATCH($A$3, Options_Summary!$C$38:$C$42,0)) -> 0 | Q28: =INDEX(Options_Summary!M$38:M$42, MATCH($A$3, Options_Summary!$C$38:$C$42,0)) -> 0 | R28: =INDEX(Options_Summary!N$38:N$42, MATCH($A$3, Options_Summary!$C$38:$C$42,0)) -> 0 | S28: =INDEX(Options_Summary!O$38:O$42, MATCH($A$3, Options_Summary!$C$38:$C$42,0)) -> 0 | T28: =INDEX(Options_Summary!P$38:P$42, MATCH($A$3, Options_Summary!$C$38:$C$42,0)) -> 0 | U28: =INDEX(Options_Summary!Q$38:Q$42, MATCH($A$3, Options_Summary!$C$38:$C$42,0)) -> 0 | V28: =INDEX(Options_Summary!R$38:R$42, MATCH($A$3, Options_Summary!$C$38:$C$42,0)) -> 0 | W28: =INDEX(Options_Summary!S$38:S$42, MATCH($A$3, Options_Summary!$C$38:$C$42,0)) -> 0 | X28: =INDEX(Options_Summary!T$38:T$42, MATCH($A$3, Options_Summary!$C$38:$C$42,0)) -> 0 | Y28: =INDEX(Options_Summary!U$38:U$42, MATCH($A$3, Options_Summary!$C$38:$C$42,0)) -> 0 | Z28: =INDEX(Options_Summary!V$38:V$42, MATCH($A$3, Options_Summary!$C$38:$C$42,0)) -> 0 | AA28: =INDEX(Options_Summary!W$38:W$42, MATCH($A$3, Options_Summary!$C$38:$C$42,0)) -> 0 | AB28: =INDEX(Options_Summary!X$38:X$42, MATCH($A$3, Options_Summary!$C$38:$C$42,0)) -> 0 | AC28: =INDEX(Options_Summary!Y$38:Y$42, MATCH($A$3, Options_Summary!$C$38:$C$42,0)) -> 0 | AD28: =INDEX(Options_Summary!Z$38:Z$42, MATCH($A$3, Options_Summary!$C$38:$C$42,0)) -> 0 | AE28: =INDEX(Options_Summary!AA$38:AA$42, MATCH($A$3, Options_Summary!$C$38:$C$42,0)) -> 0 | AF28: =INDEX(Options_Summary!AB$38:AB$42, MATCH($A$3, Options_Summary!$C$38:$C$42,0)) -> 0 | AG28: =INDEX(Options_Summary!AC$38:AC$42, MATCH($A$3, Options_Summary!$C$38:$C$42,0)) -> 0
C30: Safety consequence | D30: (after DF) | G30: =input_dollars -> 2023-12-31 | I30: 0 | J30: 0 | K30: 0 | L30: 0 | M30: 0 | N30: 0 | O30: 0 | P30: 0 | Q30: 0 | R30: 0 | S30: 0 | T30: 0 | U30: 0 | V30: 0 | W30: 0 | X30: 0 | Y30: 0 | Z30: 0 | AA30: 0 | AB30: 0 | AC30: 0 | AD30: 0 | AE30: 0 | AF30: 0 | AG30: 0
C31: Unplanned replacements | G31: =input_dollars -> 2023-12-31 | I31: 0 | J31: 0 | K31: 0 | L31: 0 | M31: 0 | N31: 0 | O31: 0 | P31: 0 | Q31: 0 | R31: 0 | S31: 0 | T31: 0 | U31: 0 | V31: 0 | W31: 0 | X31: 0 | Y31: 0 | Z31: 0 | AA31: 0 | AB31: 0 | AC31: 0 | AD31: 0 | AE31: 0 | AF31: 0 | AG31: 0
C32: Environmental consequence | D32: (after DF) | G32: =input_dollars -> 2023-12-31 | I32: 0 | J32: 0 | K32: 0 | L32: 0 | M32: 0 | N32: 0 | O32: 0 | P32: 0 | Q32: 0 | R32: 0 | S32: 0 | T32: 0 | U32: 0 | V32: 0 | W32: 0 | X32: 0 | Y32: 0 | Z32: 0 | AA32: 0 | AB32: 0 | AC32: 0 | AD32: 0 | AE32: 0 | AF32: 0 | AG32: 0
C33: < Other risk - enter description > | G33: =input_dollars -> 2023-12-31 | I33: 0 | J33: 0 | K33: 0 | L33: 0 | M33: 0 | N33: 0 | O33: 0 | P33: 0 | Q33: 0 | R33: 0 | S33: 0 | T33: 0 | U33: 0 | V33: 0 | W33: 0 | X33: 0 | Y33: 0 | Z33: 0 | AA33: 0 | AB33: 0 | AC33: 0 | AD33: 0 | AE33: 0 | AF33: 0 | AG33: 0
C34: < Other risk - enter description > | G34: =input_dollars -> 2023-12-31 | I34: 0 | J34: 0 | K34: 0 | L34: 0 | M34: 0 | N34: 0 | O34: 0 | P34: 0 | Q34: 0 | R34: 0 | S34: 0 | T34: 0 | U34: 0 | V34: 0 | W34: 0 | X34: 0 | Y34: 0 | Z34: 0 | AA34: 0 | AB34: 0 | AC34: 0 | AD34: 0 | AE34: 0 | AF34: 0 | AG34: 0
C36: Total risk cost | I36: =SUM(I28:I34) -> 0 | J36: =SUM(J28:J34) -> 0 | K36: 0 | L36: 0 | M36: 0 | N36: 0 | O36: 0 | P36: 0 | Q36: 0 | R36: 0 | S36: 0 | T36: 0 | U36: 0 | V36: 0 | W36: 0 | X36: 0 | Y36: 0 | Z36: 0 | AA36: 0 | AB36: 0 | AC36: 0 | AD36: 0 | AE36: 0 | AF36: 0 | AG36: 0
A38: OTHER BENEFITS
C41: Reduction in CO2 emissions | G41: MWh | I41: 0 | J41: 0 | K41: 0 | L41: 0 | M41: 0 | N41: 0 | O41: 0 | P41: 0 | Q41: 0 | R41: 0 | S41: 0 | T41: 0 | U41: 0 | V41: 0 | W41: 0 | X41: 0 | Y41: 0 | Z41: 0 | AA41: 0 | AB41: 0 | AC41: 0 | AD41: 0 | AE41: 0 | AF41: 0 | AG41: 0
C42: Value of reduction in CO2 emissions | G42: $ | I42: 0 | J42: 0 | K42: 0 | L42: 0 | M42: 0 | N42: 0 | O42: 0 | P42: 0 | Q42: 0 | R42: 0 | S42: 0 | T42: 0 | U42: 0 | V42: 0 | W42: 0 | X42: 0 | Y42: 0 | Z42: 0 | AA42: 0 | AB42: 0 | AC42: 0 | AD42: 0 | AE42: 0 | AF42: 0 | AG42: 0
C45: Reliability in worst-served areas | D45: $/MWh | E45: 0 | G45: MWh | I45: 0 | J45: 0 | K45: 0 | L45: 0 | M45: 0 | N45: 0 | O45: 0 | P45: 0 | Q45: 0 | R45: 0 | S45: 0 | T45: 0 | U45: 0 | V45: 0 | W45: 0 | X45: 0 | Y45: 0 | Z45: 0 | AA45: 0 | AB45: 0 | AC45: 0 | AD45: 0 | AE45: 0 | AF45: 0 | AG45: 0
C46: Network resilience | D46: $/MWh | E46: 0 | G46: MWh | I46: 0 | J46: 0 | K46: 0 | L46: 0 | M46: 0 | N46: 0 | O46: 0 | P46: 0 | Q46: 0 | R46: 0 | S46: 0 | T46: 0 | U46: 0 | V46: 0 | W46: 0 | X46: 0 | Y46: 0 | Z46: 0 | AA46: 0 | AB46: 0 | AC46: 0 | AD46: 0 | AE46: 0 | AF46: 0 | AG46: 0
C47: Enabling solar exports | D47: $/MWh | E47: 0 | G47: MWh | I47: 0 | J47: 0 | K47: 0 | L47: 0 | M47: 0 | N47: 0 | O47: 0 | P47: 0 | Q47: 0 | R47: 0 | S47: 0 | T47: 0 | U47: 0 | V47: 0 | W47: 0 | X47: 0 | Y47: 0 | Z47: 0 | AA47: 0 | AB47: 0 | AC47: 0 | AD47: 0 | AE47: 0 | AF47: 0 | AG47: 0
C48: Aesthetics | D48: $/customer | E48: 0 | G48: customers | I48: 0 | J48: 0 | K48: 0 | L48: 0 | M48: 0 | N48: 0 | O48: 0 | P48: 0 | Q48: 0 | R48: 0 | S48: 0 | T48: 0 | U48: 0 | V48: 0 | W48: 0 | X48: 0 | Y48: 0 | Z48: 0 | AA48: 0 | AB48: 0 | AC48: 0 | AD48: 0 | AE48: 0 | AF48: 0 | AG48: 0
C49: Customer value of time (res) | D49: $/customer min | E49: 0 | G49: mins | I49: 0 | J49: 0 | K49: 0 | L49: 0 | M49: 0 | N49: 0 | O49: 0 | P49: 0 | Q49: 0 | R49: 0 | S49: 0 | T49: 0 | U49: 0 | V49: 0 | W49: 0 | X49: 0 | Y49: 0 | Z49: 0 | AA49: 0 | AB49: 0 | AC49: 0 | AD49: 0 | AE49: 0 | AF49: 0 | AG49: 0
C50: Customer value of time (bus) | D50: $/customer min | E50: 0 | G50: mins | I50: 0 | J50: 0 | K50: 0 | L50: 0 | M50: 0 | N50: 0 | O50: 0 | P50: 0 | Q50: 0 | R50: 0 | S50: 0 | T50: 0 | U50: 0 | V50: 0 | W50: 0 | X50: 0 | Y50: 0 | Z50: 0 | AA50: 0 | AB50: 0 | AC50: 0 | AD50: 0 | AE50: 0 | AF50: 0 | AG50: 0
C51: Communication | D51: $/customer | E51: 0 | G51: customers | I51: 0 | J51: 0 | K51: 0 | L51: 0 | M51: 0 | N51: 0 | O51: 0 | P51: 0 | Q51: 0 | R51: 0 | S51: 0 | T51: 0 | U51: 0 | V51: 0 | W51: 0 | X51: 0 | Y51: 0 | Z51: 0 | AA51: 0 | AB51: 0 | AC51: 0 | AD51: 0 | AE51: 0 | AF51: 0 | AG51: 0
C52: Information accessibility | D52: $/customer | E52: 0 | G52: customers | I52: 0 | J52: 0 | K52: 0 | L52: 0 | M52: 0 | N52: 0 | O52: 0 | P52: 0 | Q52: 0 | R52: 0 | S52: 0 | T52: 0 | U52: 0 | V52: 0 | W52: 0 | X52: 0 | Y52: 0 | Z52: 0 | AA52: 0 | AB52: 0 | AC52: 0 | AD52: 0 | AE52: 0 | AF52: 0 | AG52: 0
C54: Other benefits 1 | G54: =input_dollars -> 2023-12-31 | I54: 0 | J54: 0 | K54: 0 | L54: 0 | M54: 0 | N54: 0 | O54: 0 | P54: 0 | Q54: 0 | R54: 0 | S54: 0 | T54: 0 | U54: 0 | V54: 0 | W54: 0 | X54: 0 | Y54: 0 | Z54: 0 | AA54: 0 | AB54: 0 | AC54: 0 | AD54: 0 | AE54: 0 | AF54: 0 | AG54: 0
C55: Other benefits 2 | G55: =input_dollars -> 2023-12-31 | I55: 0 | J55: 0 | K55: 0 | L55: 0 | M55: 0 | N55: 0 | O55: 0 | P55: 0 | Q55: 0 | R55: 0 | S55: 0 | T55: 0 | U55: 0 | V55: 0 | W55: 0 | X55: 0 | Y55: 0 | Z55: 0 | AA55: 0 | AB55: 0 | AC55: 0 | AD55: 0 | AE55: 0 | AF55: 0 | AG55: 0
C57: Total other benefits | G57: =input_dollars -> 2023-12-31 | I57: =SUMPRODUCT((I$45:I$52)*($E$45:$E$52))+SUM(I54:I55)+I42 -> 0 | J57: =SUMPRODUCT((J$45:J$52)*($E$45:$E$52))+SUM(J54:J55)+J42 -> 0 | K57: =SUMPRODUCT((K$45:K$52)*($E$45:$E$52))+SUM(K54:K55)+K42 -> 0 | L57: =SUMPRODUCT((L$45:L$52)*($E$45:$E$52))+SUM(L54:L55)+L42 -> 0 | M57: =SUMPRODUCT((M$45:M$52)*($E$45:$E$52))+SUM(M54:M55)+M42 -> 0 | N57: =SUMPRODUCT((N$45:N$52)*($E$45:$E$52))+SUM(N54:N55)+N42 -> 0 | O57: =SUMPRODUCT((O$45:O$52)*($E$45:$E$52))+SUM(O54:O55)+O42 -> 0 | P57: =SUMPRODUCT((P$45:P$52)*($E$45:$E$52))+SUM(P54:P55)+P42 -> 0 | Q57: =SUMPRODUCT((Q$45:Q$52)*($E$45:$E$52))+SUM(Q54:Q55)+Q42 -> 0 | R57: =SUMPRODUCT((R$45:R$52)*($E$45:$E$52))+SUM(R54:R55)+R42 -> 0 | S57: =SUMPRODUCT((S$45:S$52)*($E$45:$E$52))+SUM(S54:S55)+S42 -> 0 | T57: =SUMPRODUCT((T$45:T$52)*($E$45:$E$52))+SUM(T54:T55)+T42 -> 0 | U57: =SUMPRODUCT((U$45:U$52)*($E$45:$E$52))+SUM(U54:U55)+U42 -> 0 | V57: =SUMPRODUCT((V$45:V$52)*($E$45:$E$52))+SUM(V54:V55)+V42 -> 0 | W57: =SUMPRODUCT((W$45:W$52)*($E$45:$E$52))+SUM(W54:W55)+W42 -> 0 | X57: =SUMPRODUCT((X$45:X$52)*($E$45:$E$52))+SUM(X54:X55)+X42 -> 0 | Y57: =SUMPRODUCT((Y$45:Y$52)*($E$45:$E$52))+SUM(Y54:Y55)+Y42 -> 0 | Z57: =SUMPRODUCT((Z$45:Z$52)*($E$45:$E$52))+SUM(Z54:Z55)+Z42 -> 0 | AA57: =SUMPRODUCT((AA$45:AA$52)*($E$45:$E$52))+SUM(AA54:AA55)+AA42 -> 0 | AB57: =SUMPRODUCT((AB$45:AB$52)*($E$45:$E$52))+SUM(AB54:AB55)+AB42 -> 0 | AC57: =SUMPRODUCT((AC$45:AC$52)*($E$45:$E$52))+SUM(AC54:AC55)+AC42 -> 0 | AD57: =SUMPRODUCT((AD$45:AD$52)*($E$45:$E$52))+SUM(AD54:AD55)+AD42 -> 0 | AE57: =SUMPRODUCT((AE$45:AE$52)*($E$45:$E$52))+SUM(AE54:AE55)+AE42 -> 0 | AF57: =SUMPRODUCT((AF$45:AF$52)*($E$45:$E$52))+SUM(AF54:AF55)+AF42 -> 0 | AG57: =SUMPRODUCT((AG$45:AG$52)*($E$45:$E$52))+SUM(AG54:AG55)+AG42 -> 0
A60: SUMMARY
C64: ='Option1 (base case)'!C64 -> Risks mitigated vs base case | G64: =input_dollars -> 2023-12-31 | I64: =(1-INDEX(Data!$C$9:$C$13, MATCH($A$3, options,0)))*('Option1 (base case)'!I36-I36) -> 0 | J64: =(1-INDEX(Data!$C$9:$C$13, MATCH($A$3, options,0)))*('Option1 (base case)'!J36-J36) -> 0 | K64: =(1-INDEX(Data!$C$9:$C$13, MATCH($A$3, options,0)))*('Option1 (base case)'!K36-K36) -> 0 | L64: =(1-INDEX(Data!$C$9:$C$13, MATCH($A$3, options,0)))*('Option1 (base case)'!L36-L36) -> 0 | M64: =(1-INDEX(Data!$C$9:$C$13, MATCH($A$3, options,0)))*('Option1 (base case)'!M36-M36) -> 0 | N64: =(1-INDEX(Data!$C$9:$C$13, MATCH($A$3, options,0)))*('Option1 (base case)'!N36-N36) -> 0 | O64: =(1-INDEX(Data!$C$9:$C$13, MATCH($A$3, options,0)))*('Option1 (base case)'!O36-O36) -> 0 | P64: =(1-INDEX(Data!$C$9:$C$13, MATCH($A$3, options,0)))*('Option1 (base case)'!P36-P36) -> 0 | Q64: =(1-INDEX(Data!$C$9:$C$13, MATCH($A$3, options,0)))*('Option1 (base case)'!Q36-Q36) -> 0 | R64: =(1-INDEX(Data!$C$9:$C$13, MATCH($A$3, options,0)))*('Option1 (base case)'!R36-R36) -> 0 | S64: =(1-INDEX(Data!$C$9:$C$13, MATCH($A$3, options,0)))*('Option1 (base case)'!S36-S36) -> 0 | T64: =(1-INDEX(Data!$C$9:$C$13, MATCH($A$3, options,0)))*('Option1 (base case)'!T36-T36) -> 0 | U64: =(1-INDEX(Data!$C$9:$C$13, MATCH($A$3, options,0)))*('Option1 (base case)'!U36-U36) -> 0 | V64: =(1-INDEX(Data!$C$9:$C$13, MATCH($A$3, options,0)))*('Option1 (base case)'!V36-V36) -> 0 | W64: =(1-INDEX(Data!$C$9:$C$13, MATCH($A$3, options,0)))*('Option1 (base case)'!W36-W36) -> 0 | X64: =(1-INDEX(Data!$C$9:$C$13, MATCH($A$3, options,0)))*('Option1 (base case)'!X36-X36) -> 0 | Y64: =(1-INDEX(Data!$C$9:$C$13, MATCH($A$3, options,0)))*('Option1 (base case)'!Y36-Y36) -> 0 | Z64: =(1-INDEX(Data!$C$9:$C$13, MATCH($A$3, options,0)))*('Option1 (base case)'!Z36-Z36) -> 0 | AA64: =(1-INDEX(Data!$C$9:$C$13, MATCH($A$3, options,0)))*('Option1 (base case)'!AA36-AA36) -> 0 | AB64: =(1-INDEX(Data!$C$9:$C$13, MATCH($A$3, options,0)))*('Option1 (base case)'!AB36-AB36) -> 0 | AC64: =(1-INDEX(Data!$C$9:$C$13, MATCH($A$3, options,0)))*('Option1 (base case)'!AC36-AC36) -> 0 | AD64: =(1-INDEX(Data!$C$9:$C$13, MATCH($A$3, options,0)))*('Option1 (base case)'!AD36-AD36) -> 0 | AE64: =(1-INDEX(Data!$C$9:$C$13, MATCH($A$3, options,0)))*('Option1 (base case)'!AE36-AE36) -> 0 | AF64: =(1-INDEX(Data!$C$9:$C$13, MATCH($A$3, options,0)))*('Option1 (base case)'!AF36-AF36) -> 0 | AG64: =(1-INDEX(Data!$C$9:$C$13, MATCH($A$3, options,0)))*('Option1 (base case)'!AG36-AG36) -> 0
C66: Capital expenditure
C67: =C14 -> SWER upgrades | G67: =input_dollars -> 2023-12-31 | I67: =-I14 -> 0 | J67: 0 | K67: 0 | L67: 0 | M67: 0 | N67: 0 | O67: 0 | P67: 0 | Q67: 0 | R67: 0 | S67: 0 | T67: 0 | U67: 0 | V67: 0 | W67: 0 | X67: 0 | Y67: 0 | Z67: 0 | AA67: 0 | AB67: 0 | AC67: 0 | AD67: 0 | AE67: 0 | AF67: 0 | AG67: 0
C68: =C15 -> 0 | G68: =input_dollars -> 2023-12-31 | I68: =-I15 -> 0 | J68: 0 | K68: 0 | L68: 0 | M68: 0 | N68: 0 | O68: 0 | P68: 0 | Q68: 0 | R68: 0 | S68: 0 | T68: 0 | U68: 0 | V68: 0 | W68: 0 | X68: 0 | Y68: 0 | Z68: 0 | AA68: 0 | AB68: 0 | AC68: 0 | AD68: 0 | AE68: 0 | AF68: 0 | AG68: 0
C69: =C16 -> 0 | G69: =input_dollars -> 2023-12-31 | I69: =-I16 -> 0 | J69: 0 | K69: 0 | L69: 0 | M69: 0 | N69: 0 | O69: 0 | P69: 0 | Q69: 0 | R69: 0 | S69: 0 | T69: 0 | U69: 0 | V69: 0 | W69: 0 | X69: 0 | Y69: 0 | Z69: 0 | AA69: 0 | AB69: 0 | AC69: 0 | AD69: 0 | AE69: 0 | AF69: 0 | AG69: 0
C71: Cumulative capex
C72: =C14 -> SWER upgrades | G72: =input_dollars -> 2023-12-31 | I72: =SUMPRODUCT(($I67:I67))-SUMPRODUCT(($I67:I67)*($I$6:I$6<=(I$6-$E14))) -> 0 | J72: =SUMPRODUCT(($I67:J67))-SUMPRODUCT(($I67:J67)*($I$6:J$6<=(J$6-$E14))) -> 0 | K72: =SUMPRODUCT(($I67:K67))-SUMPRODUCT(($I67:K67)*($I$6:K$6<=(K$6-$E14))) -> 0 | L72: =SUMPRODUCT(($I67:L67))-SUMPRODUCT(($I67:L67)*($I$6:L$6<=(L$6-$E14))) -> 0 | M72: =SUMPRODUCT(($I67:M67))-SUMPRODUCT(($I67:M67)*($I$6:M$6<=(M$6-$E14))) -> 0 | N72: =SUMPRODUCT(($I67:N67))-SUMPRODUCT(($I67:N67)*($I$6:N$6<=(N$6-$E14))) -> 0 | O72: =SUMPRODUCT(($I67:O67))-SUMPRODUCT(($I67:O67)*($I$6:O$6<=(O$6-$E14))) -> 0 | P72: =SUMPRODUCT(($I67:P67))-SUMPRODUCT(($I67:P67)*($I$6:P$6<=(P$6-$E14))) -> 0 | Q72: =SUMPRODUCT(($I67:Q67))-SUMPRODUCT(($I67:Q67)*($I$6:Q$6<=(Q$6-$E14))) -> 0 | R72: =SUMPRODUCT(($I67:R67))-SUMPRODUCT(($I67:R67)*($I$6:R$6<=(R$6-$E14))) -> 0 | S72: =SUMPRODUCT(($I67:S67))-SUMPRODUCT(($I67:S67)*($I$6:S$6<=(S$6-$E14))) -> 0 | T72: =SUMPRODUCT(($I67:T67))-SUMPRODUCT(($I67:T67)*($I$6:T$6<=(T$6-$E14))) -> 0 | U72: =SUMPRODUCT(($I67:U67))-SUMPRODUCT(($I67:U67)*($I$6:U$6<=(U$6-$E14))) -> 0 | V72: =SUMPRODUCT(($I67:V67))-SUMPRODUCT(($I67:V67)*($I$6:V$6<=(V$6-$E14))) -> 0 | W72: =SUMPRODUCT(($I67:W67))-SUMPRODUCT(($I67:W67)*($I$6:W$6<=(W$6-$E14))) -> 0 | X72: =SUMPRODUCT(($I67:X67))-SUMPRODUCT(($I67:X67)*($I$6:X$6<=(X$6-$E14))) -> 0 | Y72: =SUMPRODUCT(($I67:Y67))-SUMPRODUCT(($I67:Y67)*($I$6:Y$6<=(Y$6-$E14))) -> 0 | Z72: =SUMPRODUCT(($I67:Z67))-SUMPRODUCT(($I67:Z67)*($I$6:Z$6<=(Z$6-$E14))) -> 0 | AA72: =SUMPRODUCT(($I67:AA67))-SUMPRODUCT(($I67:AA67)*($I$6:AA$6<=(AA$6-$E14))) -> 0 | AB72: =SUMPRODUCT(($I67:AB67))-SUMPRODUCT(($I67:AB67)*($I$6:AB$6<=(AB$6-$E14))) -> 0 | AC72: =SUMPRODUCT(($I67:AC67))-SUMPRODUCT(($I67:AC67)*($I$6:AC$6<=(AC$6-$E14))) -> 0 | AD72: =SUMPRODUCT(($I67:AD67))-SUMPRODUCT(($I67:AD67)*($I$6:AD$6<=(AD$6-$E14))) -> 0 | AE72: =SUMPRODUCT(($I67:AE67))-SUMPRODUCT(($I67:AE67)*($I$6:AE$6<=(AE$6-$E14))) -> 0 | AF72: =SUMPRODUCT(($I67:AF67))-SUMPRODUCT(($I67:AF67)*($I$6:AF$6<=(AF$6-$E14))) -> 0 | AG72: =SUMPRODUCT(($I67:AG67))-SUMPRODUCT(($I67:AG67)*($I$6:AG$6<=(AG$6-$E14))) -> 0
C73: =C15 -> 0 | G73: =input_dollars -> 2023-12-31 | I73: =SUMPRODUCT(($I68:I68))-SUMPRODUCT(($I68:I68)*($I$6:I$6<=(I$6-$E15))) -> 0 | J73: =SUMPRODUCT(($I68:J68))-SUMPRODUCT(($I68:J68)*($I$6:J$6<=(J$6-$E15))) -> 0 | K73: =SUMPRODUCT(($I68:K68))-SUMPRODUCT(($I68:K68)*($I$6:K$6<=(K$6-$E15))) -> 0 | L73: =SUMPRODUCT(($I68:L68))-SUMPRODUCT(($I68:L68)*($I$6:L$6<=(L$6-$E15))) -> 0 | M73: =SUMPRODUCT(($I68:M68))-SUMPRODUCT(($I68:M68)*($I$6:M$6<=(M$6-$E15))) -> 0 | N73: =SUMPRODUCT(($I68:N68))-SUMPRODUCT(($I68:N68)*($I$6:N$6<=(N$6-$E15))) -> 0 | O73: =SUMPRODUCT(($I68:O68))-SUMPRODUCT(($I68:O68)*($I$6:O$6<=(O$6-$E15))) -> 0 | P73: =SUMPRODUCT(($I68:P68))-SUMPRODUCT(($I68:P68)*($I$6:P$6<=(P$6-$E15))) -> 0 | Q73: =SUMPRODUCT(($I68:Q68))-SUMPRODUCT(($I68:Q68)*($I$6:Q$6<=(Q$6-$E15))) -> 0 | R73: =SUMPRODUCT(($I68:R68))-SUMPRODUCT(($I68:R68)*($I$6:R$6<=(R$6-$E15))) -> 0 | S73: =SUMPRODUCT(($I68:S68))-SUMPRODUCT(($I68:S68)*($I$6:S$6<=(S$6-$E15))) -> 0 | T73: =SUMPRODUCT(($I68:T68))-SUMPRODUCT(($I68:T68)*($I$6:T$6<=(T$6-$E15))) -> 0 | U73: =SUMPRODUCT(($I68:U68))-SUMPRODUCT(($I68:U68)*($I$6:U$6<=(U$6-$E15))) -> 0 | V73: =SUMPRODUCT(($I68:V68))-SUMPRODUCT(($I68:V68)*($I$6:V$6<=(V$6-$E15))) -> 0 | W73: =SUMPRODUCT(($I68:W68))-SUMPRODUCT(($I68:W68)*($I$6:W$6<=(W$6-$E15))) -> 0 | X73: =SUMPRODUCT(($I68:X68))-SUMPRODUCT(($I68:X68)*($I$6:X$6<=(X$6-$E15))) -> 0 | Y73: =SUMPRODUCT(($I68:Y68))-SUMPRODUCT(($I68:Y68)*($I$6:Y$6<=(Y$6-$E15))) -> 0 | Z73: =SUMPRODUCT(($I68:Z68))-SUMPRODUCT(($I68:Z68)*($I$6:Z$6<=(Z$6-$E15))) -> 0 | AA73: =SUMPRODUCT(($I68:AA68))-SUMPRODUCT(($I68:AA68)*($I$6:AA$6<=(AA$6-$E15))) -> 0 | AB73: =SUMPRODUCT(($I68:AB68))-SUMPRODUCT(($I68:AB68)*($I$6:AB$6<=(AB$6-$E15))) -> 0 | AC73: =SUMPRODUCT(($I68:AC68))-SUMPRODUCT(($I68:AC68)*($I$6:AC$6<=(AC$6-$E15))) -> 0 | AD73: =SUMPRODUCT(($I68:AD68))-SUMPRODUCT(($I68:AD68)*($I$6:AD$6<=(AD$6-$E15))) -> 0 | AE73: =SUMPRODUCT(($I68:AE68))-SUMPRODUCT(($I68:AE68)*($I$6:AE$6<=(AE$6-$E15))) -> 0 | AF73: =SUMPRODUCT(($I68:AF68))-SUMPRODUCT(($I68:AF68)*($I$6:AF$6<=(AF$6-$E15))) -> 0 | AG73: =SUMPRODUCT(($I68:AG68))-SUMPRODUCT(($I68:AG68)*($I$6:AG$6<=(AG$6-$E15))) -> 0
C74: =C16 -> 0 | G74: =input_dollars -> 2023-12-31 | I74: =SUMPRODUCT(($I69:I69))-SUMPRODUCT(($I69:I69)*($I$6:I$6<=(I$6-$E16))) -> 0 | J74: =SUMPRODUCT(($I69:J69))-SUMPRODUCT(($I69:J69)*($I$6:J$6<=(J$6-$E16))) -> 0 | K74: =SUMPRODUCT(($I69:K69))-SUMPRODUCT(($I69:K69)*($I$6:K$6<=(K$6-$E16))) -> 0 | L74: =SUMPRODUCT(($I69:L69))-SUMPRODUCT(($I69:L69)*($I$6:L$6<=(L$6-$E16))) -> 0 | M74: =SUMPRODUCT(($I69:M69))-SUMPRODUCT(($I69:M69)*($I$6:M$6<=(M$6-$E16))) -> 0 | N74: =SUMPRODUCT(($I69:N69))-SUMPRODUCT(($I69:N69)*($I$6:N$6<=(N$6-$E16))) -> 0 | O74: =SUMPRODUCT(($I69:O69))-SUMPRODUCT(($I69:O69)*($I$6:O$6<=(O$6-$E16))) -> 0 | P74: =SUMPRODUCT(($I69:P69))-SUMPRODUCT(($I69:P69)*($I$6:P$6<=(P$6-$E16))) -> 0 | Q74: =SUMPRODUCT(($I69:Q69))-SUMPRODUCT(($I69:Q69)*($I$6:Q$6<=(Q$6-$E16))) -> 0 | R74: =SUMPRODUCT(($I69:R69))-SUMPRODUCT(($I69:R69)*($I$6:R$6<=(R$6-$E16))) -> 0 | S74: =SUMPRODUCT(($I69:S69))-SUMPRODUCT(($I69:S69)*($I$6:S$6<=(S$6-$E16))) -> 0 | T74: =SUMPRODUCT(($I69:T69))-SUMPRODUCT(($I69:T69)*($I$6:T$6<=(T$6-$E16))) -> 0 | U74: =SUMPRODUCT(($I69:U69))-SUMPRODUCT(($I69:U69)*($I$6:U$6<=(U$6-$E16))) -> 0 | V74: =SUMPRODUCT(($I69:V69))-SUMPRODUCT(($I69:V69)*($I$6:V$6<=(V$6-$E16))) -> 0 | W74: =SUMPRODUCT(($I69:W69))-SUMPRODUCT(($I69:W69)*($I$6:W$6<=(W$6-$E16))) -> 0 | X74: =SUMPRODUCT(($I69:X69))-SUMPRODUCT(($I69:X69)*($I$6:X$6<=(X$6-$E16))) -> 0 | Y74: =SUMPRODUCT(($I69:Y69))-SUMPRODUCT(($I69:Y69)*($I$6:Y$6<=(Y$6-$E16))) -> 0 | Z74: =SUMPRODUCT(($I69:Z69))-SUMPRODUCT(($I69:Z69)*($I$6:Z$6<=(Z$6-$E16))) -> 0 | AA74: =SUMPRODUCT(($I69:AA69))-SUMPRODUCT(($I69:AA69)*($I$6:AA$6<=(AA$6-$E16))) -> 0 | AB74: =SUMPRODUCT(($I69:AB69))-SUMPRODUCT(($I69:AB69)*($I$6:AB$6<=(AB$6-$E16))) -> 0 | AC74: =SUMPRODUCT(($I69:AC69))-SUMPRODUCT(($I69:AC69)*($I$6:AC$6<=(AC$6-$E16))) -> 0 | AD74: =SUMPRODUCT(($I69:AD69))-SUMPRODUCT(($I69:AD69)*($I$6:AD$6<=(AD$6-$E16))) -> 0 | AE74: =SUMPRODUCT(($I69:AE69))-SUMPRODUCT(($I69:AE69)*($I$6:AE$6<=(AE$6-$E16))) -> 0 | AF74: =SUMPRODUCT(($I69:AF69))-SUMPRODUCT(($I69:AF69)*($I$6:AF$6<=(AF$6-$E16))) -> 0 | AG74: =SUMPRODUCT(($I69:AG69))-SUMPRODUCT(($I69:AG69)*($I$6:AG$6<=(AG$6-$E16))) -> 0
C76: Annualised capex
C77: =$C$76&" - "&C14 -> Annualised capex - SWER upgrades | G77: =input_dollars -> 2023-12-31 | I77: =IF($E14=0,0,-PMT(real_disc, $E14,H72,)) -> 0 | J77: 0 | K77: 0 | L77: 0 | M77: 0 | N77: 0 | O77: 0 | P77: 0 | Q77: 0 | R77: 0 | S77: 0 | T77: 0 | U77: 0 | V77: 0 | W77: 0 | X77: 0 | Y77: 0 | Z77: 0 | AA77: 0 | AB77: 0 | AC77: 0 | AD77: 0 | AE77: 0 | AF77: 0 | AG77: 0
C78: =$C$76&" - "&C15 -> Annualised capex - | G78: =input_dollars -> 2023-12-31 | I78: =IF($E15=0,0,-PMT(real_disc, $E15,H73,)) -> 0 | J78: 0 | K78: 0 | L78: 0 | M78: 0 | N78: 0 | O78: 0 | P78: 0 | Q78: 0 | R78: 0 | S78: 0 | T78: 0 | U78: 0 | V78: 0 | W78: 0 | X78: 0 | Y78: 0 | Z78: 0 | AA78: 0 | AB78: 0 | AC78: 0 | AD78: 0 | AE78: 0 | AF78: 0 | AG78: 0
C79: =$C$76&" - "&C16 -> Annualised capex - | G79: =input_dollars -> 2023-12-31 | I79: =IF($E16=0,0,-PMT(real_disc, $E16,H74,)) -> 0 | J79: 0 | K79: 0 | L79: 0 | M79: 0 | N79: 0 | O79: 0 | P79: 0 | Q79: 0 | R79: 0 | S79: 0 | T79: 0 | U79: 0 | V79: 0 | W79: 0 | X79: 0 | Y79: 0 | Z79: 0 | AA79: 0 | AB79: 0 | AC79: 0 | AD79: 0 | AE79: 0 | AF79: 0 | AG79: 0
C80: Total annualised capex | G80: =input_dollars -> 2023-12-31 | I80: =SUM(I77:I79) -> 0 | J80: =SUM(J77:J79) -> 0 | K80: 0 | L80: 0 | M80: 0 | N80: 0 | O80: 0 | P80: 0 | Q80: 0 | R80: 0 | S80: 0 | T80: 0 | U80: 0 | V80: 0 | W80: 0 | X80: 0 | Y80: 0 | Z80: 0 | AA80: 0 | AB80: 0 | AC80: =SUM(AC77:AC79) -> 0 | AD80: =SUM(AD77:AD79) -> 0 | AE80: =SUM(AE77:AE79) -> 0 | AF80: =SUM(AF77:AF79) -> 0 | AG80: =SUM(AG77:AG79) -> 0
C82: Annualised capex | G82: =input_dollars -> 2023-12-31 | I82: =I80 -> 0 | J82: =J80 -> 0 | K82: 0 | L82: 0 | M82: 0 | N82: 0 | O82: 0 | P82: 0 | Q82: 0 | R82: 0 | S82: 0 | T82: 0 | U82: 0 | V82: 0 | W82: 0 | X82: 0 | Y82: 0 | Z82: 0 | AA82: 0 | AB82: 0 | AC82: =AC80 -> 0 | AD82: =AD80 -> 0 | AE82: =AE80 -> 0 | AF82: =AF80 -> 0 | AG82: =AG80 -> 0
C83: Operating expenditure | G83: 2023-12-31 | I83: =-I19 -> 0 | J83: 0 | K83: 0 | L83: 0 | M83: 0 | N83: 0 | O83: 0 | P83: 0 | Q83: 0 | R83: 0 | S83: 0 | T83: 0 | U83: 0 | V83: 0 | W83: 0 | X83: 0 | Y83: 0 | Z83: 0 | AA83: 0 | AB83: 0 | AC83: 0 | AD83: 0 | AE83: 0 | AF83: 0 | AG83: 0
C84: Risk mitigated | G84: 2023-12-31 | I84: =I64 -> 0 | J84: =J64 -> 0 | K84: 0 | L84: 0 | M84: 0 | N84: 0 | O84: 0 | P84: 0 | Q84: 0 | R84: 0 | S84: 0 | T84: 0 | U84: 0 | V84: 0 | W84: 0 | X84: 0 | Y84: 0 | Z84: 0 | AA84: 0 | AB84: 0 | AC84: =AC64 -> 0 | AD84: =AD64 -> 0 | AE84: =AE64 -> 0 | AF84: =AF64 -> 0 | AG84: =AG64 -> 0
C85: Other benefits value | G85: 2023-12-31 | I85: =I57 -> 0 | J85: 0 | K85: 0 | L85: 0 | M85: 0 | N85: 0 | O85: 0 | P85: 0 | Q85: 0 | R85: 0 | S85: 0 | T85: 0 | U85: 0 | V85: 0 | W85: 0 | X85: 0 | Y85: 0 | Z85: 0 | AA85: 0 | AB85: 0 | AC85: 0 | AD85: 0 | AE85: 0 | AF85: 0 | AG85: 0
C87: Net benefits | G87: 2023-12-31 | I87: =SUM(I82:I86) -> 0 | J87: 0 | K87: 0 | L87: 0 | M87: 0 | N87: 0 | O87: 0 | P87: 0 | Q87: 0 | R87: 0 | S87: 0 | T87: 0 | U87: 0 | V87: 0 | W87: 0 | X87: 0 | Y87: 0 | Z87: 0 | AA87: 0 | AB87: 0 | AC87: =SUM(AC82:AC86) -> 0 | AD87: =SUM(AD82:AD86) -> 0 | AE87: =SUM(AE82:AE86) -> 0 | AF87: =SUM(AF82:AF86) -> 0 | AG87: =SUM(AG82:AG86) -> 0
C90: First capex year | G90: =IF(SUM($I17:$AG17)=0,0,(INDEX(I$6:AG$6,MATCH(TRUE,INDEX($I17:$AG17<>0,),0)))) -> 0
C92: First year | G92: =IF(_xlfn.MINIFS($G$90:$G$91, $G$90:$G$91, ">"&0)=0, $A$4, _xlfn.MINIFS($G$90:$G$91, $G$90:$G$91, ">"&0)) -> Not used
A102: SENSITIVITIES
A106: NPV | C106: Net benefits | G106: =PROPER($A$3)&A106 -> Option 4NPV | I106: =I87 -> 0 | J106: =J87 -> 0 | K106: 0 | L106: 0 | M106: 0 | N106: 0 | O106: 0 | P106: 0 | Q106: 0 | R106: 0 | S106: 0 | T106: 0 | U106: 0 | V106: 0 | W106: 0 | X106: 0 | Y106: 0 | Z106: 0 | AA106: 0 | AB106: 0 | AC106: 0 | AD106: 0 | AE106: 0 | AF106: 0 | AG106: 0
C107: Total annualised capex | I107: =I82 -> 0 | J107: =J82 -> 0 | K107: 0 | L107: 0 | M107: 0 | N107: 0 | O107: 0 | P107: 0 | Q107: 0 | R107: 0 | S107: 0 | T107: 0 | U107: 0 | V107: 0 | W107: 0 | X107: 0 | Y107: 0 | Z107: 0 | AA107: 0 | AB107: 0 | AC107: 0 | AD107: 0 | AE107: 0 | AF107: 0 | AG107: 0
C108: Total benefits | I108: =SUM(I84:I85) -> 0 | J108: =SUM(J84:J85) -> 0 | K108: 0 | L108: 0 | M108: 0 | N108: 0 | O108: 0 | P108: 0 | Q108: 0 | R108: 0 | S108: 0 | T108: 0 | U108: 0 | V108: 0 | W108: 0 | X108: 0 | Y108: 0 | Z108: 0 | AA108: 0 | AB108: 0 | AC108: 0 | AD108: 0 | AE108: 0 | AF108: 0 | AG108: 0
D109: =Assumptions!G44 -> Capex | E109: =Assumptions!H44 -> Total benefits
A110: ="sens"&Assumptions!B45 -> sens1 | C110: =Assumptions!C45 -> Capex 10% higher | D110: =Assumptions!G45 -> 0.1 | E110: =Assumptions!H45 -> 0 | G110: =PROPER($A$3)&A110 -> Option 4sens1 | I110: =I$106+IF($C110<>0,SUMPRODUCT((I$107:I$108)*TRANSPOSE(($D110:$E110))),0) -> 0 | J110: =J$106+IF($C110<>0,SUMPRODUCT((J$107:J$108)*TRANSPOSE(($D110:$E110))),0) -> 0 | K110: =K$106+IF($C110<>0,SUMPRODUCT((K$107:K$108)*TRANSPOSE(($D110:$E110))),0) -> 0 | L110: =L$106+IF($C110<>0,SUMPRODUCT((L$107:L$108)*TRANSPOSE(($D110:$E110))),0) -> 0 | M110: =M$106+IF($C110<>0,SUMPRODUCT((M$107:M$108)*TRANSPOSE(($D110:$E110))),0) -> 0 | N110: =N$106+IF($C110<>0,SUMPRODUCT((N$107:N$108)*TRANSPOSE(($D110:$E110))),0) -> 0 | O110: =O$106+IF($C110<>0,SUMPRODUCT((O$107:O$108)*TRANSPOSE(($D110:$E110))),0) -> 0 | P110: =P$106+IF($C110<>0,SUMPRODUCT((P$107:P$108)*TRANSPOSE(($D110:$E110))),0) -> 0 | Q110: =Q$106+IF($C110<>0,SUMPRODUCT((Q$107:Q$108)*TRANSPOSE(($D110:$E110))),0) -> 0 | R110: =R$106+IF($C110<>0,SUMPRODUCT((R$107:R$108)*TRANSPOSE(($D110:$E110))),0) -> 0 | S110: =S$106+IF($C110<>0,SUMPRODUCT((S$107:S$108)*TRANSPOSE(($D110:$E110))),0) -> 0 | T110: =T$106+IF($C110<>0,SUMPRODUCT((T$107:T$108)*TRANSPOSE(($D110:$E110))),0) -> 0 | U110: =U$106+IF($C110<>0,SUMPRODUCT((U$107:U$108)*TRANSPOSE(($D110:$E110))),0) -> 0 | V110: =V$106+IF($C110<>0,SUMPRODUCT((V$107:V$108)*TRANSPOSE(($D110:$E110))),0) -> 0 | W110: =W$106+IF($C110<>0,SUMPRODUCT((W$107:W$108)*TRANSPOSE(($D110:$E110))),0) -> 0 | X110: =X$106+IF($C110<>0,SUMPRODUCT((X$107:X$108)*TRANSPOSE(($D110:$E110))),0) -> 0 | Y110: =Y$106+IF($C110<>0,SUMPRODUCT((Y$107:Y$108)*TRANSPOSE(($D110:$E110))),0) -> 0 | Z110: =Z$106+IF($C110<>0,SUMPRODUCT((Z$107:Z$108)*TRANSPOSE(($D110:$E110))),0) -> 0 | AA110: =AA$106+IF($C110<>0,SUMPRODUCT((AA$107:AA$108)*TRANSPOSE(($D110:$E110))),0) -> 0 | AB110: =AB$106+IF($C110<>0,SUMPRODUCT((AB$107:AB$108)*TRANSPOSE(($D110:$E110))),0) -> 0 | AC110: =AC$106+IF($C110<>0,SUMPRODUCT((AC$107:AC$108)*TRANSPOSE(($D110:$E110))),0) -> 0 | AD110: =AD$106+IF($C110<>0,SUMPRODUCT((AD$107:AD$108)*TRANSPOSE(($D110:$E110))),0) -> 0 | AE110: =AE$106+IF($C110<>0,SUMPRODUCT((AE$107:AE$108)*TRANSPOSE(($D110:$E110))),0) -> 0 | AF110: =AF$106+IF($C110<>0,SUMPRODUCT((AF$107:AF$108)*TRANSPOSE(($D110:$E110))),0) -> 0 | AG110: =AG$106+IF($C110<>0,SUMPRODUCT((AG$107:AG$108)*TRANSPOSE(($D110:$E110))),0) -> 0
A111: ="sens"&Assumptions!B46 -> sens2 | C111: =Assumptions!C46 -> Capex 10% lower | D111: =Assumptions!G46 -> -0.1 | E111: =Assumptions!H46 -> 0 | G111: =PROPER($A$3)&A111 -> Option 4sens2 | I111: =I$106+IF($C111<>0,SUMPRODUCT((I$107:I$108)*TRANSPOSE(($D111:$E111))),0) -> 0 | J111: =J$106+IF($C111<>0,SUMPRODUCT((J$107:J$108)*TRANSPOSE(($D111:$E111))),0) -> 0 | K111: =K$106+IF($C111<>0,SUMPRODUCT((K$107:K$108)*TRANSPOSE(($D111:$E111))),0) -> 0 | L111: =L$106+IF($C111<>0,SUMPRODUCT((L$107:L$108)*TRANSPOSE(($D111:$E111))),0) -> 0 | M111: =M$106+IF($C111<>0,SUMPRODUCT((M$107:M$108)*TRANSPOSE(($D111:$E111))),0) -> 0 | N111: =N$106+IF($C111<>0,SUMPRODUCT((N$107:N$108)*TRANSPOSE(($D111:$E111))),0) -> 0 | O111: =O$106+IF($C111<>0,SUMPRODUCT((O$107:O$108)*TRANSPOSE(($D111:$E111))),0) -> 0 | P111: =P$106+IF($C111<>0,SUMPRODUCT((P$107:P$108)*TRANSPOSE(($D111:$E111))),0) -> 0 | Q111: =Q$106+IF($C111<>0,SUMPRODUCT((Q$107:Q$108)*TRANSPOSE(($D111:$E111))),0) -> 0 | R111: =R$106+IF($C111<>0,SUMPRODUCT((R$107:R$108)*TRANSPOSE(($D111:$E111))),0) -> 0 | S111: =S$106+IF($C111<>0,SUMPRODUCT((S$107:S$108)*TRANSPOSE(($D111:$E111))),0) -> 0 | T111: =T$106+IF($C111<>0,SUMPRODUCT((T$107:T$108)*TRANSPOSE(($D111:$E111))),0) -> 0 | U111: =U$106+IF($C111<>0,SUMPRODUCT((U$107:U$108)*TRANSPOSE(($D111:$E111))),0) -> 0 | V111: =V$106+IF($C111<>0,SUMPRODUCT((V$107:V$108)*TRANSPOSE(($D111:$E111))),0) -> 0 | W111: =W$106+IF($C111<>0,SUMPRODUCT((W$107:W$108)*TRANSPOSE(($D111:$E111))),0) -> 0 | X111: =X$106+IF($C111<>0,SUMPRODUCT((X$107:X$108)*TRANSPOSE(($D111:$E111))),0) -> 0 | Y111: =Y$106+IF($C111<>0,SUMPRODUCT((Y$107:Y$108)*TRANSPOSE(($D111:$E111))),0) -> 0 | Z111: =Z$106+IF($C111<>0,SUMPRODUCT((Z$107:Z$108)*TRANSPOSE(($D111:$E111))),0) -> 0 | AA111: =AA$106+IF($C111<>0,SUMPRODUCT((AA$107:AA$108)*TRANSPOSE(($D111:$E111))),0) -> 0 | AB111: =AB$106+IF($C111<>0,SUMPRODUCT((AB$107:AB$108)*TRANSPOSE(($D111:$E111))),0) -> 0 | AC111: =AC$106+IF($C111<>0,SUMPRODUCT((AC$107:AC$108)*TRANSPOSE(($D111:$E111))),0) -> 0 | AD111: =AD$106+IF($C111<>0,SUMPRODUCT((AD$107:AD$108)*TRANSPOSE(($D111:$E111))),0) -> 0 | AE111: =AE$106+IF($C111<>0,SUMPRODUCT((AE$107:AE$108)*TRANSPOSE(($D111:$E111))),0) -> 0 | AF111: =AF$106+IF($C111<>0,SUMPRODUCT((AF$107:AF$108)*TRANSPOSE(($D111:$E111))),0) -> 0 | AG111: =AG$106+IF($C111<>0,SUMPRODUCT((AG$107:AG$108)*TRANSPOSE(($D111:$E111))),0) -> 0
A112: ="sens"&Assumptions!B47 -> sens3 | C112: =Assumptions!C47 -> Total benefits 10% higher | D112: =Assumptions!G47 -> 0 | E112: =Assumptions!H47 -> 0.1 | G112: Option 4sens3 | I112: =I$106+IF($C112<>0,SUMPRODUCT((I$107:I$108)*TRANSPOSE(($D112:$E112))),0) -> 0 | J112: =J$106+IF($C112<>0,SUMPRODUCT((J$107:J$108)*TRANSPOSE(($D112:$E112))),0) -> 0 | K112: =K$106+IF($C112<>0,SUMPRODUCT((K$107:K$108)*TRANSPOSE(($D112:$E112))),0) -> 0 | L112: =L$106+IF($C112<>0,SUMPRODUCT((L$107:L$108)*TRANSPOSE(($D112:$E112))),0) -> 0 | M112: =M$106+IF($C112<>0,SUMPRODUCT((M$107:M$108)*TRANSPOSE(($D112:$E112))),0) -> 0 | N112: =N$106+IF($C112<>0,SUMPRODUCT((N$107:N$108)*TRANSPOSE(($D112:$E112))),0) -> 0 | O112: =O$106+IF($C112<>0,SUMPRODUCT((O$107:O$108)*TRANSPOSE(($D112:$E112))),0) -> 0 | P112: =P$106+IF($C112<>0,SUMPRODUCT((P$107:P$108)*TRANSPOSE(($D112:$E112))),0) -> 0 | Q112: =Q$106+IF($C112<>0,SUMPRODUCT((Q$107:Q$108)*TRANSPOSE(($D112:$E112))),0) -> 0 | R112: =R$106+IF($C112<>0,SUMPRODUCT((R$107:R$108)*TRANSPOSE(($D112:$E112))),0) -> 0 | S112: =S$106+IF($C112<>0,SUMPRODUCT((S$107:S$108)*TRANSPOSE(($D112:$E112))),0) -> 0 | T112: =T$106+IF($C112<>0,SUMPRODUCT((T$107:T$108)*TRANSPOSE(($D112:$E112))),0) -> 0 | U112: =U$106+IF($C112<>0,SUMPRODUCT((U$107:U$108)*TRANSPOSE(($D112:$E112))),0) -> 0 | V112: =V$106+IF($C112<>0,SUMPRODUCT((V$107:V$108)*TRANSPOSE(($D112:$E112))),0) -> 0 | W112: =W$106+IF($C112<>0,SUMPRODUCT((W$107:W$108)*TRANSPOSE(($D112:$E112))),0) -> 0 | X112: =X$106+IF($C112<>0,SUMPRODUCT((X$107:X$108)*TRANSPOSE(($D112:$E112))),0) -> 0 | Y112: =Y$106+IF($C112<>0,SUMPRODUCT((Y$107:Y$108)*TRANSPOSE(($D112:$E112))),0) -> 0 | Z112: =Z$106+IF($C112<>0,SUMPRODUCT((Z$107:Z$108)*TRANSPOSE(($D112:$E112))),0) -> 0 | AA112: =AA$106+IF($C112<>0,SUMPRODUCT((AA$107:AA$108)*TRANSPOSE(($D112:$E112))),0) -> 0 | AB112: =AB$106+IF($C112<>0,SUMPRODUCT((AB$107:AB$108)*TRANSPOSE(($D112:$E112))),0) -> 0 | AC112: =AC$106+IF($C112<>0,SUMPRODUCT((AC$107:AC$108)*TRANSPOSE(($D112:$E112))),0) -> 0 | AD112: =AD$106+IF($C112<>0,SUMPRODUCT((AD$107:AD$108)*TRANSPOSE(($D112:$E112))),0) -> 0 | AE112: =AE$106+IF($C112<>0,SUMPRODUCT((AE$107:AE$108)*TRANSPOSE(($D112:$E112))),0) -> 0 | AF112: =AF$106+IF($C112<>0,SUMPRODUCT((AF$107:AF$108)*TRANSPOSE(($D112:$E112))),0) -> 0 | AG112: =AG$106+IF($C112<>0,SUMPRODUCT((AG$107:AG$108)*TRANSPOSE(($D112:$E112))),0) -> 0
A113: ="sens"&Assumptions!B48 -> sens4 | C113: =Assumptions!C48 -> Total benefits 10% lower | D113: =Assumptions!G48 -> 0 | E113: =Assumptions!H48 -> -0.1 | G113: Option 4sens4 | I113: =I$106+IF($C113<>0,SUMPRODUCT((I$107:I$108)*TRANSPOSE(($D113:$E113))),0) -> 0 | J113: =J$106+IF($C113<>0,SUMPRODUCT((J$107:J$108)*TRANSPOSE(($D113:$E113))),0) -> 0 | K113: =K$106+IF($C113<>0,SUMPRODUCT((K$107:K$108)*TRANSPOSE(($D113:$E113))),0) -> 0 | L113: =L$106+IF($C113<>0,SUMPRODUCT((L$107:L$108)*TRANSPOSE(($D113:$E113))),0) -> 0 | M113: =M$106+IF($C113<>0,SUMPRODUCT((M$107:M$108)*TRANSPOSE(($D113:$E113))),0) -> 0 | N113: =N$106+IF($C113<>0,SUMPRODUCT((N$107:N$108)*TRANSPOSE(($D113:$E113))),0) -> 0 | O113: =O$106+IF($C113<>0,SUMPRODUCT((O$107:O$108)*TRANSPOSE(($D113:$E113))),0) -> 0 | P113: =P$106+IF($C113<>0,SUMPRODUCT((P$107:P$108)*TRANSPOSE(($D113:$E113))),0) -> 0 | Q113: =Q$106+IF($C113<>0,SUMPRODUCT((Q$107:Q$108)*TRANSPOSE(($D113:$E113))),0) -> 0 | R113: =R$106+IF($C113<>0,SUMPRODUCT((R$107:R$108)*TRANSPOSE(($D113:$E113))),0) -> 0 | S113: =S$106+IF($C113<>0,SUMPRODUCT((S$107:S$108)*TRANSPOSE(($D113:$E113))),0) -> 0 | T113: =T$106+IF($C113<>0,SUMPRODUCT((T$107:T$108)*TRANSPOSE(($D113:$E113))),0) -> 0 | U113: =U$106+IF($C113<>0,SUMPRODUCT((U$107:U$108)*TRANSPOSE(($D113:$E113))),0) -> 0 | V113: =V$106+IF($C113<>0,SUMPRODUCT((V$107:V$108)*TRANSPOSE(($D113:$E113))),0) -> 0 | W113: =W$106+IF($C113<>0,SUMPRODUCT((W$107:W$108)*TRANSPOSE(($D113:$E113))),0) -> 0 | X113: =X$106+IF($C113<>0,SUMPRODUCT((X$107:X$108)*TRANSPOSE(($D113:$E113))),0) -> 0 | Y113: =Y$106+IF($C113<>0,SUMPRODUCT((Y$107:Y$108)*TRANSPOSE(($D113:$E113))),0) -> 0 | Z113: =Z$106+IF($C113<>0,SUMPRODUCT((Z$107:Z$108)*TRANSPOSE(($D113:$E113))),0) -> 0 | AA113: =AA$106+IF($C113<>0,SUMPRODUCT((AA$107:AA$108)*TRANSPOSE(($D113:$E113))),0) -> 0 | AB113: =AB$106+IF($C113<>0,SUMPRODUCT((AB$107:AB$108)*TRANSPOSE(($D113:$E113))),0) -> 0 | AC113: =AC$106+IF($C113<>0,SUMPRODUCT((AC$107:AC$108)*TRANSPOSE(($D113:$E113))),0) -> 0 | AD113: =AD$106+IF($C113<>0,SUMPRODUCT((AD$107:AD$108)*TRANSPOSE(($D113:$E113))),0) -> 0 | AE113: =AE$106+IF($C113<>0,SUMPRODUCT((AE$107:AE$108)*TRANSPOSE(($D113:$E113))),0) -> 0 | AF113: =AF$106+IF($C113<>0,SUMPRODUCT((AF$107:AF$108)*TRANSPOSE(($D113:$E113))),0) -> 0 | AG113: =AG$106+IF($C113<>0,SUMPRODUCT((AG$107:AG$108)*TRANSPOSE(($D113:$E113))),0) -> 0
A114: ="sens"&Assumptions!B49 -> sens5 | C114: =Assumptions!C49 -> Capex 10% higher & Total benefits 10% lower | D114: =Assumptions!G49 -> 0.1 | E114: =Assumptions!H49 -> -0.1 | G114: Option 4sens5 | I114: =I$106+IF($C114<>0,SUMPRODUCT((I$107:I$108)*TRANSPOSE(($D114:$E114))),0) -> 0 | J114: =J$106+IF($C114<>0,SUMPRODUCT((J$107:J$108)*TRANSPOSE(($D114:$E114))),0) -> 0 | K114: =K$106+IF($C114<>0,SUMPRODUCT((K$107:K$108)*TRANSPOSE(($D114:$E114))),0) -> 0 | L114: =L$106+IF($C114<>0,SUMPRODUCT((L$107:L$108)*TRANSPOSE(($D114:$E114))),0) -> 0 | M114: =M$106+IF($C114<>0,SUMPRODUCT((M$107:M$108)*TRANSPOSE(($D114:$E114))),0) -> 0 | N114: =N$106+IF($C114<>0,SUMPRODUCT((N$107:N$108)*TRANSPOSE(($D114:$E114))),0) -> 0 | O114: =O$106+IF($C114<>0,SUMPRODUCT((O$107:O$108)*TRANSPOSE(($D114:$E114))),0) -> 0 | P114: =P$106+IF($C114<>0,SUMPRODUCT((P$107:P$108)*TRANSPOSE(($D114:$E114))),0) -> 0 | Q114: =Q$106+IF($C114<>0,SUMPRODUCT((Q$107:Q$108)*TRANSPOSE(($D114:$E114))),0) -> 0 | R114: =R$106+IF($C114<>0,SUMPRODUCT((R$107:R$108)*TRANSPOSE(($D114:$E114))),0) -> 0 | S114: =S$106+IF($C114<>0,SUMPRODUCT((S$107:S$108)*TRANSPOSE(($D114:$E114))),0) -> 0 | T114: =T$106+IF($C114<>0,SUMPRODUCT((T$107:T$108)*TRANSPOSE(($D114:$E114))),0) -> 0 | U114: =U$106+IF($C114<>0,SUMPRODUCT((U$107:U$108)*TRANSPOSE(($D114:$E114))),0) -> 0 | V114: =V$106+IF($C114<>0,SUMPRODUCT((V$107:V$108)*TRANSPOSE(($D114:$E114))),0) -> 0 | W114: =W$106+IF($C114<>0,SUMPRODUCT((W$107:W$108)*TRANSPOSE(($D114:$E114))),0) -> 0 | X114: =X$106+IF($C114<>0,SUMPRODUCT((X$107:X$108)*TRANSPOSE(($D114:$E114))),0) -> 0 | Y114: =Y$106+IF($C114<>0,SUMPRODUCT((Y$107:Y$108)*TRANSPOSE(($D114:$E114))),0) -> 0 | Z114: =Z$106+IF($C114<>0,SUMPRODUCT((Z$107:Z$108)*TRANSPOSE(($D114:$E114))),0) -> 0 | AA114: =AA$106+IF($C114<>0,SUMPRODUCT((AA$107:AA$108)*TRANSPOSE(($D114:$E114))),0) -> 0 | AB114: =AB$106+IF($C114<>0,SUMPRODUCT((AB$107:AB$108)*TRANSPOSE(($D114:$E114))),0) -> 0 | AC114: =AC$106+IF($C114<>0,SUMPRODUCT((AC$107:AC$108)*TRANSPOSE(($D114:$E114))),0) -> 0 | AD114: =AD$106+IF($C114<>0,SUMPRODUCT((AD$107:AD$108)*TRANSPOSE(($D114:$E114))),0) -> 0 | AE114: =AE$106+IF($C114<>0,SUMPRODUCT((AE$107:AE$108)*TRANSPOSE(($D114:$E114))),0) -> 0 | AF114: =AF$106+IF($C114<>0,SUMPRODUCT((AF$107:AF$108)*TRANSPOSE(($D114:$E114))),0) -> 0 | AG114: =AG$106+IF($C114<>0,SUMPRODUCT((AG$107:AG$108)*TRANSPOSE(($D114:$E114))),0) -> 0
A115: ="sens"&Assumptions!B50 -> sens | C115: =Assumptions!C50 -> 0 | D115: =Assumptions!G50 -> 0 | E115: =Assumptions!H50 -> 0 | G115: Option 4sens | I115: =I$106+IF($C115<>0,SUMPRODUCT((I$107:I$108)*TRANSPOSE(($D115:$E115))),0) -> 0 | J115: =J$106+IF($C115<>0,SUMPRODUCT((J$107:J$108)*TRANSPOSE(($D115:$E115))),0) -> 0 | K115: =K$106+IF($C115<>0,SUMPRODUCT((K$107:K$108)*TRANSPOSE(($D115:$E115))),0) -> 0 | L115: =L$106+IF($C115<>0,SUMPRODUCT((L$107:L$108)*TRANSPOSE(($D115:$E115))),0) -> 0 | M115: =M$106+IF($C115<>0,SUMPRODUCT((M$107:M$108)*TRANSPOSE(($D115:$E115))),0) -> 0 | N115: =N$106+IF($C115<>0,SUMPRODUCT((N$107:N$108)*TRANSPOSE(($D115:$E115))),0) -> 0 | O115: =O$106+IF($C115<>0,SUMPRODUCT((O$107:O$108)*TRANSPOSE(($D115:$E115))),0) -> 0 | P115: =P$106+IF($C115<>0,SUMPRODUCT((P$107:P$108)*TRANSPOSE(($D115:$E115))),0) -> 0 | Q115: =Q$106+IF($C115<>0,SUMPRODUCT((Q$107:Q$108)*TRANSPOSE(($D115:$E115))),0) -> 0 | R115: =R$106+IF($C115<>0,SUMPRODUCT((R$107:R$108)*TRANSPOSE(($D115:$E115))),0) -> 0 | S115: =S$106+IF($C115<>0,SUMPRODUCT((S$107:S$108)*TRANSPOSE(($D115:$E115))),0) -> 0 | T115: =T$106+IF($C115<>0,SUMPRODUCT((T$107:T$108)*TRANSPOSE(($D115:$E115))),0) -> 0 | U115: =U$106+IF($C115<>0,SUMPRODUCT((U$107:U$108)*TRANSPOSE(($D115:$E115))),0) -> 0 | V115: =V$106+IF($C115<>0,SUMPRODUCT((V$107:V$108)*TRANSPOSE(($D115:$E115))),0) -> 0 | W115: =W$106+IF($C115<>0,SUMPRODUCT((W$107:W$108)*TRANSPOSE(($D115:$E115))),0) -> 0 | X115: =X$106+IF($C115<>0,SUMPRODUCT((X$107:X$108)*TRANSPOSE(($D115:$E115))),0) -> 0 | Y115: =Y$106+IF($C115<>0,SUMPRODUCT((Y$107:Y$108)*TRANSPOSE(($D115:$E115))),0) -> 0 | Z115: =Z$106+IF($C115<>0,SUMPRODUCT((Z$107:Z$108)*TRANSPOSE(($D115:$E115))),0) -> 0 | AA115: =AA$106+IF($C115<>0,SUMPRODUCT((AA$107:AA$108)*TRANSPOSE(($D115:$E115))),0) -> 0 | AB115: =AB$106+IF($C115<>0,SUMPRODUCT((AB$107:AB$108)*TRANSPOSE(($D115:$E115))),0) -> 0 | AC115: =AC$106+IF($C115<>0,SUMPRODUCT((AC$107:AC$108)*TRANSPOSE(($D115:$E115))),0) -> 0 | AD115: =AD$106+IF($C115<>0,SUMPRODUCT((AD$107:AD$108)*TRANSPOSE(($D115:$E115))),0) -> 0 | AE115: =AE$106+IF($C115<>0,SUMPRODUCT((AE$107:AE$108)*TRANSPOSE(($D115:$E115))),0) -> 0 | AF115: =AF$106+IF($C115<>0,SUMPRODUCT((AF$107:AF$108)*TRANSPOSE(($D115:$E115))),0) -> 0 | AG115: =AG$106+IF($C115<>0,SUMPRODUCT((AG$107:AG$108)*TRANSPOSE(($D115:$E115))),0) -> 0
A116: ="sens"&Assumptions!B51 -> sens | C116: =Assumptions!C51 -> 0 | D116: =Assumptions!G51 -> 0 | E116: =Assumptions!H51 -> 0 | G116: Option 4sens | I116: =I$106+IF($C116<>0,SUMPRODUCT((I$107:I$108)*TRANSPOSE(($D116:$E116))),0) -> 0 | J116: =J$106+IF($C116<>0,SUMPRODUCT((J$107:J$108)*TRANSPOSE(($D116:$E116))),0) -> 0 | K116: =K$106+IF($C116<>0,SUMPRODUCT((K$107:K$108)*TRANSPOSE(($D116:$E116))),0) -> 0 | L116: =L$106+IF($C116<>0,SUMPRODUCT((L$107:L$108)*TRANSPOSE(($D116:$E116))),0) -> 0 | M116: =M$106+IF($C116<>0,SUMPRODUCT((M$107:M$108)*TRANSPOSE(($D116:$E116))),0) -> 0 | N116: =N$106+IF($C116<>0,SUMPRODUCT((N$107:N$108)*TRANSPOSE(($D116:$E116))),0) -> 0 | O116: =O$106+IF($C116<>0,SUMPRODUCT((O$107:O$108)*TRANSPOSE(($D116:$E116))),0) -> 0 | P116: =P$106+IF($C116<>0,SUMPRODUCT((P$107:P$108)*TRANSPOSE(($D116:$E116))),0) -> 0 | Q116: =Q$106+IF($C116<>0,SUMPRODUCT((Q$107:Q$108)*TRANSPOSE(($D116:$E116))),0) -> 0 | R116: =R$106+IF($C116<>0,SUMPRODUCT((R$107:R$108)*TRANSPOSE(($D116:$E116))),0) -> 0 | S116: =S$106+IF($C116<>0,SUMPRODUCT((S$107:S$108)*TRANSPOSE(($D116:$E116))),0) -> 0 | T116: =T$106+IF($C116<>0,SUMPRODUCT((T$107:T$108)*TRANSPOSE(($D116:$E116))),0) -> 0 | U116: =U$106+IF($C116<>0,SUMPRODUCT((U$107:U$108)*TRANSPOSE(($D116:$E116))),0) -> 0 | V116: =V$106+IF($C116<>0,SUMPRODUCT((V$107:V$108)*TRANSPOSE(($D116:$E116))),0) -> 0 | W116: =W$106+IF($C116<>0,SUMPRODUCT((W$107:W$108)*TRANSPOSE(($D116:$E116))),0) -> 0 | X116: =X$106+IF($C116<>0,SUMPRODUCT((X$107:X$108)*TRANSPOSE(($D116:$E116))),0) -> 0 | Y116: =Y$106+IF($C116<>0,SUMPRODUCT((Y$107:Y$108)*TRANSPOSE(($D116:$E116))),0) -> 0 | Z116: =Z$106+IF($C116<>0,SUMPRODUCT((Z$107:Z$108)*TRANSPOSE(($D116:$E116))),0) -> 0 | AA116: =AA$106+IF($C116<>0,SUMPRODUCT((AA$107:AA$108)*TRANSPOSE(($D116:$E116))),0) -> 0 | AB116: =AB$106+IF($C116<>0,SUMPRODUCT((AB$107:AB$108)*TRANSPOSE(($D116:$E116))),0) -> 0 | AC116: =AC$106+IF($C116<>0,SUMPRODUCT((AC$107:AC$108)*TRANSPOSE(($D116:$E116))),0) -> 0 | AD116: =AD$106+IF($C116<>0,SUMPRODUCT((AD$107:AD$108)*TRANSPOSE(($D116:$E116))),0) -> 0 | AE116: =AE$106+IF($C116<>0,SUMPRODUCT((AE$107:AE$108)*TRANSPOSE(($D116:$E116))),0) -> 0 | AF116: =AF$106+IF($C116<>0,SUMPRODUCT((AF$107:AF$108)*TRANSPOSE(($D116:$E116))),0) -> 0 | AG116: =AG$106+IF($C116<>0,SUMPRODUCT((AG$107:AG$108)*TRANSPOSE(($D116:$E116))),0) -> 0
A117: ="sens"&Assumptions!B52 -> sens | C117: =Assumptions!C52 -> 0 | D117: =Assumptions!G52 -> 0 | E117: =Assumptions!H52 -> 0 | G117: Option 4sens | I117: =I$106+IF($C117<>0,SUMPRODUCT((I$107:I$108)*TRANSPOSE(($D117:$E117))),0) -> 0 | J117: =J$106+IF($C117<>0,SUMPRODUCT((J$107:J$108)*TRANSPOSE(($D117:$E117))),0) -> 0 | K117: =K$106+IF($C117<>0,SUMPRODUCT((K$107:K$108)*TRANSPOSE(($D117:$E117))),0) -> 0 | L117: =L$106+IF($C117<>0,SUMPRODUCT((L$107:L$108)*TRANSPOSE(($D117:$E117))),0) -> 0 | M117: =M$106+IF($C117<>0,SUMPRODUCT((M$107:M$108)*TRANSPOSE(($D117:$E117))),0) -> 0 | N117: =N$106+IF($C117<>0,SUMPRODUCT((N$107:N$108)*TRANSPOSE(($D117:$E117))),0) -> 0 | O117: =O$106+IF($C117<>0,SUMPRODUCT((O$107:O$108)*TRANSPOSE(($D117:$E117))),0) -> 0 | P117: =P$106+IF($C117<>0,SUMPRODUCT((P$107:P$108)*TRANSPOSE(($D117:$E117))),0) -> 0 | Q117: =Q$106+IF($C117<>0,SUMPRODUCT((Q$107:Q$108)*TRANSPOSE(($D117:$E117))),0) -> 0 | R117: =R$106+IF($C117<>0,SUMPRODUCT((R$107:R$108)*TRANSPOSE(($D117:$E117))),0) -> 0 | S117: =S$106+IF($C117<>0,SUMPRODUCT((S$107:S$108)*TRANSPOSE(($D117:$E117))),0) -> 0 | T117: =T$106+IF($C117<>0,SUMPRODUCT((T$107:T$108)*TRANSPOSE(($D117:$E117))),0) -> 0 | U117: =U$106+IF($C117<>0,SUMPRODUCT((U$107:U$108)*TRANSPOSE(($D117:$E117))),0) -> 0 | V117: =V$106+IF($C117<>0,SUMPRODUCT((V$107:V$108)*TRANSPOSE(($D117:$E117))),0) -> 0 | W117: =W$106+IF($C117<>0,SUMPRODUCT((W$107:W$108)*TRANSPOSE(($D117:$E117))),0) -> 0 | X117: =X$106+IF($C117<>0,SUMPRODUCT((X$107:X$108)*TRANSPOSE(($D117:$E117))),0) -> 0 | Y117: =Y$106+IF($C117<>0,SUMPRODUCT((Y$107:Y$108)*TRANSPOSE(($D117:$E117))),0) -> 0 | Z117: =Z$106+IF($C117<>0,SUMPRODUCT((Z$107:Z$108)*TRANSPOSE(($D117:$E117))),0) -> 0 | AA117: =AA$106+IF($C117<>0,SUMPRODUCT((AA$107:AA$108)*TRANSPOSE(($D117:$E117))),0) -> 0 | AB117: =AB$106+IF($C117<>0,SUMPRODUCT((AB$107:AB$108)*TRANSPOSE(($D117:$E117))),0) -> 0 | AC117: =AC$106+IF($C117<>0,SUMPRODUCT((AC$107:AC$108)*TRANSPOSE(($D117:$E117))),0) -> 0 | AD117: =AD$106+IF($C117<>0,SUMPRODUCT((AD$107:AD$108)*TRANSPOSE(($D117:$E117))),0) -> 0 | AE117: =AE$106+IF($C117<>0,SUMPRODUCT((AE$107:AE$108)*TRANSPOSE(($D117:$E117))),0) -> 0 | AF117: =AF$106+IF($C117<>0,SUMPRODUCT((AF$107:AF$108)*TRANSPOSE(($D117:$E117))),0) -> 0 | AG117: =AG$106+IF($C117<>0,SUMPRODUCT((AG$107:AG$108)*TRANSPOSE(($D117:$E117))),0) -> 0

Sheet Option5
A1: =bus -> Powercor
A2: =proj -> Regional and rural supply upgrades
A3: OPTION 5 | C3: =INDEX(Assumptions!$E$14:$E$18, MATCH(A3,_xlfn.ANCHORARRAY( Assumptions!$C$14),0)) -> 0
A4: =(INDEX(Data!$D$9:$D$13, MATCH(A3, options,0))) -> Not used
A6: ='Option1 (base case)'!A6 -> Count | I6: ='Option1 (base case)'!I6 -> 1 | J6: ='Option1 (base case)'!J6 -> 2 | K6: ='Option1 (base case)'!K6 -> 3 | L6: ='Option1 (base case)'!L6 -> 4 | M6: ='Option1 (base case)'!M6 -> 5 | N6: ='Option1 (base case)'!N6 -> 6 | O6: ='Option1 (base case)'!O6 -> 7 | P6: ='Option1 (base case)'!P6 -> 8 | Q6: ='Option1 (base case)'!Q6 -> 9 | R6: ='Option1 (base case)'!R6 -> 10 | S6: ='Option1 (base case)'!S6 -> 11 | T6: ='Option1 (base case)'!T6 -> 12 | U6: ='Option1 (base case)'!U6 -> 13 | V6: ='Option1 (base case)'!V6 -> 14 | W6: ='Option1 (base case)'!W6 -> 15 | X6: ='Option1 (base case)'!X6 -> 16 | Y6: ='Option1 (base case)'!Y6 -> 17 | Z6: ='Option1 (base case)'!Z6 -> 18 | AA6: ='Option1 (base case)'!AA6 -> 19 | AB6: ='Option1 (base case)'!AB6 -> 20 | AC6: ='Option1 (base case)'!AC6 -> 21 | AD6: ='Option1 (base case)'!AD6 -> 22 | AE6: ='Option1 (base case)'!AE6 -> 23 | AF6: ='Option1 (base case)'!AF6 -> 24 | AG6: ='Option1 (base case)'!AG6 -> 25
A7: ='Option1 (base case)'!A7 -> Value of CO2 reductions | G7: $/MWh | I7: ='Option1 (base case)'!I7 ->  | J7: ='Option1 (base case)'!J7 ->  | K7: ='Option1 (base case)'!K7 ->  | L7: ='Option1 (base case)'!L7 ->  | M7: ='Option1 (base case)'!M7 ->  | N7: ='Option1 (base case)'!N7 ->  | O7: ='Option1 (base case)'!O7 ->  | P7: ='Option1 (base case)'!P7 ->  | Q7: ='Option1 (base case)'!Q7 ->  | R7: ='Option1 (base case)'!R7 ->  | S7: ='Option1 (base case)'!S7 ->  | T7: ='Option1 (base case)'!T7 ->  | U7: ='Option1 (base case)'!U7 ->  | V7: ='Option1 (base case)'!V7 ->  | W7: ='Option1 (base case)'!W7 ->  | X7: ='Option1 (base case)'!X7 ->  | Y7: ='Option1 (base case)'!Y7 ->  | Z7: ='Option1 (base case)'!Z7 ->  | AA7: ='Option1 (base case)'!AA7 ->  | AB7: ='Option1 (base case)'!AB7 ->  | AC7: ='Option1 (base case)'!AC7 ->  | AD7: ='Option1 (base case)'!AD7 ->  | AE7: ='Option1 (base case)'!AE7 ->  | AF7: ='Option1 (base case)'!AF7 ->  | AG7: ='Option1 (base case)'!AG7 -> 
G9: Units | I9: ='Option1 (base case)'!I9 -> 2026-27 | J9: ='Option1 (base case)'!J9 -> 2027-28 | K9: ='Option1 (base case)'!K9 -> 2028-29 | L9: ='Option1 (base case)'!L9 -> 2029-30 | M9: ='Option1 (base case)'!M9 -> 2030-31 | N9: ='Option1 (base case)'!N9 -> 2031-32 | O9: ='Option1 (base case)'!O9 -> 2032-33 | P9: ='Option1 (base case)'!P9 -> 2033-34 | Q9: ='Option1 (base case)'!Q9 -> 2034-35 | R9: ='Option1 (base case)'!R9 -> 2035-36 | S9: ='Option1 (base case)'!S9 -> 2036-37 | T9: ='Option1 (base case)'!T9 -> 2037-38 | U9: ='Option1 (base case)'!U9 -> 2038-39 | V9: ='Option1 (base case)'!V9 -> 2039-40 | W9: ='Option1 (base case)'!W9 -> 2040-41 | X9: ='Option1 (base case)'!X9 -> 2041-42 | Y9: ='Option1 (base case)'!Y9 -> 2042-43 | Z9: ='Option1 (base case)'!Z9 -> 2043-44 | AA9: ='Option1 (base case)'!AA9 -> 2044-45 | AB9: ='Option1 (base case)'!AB9 -> 2045-46 | AC9: ='Option1 (base case)'!AC9 -> 2046-47 | AD9: ='Option1 (base case)'!AD9 -> 2047-48 | AE9: ='Option1 (base case)'!AE9 -> 2048-49 | AF9: ='Option1 (base case)'!AF9 -> 2049-50 | AG9: ='Option1 (base case)'!AG9 -> 2050-51
A11: INVESTMENT & OPERATING COST
C13: Capex | E13: Asset life (yrs)
C14: < Enter description > | E14: 0 | G14: =input_dollars -> 2023-12-31 | I14: 0 | J14: 0 | K14: 0 | L14: 0 | M14: 0 | N14: 0 | O14: 0 | P14: 0 | Q14: 0 | R14: 0 | S14: 0 | T14: 0 | U14: 0 | V14: 0 | W14: 0 | X14: 0 | Y14: 0 | Z14: 0 | AA14: 0 | AB14: 0 | AC14: 0 | AD14: 0 | AE14: 0 | AF14: 0 | AG14: 0
C15: < Enter description > | E15: 0 | G15: =input_dollars -> 2023-12-31 | I15: 0 | J15: 0 | K15: 0 | L15: 0 | M15: 0 | N15: 0 | O15: 0 | P15: 0 | Q15: 0 | R15: 0 | S15: 0 | T15: 0 | U15: 0 | V15: 0 | W15: 0 | X15: 0 | Y15: 0 | Z15: 0 | AA15: 0 | AB15: 0 | AC15: 0 | AD15: 0 | AE15: 0 | AF15: 0 | AG15: 0
C16: < Enter description > | E16: 0 | G16: =input_dollars -> 2023-12-31 | I16: 0 | J16: 0 | K16: 0 | L16: 0 | M16: 0 | N16: 0 | O16: 0 | P16: 0 | Q16: 0 | R16: 0 | S16: 0 | T16: 0 | U16: 0 | V16: 0 | W16: 0 | X16: 0 | Y16: 0 | Z16: 0 | AA16: 0 | AB16: 0 | AC16: 0 | AD16: 0 | AE16: 0 | AF16: 0 | AG16: 0
C17: Capital expenditure | G17: =input_dollars -> 2023-12-31 | I17: =SUM(I14:I16) -> 0 | J17: 0 | K17: =SUM(K14:K16) -> 0 | L17: 0 | M17: 0 | N17: 0 | O17: 0 | P17: 0 | Q17: 0 | R17: =SUM(R14:R16) -> 0 | S17: 0 | T17: 0 | U17: 0 | V17: 0 | W17: 0 | X17: 0 | Y17: 0 | Z17: 0 | AA17: 0 | AB17: 0 | AC17: 0 | AD17: 0 | AE17: 0 | AF17: 0 | AG17: 0
C19: Operating expenditure | G19: =input_dollars -> 2023-12-31 | I19: 0 | J19: 0 | K19: 0 | L19: 0 | M19: 0 | N19: 0 | O19: 0 | P19: 0 | Q19: 0 | R19: 0 | S19: 0 | T19: 0 | U19: 0 | V19: 0 | W19: 0 | X19: 0 | Y19: 0 | Z19: 0 | AA19: 0 | AB19: 0 | AC19: 0 | AD19: 0 | AE19: 0 | AF19: 0 | AG19: 0
A22: RISK ASSUMPTIONS
C24: PoF (major) | I24: 0 | J24: 0 | K24: 0 | L24: 0 | M24: 0 | N24: 0 | O24: 0 | P24: 0 | Q24: 0 | R24: 0 | S24: 0 | T24: 0 | U24: 0 | V24: 0 | W24: 0 | X24: 0 | Y24: 0 | Z24: 0 | AA24: 0 | AB24: 0 | AC24: 0 | AD24: 0 | AE24: 0 | AF24: 0 | AG24: 0
C25: PoF (reparable) | I25: 0 | J25: 0 | K25: 0 | L25: 0 | M25: 0 | N25: 0 | O25: 0 | P25: 0 | Q25: 0 | R25: 0 | S25: 0 | T25: 0 | U25: 0 | V25: 0 | W25: 0 | X25: 0 | Y25: 0 | Z25: 0 | AA25: 0 | AB25: 0 | AC25: 0 | AD25: 0 | AE25: 0 | AF25: 0 | AG25: 0
C27: Energy at risk (weighted) | G27: MWh | I27: 0 | J27: 0 | K27: 0 | L27: 0 | M27: 0 | N27: 0 | O27: 0 | P27: 0 | Q27: 0 | R27: 0 | S27: 0 | T27: 0 | U27: 0 | V27: 0 | W27: 0 | X27: 0 | Y27: 0 | Z27: 0 | AA27: 0 | AB27: 0 | AC27: 0 | AD27: 0 | AE27: 0 | AF27: 0 | AG27: 0
C28: Energy at risk value | D28: $/MWh | F28: =IF(AND(SUM(I27:AG27)<>0, E28=0), "!", "") ->  | G28: =input_dollars -> 2023-12-31 | I28: =I27*$E$28 -> 0 | J28: =J27*$E$28 -> 0 | K28: 0 | L28: 0 | M28: 0 | N28: 0 | O28: 0 | P28: 0 | Q28: 0 | R28: 0 | S28: 0 | T28: 0 | U28: 0 | V28: 0 | W28: 0 | X28: 0 | Y28: 0 | Z28: 0 | AA28: 0 | AB28: 0 | AC28: 0 | AD28: 0 | AE28: 0 | AF28: 0 | AG28: 0
C30: Safety consequence | D30: (after DF) | G30: =input_dollars -> 2023-12-31 | I30: 0 | J30: 0 | K30: 0 | L30: 0 | M30: 0 | N30: 0 | O30: 0 | P30: 0 | Q30: 0 | R30: 0 | S30: 0 | T30: 0 | U30: 0 | V30: 0 | W30: 0 | X30: 0 | Y30: 0 | Z30: 0 | AA30: 0 | AB30: 0 | AC30: 0 | AD30: 0 | AE30: 0 | AF30: 0 | AG30: 0
C31: Unplanned replacements | G31: =input_dollars -> 2023-12-31 | I31: 0 | J31: 0 | K31: 0 | L31: 0 | M31: 0 | N31: 0 | O31: 0 | P31: 0 | Q31: 0 | R31: 0 | S31: 0 | T31: 0 | U31: 0 | V31: 0 | W31: 0 | X31: 0 | Y31: 0 | Z31: 0 | AA31: 0 | AB31: 0 | AC31: 0 | AD31: 0 | AE31: 0 | AF31: 0 | AG31: 0
C32: Environmental consequence | D32: (after DF) | G32: =input_dollars -> 2023-12-31 | I32: 0 | J32: 0 | K32: 0 | L32: 0 | M32: 0 | N32: 0 | O32: 0 | P32: 0 | Q32: 0 | R32: 0 | S32: 0 | T32: 0 | U32: 0 | V32: 0 | W32: 0 | X32: 0 | Y32: 0 | Z32: 0 | AA32: 0 | AB32: 0 | AC32: 0 | AD32: 0 | AE32: 0 | AF32: 0 | AG32: 0
C33: < Other risk - enter description > | G33: =input_dollars -> 2023-12-31 | I33: 0 | J33: 0 | K33: 0 | L33: 0 | M33: 0 | N33: 0 | O33: 0 | P33: 0 | Q33: 0 | R33: 0 | S33: 0 | T33: 0 | U33: 0 | V33: 0 | W33: 0 | X33: 0 | Y33: 0 | Z33: 0 | AA33: 0 | AB33: 0 | AC33: 0 | AD33: 0 | AE33: 0 | AF33: 0 | AG33: 0
C34: < Other risk - enter description > | G34: =input_dollars -> 2023-12-31 | I34: 0 | J34: 0 | K34: 0 | L34: 0 | M34: 0 | N34: 0 | O34: 0 | P34: 0 | Q34: 0 | R34: 0 | S34: 0 | T34: 0 | U34: 0 | V34: 0 | W34: 0 | X34: 0 | Y34: 0 | Z34: 0 | AA34: 0 | AB34: 0 | AC34: 0 | AD34: 0 | AE34: 0 | AF34: 0 | AG34: 0
C36: Total risk cost | I36: =SUM(I28:I34) -> 0 | J36: =SUM(J28:J34) -> 0 | K36: 0 | L36: 0 | M36: 0 | N36: 0 | O36: 0 | P36: 0 | Q36: 0 | R36: 0 | S36: 0 | T36: 0 | U36: 0 | V36: 0 | W36: 0 | X36: 0 | Y36: 0 | Z36: 0 | AA36: 0 | AB36: 0 | AC36: 0 | AD36: 0 | AE36: 0 | AF36: 0 | AG36: 0
A38: OTHER BENEFITS
C41: Reduction in CO2 emissions | G41: MWh | I41: 0 | J41: 0 | K41: 0 | L41: 0 | M41: 0 | N41: 0 | O41: 0 | P41: 0 | Q41: 0 | R41: 0 | S41: 0 | T41: 0 | U41: 0 | V41: 0 | W41: 0 | X41: 0 | Y41: 0 | Z41: 0 | AA41: 0 | AB41: 0 | AC41: 0 | AD41: 0 | AE41: 0 | AF41: 0 | AG41: 0
C42: Value of reduction in CO2 emissions | G42: $ | I42: 0 | J42: 0 | K42: 0 | L42: 0 | M42: 0 | N42: 0 | O42: 0 | P42: 0 | Q42: 0 | R42: 0 | S42: 0 | T42: 0 | U42: 0 | V42: 0 | W42: 0 | X42: 0 | Y42: 0 | Z42: 0 | AA42: 0 | AB42: 0 | AC42: 0 | AD42: 0 | AE42: 0 | AF42: 0 | AG42: 0
C45: Reliability in worst-served areas | D45: $/MWh | E45: 0 | G45: MWh | I45: 0 | J45: 0 | K45: 0 | L45: 0 | M45: 0 | N45: 0 | O45: 0 | P45: 0 | Q45: 0 | R45: 0 | S45: 0 | T45: 0 | U45: 0 | V45: 0 | W45: 0 | X45: 0 | Y45: 0 | Z45: 0 | AA45: 0 | AB45: 0 | AC45: 0 | AD45: 0 | AE45: 0 | AF45: 0 | AG45: 0
C46: Network resilience | D46: $/MWh | E46: 0 | G46: MWh | I46: 0 | J46: 0 | K46: 0 | L46: 0 | M46: 0 | N46: 0 | O46: 0 | P46: 0 | Q46: 0 | R46: 0 | S46: 0 | T46: 0 | U46: 0 | V46: 0 | W46: 0 | X46: 0 | Y46: 0 | Z46: 0 | AA46: 0 | AB46: 0 | AC46: 0 | AD46: 0 | AE46: 0 | AF46: 0 | AG46: 0
C47: Enabling solar exports | D47: $/MWh | E47: 0 | G47: MWh | I47: 0 | J47: 0 | K47: 0 | L47: 0 | M47: 0 | N47: 0 | O47: 0 | P47: 0 | Q47: 0 | R47: 0 | S47: 0 | T47: 0 | U47: 0 | V47: 0 | W47: 0 | X47: 0 | Y47: 0 | Z47: 0 | AA47: 0 | AB47: 0 | AC47: 0 | AD47: 0 | AE47: 0 | AF47: 0 | AG47: 0
C48: Aesthetics | D48: $/customer | E48: 0 | G48: customers | I48: 0 | J48: 0 | K48: 0 | L48: 0 | M48: 0 | N48: 0 | O48: 0 | P48: 0 | Q48: 0 | R48: 0 | S48: 0 | T48: 0 | U48: 0 | V48: 0 | W48: 0 | X48: 0 | Y48: 0 | Z48: 0 | AA48: 0 | AB48: 0 | AC48: 0 | AD48: 0 | AE48: 0 | AF48: 0 | AG48: 0
C49: Customer value of time (res) | D49: $/customer min | E49: 0 | G49: mins | I49: 0 | J49: 0 | K49: 0 | L49: 0 | M49: 0 | N49: 0 | O49: 0 | P49: 0 | Q49: 0 | R49: 0 | S49: 0 | T49: 0 | U49: 0 | V49: 0 | W49: 0 | X49: 0 | Y49: 0 | Z49: 0 | AA49: 0 | AB49: 0 | AC49: 0 | AD49: 0 | AE49: 0 | AF49: 0 | AG49: 0
C50: Customer value of time (bus) | D50: $/customer min | E50: 0 | G50: mins | I50: 0 | J50: 0 | K50: 0 | L50: 0 | M50: 0 | N50: 0 | O50: 0 | P50: 0 | Q50: 0 | R50: 0 | S50: 0 | T50: 0 | U50: 0 | V50: 0 | W50: 0 | X50: 0 | Y50: 0 | Z50: 0 | AA50: 0 | AB50: 0 | AC50: 0 | AD50: 0 | AE50: 0 | AF50: 0 | AG50: 0
C51: Communication | D51: $/customer | E51: 0 | G51: customers | I51: 0 | J51: 0 | K51: 0 | L51: 0 | M51: 0 | N51: 0 | O51: 0 | P51: 0 | Q51: 0 | R51: 0 | S51: 0 | T51: 0 | U51: 0 | V51: 0 | W51: 0 | X51: 0 | Y51: 0 | Z51: 0 | AA51: 0 | AB51: 0 | AC51: 0 | AD51: 0 | AE51: 0 | AF51: 0 | AG51: 0
C52: Information accessibility | D52: $/customer | E52: 0 | G52: customers | I52: 0 | J52: 0 | K52: 0 | L52: 0 | M52: 0 | N52: 0 | O52: 0 | P52: 0 | Q52: 0 | R52: 0 | S52: 0 | T52: 0 | U52: 0 | V52: 0 | W52: 0 | X52: 0 | Y52: 0 | Z52: 0 | AA52: 0 | AB52: 0 | AC52: 0 | AD52: 0 | AE52: 0 | AF52: 0 | AG52: 0
C54: Other benefits 1 | G54: =input_dollars -> 2023-12-31 | I54: 0 | J54: 0 | K54: 0 | L54: 0 | M54: 0 | N54: 0 | O54: 0 | P54: 0 | Q54: 0 | R54: 0 | S54: 0 | T54: 0 | U54: 0 | V54: 0 | W54: 0 | X54: 0 | Y54: 0 | Z54: 0 | AA54: 0 | AB54: 0 | AC54: 0 | AD54: 0 | AE54: 0 | AF54: 0 | AG54: 0
C55: Other benefits 2 | G55: =input_dollars -> 2023-12-31 | I55: 0 | J55: 0 | K55: 0 | L55: 0 | M55: 0 | N55: 0 | O55: 0 | P55: 0 | Q55: 0 | R55: 0 | S55: 0 | T55: 0 | U55: 0 | V55: 0 | W55: 0 | X55: 0 | Y55: 0 | Z55: 0 | AA55: 0 | AB55: 0 | AC55: 0 | AD55: 0 | AE55: 0 | AF55: 0 | AG55: 0
C57: Total other benefits | G57: =input_dollars -> 2023-12-31 | I57: =SUMPRODUCT((I$45:I$52)*($E$45:$E$52))+SUM(I54:I55)+I42 -> 0 | J57: =SUMPRODUCT((J$45:J$52)*($E$45:$E$52))+SUM(J54:J55)+J42 -> 0 | K57: =SUMPRODUCT((K$45:K$52)*($E$45:$E$52))+SUM(K54:K55)+K42 -> 0 | L57: =SUMPRODUCT((L$45:L$52)*($E$45:$E$52))+SUM(L54:L55)+L42 -> 0 | M57: =SUMPRODUCT((M$45:M$52)*($E$45:$E$52))+SUM(M54:M55)+M42 -> 0 | N57: =SUMPRODUCT((N$45:N$52)*($E$45:$E$52))+SUM(N54:N55)+N42 -> 0 | O57: =SUMPRODUCT((O$45:O$52)*($E$45:$E$52))+SUM(O54:O55)+O42 -> 0 | P57: =SUMPRODUCT((P$45:P$52)*($E$45:$E$52))+SUM(P54:P55)+P42 -> 0 | Q57: =SUMPRODUCT((Q$45:Q$52)*($E$45:$E$52))+SUM(Q54:Q55)+Q42 -> 0 | R57: =SUMPRODUCT((R$45:R$52)*($E$45:$E$52))+SUM(R54:R55)+R42 -> 0 | S57: =SUMPRODUCT((S$45:S$52)*($E$45:$E$52))+SUM(S54:S55)+S42 -> 0 | T57: =SUMPRODUCT((T$45:T$52)*($E$45:$E$52))+SUM(T54:T55)+T42 -> 0 | U57: =SUMPRODUCT((U$45:U$52)*($E$45:$E$52))+SUM(U54:U55)+U42 -> 0 | V57: =SUMPRODUCT((V$45:V$52)*($E$45:$E$52))+SUM(V54:V55)+V42 -> 0 | W57: =SUMPRODUCT((W$45:W$52)*($E$45:$E$52))+SUM(W54:W55)+W42 -> 0 | X57: =SUMPRODUCT((X$45:X$52)*($E$45:$E$52))+SUM(X54:X55)+X42 -> 0 | Y57: =SUMPRODUCT((Y$45:Y$52)*($E$45:$E$52))+SUM(Y54:Y55)+Y42 -> 0 | Z57: =SUMPRODUCT((Z$45:Z$52)*($E$45:$E$52))+SUM(Z54:Z55)+Z42 -> 0 | AA57: =SUMPRODUCT((AA$45:AA$52)*($E$45:$E$52))+SUM(AA54:AA55)+AA42 -> 0 | AB57: =SUMPRODUCT((AB$45:AB$52)*($E$45:$E$52))+SUM(AB54:AB55)+AB42 -> 0 | AC57: =SUMPRODUCT((AC$45:AC$52)*($E$45:$E$52))+SUM(AC54:AC55)+AC42 -> 0 | AD57: =SUMPRODUCT((AD$45:AD$52)*($E$45:$E$52))+SUM(AD54:AD55)+AD42 -> 0 | AE57: =SUMPRODUCT((AE$45:AE$52)*($E$45:$E$52))+SUM(AE54:AE55)+AE42 -> 0 | AF57: =SUMPRODUCT((AF$45:AF$52)*($E$45:$E$52))+SUM(AF54:AF55)+AF42 -> 0 | AG57: =SUMPRODUCT((AG$45:AG$52)*($E$45:$E$52))+SUM(AG54:AG55)+AG42 -> 0
A60: SUMMARY
C64: ='Option1 (base case)'!C64 -> Risks mitigated vs base case | G64: =input_dollars -> 2023-12-31 | I64: =(1-INDEX(Data!$C$9:$C$13, MATCH($A$3, options,0)))*('Option1 (base case)'!I36-I36) -> 0 | J64: =(1-INDEX(Data!$C$9:$C$13, MATCH($A$3, options,0)))*('Option1 (base case)'!J36-J36) -> 0 | K64: =(1-INDEX(Data!$C$9:$C$13, MATCH($A$3, options,0)))*('Option1 (base case)'!K36-K36) -> 0 | L64: =(1-INDEX(Data!$C$9:$C$13, MATCH($A$3, options,0)))*('Option1 (base case)'!L36-L36) -> 0 | M64: =(1-INDEX(Data!$C$9:$C$13, MATCH($A$3, options,0)))*('Option1 (base case)'!M36-M36) -> 0 | N64: =(1-INDEX(Data!$C$9:$C$13, MATCH($A$3, options,0)))*('Option1 (base case)'!N36-N36) -> 0 | O64: =(1-INDEX(Data!$C$9:$C$13, MATCH($A$3, options,0)))*('Option1 (base case)'!O36-O36) -> 0 | P64: =(1-INDEX(Data!$C$9:$C$13, MATCH($A$3, options,0)))*('Option1 (base case)'!P36-P36) -> 0 | Q64: =(1-INDEX(Data!$C$9:$C$13, MATCH($A$3, options,0)))*('Option1 (base case)'!Q36-Q36) -> 0 | R64: =(1-INDEX(Data!$C$9:$C$13, MATCH($A$3, options,0)))*('Option1 (base case)'!R36-R36) -> 0 | S64: =(1-INDEX(Data!$C$9:$C$13, MATCH($A$3, options,0)))*('Option1 (base case)'!S36-S36) -> 0 | T64: =(1-INDEX(Data!$C$9:$C$13, MATCH($A$3, options,0)))*('Option1 (base case)'!T36-T36) -> 0 | U64: =(1-INDEX(Data!$C$9:$C$13, MATCH($A$3, options,0)))*('Option1 (base case)'!U36-U36) -> 0 | V64: =(1-INDEX(Data!$C$9:$C$13, MATCH($A$3, options,0)))*('Option1 (base case)'!V36-V36) -> 0 | W64: =(1-INDEX(Data!$C$9:$C$13, MATCH($A$3, options,0)))*('Option1 (base case)'!W36-W36) -> 0 | X64: =(1-INDEX(Data!$C$9:$C$13, MATCH($A$3, options,0)))*('Option1 (base case)'!X36-X36) -> 0 | Y64: =(1-INDEX(Data!$C$9:$C$13, MATCH($A$3, options,0)))*('Option1 (base case)'!Y36-Y36) -> 0 | Z64: =(1-INDEX(Data!$C$9:$C$13, MATCH($A$3, options,0)))*('Option1 (base case)'!Z36-Z36) -> 0 | AA64: =(1-INDEX(Data!$C$9:$C$13, MATCH($A$3, options,0)))*('Option1 (base case)'!AA36-AA36) -> 0 | AB64: =(1-INDEX(Data!$C$9:$C$13, MATCH($A$3, options,0)))*('Option1 (base case)'!AB36-AB36) -> 0 | AC64: =(1-INDEX(Data!$C$9:$C$13, MATCH($A$3, options,0)))*('Option1 (base case)'!AC36-AC36) -> 0 | AD64: =(1-INDEX(Data!$C$9:$C$13, MATCH($A$3, options,0)))*('Option1 (base case)'!AD36-AD36) -> 0 | AE64: =(1-INDEX(Data!$C$9:$C$13, MATCH($A$3, options,0)))*('Option1 (base case)'!AE36-AE36) -> 0 | AF64: =(1-INDEX(Data!$C$9:$C$13, MATCH($A$3, options,0)))*('Option1 (base case)'!AF36-AF36) -> 0 | AG64: =(1-INDEX(Data!$C$9:$C$13, MATCH($A$3, options,0)))*('Option1 (base case)'!AG36-AG36) -> 0
C66: Capital expenditure
C67: =C14 -> < Enter description > | G67: =input_dollars -> 2023-12-31 | I67: =-I14 -> 0 | J67: 0 | K67: 0 | L67: 0 | M67: 0 | N67: 0 | O67: 0 | P67: 0 | Q67: 0 | R67: 0 | S67: 0 | T67: 0 | U67: 0 | V67: 0 | W67: 0 | X67: 0 | Y67: 0 | Z67: 0 | AA67: 0 | AB67: 0 | AC67: 0 | AD67: 0 | AE67: 0 | AF67: 0 | AG67: 0
C68: =C15 -> < Enter description > | G68: =input_dollars -> 2023-12-31 | I68: =-I15 -> 0 | J68: 0 | K68: 0 | L68: 0 | M68: 0 | N68: 0 | O68: 0 | P68: 0 | Q68: 0 | R68: 0 | S68: 0 | T68: 0 | U68: 0 | V68: 0 | W68: 0 | X68: 0 | Y68: 0 | Z68: 0 | AA68: 0 | AB68: 0 | AC68: 0 | AD68: 0 | AE68: 0 | AF68: 0 | AG68: 0
C69: =C16 -> < Enter description > | G69: =input_dollars -> 2023-12-31 | I69: =-I16 -> 0 | J69: 0 | K69: 0 | L69: 0 | M69: 0 | N69: 0 | O69: 0 | P69: 0 | Q69: 0 | R69: 0 | S69: 0 | T69: 0 | U69: 0 | V69: 0 | W69: 0 | X69: 0 | Y69: 0 | Z69: 0 | AA69: 0 | AB69: 0 | AC69: 0 | AD69: 0 | AE69: 0 | AF69: 0 | AG69: 0
C71: Cumulative capex
C72: =C14 -> < Enter description > | G72: =input_dollars -> 2023-12-31 | I72: =SUMPRODUCT(($I67:I67))-SUMPRODUCT(($I67:I67)*($I$6:I$6<=(I$6-$E14))) -> 0 | J72: =SUMPRODUCT(($I67:J67))-SUMPRODUCT(($I67:J67)*($I$6:J$6<=(J$6-$E14))) -> 0 | K72: =SUMPRODUCT(($I67:K67))-SUMPRODUCT(($I67:K67)*($I$6:K$6<=(K$6-$E14))) -> 0 | L72: =SUMPRODUCT(($I67:L67))-SUMPRODUCT(($I67:L67)*($I$6:L$6<=(L$6-$E14))) -> 0 | M72: =SUMPRODUCT(($I67:M67))-SUMPRODUCT(($I67:M67)*($I$6:M$6<=(M$6-$E14))) -> 0 | N72: =SUMPRODUCT(($I67:N67))-SUMPRODUCT(($I67:N67)*($I$6:N$6<=(N$6-$E14))) -> 0 | O72: =SUMPRODUCT(($I67:O67))-SUMPRODUCT(($I67:O67)*($I$6:O$6<=(O$6-$E14))) -> 0 | P72: =SUMPRODUCT(($I67:P67))-SUMPRODUCT(($I67:P67)*($I$6:P$6<=(P$6-$E14))) -> 0 | Q72: =SUMPRODUCT(($I67:Q67))-SUMPRODUCT(($I67:Q67)*($I$6:Q$6<=(Q$6-$E14))) -> 0 | R72: =SUMPRODUCT(($I67:R67))-SUMPRODUCT(($I67:R67)*($I$6:R$6<=(R$6-$E14))) -> 0 | S72: =SUMPRODUCT(($I67:S67))-SUMPRODUCT(($I67:S67)*($I$6:S$6<=(S$6-$E14))) -> 0 | T72: =SUMPRODUCT(($I67:T67))-SUMPRODUCT(($I67:T67)*($I$6:T$6<=(T$6-$E14))) -> 0 | U72: =SUMPRODUCT(($I67:U67))-SUMPRODUCT(($I67:U67)*($I$6:U$6<=(U$6-$E14))) -> 0 | V72: =SUMPRODUCT(($I67:V67))-SUMPRODUCT(($I67:V67)*($I$6:V$6<=(V$6-$E14))) -> 0 | W72: =SUMPRODUCT(($I67:W67))-SUMPRODUCT(($I67:W67)*($I$6:W$6<=(W$6-$E14))) -> 0 | X72: =SUMPRODUCT(($I67:X67))-SUMPRODUCT(($I67:X67)*($I$6:X$6<=(X$6-$E14))) -> 0 | Y72: =SUMPRODUCT(($I67:Y67))-SUMPRODUCT(($I67:Y67)*($I$6:Y$6<=(Y$6-$E14))) -> 0 | Z72: =SUMPRODUCT(($I67:Z67))-SUMPRODUCT(($I67:Z67)*($I$6:Z$6<=(Z$6-$E14))) -> 0 | AA72: =SUMPRODUCT(($I67:AA67))-SUMPRODUCT(($I67:AA67)*($I$6:AA$6<=(AA$6-$E14))) -> 0 | AB72: =SUMPRODUCT(($I67:AB67))-SUMPRODUCT(($I67:AB67)*($I$6:AB$6<=(AB$6-$E14))) -> 0 | AC72: =SUMPRODUCT(($I67:AC67))-SUMPRODUCT(($I67:AC67)*($I$6:AC$6<=(AC$6-$E14))) -> 0 | AD72: =SUMPRODUCT(($I67:AD67))-SUMPRODUCT(($I67:AD67)*($I$6:AD$6<=(AD$6-$E14))) -> 0 | AE72: =SUMPRODUCT(($I67:AE67))-SUMPRODUCT(($I67:AE67)*($I$6:AE$6<=(AE$6-$E14))) -> 0 | AF72: =SUMPRODUCT(($I67:AF67))-SUMPRODUCT(($I67:AF67)*($I$6:AF$6<=(AF$6-$E14))) -> 0 | AG72: =SUMPRODUCT(($I67:AG67))-SUMPRODUCT(($I67:AG67)*($I$6:AG$6<=(AG$6-$E14))) -> 0
C73: =C15 -> < Enter description > | G73: =input_dollars -> 2023-12-31 | I73: =SUMPRODUCT(($I68:I68))-SUMPRODUCT(($I68:I68)*($I$6:I$6<=(I$6-$E15))) -> 0 | J73: =SUMPRODUCT(($I68:J68))-SUMPRODUCT(($I68:J68)*($I$6:J$6<=(J$6-$E15))) -> 0 | K73: =SUMPRODUCT(($I68:K68))-SUMPRODUCT(($I68:K68)*($I$6:K$6<=(K$6-$E15))) -> 0 | L73: =SUMPRODUCT(($I68:L68))-SUMPRODUCT(($I68:L68)*($I$6:L$6<=(L$6-$E15))) -> 0 | M73: =SUMPRODUCT(($I68:M68))-SUMPRODUCT(($I68:M68)*($I$6:M$6<=(M$6-$E15))) -> 0 | N73: =SUMPRODUCT(($I68:N68))-SUMPRODUCT(($I68:N68)*($I$6:N$6<=(N$6-$E15))) -> 0 | O73: =SUMPRODUCT(($I68:O68))-SUMPRODUCT(($I68:O68)*($I$6:O$6<=(O$6-$E15))) -> 0 | P73: =SUMPRODUCT(($I68:P68))-SUMPRODUCT(($I68:P68)*($I$6:P$6<=(P$6-$E15))) -> 0 | Q73: =SUMPRODUCT(($I68:Q68))-SUMPRODUCT(($I68:Q68)*($I$6:Q$6<=(Q$6-$E15))) -> 0 | R73: =SUMPRODUCT(($I68:R68))-SUMPRODUCT(($I68:R68)*($I$6:R$6<=(R$6-$E15))) -> 0 | S73: =SUMPRODUCT(($I68:S68))-SUMPRODUCT(($I68:S68)*($I$6:S$6<=(S$6-$E15))) -> 0 | T73: =SUMPRODUCT(($I68:T68))-SUMPRODUCT(($I68:T68)*($I$6:T$6<=(T$6-$E15))) -> 0 | U73: =SUMPRODUCT(($I68:U68))-SUMPRODUCT(($I68:U68)*($I$6:U$6<=(U$6-$E15))) -> 0 | V73: =SUMPRODUCT(($I68:V68))-SUMPRODUCT(($I68:V68)*($I$6:V$6<=(V$6-$E15))) -> 0 | W73: =SUMPRODUCT(($I68:W68))-SUMPRODUCT(($I68:W68)*($I$6:W$6<=(W$6-$E15))) -> 0 | X73: =SUMPRODUCT(($I68:X68))-SUMPRODUCT(($I68:X68)*($I$6:X$6<=(X$6-$E15))) -> 0 | Y73: =SUMPRODUCT(($I68:Y68))-SUMPRODUCT(($I68:Y68)*($I$6:Y$6<=(Y$6-$E15))) -> 0 | Z73: =SUMPRODUCT(($I68:Z68))-SUMPRODUCT(($I68:Z68)*($I$6:Z$6<=(Z$6-$E15))) -> 0 | AA73: =SUMPRODUCT(($I68:AA68))-SUMPRODUCT(($I68:AA68)*($I$6:AA$6<=(AA$6-$E15))) -> 0 | AB73: =SUMPRODUCT(($I68:AB68))-SUMPRODUCT(($I68:AB68)*($I$6:AB$6<=(AB$6-$E15))) -> 0 | AC73: =SUMPRODUCT(($I68:AC68))-SUMPRODUCT(($I68:AC68)*($I$6:AC$6<=(AC$6-$E15))) -> 0 | AD73: =SUMPRODUCT(($I68:AD68))-SUMPRODUCT(($I68:AD68)*($I$6:AD$6<=(AD$6-$E15))) -> 0 | AE73: =SUMPRODUCT(($I68:AE68))-SUMPRODUCT(($I68:AE68)*($I$6:AE$6<=(AE$6-$E15))) -> 0 | AF73: =SUMPRODUCT(($I68:AF68))-SUMPRODUCT(($I68:AF68)*($I$6:AF$6<=(AF$6-$E15))) -> 0 | AG73: =SUMPRODUCT(($I68:AG68))-SUMPRODUCT(($I68:AG68)*($I$6:AG$6<=(AG$6-$E15))) -> 0
C74: =C16 -> < Enter description > | G74: =input_dollars -> 2023-12-31 | I74: =SUMPRODUCT(($I69:I69))-SUMPRODUCT(($I69:I69)*($I$6:I$6<=(I$6-$E16))) -> 0 | J74: =SUMPRODUCT(($I69:J69))-SUMPRODUCT(($I69:J69)*($I$6:J$6<=(J$6-$E16))) -> 0 | K74: =SUMPRODUCT(($I69:K69))-SUMPRODUCT(($I69:K69)*($I$6:K$6<=(K$6-$E16))) -> 0 | L74: =SUMPRODUCT(($I69:L69))-SUMPRODUCT(($I69:L69)*($I$6:L$6<=(L$6-$E16))) -> 0 | M74: =SUMPRODUCT(($I69:M69))-SUMPRODUCT(($I69:M69)*($I$6:M$6<=(M$6-$E16))) -> 0 | N74: =SUMPRODUCT(($I69:N69))-SUMPRODUCT(($I69:N69)*($I$6:N$6<=(N$6-$E16))) -> 0 | O74: =SUMPRODUCT(($I69:O69))-SUMPRODUCT(($I69:O69)*($I$6:O$6<=(O$6-$E16))) -> 0 | P74: =SUMPRODUCT(($I69:P69))-SUMPRODUCT(($I69:P69)*($I$6:P$6<=(P$6-$E16))) -> 0 | Q74: =SUMPRODUCT(($I69:Q69))-SUMPRODUCT(($I69:Q69)*($I$6:Q$6<=(Q$6-$E16))) -> 0 | R74: =SUMPRODUCT(($I69:R69))-SUMPRODUCT(($I69:R69)*($I$6:R$6<=(R$6-$E16))) -> 0 | S74: =SUMPRODUCT(($I69:S69))-SUMPRODUCT(($I69:S69)*($I$6:S$6<=(S$6-$E16))) -> 0 | T74: =SUMPRODUCT(($I69:T69))-SUMPRODUCT(($I69:T69)*($I$6:T$6<=(T$6-$E16))) -> 0 | U74: =SUMPRODUCT(($I69:U69))-SUMPRODUCT(($I69:U69)*($I$6:U$6<=(U$6-$E16))) -> 0 | V74: =SUMPRODUCT(($I69:V69))-SUMPRODUCT(($I69:V69)*($I$6:V$6<=(V$6-$E16))) -> 0 | W74: =SUMPRODUCT(($I69:W69))-SUMPRODUCT(($I69:W69)*($I$6:W$6<=(W$6-$E16))) -> 0 | X74: =SUMPRODUCT(($I69:X69))-SUMPRODUCT(($I69:X69)*($I$6:X$6<=(X$6-$E16))) -> 0 | Y74: =SUMPRODUCT(($I69:Y69))-SUMPRODUCT(($I69:Y69)*($I$6:Y$6<=(Y$6-$E16))) -> 0 | Z74: =SUMPRODUCT(($I69:Z69))-SUMPRODUCT(($I69:Z69)*($I$6:Z$6<=(Z$6-$E16))) -> 0 | AA74: =SUMPRODUCT(($I69:AA69))-SUMPRODUCT(($I69:AA69)*($I$6:AA$6<=(AA$6-$E16))) -> 0 | AB74: =SUMPRODUCT(($I69:AB69))-SUMPRODUCT(($I69:AB69)*($I$6:AB$6<=(AB$6-$E16))) -> 0 | AC74: =SUMPRODUCT(($I69:AC69))-SUMPRODUCT(($I69:AC69)*($I$6:AC$6<=(AC$6-$E16))) -> 0 | AD74: =SUMPRODUCT(($I69:AD69))-SUMPRODUCT(($I69:AD69)*($I$6:AD$6<=(AD$6-$E16))) -> 0 | AE74: =SUMPRODUCT(($I69:AE69))-SUMPRODUCT(($I69:AE69)*($I$6:AE$6<=(AE$6-$E16))) -> 0 | AF74: =SUMPRODUCT(($I69:AF69))-SUMPRODUCT(($I69:AF69)*($I$6:AF$6<=(AF$6-$E16))) -> 0 | AG74: =SUMPRODUCT(($I69:AG69))-SUMPRODUCT(($I69:AG69)*($I$6:AG$6<=(AG$6-$E16))) -> 0
C76: Annualised capex
C77: =$C$76&" - "&C14 -> Annualised capex - < Enter description > | G77: =input_dollars -> 2023-12-31 | I77: =IF($E14=0,0,-PMT(real_disc, $E14,H72,)) -> 0 | J77: 0 | K77: 0 | L77: 0 | M77: 0 | N77: 0 | O77: 0 | P77: 0 | Q77: 0 | R77: 0 | S77: 0 | T77: 0 | U77: 0 | V77: 0 | W77: 0 | X77: 0 | Y77: 0 | Z77: 0 | AA77: 0 | AB77: 0 | AC77: 0 | AD77: 0 | AE77: 0 | AF77: 0 | AG77: 0
C78: =$C$76&" - "&C15 -> Annualised capex - < Enter description > | G78: =input_dollars -> 2023-12-31 | I78: =IF($E15=0,0,-PMT(real_disc, $E15,H73,)) -> 0 | J78: 0 | K78: 0 | L78: 0 | M78: 0 | N78: 0 | O78: 0 | P78: 0 | Q78: 0 | R78: 0 | S78: 0 | T78: 0 | U78: 0 | V78: 0 | W78: 0 | X78: 0 | Y78: 0 | Z78: 0 | AA78: 0 | AB78: 0 | AC78: 0 | AD78: 0 | AE78: 0 | AF78: 0 | AG78: 0
C79: =$C$76&" - "&C16 -> Annualised capex - < Enter description > | G79: =input_dollars -> 2023-12-31 | I79: =IF($E16=0,0,-PMT(real_disc, $E16,H74,)) -> 0 | J79: 0 | K79: 0 | L79: 0 | M79: 0 | N79: 0 | O79: 0 | P79: 0 | Q79: 0 | R79: 0 | S79: 0 | T79: 0 | U79: 0 | V79: 0 | W79: 0 | X79: 0 | Y79: 0 | Z79: 0 | AA79: 0 | AB79: 0 | AC79: 0 | AD79: 0 | AE79: 0 | AF79: 0 | AG79: 0
C80: Total annualised capex | G80: =input_dollars -> 2023-12-31 | I80: =SUM(I77:I79) -> 0 | J80: =SUM(J77:J79) -> 0 | K80: 0 | L80: 0 | M80: 0 | N80: 0 | O80: 0 | P80: 0 | Q80: 0 | R80: 0 | S80: 0 | T80: 0 | U80: 0 | V80: 0 | W80: 0 | X80: 0 | Y80: 0 | Z80: 0 | AA80: 0 | AB80: 0 | AC80: =SUM(AC77:AC79) -> 0 | AD80: =SUM(AD77:AD79) -> 0 | AE80: =SUM(AE77:AE79) -> 0 | AF80: =SUM(AF77:AF79) -> 0 | AG80: =SUM(AG77:AG79) -> 0
C82: Annualised capex | G82: =input_dollars -> 2023-12-31 | I82: =I80 -> 0 | J82: =J80 -> 0 | K82: 0 | L82: 0 | M82: 0 | N82: 0 | O82: 0 | P82: 0 | Q82: 0 | R82: 0 | S82: 0 | T82: 0 | U82: 0 | V82: 0 | W82: 0 | X82: 0 | Y82: 0 | Z82: 0 | AA82: 0 | AB82: 0 | AC82: =AC80 -> 0 | AD82: =AD80 -> 0 | AE82: =AE80 -> 0 | AF82: =AF80 -> 0 | AG82: =AG80 -> 0
C83: Operating expenditure | G83: 2023-12-31 | I83: =-I19 -> 0 | J83: 0 | K83: 0 | L83: 0 | M83: 0 | N83: 0 | O83: 0 | P83: 0 | Q83: 0 | R83: 0 | S83: 0 | T83: 0 | U83: 0 | V83: 0 | W83: 0 | X83: 0 | Y83: 0 | Z83: 0 | AA83: 0 | AB83: 0 | AC83: 0 | AD83: 0 | AE83: 0 | AF83: 0 | AG83: 0
C84: Risk mitigated | G84: 2023-12-31 | I84: =I64 -> 0 | J84: =J64 -> 0 | K84: 0 | L84: 0 | M84: 0 | N84: 0 | O84: 0 | P84: 0 | Q84: 0 | R84: 0 | S84: 0 | T84: 0 | U84: 0 | V84: 0 | W84: 0 | X84: 0 | Y84: 0 | Z84: 0 | AA84: 0 | AB84: 0 | AC84: =AC64 -> 0 | AD84: =AD64 -> 0 | AE84: =AE64 -> 0 | AF84: =AF64 -> 0 | AG84: =AG64 -> 0
C85: Other benefits value | G85: 2023-12-31 | I85: =I57 -> 0 | J85: 0 | K85: 0 | L85: 0 | M85: 0 | N85: 0 | O85: 0 | P85: 0 | Q85: 0 | R85: 0 | S85: 0 | T85: 0 | U85: 0 | V85: 0 | W85: 0 | X85: 0 | Y85: 0 | Z85: 0 | AA85: 0 | AB85: 0 | AC85: 0 | AD85: 0 | AE85: 0 | AF85: 0 | AG85: 0
C87: Net benefits | G87: 2023-12-31 | I87: =SUM(I82:I86) -> 0 | J87: 0 | K87: 0 | L87: 0 | M87: 0 | N87: 0 | O87: 0 | P87: 0 | Q87: 0 | R87: 0 | S87: 0 | T87: 0 | U87: 0 | V87: 0 | W87: 0 | X87: 0 | Y87: 0 | Z87: 0 | AA87: 0 | AB87: 0 | AC87: =SUM(AC82:AC86) -> 0 | AD87: =SUM(AD82:AD86) -> 0 | AE87: =SUM(AE82:AE86) -> 0 | AF87: =SUM(AF82:AF86) -> 0 | AG87: =SUM(AG82:AG86) -> 0
C90: First capex year | G90: =IF(SUM($I17:$AG17)=0,0,(INDEX(I$6:AG$6,MATCH(TRUE,INDEX($I17:$AG17<>0,),0)))) -> 0
C92: First year | G92: =IF(_xlfn.MINIFS($G$90:$G$91, $G$90:$G$91, ">"&0)=0, $A$4, _xlfn.MINIFS($G$90:$G$91, $G$90:$G$91, ">"&0)) -> Not used
A102: SENSITIVITIES
A106: NPV | C106: Net benefits | G106: =PROPER($A$3)&A106 -> Option 5NPV | I106: =I87 -> 0 | J106: =J87 -> 0 | K106: 0 | L106: 0 | M106: 0 | N106: 0 | O106: 0 | P106: 0 | Q106: 0 | R106: 0 | S106: 0 | T106: 0 | U106: 0 | V106: 0 | W106: 0 | X106: 0 | Y106: 0 | Z106: 0 | AA106: 0 | AB106: 0 | AC106: 0 | AD106: 0 | AE106: 0 | AF106: 0 | AG106: 0
C107: Total annualised capex | I107: =I82 -> 0 | J107: =J82 -> 0 | K107: 0 | L107: 0 | M107: 0 | N107: 0 | O107: 0 | P107: 0 | Q107: 0 | R107: 0 | S107: 0 | T107: 0 | U107: 0 | V107: 0 | W107: 0 | X107: 0 | Y107: 0 | Z107: 0 | AA107: 0 | AB107: 0 | AC107: 0 | AD107: 0 | AE107: 0 | AF107: 0 | AG107: 0
C108: Total benefits | I108: =SUM(I84:I85) -> 0 | J108: =SUM(J84:J85) -> 0 | K108: 0 | L108: 0 | M108: 0 | N108: 0 | O108: 0 | P108: 0 | Q108: 0 | R108: 0 | S108: 0 | T108: 0 | U108: 0 | V108: 0 | W108: 0 | X108: 0 | Y108: 0 | Z108: 0 | AA108: 0 | AB108: 0 | AC108: 0 | AD108: 0 | AE108: 0 | AF108: 0 | AG108: 0
D109: =Assumptions!G44 -> Capex | E109: =Assumptions!H44 -> Total benefits
A110: ="sens"&Assumptions!B45 -> sens1 | C110: =Assumptions!C45 -> Capex 10% higher | D110: =Assumptions!G45 -> 0.1 | E110: =Assumptions!H45 -> 0 | G110: =PROPER($A$3)&A110 -> Option 5sens1 | I110: =I$106+IF($C110<>0,SUMPRODUCT((I$107:I$108)*TRANSPOSE(($D110:$E110))),0) -> 0 | J110: =J$106+IF($C110<>0,SUMPRODUCT((J$107:J$108)*TRANSPOSE(($D110:$E110))),0) -> 0 | K110: =K$106+IF($C110<>0,SUMPRODUCT((K$107:K$108)*TRANSPOSE(($D110:$E110))),0) -> 0 | L110: =L$106+IF($C110<>0,SUMPRODUCT((L$107:L$108)*TRANSPOSE(($D110:$E110))),0) -> 0 | M110: =M$106+IF($C110<>0,SUMPRODUCT((M$107:M$108)*TRANSPOSE(($D110:$E110))),0) -> 0 | N110: =N$106+IF($C110<>0,SUMPRODUCT((N$107:N$108)*TRANSPOSE(($D110:$E110))),0) -> 0 | O110: =O$106+IF($C110<>0,SUMPRODUCT((O$107:O$108)*TRANSPOSE(($D110:$E110))),0) -> 0 | P110: =P$106+IF($C110<>0,SUMPRODUCT((P$107:P$108)*TRANSPOSE(($D110:$E110))),0) -> 0 | Q110: =Q$106+IF($C110<>0,SUMPRODUCT((Q$107:Q$108)*TRANSPOSE(($D110:$E110))),0) -> 0 | R110: =R$106+IF($C110<>0,SUMPRODUCT((R$107:R$108)*TRANSPOSE(($D110:$E110))),0) -> 0 | S110: =S$106+IF($C110<>0,SUMPRODUCT((S$107:S$108)*TRANSPOSE(($D110:$E110))),0) -> 0 | T110: =T$106+IF($C110<>0,SUMPRODUCT((T$107:T$108)*TRANSPOSE(($D110:$E110))),0) -> 0 | U110: =U$106+IF($C110<>0,SUMPRODUCT((U$107:U$108)*TRANSPOSE(($D110:$E110))),0) -> 0 | V110: =V$106+IF($C110<>0,SUMPRODUCT((V$107:V$108)*TRANSPOSE(($D110:$E110))),0) -> 0 | W110: =W$106+IF($C110<>0,SUMPRODUCT((W$107:W$108)*TRANSPOSE(($D110:$E110))),0) -> 0 | X110: =X$106+IF($C110<>0,SUMPRODUCT((X$107:X$108)*TRANSPOSE(($D110:$E110))),0) -> 0 | Y110: =Y$106+IF($C110<>0,SUMPRODUCT((Y$107:Y$108)*TRANSPOSE(($D110:$E110))),0) -> 0 | Z110: =Z$106+IF($C110<>0,SUMPRODUCT((Z$107:Z$108)*TRANSPOSE(($D110:$E110))),0) -> 0 | AA110: =AA$106+IF($C110<>0,SUMPRODUCT((AA$107:AA$108)*TRANSPOSE(($D110:$E110))),0) -> 0 | AB110: =AB$106+IF($C110<>0,SUMPRODUCT((AB$107:AB$108)*TRANSPOSE(($D110:$E110))),0) -> 0 | AC110: =AC$106+IF($C110<>0,SUMPRODUCT((AC$107:AC$108)*TRANSPOSE(($D110:$E110))),0) -> 0 | AD110: =AD$106+IF($C110<>0,SUMPRODUCT((AD$107:AD$108)*TRANSPOSE(($D110:$E110))),0) -> 0 | AE110: =AE$106+IF($C110<>0,SUMPRODUCT((AE$107:AE$108)*TRANSPOSE(($D110:$E110))),0) -> 0 | AF110: =AF$106+IF($C110<>0,SUMPRODUCT((AF$107:AF$108)*TRANSPOSE(($D110:$E110))),0) -> 0 | AG110: =AG$106+IF($C110<>0,SUMPRODUCT((AG$107:AG$108)*TRANSPOSE(($D110:$E110))),0) -> 0
A111: ="sens"&Assumptions!B46 -> sens2 | C111: =Assumptions!C46 -> Capex 10% lower | D111: =Assumptions!G46 -> -0.1 | E111: =Assumptions!H46 -> 0 | G111: =PROPER($A$3)&A111 -> Option 5sens2 | I111: =I$106+IF($C111<>0,SUMPRODUCT((I$107:I$108)*TRANSPOSE(($D111:$E111))),0) -> 0 | J111: =J$106+IF($C111<>0,SUMPRODUCT((J$107:J$108)*TRANSPOSE(($D111:$E111))),0) -> 0 | K111: =K$106+IF($C111<>0,SUMPRODUCT((K$107:K$108)*TRANSPOSE(($D111:$E111))),0) -> 0 | L111: =L$106+IF($C111<>0,SUMPRODUCT((L$107:L$108)*TRANSPOSE(($D111:$E111))),0) -> 0 | M111: =M$106+IF($C111<>0,SUMPRODUCT((M$107:M$108)*TRANSPOSE(($D111:$E111))),0) -> 0 | N111: =N$106+IF($C111<>0,SUMPRODUCT((N$107:N$108)*TRANSPOSE(($D111:$E111))),0) -> 0 | O111: =O$106+IF($C111<>0,SUMPRODUCT((O$107:O$108)*TRANSPOSE(($D111:$E111))),0) -> 0 | P111: =P$106+IF($C111<>0,SUMPRODUCT((P$107:P$108)*TRANSPOSE(($D111:$E111))),0) -> 0 | Q111: =Q$106+IF($C111<>0,SUMPRODUCT((Q$107:Q$108)*TRANSPOSE(($D111:$E111))),0) -> 0 | R111: =R$106+IF($C111<>0,SUMPRODUCT((R$107:R$108)*TRANSPOSE(($D111:$E111))),0) -> 0 | S111: =S$106+IF($C111<>0,SUMPRODUCT((S$107:S$108)*TRANSPOSE(($D111:$E111))),0) -> 0 | T111: =T$106+IF($C111<>0,SUMPRODUCT((T$107:T$108)*TRANSPOSE(($D111:$E111))),0) -> 0 | U111: =U$106+IF($C111<>0,SUMPRODUCT((U$107:U$108)*TRANSPOSE(($D111:$E111))),0) -> 0 | V111: =V$106+IF($C111<>0,SUMPRODUCT((V$107:V$108)*TRANSPOSE(($D111:$E111))),0) -> 0 | W111: =W$106+IF($C111<>0,SUMPRODUCT((W$107:W$108)*TRANSPOSE(($D111:$E111))),0) -> 0 | X111: =X$106+IF($C111<>0,SUMPRODUCT((X$107:X$108)*TRANSPOSE(($D111:$E111))),0) -> 0 | Y111: =Y$106+IF($C111<>0,SUMPRODUCT((Y$107:Y$108)*TRANSPOSE(($D111:$E111))),0) -> 0 | Z111: =Z$106+IF($C111<>0,SUMPRODUCT((Z$107:Z$108)*TRANSPOSE(($D111:$E111))),0) -> 0 | AA111: =AA$106+IF($C111<>0,SUMPRODUCT((AA$107:AA$108)*TRANSPOSE(($D111:$E111))),0) -> 0 | AB111: =AB$106+IF($C111<>0,SUMPRODUCT((AB$107:AB$108)*TRANSPOSE(($D111:$E111))),0) -> 0 | AC111: =AC$106+IF($C111<>0,SUMPRODUCT((AC$107:AC$108)*TRANSPOSE(($D111:$E111))),0) -> 0 | AD111: =AD$106+IF($C111<>0,SUMPRODUCT((AD$107:AD$108)*TRANSPOSE(($D111:$E111))),0) -> 0 | AE111: =AE$106+IF($C111<>0,SUMPRODUCT((AE$107:AE$108)*TRANSPOSE(($D111:$E111))),0) -> 0 | AF111: =AF$106+IF($C111<>0,SUMPRODUCT((AF$107:AF$108)*TRANSPOSE(($D111:$E111))),0) -> 0 | AG111: =AG$106+IF($C111<>0,SUMPRODUCT((AG$107:AG$108)*TRANSPOSE(($D111:$E111))),0) -> 0
A112: ="sens"&Assumptions!B47 -> sens3 | C112: =Assumptions!C47 -> Total benefits 10% higher | D112: =Assumptions!G47 -> 0 | E112: =Assumptions!H47 -> 0.1 | G112: Option 5sens3 | I112: =I$106+IF($C112<>0,SUMPRODUCT((I$107:I$108)*TRANSPOSE(($D112:$E112))),0) -> 0 | J112: =J$106+IF($C112<>0,SUMPRODUCT((J$107:J$108)*TRANSPOSE(($D112:$E112))),0) -> 0 | K112: =K$106+IF($C112<>0,SUMPRODUCT((K$107:K$108)*TRANSPOSE(($D112:$E112))),0) -> 0 | L112: =L$106+IF($C112<>0,SUMPRODUCT((L$107:L$108)*TRANSPOSE(($D112:$E112))),0) -> 0 | M112: =M$106+IF($C112<>0,SUMPRODUCT((M$107:M$108)*TRANSPOSE(($D112:$E112))),0) -> 0 | N112: =N$106+IF($C112<>0,SUMPRODUCT((N$107:N$108)*TRANSPOSE(($D112:$E112))),0) -> 0 | O112: =O$106+IF($C112<>0,SUMPRODUCT((O$107:O$108)*TRANSPOSE(($D112:$E112))),0) -> 0 | P112: =P$106+IF($C112<>0,SUMPRODUCT((P$107:P$108)*TRANSPOSE(($D112:$E112))),0) -> 0 | Q112: =Q$106+IF($C112<>0,SUMPRODUCT((Q$107:Q$108)*TRANSPOSE(($D112:$E112))),0) -> 0 | R112: =R$106+IF($C112<>0,SUMPRODUCT((R$107:R$108)*TRANSPOSE(($D112:$E112))),0) -> 0 | S112: =S$106+IF($C112<>0,SUMPRODUCT((S$107:S$108)*TRANSPOSE(($D112:$E112))),0) -> 0 | T112: =T$106+IF($C112<>0,SUMPRODUCT((T$107:T$108)*TRANSPOSE(($D112:$E112))),0) -> 0 | U112: =U$106+IF($C112<>0,SUMPRODUCT((U$107:U$108)*TRANSPOSE(($D112:$E112))),0) -> 0 | V112: =V$106+IF($C112<>0,SUMPRODUCT((V$107:V$108)*TRANSPOSE(($D112:$E112))),0) -> 0 | W112: =W$106+IF($C112<>0,SUMPRODUCT((W$107:W$108)*TRANSPOSE(($D112:$E112))),0) -> 0 | X112: =X$106+IF($C112<>0,SUMPRODUCT((X$107:X$108)*TRANSPOSE(($D112:$E112))),0) -> 0 | Y112: =Y$106+IF($C112<>0,SUMPRODUCT((Y$107:Y$108)*TRANSPOSE(($D112:$E112))),0) -> 0 | Z112: =Z$106+IF($C112<>0,SUMPRODUCT((Z$107:Z$108)*TRANSPOSE(($D112:$E112))),0) -> 0 | AA112: =AA$106+IF($C112<>0,SUMPRODUCT((AA$107:AA$108)*TRANSPOSE(($D112:$E112))),0) -> 0 | AB112: =AB$106+IF($C112<>0,SUMPRODUCT((AB$107:AB$108)*TRANSPOSE(($D112:$E112))),0) -> 0 | AC112: =AC$106+IF($C112<>0,SUMPRODUCT((AC$107:AC$108)*TRANSPOSE(($D112:$E112))),0) -> 0 | AD112: =AD$106+IF($C112<>0,SUMPRODUCT((AD$107:AD$108)*TRANSPOSE(($D112:$E112))),0) -> 0 | AE112: =AE$106+IF($C112<>0,SUMPRODUCT((AE$107:AE$108)*TRANSPOSE(($D112:$E112))),0) -> 0 | AF112: =AF$106+IF($C112<>0,SUMPRODUCT((AF$107:AF$108)*TRANSPOSE(($D112:$E112))),0) -> 0 | AG112: =AG$106+IF($C112<>0,SUMPRODUCT((AG$107:AG$108)*TRANSPOSE(($D112:$E112))),0) -> 0
A113: ="sens"&Assumptions!B48 -> sens4 | C113: =Assumptions!C48 -> Total benefits 10% lower | D113: =Assumptions!G48 -> 0 | E113: =Assumptions!H48 -> -0.1 | G113: Option 5sens4 | I113: =I$106+IF($C113<>0,SUMPRODUCT((I$107:I$108)*TRANSPOSE(($D113:$E113))),0) -> 0 | J113: =J$106+IF($C113<>0,SUMPRODUCT((J$107:J$108)*TRANSPOSE(($D113:$E113))),0) -> 0 | K113: =K$106+IF($C113<>0,SUMPRODUCT((K$107:K$108)*TRANSPOSE(($D113:$E113))),0) -> 0 | L113: =L$106+IF($C113<>0,SUMPRODUCT((L$107:L$108)*TRANSPOSE(($D113:$E113))),0) -> 0 | M113: =M$106+IF($C113<>0,SUMPRODUCT((M$107:M$108)*TRANSPOSE(($D113:$E113))),0) -> 0 | N113: =N$106+IF($C113<>0,SUMPRODUCT((N$107:N$108)*TRANSPOSE(($D113:$E113))),0) -> 0 | O113: =O$106+IF($C113<>0,SUMPRODUCT((O$107:O$108)*TRANSPOSE(($D113:$E113))),0) -> 0 | P113: =P$106+IF($C113<>0,SUMPRODUCT((P$107:P$108)*TRANSPOSE(($D113:$E113))),0) -> 0 | Q113: =Q$106+IF($C113<>0,SUMPRODUCT((Q$107:Q$108)*TRANSPOSE(($D113:$E113))),0) -> 0 | R113: =R$106+IF($C113<>0,SUMPRODUCT((R$107:R$108)*TRANSPOSE(($D113:$E113))),0) -> 0 | S113: =S$106+IF($C113<>0,SUMPRODUCT((S$107:S$108)*TRANSPOSE(($D113:$E113))),0) -> 0 | T113: =T$106+IF($C113<>0,SUMPRODUCT((T$107:T$108)*TRANSPOSE(($D113:$E113))),0) -> 0 | U113: =U$106+IF($C113<>0,SUMPRODUCT((U$107:U$108)*TRANSPOSE(($D113:$E113))),0) -> 0 | V113: =V$106+IF($C113<>0,SUMPRODUCT((V$107:V$108)*TRANSPOSE(($D113:$E113))),0) -> 0 | W113: =W$106+IF($C113<>0,SUMPRODUCT((W$107:W$108)*TRANSPOSE(($D113:$E113))),0) -> 0 | X113: =X$106+IF($C113<>0,SUMPRODUCT((X$107:X$108)*TRANSPOSE(($D113:$E113))),0) -> 0 | Y113: =Y$106+IF($C113<>0,SUMPRODUCT((Y$107:Y$108)*TRANSPOSE(($D113:$E113))),0) -> 0 | Z113: =Z$106+IF($C113<>0,SUMPRODUCT((Z$107:Z$108)*TRANSPOSE(($D113:$E113))),0) -> 0 | AA113: =AA$106+IF($C113<>0,SUMPRODUCT((AA$107:AA$108)*TRANSPOSE(($D113:$E113))),0) -> 0 | AB113: =AB$106+IF($C113<>0,SUMPRODUCT((AB$107:AB$108)*TRANSPOSE(($D113:$E113))),0) -> 0 | AC113: =AC$106+IF($C113<>0,SUMPRODUCT((AC$107:AC$108)*TRANSPOSE(($D113:$E113))),0) -> 0 | AD113: =AD$106+IF($C113<>0,SUMPRODUCT((AD$107:AD$108)*TRANSPOSE(($D113:$E113))),0) -> 0 | AE113: =AE$106+IF($C113<>0,SUMPRODUCT((AE$107:AE$108)*TRANSPOSE(($D113:$E113))),0) -> 0 | AF113: =AF$106+IF($C113<>0,SUMPRODUCT((AF$107:AF$108)*TRANSPOSE(($D113:$E113))),0) -> 0 | AG113: =AG$106+IF($C113<>0,SUMPRODUCT((AG$107:AG$108)*TRANSPOSE(($D113:$E113))),0) -> 0
A114: ="sens"&Assumptions!B49 -> sens5 | C114: =Assumptions!C49 -> Capex 10% higher & Total benefits 10% lower | D114: =Assumptions!G49 -> 0.1 | E114: =Assumptions!H49 -> -0.1 | G114: Option 5sens5 | I114: =I$106+IF($C114<>0,SUMPRODUCT((I$107:I$108)*TRANSPOSE(($D114:$E114))),0) -> 0 | J114: =J$106+IF($C114<>0,SUMPRODUCT((J$107:J$108)*TRANSPOSE(($D114:$E114))),0) -> 0 | K114: =K$106+IF($C114<>0,SUMPRODUCT((K$107:K$108)*TRANSPOSE(($D114:$E114))),0) -> 0 | L114: =L$106+IF($C114<>0,SUMPRODUCT((L$107:L$108)*TRANSPOSE(($D114:$E114))),0) -> 0 | M114: =M$106+IF($C114<>0,SUMPRODUCT((M$107:M$108)*TRANSPOSE(($D114:$E114))),0) -> 0 | N114: =N$106+IF($C114<>0,SUMPRODUCT((N$107:N$108)*TRANSPOSE(($D114:$E114))),0) -> 0 | O114: =O$106+IF($C114<>0,SUMPRODUCT((O$107:O$108)*TRANSPOSE(($D114:$E114))),0) -> 0 | P114: =P$106+IF($C114<>0,SUMPRODUCT((P$107:P$108)*TRANSPOSE(($D114:$E114))),0) -> 0 | Q114: =Q$106+IF($C114<>0,SUMPRODUCT((Q$107:Q$108)*TRANSPOSE(($D114:$E114))),0) -> 0 | R114: =R$106+IF($C114<>0,SUMPRODUCT((R$107:R$108)*TRANSPOSE(($D114:$E114))),0) -> 0 | S114: =S$106+IF($C114<>0,SUMPRODUCT((S$107:S$108)*TRANSPOSE(($D114:$E114))),0) -> 0 | T114: =T$106+IF($C114<>0,SUMPRODUCT((T$107:T$108)*TRANSPOSE(($D114:$E114))),0) -> 0 | U114: =U$106+IF($C114<>0,SUMPRODUCT((U$107:U$108)*TRANSPOSE(($D114:$E114))),0) -> 0 | V114: =V$106+IF($C114<>0,SUMPRODUCT((V$107:V$108)*TRANSPOSE(($D114:$E114))),0) -> 0 | W114: =W$106+IF($C114<>0,SUMPRODUCT((W$107:W$108)*TRANSPOSE(($D114:$E114))),0) -> 0 | X114: =X$106+IF($C114<>0,SUMPRODUCT((X$107:X$108)*TRANSPOSE(($D114:$E114))),0) -> 0 | Y114: =Y$106+IF($C114<>0,SUMPRODUCT((Y$107:Y$108)*TRANSPOSE(($D114:$E114))),0) -> 0 | Z114: =Z$106+IF($C114<>0,SUMPRODUCT((Z$107:Z$108)*TRANSPOSE(($D114:$E114))),0) -> 0 | AA114: =AA$106+IF($C114<>0,SUMPRODUCT((AA$107:AA$108)*TRANSPOSE(($D114:$E114))),0) -> 0 | AB114: =AB$106+IF($C114<>0,SUMPRODUCT((AB$107:AB$108)*TRANSPOSE(($D114:$E114))),0) -> 0 | AC114: =AC$106+IF($C114<>0,SUMPRODUCT((AC$107:AC$108)*TRANSPOSE(($D114:$E114))),0) -> 0 | AD114: =AD$106+IF($C114<>0,SUMPRODUCT((AD$107:AD$108)*TRANSPOSE(($D114:$E114))),0) -> 0 | AE114: =AE$106+IF($C114<>0,SUMPRODUCT((AE$107:AE$108)*TRANSPOSE(($D114:$E114))),0) -> 0 | AF114: =AF$106+IF($C114<>0,SUMPRODUCT((AF$107:AF$108)*TRANSPOSE(($D114:$E114))),0) -> 0 | AG114: =AG$106+IF($C114<>0,SUMPRODUCT((AG$107:AG$108)*TRANSPOSE(($D114:$E114))),0) -> 0
A115: ="sens"&Assumptions!B50 -> sens | C115: =Assumptions!C50 -> 0 | D115: =Assumptions!G50 -> 0 | E115: =Assumptions!H50 -> 0 | G115: Option 5sens | I115: =I$106+IF($C115<>0,SUMPRODUCT((I$107:I$108)*TRANSPOSE(($D115:$E115))),0) -> 0 | J115: =J$106+IF($C115<>0,SUMPRODUCT((J$107:J$108)*TRANSPOSE(($D115:$E115))),0) -> 0 | K115: =K$106+IF($C115<>0,SUMPRODUCT((K$107:K$108)*TRANSPOSE(($D115:$E115))),0) -> 0 | L115: =L$106+IF($C115<>0,SUMPRODUCT((L$107:L$108)*TRANSPOSE(($D115:$E115))),0) -> 0 | M115: =M$106+IF($C115<>0,SUMPRODUCT((M$107:M$108)*TRANSPOSE(($D115:$E115))),0) -> 0 | N115: =N$106+IF($C115<>0,SUMPRODUCT((N$107:N$108)*TRANSPOSE(($D115:$E115))),0) -> 0 | O115: =O$106+IF($C115<>0,SUMPRODUCT((O$107:O$108)*TRANSPOSE(($D115:$E115))),0) -> 0 | P115: =P$106+IF($C115<>0,SUMPRODUCT((P$107:P$108)*TRANSPOSE(($D115:$E115))),0) -> 0 | Q115: =Q$106+IF($C115<>0,SUMPRODUCT((Q$107:Q$108)*TRANSPOSE(($D115:$E115))),0) -> 0 | R115: =R$106+IF($C115<>0,SUMPRODUCT((R$107:R$108)*TRANSPOSE(($D115:$E115))),0) -> 0 | S115: =S$106+IF($C115<>0,SUMPRODUCT((S$107:S$108)*TRANSPOSE(($D115:$E115))),0) -> 0 | T115: =T$106+IF($C115<>0,SUMPRODUCT((T$107:T$108)*TRANSPOSE(($D115:$E115))),0) -> 0 | U115: =U$106+IF($C115<>0,SUMPRODUCT((U$107:U$108)*TRANSPOSE(($D115:$E115))),0) -> 0 | V115: =V$106+IF($C115<>0,SUMPRODUCT((V$107:V$108)*TRANSPOSE(($D115:$E115))),0) -> 0 | W115: =W$106+IF($C115<>0,SUMPRODUCT((W$107:W$108)*TRANSPOSE(($D115:$E115))),0) -> 0 | X115: =X$106+IF($C115<>0,SUMPRODUCT((X$107:X$108)*TRANSPOSE(($D115:$E115))),0) -> 0 | Y115: =Y$106+IF($C115<>0,SUMPRODUCT((Y$107:Y$108)*TRANSPOSE(($D115:$E115))),0) -> 0 | Z115: =Z$106+IF($C115<>0,SUMPRODUCT((Z$107:Z$108)*TRANSPOSE(($D115:$E115))),0) -> 0 | AA115: =AA$106+IF($C115<>0,SUMPRODUCT((AA$107:AA$108)*TRANSPOSE(($D115:$E115))),0) -> 0 | AB115: =AB$106+IF($C115<>0,SUMPRODUCT((AB$107:AB$108)*TRANSPOSE(($D115:$E115))),0) -> 0 | AC115: =AC$106+IF($C115<>0,SUMPRODUCT((AC$107:AC$108)*TRANSPOSE(($D115:$E115))),0) -> 0 | AD115: =AD$106+IF($C115<>0,SUMPRODUCT((AD$107:AD$108)*TRANSPOSE(($D115:$E115))),0) -> 0 | AE115: =AE$106+IF($C115<>0,SUMPRODUCT((AE$107:AE$108)*TRANSPOSE(($D115:$E115))),0) -> 0 | AF115: =AF$106+IF($C115<>0,SUMPRODUCT((AF$107:AF$108)*TRANSPOSE(($D115:$E115))),0) -> 0 | AG115: =AG$106+IF($C115<>0,SUMPRODUCT((AG$107:AG$108)*TRANSPOSE(($D115:$E115))),0) -> 0
A116: ="sens"&Assumptions!B51 -> sens | C116: =Assumptions!C51 -> 0 | D116: =Assumptions!G51 -> 0 | E116: =Assumptions!H51 -> 0 | G116: Option 5sens | I116: =I$106+IF($C116<>0,SUMPRODUCT((I$107:I$108)*TRANSPOSE(($D116:$E116))),0) -> 0 | J116: =J$106+IF($C116<>0,SUMPRODUCT((J$107:J$108)*TRANSPOSE(($D116:$E116))),0) -> 0 | K116: =K$106+IF($C116<>0,SUMPRODUCT((K$107:K$108)*TRANSPOSE(($D116:$E116))),0) -> 0 | L116: =L$106+IF($C116<>0,SUMPRODUCT((L$107:L$108)*TRANSPOSE(($D116:$E116))),0) -> 0 | M116: =M$106+IF($C116<>0,SUMPRODUCT((M$107:M$108)*TRANSPOSE(($D116:$E116))),0) -> 0 | N116: =N$106+IF($C116<>0,SUMPRODUCT((N$107:N$108)*TRANSPOSE(($D116:$E116))),0) -> 0 | O116: =O$106+IF($C116<>0,SUMPRODUCT((O$107:O$108)*TRANSPOSE(($D116:$E116))),0) -> 0 | P116: =P$106+IF($C116<>0,SUMPRODUCT((P$107:P$108)*TRANSPOSE(($D116:$E116))),0) -> 0 | Q116: =Q$106+IF($C116<>0,SUMPRODUCT((Q$107:Q$108)*TRANSPOSE(($D116:$E116))),0) -> 0 | R116: =R$106+IF($C116<>0,SUMPRODUCT((R$107:R$108)*TRANSPOSE(($D116:$E116))),0) -> 0 | S116: =S$106+IF($C116<>0,SUMPRODUCT((S$107:S$108)*TRANSPOSE(($D116:$E116))),0) -> 0 | T116: =T$106+IF($C116<>0,SUMPRODUCT((T$107:T$108)*TRANSPOSE(($D116:$E116))),0) -> 0 | U116: =U$106+IF($C116<>0,SUMPRODUCT((U$107:U$108)*TRANSPOSE(($D116:$E116))),0) -> 0 | V116: =V$106+IF($C116<>0,SUMPRODUCT((V$107:V$108)*TRANSPOSE(($D116:$E116))),0) -> 0 | W116: =W$106+IF($C116<>0,SUMPRODUCT((W$107:W$108)*TRANSPOSE(($D116:$E116))),0) -> 0 | X116: =X$106+IF($C116<>0,SUMPRODUCT((X$107:X$108)*TRANSPOSE(($D116:$E116))),0) -> 0 | Y116: =Y$106+IF($C116<>0,SUMPRODUCT((Y$107:Y$108)*TRANSPOSE(($D116:$E116))),0) -> 0 | Z116: =Z$106+IF($C116<>0,SUMPRODUCT((Z$107:Z$108)*TRANSPOSE(($D116:$E116))),0) -> 0 | AA116: =AA$106+IF($C116<>0,SUMPRODUCT((AA$107:AA$108)*TRANSPOSE(($D116:$E116))),0) -> 0 | AB116: =AB$106+IF($C116<>0,SUMPRODUCT((AB$107:AB$108)*TRANSPOSE(($D116:$E116))),0) -> 0 | AC116: =AC$106+IF($C116<>0,SUMPRODUCT((AC$107:AC$108)*TRANSPOSE(($D116:$E116))),0) -> 0 | AD116: =AD$106+IF($C116<>0,SUMPRODUCT((AD$107:AD$108)*TRANSPOSE(($D116:$E116))),0) -> 0 | AE116: =AE$106+IF($C116<>0,SUMPRODUCT((AE$107:AE$108)*TRANSPOSE(($D116:$E116))),0) -> 0 | AF116: =AF$106+IF($C116<>0,SUMPRODUCT((AF$107:AF$108)*TRANSPOSE(($D116:$E116))),0) -> 0 | AG116: =AG$106+IF($C116<>0,SUMPRODUCT((AG$107:AG$108)*TRANSPOSE(($D116:$E116))),0) -> 0
A117: ="sens"&Assumptions!B52 -> sens | C117: =Assumptions!C52 -> 0 | D117: =Assumptions!G52 -> 0 | E117: =Assumptions!H52 -> 0 | G117: Option 5sens | I117: =I$106+IF($C117<>0,SUMPRODUCT((I$107:I$108)*TRANSPOSE(($D117:$E117))),0) -> 0 | J117: =J$106+IF($C117<>0,SUMPRODUCT((J$107:J$108)*TRANSPOSE(($D117:$E117))),0) -> 0 | K117: =K$106+IF($C117<>0,SUMPRODUCT((K$107:K$108)*TRANSPOSE(($D117:$E117))),0) -> 0 | L117: =L$106+IF($C117<>0,SUMPRODUCT((L$107:L$108)*TRANSPOSE(($D117:$E117))),0) -> 0 | M117: =M$106+IF($C117<>0,SUMPRODUCT((M$107:M$108)*TRANSPOSE(($D117:$E117))),0) -> 0 | N117: =N$106+IF($C117<>0,SUMPRODUCT((N$107:N$108)*TRANSPOSE(($D117:$E117))),0) -> 0 | O117: =O$106+IF($C117<>0,SUMPRODUCT((O$107:O$108)*TRANSPOSE(($D117:$E117))),0) -> 0 | P117: =P$106+IF($C117<>0,SUMPRODUCT((P$107:P$108)*TRANSPOSE(($D117:$E117))),0) -> 0 | Q117: =Q$106+IF($C117<>0,SUMPRODUCT((Q$107:Q$108)*TRANSPOSE(($D117:$E117))),0) -> 0 | R117: =R$106+IF($C117<>0,SUMPRODUCT((R$107:R$108)*TRANSPOSE(($D117:$E117))),0) -> 0 | S117: =S$106+IF($C117<>0,SUMPRODUCT((S$107:S$108)*TRANSPOSE(($D117:$E117))),0) -> 0 | T117: =T$106+IF($C117<>0,SUMPRODUCT((T$107:T$108)*TRANSPOSE(($D117:$E117))),0) -> 0 | U117: =U$106+IF($C117<>0,SUMPRODUCT((U$107:U$108)*TRANSPOSE(($D117:$E117))),0) -> 0 | V117: =V$106+IF($C117<>0,SUMPRODUCT((V$107:V$108)*TRANSPOSE(($D117:$E117))),0) -> 0 | W117: =W$106+IF($C117<>0,SUMPRODUCT((W$107:W$108)*TRANSPOSE(($D117:$E117))),0) -> 0 | X117: =X$106+IF($C117<>0,SUMPRODUCT((X$107:X$108)*TRANSPOSE(($D117:$E117))),0) -> 0 | Y117: =Y$106+IF($C117<>0,SUMPRODUCT((Y$107:Y$108)*TRANSPOSE(($D117:$E117))),0) -> 0 | Z117: =Z$106+IF($C117<>0,SUMPRODUCT((Z$107:Z$108)*TRANSPOSE(($D117:$E117))),0) -> 0 | AA117: =AA$106+IF($C117<>0,SUMPRODUCT((AA$107:AA$108)*TRANSPOSE(($D117:$E117))),0) -> 0 | AB117: =AB$106+IF($C117<>0,SUMPRODUCT((AB$107:AB$108)*TRANSPOSE(($D117:$E117))),0) -> 0 | AC117: =AC$106+IF($C117<>0,SUMPRODUCT((AC$107:AC$108)*TRANSPOSE(($D117:$E117))),0) -> 0 | AD117: =AD$106+IF($C117<>0,SUMPRODUCT((AD$107:AD$108)*TRANSPOSE(($D117:$E117))),0) -> 0 | AE117: =AE$106+IF($C117<>0,SUMPRODUCT((AE$107:AE$108)*TRANSPOSE(($D117:$E117))),0) -> 0 | AF117: =AF$106+IF($C117<>0,SUMPRODUCT((AF$107:AF$108)*TRANSPOSE(($D117:$E117))),0) -> 0 | AG117: =AG$106+IF($C117<>0,SUMPRODUCT((AG$107:AG$108)*TRANSPOSE(($D117:$E117))),0) -> 0

Sheet Consol
A1: =bus -> Powercor
A2: =proj -> Regional and rural supply upgrades
A3: CONSOLIDATED
A5: Discount factor | H5: =IF(H9=start,1/((1+real_disc)^(1/2)),G5/(1+real_disc)) -> 0 | I5: 0.9829463744 | J5: 0.9497066419 | K5: 0.9175909584 | L5: 0.8865613124 | M5: 0.8565809782 | N5: 0.8276144717 | O5: 0.7996275089 | P5: 0.7725869651 | Q5: 0.7464608358 | R5: 0.7212181989 | S5: 0.6968291777 | T5: 0.6732649059 | U5: 0.6504974937 | V5: 0.6284999939 | W5: 0.6072463709 | X5: 0.5867114695 | Y5: 0.566870985 | Z5: 0.5477014348 | AA5: 0.5291801302 | AB5: 0.51128515 | AC5: 0.493995314 | AD5: 0.4772901584 | AE5: 0.4611499115 | AF5: 0.4455554701 | AG5: 0.4304883769
A6: ='Option1 (base case)'!A6 -> Count | H6: ='Option1 (base case)'!H6 -> 0 | I6: ='Option1 (base case)'!I6 -> 1 | J6: ='Option1 (base case)'!J6 -> 2 | K6: ='Option1 (base case)'!K6 -> 3 | L6: ='Option1 (base case)'!L6 -> 4 | M6: ='Option1 (base case)'!M6 -> 5 | N6: ='Option1 (base case)'!N6 -> 6 | O6: ='Option1 (base case)'!O6 -> 7 | P6: ='Option1 (base case)'!P6 -> 8 | Q6: ='Option1 (base case)'!Q6 -> 9 | R6: ='Option1 (base case)'!R6 -> 10 | S6: ='Option1 (base case)'!S6 -> 11 | T6: ='Option1 (base case)'!T6 -> 12 | U6: ='Option1 (base case)'!U6 -> 13 | V6: ='Option1 (base case)'!V6 -> 14 | W6: ='Option1 (base case)'!W6 -> 15 | X6: ='Option1 (base case)'!X6 -> 16 | Y6: ='Option1 (base case)'!Y6 -> 17 | Z6: ='Option1 (base case)'!Z6 -> 18 | AA6: ='Option1 (base case)'!AA6 -> 19 | AB6: ='Option1 (base case)'!AB6 -> 20 | AC6: ='Option1 (base case)'!AC6 -> 21 | AD6: ='Option1 (base case)'!AD6 -> 22 | AE6: ='Option1 (base case)'!AE6 -> 23 | AF6: ='Option1 (base case)'!AF6 -> 24 | AG6: ='Option1 (base case)'!AG6 -> 25
A7: Analysis period | H7: =H$6<(first_year+years) -> TRUE | I7: TRUE | J7: TRUE | K7: TRUE | L7: TRUE | M7: TRUE | N7: TRUE | O7: TRUE | P7: TRUE | Q7: TRUE | R7: TRUE | S7: TRUE | T7: TRUE | U7: TRUE | V7: TRUE | W7: TRUE | X7: TRUE | Y7: TRUE | Z7: TRUE | AA7: TRUE | AB7: TRUE | AC7: FALSE | AD7: FALSE | AE7: FALSE | AF7: FALSE | AG7: FALSE
H9: ='Option1 (base case)'!H9 -> 2026-06-30 | I9: ='Option1 (base case)'!I9 -> 2026-27 | J9: ='Option1 (base case)'!J9 -> 2027-28 | K9: ='Option1 (base case)'!K9 -> 2028-29 | L9: ='Option1 (base case)'!L9 -> 2029-30 | M9: ='Option1 (base case)'!M9 -> 2030-31 | N9: ='Option1 (base case)'!N9 -> 2031-32 | O9: ='Option1 (base case)'!O9 -> 2032-33 | P9: ='Option1 (base case)'!P9 -> 2033-34 | Q9: ='Option1 (base case)'!Q9 -> 2034-35 | R9: ='Option1 (base case)'!R9 -> 2035-36 | S9: ='Option1 (base case)'!S9 -> 2036-37 | T9: ='Option1 (base case)'!T9 -> 2037-38 | U9: ='Option1 (base case)'!U9 -> 2038-39 | V9: ='Option1 (base case)'!V9 -> 2039-40 | W9: ='Option1 (base case)'!W9 -> 2040-41 | X9: ='Option1 (base case)'!X9 -> 2041-42 | Y9: ='Option1 (base case)'!Y9 -> 2042-43 | Z9: ='Option1 (base case)'!Z9 -> 2043-44 | AA9: ='Option1 (base case)'!AA9 -> 2044-45 | AB9: ='Option1 (base case)'!AB9 -> 2045-46 | AC9: ='Option1 (base case)'!AC9 -> 2046-47 | AD9: ='Option1 (base case)'!AD9 -> 2047-48 | AE9: ='Option1 (base case)'!AE9 -> 2048-49 | AF9: ='Option1 (base case)'!AF9 -> 2049-50 | AG9: ='Option1 (base case)'!AG9 -> 2050-51
A11: COSTS | F11: PV | H11: =IF(H6=$C$4,UPPER($A$4),IF(H6=end, "END", "")) -> 
A14: =A15 -> Option 1 (base case) | C14: Energy at risk value | D14: =A14&C14 -> Option 1 (base case)Energy at risk value | F14: =SUMPRODUCT($H14:$AG14, $H$5:$AG$5) -> 738719048.3 | G14: =output_dollars -> 2026-06-30 | I14: ='Option1 (base case)'!I$28*conv_2026 -> 60047321.69 | J14: ='Option1 (base case)'!J$28*conv_2026 -> 59763594.65 | K14: ='Option1 (base case)'!K$28*conv_2026 -> 58640802.03 | L14: ='Option1 (base case)'!L$28*conv_2026 -> 57936567.75 | M14: ='Option1 (base case)'!M$28*conv_2026 -> 59509660.56 | N14: ='Option1 (base case)'!N$28*conv_2026 -> 60563714.97 | O14: ='Option1 (base case)'!O$28*conv_2026 -> 64488454.63 | P14: ='Option1 (base case)'!P$28*conv_2026 -> 65555595.02 | Q14: ='Option1 (base case)'!Q$28*conv_2026 -> 66564724.45 | R14: ='Option1 (base case)'!R$28*conv_2026 -> 66564724.45 | S14: ='Option1 (base case)'!S$28*conv_2026 -> 66564724.45 | T14: ='Option1 (base case)'!T$28*conv_2026 -> 66564724.45 | U14: ='Option1 (base case)'!U$28*conv_2026 -> 66564724.45 | V14: ='Option1 (base case)'!V$28*conv_2026 -> 66564724.45 | W14: ='Option1 (base case)'!W$28*conv_2026 -> 66564724.45 | X14: ='Option1 (base case)'!X$28*conv_2026 -> 0 | Y14: ='Option1 (base case)'!Y$28*conv_2026 -> 0 | Z14: ='Option1 (base case)'!Z$28*conv_2026 -> 0 | AA14: ='Option1 (base case)'!AA$28*conv_2026 -> 0 | AB14: ='Option1 (base case)'!AB$28*conv_2026 -> 0 | AC14: ='Option1 (base case)'!AC$28*conv_2026 -> 0 | AD14: ='Option1 (base case)'!AD$28*conv_2026 -> 0 | AE14: ='Option1 (base case)'!AE$28*conv_2026 -> 0 | AF14: ='Option1 (base case)'!AF$28*conv_2026 -> 0 | AG14: ='Option1 (base case)'!AG$28*conv_2026 -> 0
A15: =Data!B9 -> Option 1 (base case) | C15: ='Option1 (base case)'!C$66 -> Capital expenditure | D15: Option 1 (base case)Capital expenditure | F15: =SUMPRODUCT($H15:$AG15, $H$5:$AG$5) -> 0 | G15: =output_dollars -> 2026-06-30 | I15: =SUM('Option1 (base case)'!I$67:I$69)*conv_2026 -> 0 | J15: =SUM('Option1 (base case)'!J$67:J$69) -> 0 | K15: =SUM('Option1 (base case)'!K$67:K$69) -> 0 | L15: =SUM('Option1 (base case)'!L$67:L$69) -> 0 | M15: =SUM('Option1 (base case)'!M$67:M$69) -> 0 | N15: =SUM('Option1 (base case)'!N$67:N$69) -> 0 | O15: =SUM('Option1 (base case)'!O$67:O$69) -> 0 | P15: =SUM('Option1 (base case)'!P$67:P$69) -> 0 | Q15: =SUM('Option1 (base case)'!Q$67:Q$69) -> 0 | R15: =SUM('Option1 (base case)'!R$67:R$69) -> 0 | S15: =SUM('Option1 (base case)'!S$67:S$69) -> 0 | T15: =SUM('Option1 (base case)'!T$67:T$69) -> 0 | U15: =SUM('Option1 (base case)'!U$67:U$69) -> 0 | V15: =SUM('Option1 (base case)'!V$67:V$69) -> 0 | W15: =SUM('Option1 (base case)'!W$67:W$69) -> 0 | X15: =SUM('Option1 (base case)'!X$67:X$69) -> 0 | Y15: =SUM('Option1 (base case)'!Y$67:Y$69) -> 0 | Z15: =SUM('Option1 (base case)'!Z$67:Z$69) -> 0 | AA15: =SUM('Option1 (base case)'!AA$67:AA$69) -> 0 | AB15: =SUM('Option1 (base case)'!AB$67:AB$69) -> 0 | AC15: =SUM('Option1 (base case)'!AC$67:AC$69) -> 0 | AD15: =SUM('Option1 (base case)'!AD$67:AD$69) -> 0 | AE15: =SUM('Option1 (base case)'!AE$67:AE$69) -> 0 | AF15: =SUM('Option1 (base case)'!AF$67:AF$69) -> 0 | AG15: =SUM('Option1 (base case)'!AG$67:AG$69) -> 0
A16: =A15 -> Option 1 (base case) | C16: ='Option1 (base case)'!C$36 -> Total risk cost | D16: Option 1 (base case)Total risk cost | F16: =SUMPRODUCT(($H16:$AG16)*($H$5:$AG$5)*($H$7:$AG$7)) -> 738719048.3 | G16: =output_dollars -> 2026-06-30 | I16: ='Option1 (base case)'!I$36*conv_2026 -> 60047321.69 | J16: ='Option1 (base case)'!J$36*conv_2026 -> 59763594.65 | K16: ='Option1 (base case)'!K$36*conv_2026 -> 58640802.03 | L16: ='Option1 (base case)'!L$36*conv_2026 -> 57936567.75 | M16: ='Option1 (base case)'!M$36*conv_2026 -> 59509660.56 | N16: ='Option1 (base case)'!N$36*conv_2026 -> 60563714.97 | O16: ='Option1 (base case)'!O$36*conv_2026 -> 64488454.63 | P16: ='Option1 (base case)'!P$36*conv_2026 -> 65555595.02 | Q16: ='Option1 (base case)'!Q$36*conv_2026 -> 66564724.45 | R16: ='Option1 (base case)'!R$36*conv_2026 -> 66564724.45 | S16: ='Option1 (base case)'!S$36*conv_2026 -> 66564724.45 | T16: ='Option1 (base case)'!T$36*conv_2026 -> 66564724.45 | U16: ='Option1 (base case)'!U$36*conv_2026 -> 66564724.45 | V16: ='Option1 (base case)'!V$36*conv_2026 -> 66564724.45 | W16: ='Option1 (base case)'!W$36*conv_2026 -> 66564724.45 | X16: ='Option1 (base case)'!X$36*conv_2026 -> 0 | Y16: ='Option1 (base case)'!Y$36*conv_2026 -> 0 | Z16: ='Option1 (base case)'!Z$36*conv_2026 -> 0 | AA16: ='Option1 (base case)'!AA$36*conv_2026 -> 0 | AB16: ='Option1 (base case)'!AB$36*conv_2026 -> 0 | AC16: ='Option1 (base case)'!AC$36*conv_2026 -> 0 | AD16: ='Option1 (base case)'!AD$36*conv_2026 -> 0 | AE16: ='Option1 (base case)'!AE$36*conv_2026 -> 0 | AF16: ='Option1 (base case)'!AF$36*conv_2026 -> 0 | AG16: ='Option1 (base case)'!AG$36*conv_2026 -> 0
A17: Option 1 (base case) | D17: Option 1 (base case)
A18: Option 1 (base case) | C18: ='Option1 (base case)'!C$82 -> Annualised capex | D18: Option 1 (base case)Annualised capex | F18: =SUMPRODUCT($H18:$AG18, $H$5:$AG$5) -> 0 | G18: =output_dollars -> 2026-06-30 | I18: ='Option1 (base case)'!I$82*conv_2026 -> 0 | J18: ='Option1 (base case)'!J$82*conv_2026 -> 0 | K18: ='Option1 (base case)'!K$82*conv_2026 -> 0 | L18: ='Option1 (base case)'!L$82*conv_2026 -> 0 | M18: ='Option1 (base case)'!M$82*conv_2026 -> 0 | N18: ='Option1 (base case)'!N$82*conv_2026 -> 0 | O18: ='Option1 (base case)'!O$82*conv_2026 -> 0 | P18: ='Option1 (base case)'!P$82*conv_2026 -> 0 | Q18: ='Option1 (base case)'!Q$82*conv_2026 -> 0 | R18: ='Option1 (base case)'!R$82*conv_2026 -> 0 | S18: ='Option1 (base case)'!S$82*conv_2026 -> 0 | T18: ='Option1 (base case)'!T$82*conv_2026 -> 0 | U18: ='Option1 (base case)'!U$82*conv_2026 -> 0 | V18: ='Option1 (base case)'!V$82*conv_2026 -> 0 | W18: ='Option1 (base case)'!W$82*conv_2026 -> 0 | X18: ='Option1 (base case)'!X$82*conv_2026 -> 0 | Y18: ='Option1 (base case)'!Y$82*conv_2026 -> 0 | Z18: ='Option1 (base case)'!Z$82*conv_2026 -> 0 | AA18: ='Option1 (base case)'!AA$82*conv_2026 -> 0 | AB18: ='Option1 (base case)'!AB$82*conv_2026 -> 0 | AC18: ='Option1 (base case)'!AC$82*conv_2026 -> 0 | AD18: ='Option1 (base case)'!AD$82*conv_2026 -> 0 | AE18: ='Option1 (base case)'!AE$82*conv_2026 -> 0 | AF18: ='Option1 (base case)'!AF$82*conv_2026 -> 0 | AG18: ='Option1 (base case)'!AG$82*conv_2026 -> 0
A19: Option 1 (base case) | C19: ='Option1 (base case)'!C$83 -> Operating expenditure | D19: Option 1 (base case)Operating expenditure | F19: =SUMPRODUCT($H19:$AG19, $H$5:$AG$5) -> 0 | G19: 2026-06-30 | I19: ='Option1 (base case)'!I$83*conv_2026 -> 0 | J19: ='Option1 (base case)'!J$83*conv_2026 -> 0 | K19: ='Option1 (base case)'!K$83*conv_2026 -> 0 | L19: ='Option1 (base case)'!L$83*conv_2026 -> 0 | M19: ='Option1 (base case)'!M$83*conv_2026 -> 0 | N19: ='Option1 (base case)'!N$83*conv_2026 -> 0 | O19: ='Option1 (base case)'!O$83*conv_2026 -> 0 | P19: ='Option1 (base case)'!P$83*conv_2026 -> 0 | Q19: ='Option1 (base case)'!Q$83*conv_2026 -> 0 | R19: ='Option1 (base case)'!R$83*conv_2026 -> 0 | S19: ='Option1 (base case)'!S$83*conv_2026 -> 0 | T19: ='Option1 (base case)'!T$83*conv_2026 -> 0 | U19: ='Option1 (base case)'!U$83*conv_2026 -> 0 | V19: ='Option1 (base case)'!V$83*conv_2026 -> 0 | W19: ='Option1 (base case)'!W$83*conv_2026 -> 0 | X19: ='Option1 (base case)'!X$83*conv_2026 -> 0 | Y19: ='Option1 (base case)'!Y$83*conv_2026 -> 0 | Z19: ='Option1 (base case)'!Z$83*conv_2026 -> 0 | AA19: ='Option1 (base case)'!AA$83*conv_2026 -> 0 | AB19: ='Option1 (base case)'!AB$83*conv_2026 -> 0 | AC19: ='Option1 (base case)'!AC$83*conv_2026 -> 0 | AD19: ='Option1 (base case)'!AD$83*conv_2026 -> 0 | AE19: ='Option1 (base case)'!AE$83*conv_2026 -> 0 | AF19: ='Option1 (base case)'!AF$83*conv_2026 -> 0 | AG19: ='Option1 (base case)'!AG$83*conv_2026 -> 0
A20: Option 1 (base case) | C20: ='Option1 (base case)'!C$84 -> Risk mitigated | D20: Option 1 (base case)Risk mitigated | F20: =SUMPRODUCT($H20:$AG20, $H$5:$AG$5) -> 0 | G20: 2026-06-30 | I20: ='Option1 (base case)'!I$84*conv_2026 -> 0 | J20: ='Option1 (base case)'!J$84*conv_2026 -> 0 | K20: ='Option1 (base case)'!K$84*conv_2026 -> 0 | L20: ='Option1 (base case)'!L$84*conv_2026 -> 0 | M20: ='Option1 (base case)'!M$84*conv_2026 -> 0 | N20: ='Option1 (base case)'!N$84*conv_2026 -> 0 | O20: ='Option1 (base case)'!O$84*conv_2026 -> 0 | P20: ='Option1 (base case)'!P$84*conv_2026 -> 0 | Q20: ='Option1 (base case)'!Q$84*conv_2026 -> 0 | R20: ='Option1 (base case)'!R$84*conv_2026 -> 0 | S20: ='Option1 (base case)'!S$84*conv_2026 -> 0 | T20: ='Option1 (base case)'!T$84*conv_2026 -> 0 | U20: ='Option1 (base case)'!U$84*conv_2026 -> 0 | V20: ='Option1 (base case)'!V$84*conv_2026 -> 0 | W20: ='Option1 (base case)'!W$84*conv_2026 -> 0 | X20: ='Option1 (base case)'!X$84*conv_2026 -> 0 | Y20: ='Option1 (base case)'!Y$84*conv_2026 -> 0 | Z20: ='Option1 (base case)'!Z$84*conv_2026 -> 0 | AA20: ='Option1 (base case)'!AA$84*conv_2026 -> 0 | AB20: ='Option1 (base case)'!AB$84*conv_2026 -> 0 | AC20: ='Option1 (base case)'!AC$84*conv_2026 -> 0 | AD20: ='Option1 (base case)'!AD$84*conv_2026 -> 0 | AE20: ='Option1 (base case)'!AE$84*conv_2026 -> 0 | AF20: ='Option1 (base case)'!AF$84*conv_2026 -> 0 | AG20: ='Option1 (base case)'!AG$84*conv_2026 -> 0
A21: Option 1 (base case) | C21: ='Option1 (base case)'!C$85 -> Other benefits value | D21: Option 1 (base case)Other benefits value | F21: =SUMPRODUCT($H21:$AG21, $H$5:$AG$5) -> 0 | G21: 2026-06-30 | I21: ='Option1 (base case)'!I$85*conv_2026 -> 0 | J21: ='Option1 (base case)'!J$85*conv_2026 -> 0 | K21: ='Option1 (base case)'!K$85*conv_2026 -> 0 | L21: ='Option1 (base case)'!L$85*conv_2026 -> 0 | M21: ='Option1 (base case)'!M$85*conv_2026 -> 0 | N21: ='Option1 (base case)'!N$85*conv_2026 -> 0 | O21: ='Option1 (base case)'!O$85*conv_2026 -> 0 | P21: ='Option1 (base case)'!P$85*conv_2026 -> 0 | Q21: ='Option1 (base case)'!Q$85*conv_2026 -> 0 | R21: ='Option1 (base case)'!R$85*conv_2026 -> 0 | S21: ='Option1 (base case)'!S$85*conv_2026 -> 0 | T21: ='Option1 (base case)'!T$85*conv_2026 -> 0 | U21: ='Option1 (base case)'!U$85*conv_2026 -> 0 | V21: ='Option1 (base case)'!V$85*conv_2026 -> 0 | W21: ='Option1 (base case)'!W$85*conv_2026 -> 0 | X21: ='Option1 (base case)'!X$85*conv_2026 -> 0 | Y21: ='Option1 (base case)'!Y$85*conv_2026 -> 0 | Z21: ='Option1 (base case)'!Z$85*conv_2026 -> 0 | AA21: ='Option1 (base case)'!AA$85*conv_2026 -> 0 | AB21: ='Option1 (base case)'!AB$85*conv_2026 -> 0 | AC21: ='Option1 (base case)'!AC$85*conv_2026 -> 0 | AD21: ='Option1 (base case)'!AD$85*conv_2026 -> 0 | AE21: ='Option1 (base case)'!AE$85*conv_2026 -> 0 | AF21: ='Option1 (base case)'!AF$85*conv_2026 -> 0 | AG21: ='Option1 (base case)'!AG$85*conv_2026 -> 0
A22: Option 1 (base case) | C22: ='Option1 (base case)'!C$87 -> Net benefits | D22: Option 1 (base case)Net benefits | G22: 2026-06-30 | I22: =SUM(I18:I21) -> 0 | J22: 0 | K22: 0 | L22: 0 | M22: 0 | N22: 0 | O22: 0 | P22: 0 | Q22: 0 | R22: 0 | S22: 0 | T22: 0 | U22: 0 | V22: 0 | W22: 0 | X22: 0 | Y22: 0 | Z22: 0 | AA22: 0 | AB22: 0 | AC22: 0 | AD22: 0 | AE22: 0 | AF22: 0 | AG22: 0
A23: Option 1 (base case) | C23: NPV | D23: Option 1 (base case)NPV | F23: =SUMPRODUCT(($H22:$AG22)*($H$5:$AG$5)*($H$7:$AG$7)) -> 0 | G23: 2026-06-30
A24: Option 1 (base case) | C24: PV of costs | D24: Option 1 (base case)PV of costs | F24: =SUM(F18:F19) -> 0 | G24: 2026-06-30
A25: Option 1 (base case) | C25: PV of benefits | D25: Option 1 (base case)PV of benefits | F25: =SUM(F20:F21) -> 0 | G25: 2026-06-30
D26: =A26&C26 -> 
A28: =A29 -> Option 2 | C28: Energy at risk value | D28: Option 2Energy at risk value | F28: =SUMPRODUCT($H28:$AG28, $H$5:$AG$5) -> 351500953.5 | G28: =output_dollars -> 2026-06-30 | I28: =Option2!I$28*conv_2026 -> 44756077.76 | J28: =Option2!J$28*conv_2026 -> 35843501.68 | K28: =Option2!K$28*conv_2026 -> 30543061.59 | L28: =Option2!L$28*conv_2026 -> 26902066.92 | M28: =Option2!M$28*conv_2026 -> 23121878.72 | N28: =Option2!N$28*conv_2026 -> 23600961.2 | O28: =Option2!O$28*conv_2026 -> 27223256.41 | P28: =Option2!P$28*conv_2026 -> 28274591.98 | Q28: =Option2!Q$28*conv_2026 -> 29347829.37 | R28: =Option2!R$28*conv_2026 -> 29347829.37 | S28: =Option2!S$28*conv_2026 -> 29347829.37 | T28: =Option2!T$28*conv_2026 -> 29347829.37 | U28: =Option2!U$28*conv_2026 -> 29347829.37 | V28: =Option2!V$28*conv_2026 -> 29347829.37 | W28: =Option2!W$28*conv_2026 -> 29347829.37 | X28: =Option2!X$28*conv_2026 -> 0 | Y28: =Option2!Y$28*conv_2026 -> 0 | Z28: =Option2!Z$28*conv_2026 -> 0 | AA28: =Option2!AA$28*conv_2026 -> 0 | AB28: =Option2!AB$28*conv_2026 -> 0 | AC28: =Option2!AC$28*conv_2026 -> 0 | AD28: =Option2!AD$28*conv_2026 -> 0 | AE28: =Option2!AE$28*conv_2026 -> 0 | AF28: =Option2!AF$28*conv_2026 -> 0 | AG28: =Option2!AG$28*conv_2026 -> 0
A29: =Data!B10 -> Option 2 | C29: =Option2!C$66 -> Capital expenditure | D29: Option 2Capital expenditure | F29: =SUMPRODUCT(($H29:$AG29)*($H$5:$AG$5)*($H$7:$AG$7)) -> -57007168.39 | G29: =output_dollars -> 2026-06-30 | I29: =SUM(Option2!I$67:I$69)*conv_2026*I$7 -> -10624285.54 | J29: =SUM(Option2!J$67:J$69)*conv_2026*J$7 -> -7304196.309 | K29: =SUM(Option2!K$67:K$69)*conv_2026*K$7 -> -12616339.08 | L29: =SUM(Option2!L$67:L$69)*conv_2026*L$7 -> -15493749.75 | M29: =SUM(Option2!M$67:M$69)*conv_2026*M$7 -> -16711115.8 | N29: =SUM(Option2!N$67:N$69)*conv_2026*N$7 -> 0 | O29: =SUM(Option2!O$67:O$69)*conv_2026*O$7 -> 0 | P29: =SUM(Option2!P$67:P$69)*conv_2026*P$7 -> 0 | Q29: =SUM(Option2!Q$67:Q$69)*conv_2026*Q$7 -> 0 | R29: =SUM(Option2!R$67:R$69)*conv_2026*R$7 -> 0 | S29: =SUM(Option2!S$67:S$69)*conv_2026*S$7 -> 0 | T29: =SUM(Option2!T$67:T$69)*conv_2026*T$7 -> 0 | U29: =SUM(Option2!U$67:U$69)*conv_2026*U$7 -> 0 | V29: =SUM(Option2!V$67:V$69)*conv_2026*V$7 -> 0 | W29: =SUM(Option2!W$67:W$69)*conv_2026*W$7 -> 0 | X29: =SUM(Option2!X$67:X$69)*conv_2026*X$7 -> 0 | Y29: =SUM(Option2!Y$67:Y$69)*conv_2026*Y$7 -> 0 | Z29: =SUM(Option2!Z$67:Z$69)*conv_2026*Z$7 -> 0 | AA29: =SUM(Option2!AA$67:AA$69)*conv_2026*AA$7 -> 0 | AB29: =SUM(Option2!AB$67:AB$69)*conv_2026*AB$7 -> 0 | AC29: =SUM(Option2!AC$67:AC$69)*conv_2026*AC$7 -> 0 | AD29: =SUM(Option2!AD$67:AD$69)*conv_2026*AD$7 -> 0 | AE29: =SUM(Option2!AE$67:AE$69)*conv_2026*AE$7 -> 0 | AF29: =SUM(Option2!AF$67:AF$69)*conv_2026*AF$7 -> 0 | AG29: =SUM(Option2!AG$67:AG$69)*conv_2026*AG$7 -> 0
A30: =A29 -> Option 2 | C30: ='Option1 (base case)'!C$36 -> Total risk cost | D30: Option 2Total risk cost | F30: =SUMPRODUCT(($H30:$AG30)*($H$5:$AG$5)*($H$7:$AG$7)) -> 351500953.5 | G30: =output_dollars -> 2026-06-30 | I30: =Option2!I$36*conv_2026*I$7 -> 44756077.76 | J30: =Option2!J$36*conv_2026*J$7 -> 35843501.68 | K30: =Option2!K$36*conv_2026*K$7 -> 30543061.59 | L30: =Option2!L$36*conv_2026*L$7 -> 26902066.92 | M30: =Option2!M$36*conv_2026*M$7 -> 23121878.72 | N30: =Option2!N$36*conv_2026*N$7 -> 23600961.2 | O30: =Option2!O$36*conv_2026*O$7 -> 27223256.41 | P30: =Option2!P$36*conv_2026*P$7 -> 28274591.98 | Q30: =Option2!Q$36*conv_2026*Q$7 -> 29347829.37 | R30: =Option2!R$36*conv_2026*R$7 -> 29347829.37 | S30: =Option2!S$36*conv_2026*S$7 -> 29347829.37 | T30: =Option2!T$36*conv_2026*T$7 -> 29347829.37 | U30: =Option2!U$36*conv_2026*U$7 -> 29347829.37 | V30: =Option2!V$36*conv_2026*V$7 -> 29347829.37 | W30: =Option2!W$36*conv_2026*W$7 -> 29347829.37 | X30: =Option2!X$36*conv_2026*X$7 -> 0 | Y30: =Option2!Y$36*conv_2026*Y$7 -> 0 | Z30: =Option2!Z$36*conv_2026*Z$7 -> 0 | AA30: =Option2!AA$36*conv_2026*AA$7 -> 0 | AB30: =Option2!AB$36*conv_2026*AB$7 -> 0 | AC30: =Option2!AC$36*conv_2026*AC$7 -> 0 | AD30: =Option2!AD$36*conv_2026*AD$7 -> 0 | AE30: =Option2!AE$36*conv_2026*AE$7 -> 0 | AF30: =Option2!AF$36*conv_2026*AF$7 -> 0 | AG30: =Option2!AG$36*conv_2026*AG$7 -> 0
A31: Option 2 | D31: Option 2
A32: Option 2 | C32: =Option2!C$82 -> Annualised capex | D32: Option 2Annualised capex | F32: =SUMPRODUCT(($H32:$AG32)*($H$5:$AG$5)*($H$7:$AG$7)) -> -30360299.64 | G32: =output_dollars -> 2026-06-30 | I32: =Option2!I$82*conv_2026*I$7 -> 0 | J32: =Option2!J$82*conv_2026*J$7 -> -452952.7041 | K32: =Option2!K$82*conv_2026*K$7 -> -764357.6882 | L32: =Option2!L$82*conv_2026*L$7 -> -1302239.024 | M32: =Option2!M$82*conv_2026*M$7 -> -1962795.051 | N32: =Option2!N$82*conv_2026*N$7 -> -2675251.909 | O32: =Option2!O$82*conv_2026*O$7 -> -2675251.909 | P32: =Option2!P$82*conv_2026*P$7 -> -2675251.909 | Q32: =Option2!Q$82*conv_2026*Q$7 -> -2675251.909 | R32: =Option2!R$82*conv_2026*R$7 -> -2675251.909 | S32: =Option2!S$82*conv_2026*S$7 -> -2675251.909 | T32: =Option2!T$82*conv_2026*T$7 -> -2675251.909 | U32: =Option2!U$82*conv_2026*U$7 -> -2675251.909 | V32: =Option2!V$82*conv_2026*V$7 -> -2675251.909 | W32: =Option2!W$82*conv_2026*W$7 -> -2675251.909 | X32: =Option2!X$82*conv_2026*X$7 -> -2675251.909 | Y32: =Option2!Y$82*conv_2026*Y$7 -> -2675251.909 | Z32: =Option2!Z$82*conv_2026*Z$7 -> -2675251.909 | AA32: =Option2!AA$82*conv_2026*AA$7 -> -2675251.909 | AB32: =Option2!AB$82*conv_2026*AB$7 -> -2675251.909 | AC32: =Option2!AC$82*conv_2026*AC$7 -> 0 | AD32: =Option2!AD$82*conv_2026*AD$7 -> 0 | AE32: =Option2!AE$82*conv_2026*AE$7 -> 0 | AF32: =Option2!AF$82*conv_2026*AF$7 -> 0 | AG32: =Option2!AG$82*conv_2026*AG$7 -> 0
A33: Option 2 | C33: =Option2!C$83 -> Operating expenditure | D33: Option 2Operating expenditure | F33: =SUMPRODUCT(($H33:$AG33)*($H$5:$AG$5)*($H$7:$AG$7)) -> 0 | G33: 2026-06-30 | I33: =Option2!I$83*conv_2026*I$7 -> 0 | J33: =Option2!J$83*conv_2026*J$7 -> 0 | K33: =Option2!K$83*conv_2026*K$7 -> 0 | L33: =Option2!L$83*conv_2026*L$7 -> 0 | M33: =Option2!M$83*conv_2026*M$7 -> 0 | N33: =Option2!N$83*conv_2026*N$7 -> 0 | O33: =Option2!O$83*conv_2026*O$7 -> 0 | P33: =Option2!P$83*conv_2026*P$7 -> 0 | Q33: =Option2!Q$83*conv_2026*Q$7 -> 0 | R33: =Option2!R$83*conv_2026*R$7 -> 0 | S33: =Option2!S$83*conv_2026*S$7 -> 0 | T33: =Option2!T$83*conv_2026*T$7 -> 0 | U33: =Option2!U$83*conv_2026*U$7 -> 0 | V33: =Option2!V$83*conv_2026*V$7 -> 0 | W33: =Option2!W$83*conv_2026*W$7 -> 0 | X33: =Option2!X$83*conv_2026*X$7 -> 0 | Y33: =Option2!Y$83*conv_2026*Y$7 -> 0 | Z33: =Option2!Z$83*conv_2026*Z$7 -> 0 | AA33: =Option2!AA$83*conv_2026*AA$7 -> 0 | AB33: =Option2!AB$83*conv_2026*AB$7 -> 0 | AC33: =Option2!AC$83*conv_2026*AC$7 -> 0 | AD33: =Option2!AD$83*conv_2026*AD$7 -> 0 | AE33: =Option2!AE$83*conv_2026*AE$7 -> 0 | AF33: =Option2!AF$83*conv_2026*AF$7 -> 0 | AG33: =Option2!AG$83*conv_2026*AG$7 -> 0
A34: Option 2 | C34: =Option2!C$84 -> Risk mitigated | D34: Option 2Risk mitigated | F34: =SUMPRODUCT(($H34:$AG34)*($H$5:$AG$5)*($H$7:$AG$7)) -> 387218094.8 | G34: 2026-06-30 | I34: =Option2!I$84*conv_2026*I$7 -> 15291243.93 | J34: =Option2!J$84*conv_2026*J$7 -> 23920092.97 | K34: =Option2!K$84*conv_2026*K$7 -> 28097740.44 | L34: =Option2!L$84*conv_2026*L$7 -> 31034500.83 | M34: =Option2!M$84*conv_2026*M$7 -> 36387781.84 | N34: =Option2!N$84*conv_2026*N$7 -> 36962753.77 | O34: =Option2!O$84*conv_2026*O$7 -> 37265198.22 | P34: =Option2!P$84*conv_2026*P$7 -> 37281003.04 | Q34: =Option2!Q$84*conv_2026*Q$7 -> 37216895.08 | R34: =Option2!R$84*conv_2026*R$7 -> 37216895.08 | S34: =Option2!S$84*conv_2026*S$7 -> 37216895.08 | T34: =Option2!T$84*conv_2026*T$7 -> 37216895.08 | U34: =Option2!U$84*conv_2026*U$7 -> 37216895.08 | V34: =Option2!V$84*conv_2026*V$7 -> 37216895.08 | W34: =Option2!W$84*conv_2026*W$7 -> 37216895.08 | X34: =Option2!X$84*conv_2026*X$7 -> 0 | Y34: =Option2!Y$84*conv_2026*Y$7 -> 0 | Z34: =Option2!Z$84*conv_2026*Z$7 -> 0 | AA34: =Option2!AA$84*conv_2026*AA$7 -> 0 | AB34: =Option2!AB$84*conv_2026*AB$7 -> 0 | AC34: =Option2!AC$84*conv_2026*AC$7 -> 0 | AD34: =Option2!AD$84*conv_2026*AD$7 -> 0 | AE34: =Option2!AE$84*conv_2026*AE$7 -> 0 | AF34: =Option2!AF$84*conv_2026*AF$7 -> 0 | AG34: =Option2!AG$84*conv_2026*AG$7 -> 0
A35: Option 2 | C35: =Option2!C$85 -> Other benefits value | D35: Option 2Other benefits value | F35: =SUMPRODUCT(($H35:$AG35)*($H$5:$AG$5)*($H$7:$AG$7)) -> 0 | G35: 2026-06-30 | I35: =Option2!I$85*conv_2026*I$7 -> 0 | J35: =Option2!J$85*conv_2026*J$7 -> 0 | K35: =Option2!K$85*conv_2026*K$7 -> 0 | L35: =Option2!L$85*conv_2026*L$7 -> 0 | M35: =Option2!M$85*conv_2026*M$7 -> 0 | N35: =Option2!N$85*conv_2026*N$7 -> 0 | O35: =Option2!O$85*conv_2026*O$7 -> 0 | P35: =Option2!P$85*conv_2026*P$7 -> 0 | Q35: =Option2!Q$85*conv_2026*Q$7 -> 0 | R35: =Option2!R$85*conv_2026*R$7 -> 0 | S35: =Option2!S$85*conv_2026*S$7 -> 0 | T35: =Option2!T$85*conv_2026*T$7 -> 0 | U35: =Option2!U$85*conv_2026*U$7 -> 0 | V35: =Option2!V$85*conv_2026*V$7 -> 0 | W35: =Option2!W$85*conv_2026*W$7 -> 0 | X35: =Option2!X$85*conv_2026*X$7 -> 0 | Y35: =Option2!Y$85*conv_2026*Y$7 -> 0 | Z35: =Option2!Z$85*conv_2026*Z$7 -> 0 | AA35: =Option2!AA$85*conv_2026*AA$7 -> 0 | AB35: =Option2!AB$85*conv_2026*AB$7 -> 0 | AC35: =Option2!AC$85*conv_2026*AC$7 -> 0 | AD35: =Option2!AD$85*conv_2026*AD$7 -> 0 | AE35: =Option2!AE$85*conv_2026*AE$7 -> 0 | AF35: =Option2!AF$85*conv_2026*AF$7 -> 0 | AG35: =Option2!AG$85*conv_2026*AG$7 -> 0
A36: Option 2 | C36: =Option2!C87 -> Net benefits | D36: Option 2Net benefits | G36: 2026-06-30 | I36: =SUM(I32:I35) -> 15291243.93 | J36: =SUM(J32:J35) -> 23467140.27 | K36: 27333382.75 | L36: 29732261.81 | M36: 34424986.79 | N36: 34287501.86 | O36: 34589946.31 | P36: 34605751.13 | Q36: 34541643.17 | R36: 34541643.17 | S36: 34541643.17 | T36: 34541643.17 | U36: 34541643.17 | V36: 34541643.17 | W36: 34541643.17 | X36: -2675251.909 | Y36: -2675251.909 | Z36: -2675251.909 | AA36: -2675251.909 | AB36: -2675251.909 | AC36: 0 | AD36: 0 | AE36: 0 | AF36: 0 | AG36: 0
A37: Option 2 | C37: NPV | D37: Option 2NPV | F37: =SUMPRODUCT(($H36:$AG36)*($H$5:$AG$5)*($H$7:$AG$7)) -> 356857795.2 | G37: 2026-06-30
A38: Option 2 | C38: PV of costs | D38: Option 2PV of costs | F38: =SUM(F32:F33) -> -30360299.64 | G38: 2026-06-30
A39: Option 2 | C39: PV of benefits | D39: Option 2PV of benefits | F39: =SUM(F34:F35) -> 387218094.8 | G39: 2026-06-30
D41: =A41&C41 -> 
A42: =A43 -> Option 3 | C42: Energy at risk value | D42: =A42&C42 -> Option 3Energy at risk value | F42: =SUMPRODUCT($H42:$AG42, $H$5:$AG$5) -> 138778177.8 | G42: =output_dollars -> 2026-06-30 | I42: =Option3!I$28*conv_2026 -> 33794312.64 | J42: =Option3!J$28*conv_2026 -> 21423690.09 | K42: =Option3!K$28*conv_2026 -> 13273967.84 | L42: =Option3!L$28*conv_2026 -> 10250747.11 | M42: =Option3!M$28*conv_2026 -> 7393550.327 | N42: =Option3!N$28*conv_2026 -> 7401047.285 | O42: =Option3!O$28*conv_2026 -> 8035838.961 | P42: =Option3!P$28*conv_2026 -> 8215034.554 | Q42: =Option3!Q$28*conv_2026 -> 8195371.983 | R42: =Option3!R$28*conv_2026 -> 8195371.983 | S42: =Option3!S$28*conv_2026 -> 8195371.983 | T42: =Option3!T$28*conv_2026 -> 8195371.983 | U42: =Option3!U$28*conv_2026 -> 8195371.983 | V42: =Option3!V$28*conv_2026 -> 8195371.983 | W42: =Option3!W$28*conv_2026 -> 8195371.983 | X42: =Option3!X$28*conv_2026 -> 0 | Y42: =Option3!Y$28*conv_2026 -> 0 | Z42: =Option3!Z$28*conv_2026 -> 0 | AA42: =Option3!AA$28*conv_2026 -> 0 | AB42: =Option3!AB$28*conv_2026 -> 0 | AC42: =Option3!AC$28*conv_2026 -> 0 | AD42: =Option3!AD$28*conv_2026 -> 0 | AE42: =Option3!AE$28*conv_2026 -> 0 | AF42: =Option3!AF$28*conv_2026 -> 0 | AG42: =Option3!AG$28*conv_2026 -> 0
A43: =Data!B11 -> Option 3 | C43: =Option3!C$66 -> Capital expenditure | D43: =A43&C43 -> Option 3Capital expenditure | F43: =SUMPRODUCT($H43:$AG43, $H$5:$AG$5) -> -124563975.8 | G43: =output_dollars -> 2026-06-30 | I43: =SUM(Option3!I$67:I$69)*conv_2026*I$7 -> -18039151.49 | J43: =SUM(Option3!J$67:J$69)*conv_2026*J$7 -> -29327454.88 | K43: =SUM(Option3!K$67:K$69)*conv_2026*K$7 -> -31983526.26 | L43: =SUM(Option3!L$67:L$69)*conv_2026*L$7 -> -23904642.47 | M43: =SUM(Option3!M$67:M$69)*conv_2026*M$7 -> -33200892.31 | N43: =SUM(Option3!N$67:N$69)*conv_2026*N$7 -> 0 | O43: =SUM(Option3!O$67:O$69)*conv_2026*O$7 -> 0 | P43: =SUM(Option3!P$67:P$69)*conv_2026*P$7 -> 0 | Q43: =SUM(Option3!Q$67:Q$69)*conv_2026*Q$7 -> 0 | R43: =SUM(Option3!R$67:R$69)*conv_2026*R$7 -> 0 | S43: =SUM(Option3!S$67:S$69)*conv_2026*S$7 -> 0 | T43: =SUM(Option3!T$67:T$69)*conv_2026*T$7 -> 0 | U43: =SUM(Option3!U$67:U$69)*conv_2026*U$7 -> 0 | V43: =SUM(Option3!V$67:V$69)*conv_2026*V$7 -> 0 | W43: =SUM(Option3!W$67:W$69)*conv_2026*W$7 -> 0 | X43: =SUM(Option3!X$67:X$69)*conv_2026*X$7 -> 0 | Y43: =SUM(Option3!Y$67:Y$69)*conv_2026*Y$7 -> 0 | Z43: =SUM(Option3!Z$67:Z$69)*conv_2026*Z$7 -> 0 | AA43: =SUM(Option3!AA$67:AA$69)*conv_2026*AA$7 -> 0 | AB43: =SUM(Option3!AB$67:AB$69)*conv_2026*AB$7 -> 0 | AC43: =SUM(Option3!AC$67:AC$69)*conv_2026*AC$7 -> 0 | AD43: =SUM(Option3!AD$67:AD$69)*conv_2026*AD$7 -> 0 | AE43: =SUM(Option3!AE$67:AE$69)*conv_2026*AE$7 -> 0 | AF43: =SUM(Option3!AF$67:AF$69)*conv_2026*AF$7 -> 0 | AG43: =SUM(Option3!AG$67:AG$69)*conv_2026*AG$7 -> 0
A44: =A43 -> Option 3 | C44: ='Option1 (base case)'!C$36 -> Total risk cost | D44: =A44&C44 -> Option 3Total risk cost | F44: =SUMPRODUCT($H44:$AG44, $H$5:$AG$5) -> 138778177.8 | G44: =output_dollars -> 2026-06-30 | I44: =Option3!I$36*conv_2026*I$7 -> 33794312.64 | J44: =Option3!J$36*conv_2026*J$7 -> 21423690.09 | K44: =Option3!K$36*conv_2026*K$7 -> 13273967.84 | L44: =Option3!L$36*conv_2026*L$7 -> 10250747.11 | M44: =Option3!M$36*conv_2026*M$7 -> 7393550.327 | N44: =Option3!N$36*conv_2026*N$7 -> 7401047.285 | O44: =Option3!O$36*conv_2026*O$7 -> 8035838.961 | P44: =Option3!P$36*conv_2026*P$7 -> 8215034.554 | Q44: =Option3!Q$36*conv_2026*Q$7 -> 8195371.983 | R44: =Option3!R$36*conv_2026*R$7 -> 8195371.983 | S44: =Option3!S$36*conv_2026*S$7 -> 8195371.983 | T44: =Option3!T$36*conv_2026*T$7 -> 8195371.983 | U44: =Option3!U$36*conv_2026*U$7 -> 8195371.983 | V44: =Option3!V$36*conv_2026*V$7 -> 8195371.983 | W44: =Option3!W$36*conv_2026*W$7 -> 8195371.983 | X44: =Option3!X$36*conv_2026*X$7 -> 0 | Y44: =Option3!Y$36*conv_2026*Y$7 -> 0 | Z44: =Option3!Z$36*conv_2026*Z$7 -> 0 | AA44: =Option3!AA$36*conv_2026*AA$7 -> 0 | AB44: =Option3!AB$36*conv_2026*AB$7 -> 0 | AC44: =Option3!AC$36*conv_2026*AC$7 -> 0 | AD44: =Option3!AD$36*conv_2026*AD$7 -> 0 | AE44: =Option3!AE$36*conv_2026*AE$7 -> 0 | AF44: =Option3!AF$36*conv_2026*AF$7 -> 0 | AG44: =Option3!AG$36*conv_2026*AG$7 -> 0
A45: Option 3
A46: Option 3 | C46: =Option3!C$82 -> Annualised capex | D46: =A46&C46 -> Option 3Annualised capex | F46: =SUMPRODUCT($H46:$AG46, $H$5:$AG$5) -> -66747602.94 | G46: =output_dollars -> 2026-06-30 | I46: =Option3!I$82*conv_2026*I$7 -> 0 | J46: =Option3!J$82*conv_2026*J$7 -> -769075.9455 | K46: =Option3!K$82*conv_2026*K$7 -> -2019414.139 | L46: =Option3!L$82*conv_2026*L$7 -> -3382990.509 | M46: =Option3!M$82*conv_2026*M$7 -> -4402134.093 | N46: =Option3!N$82*conv_2026*N$7 -> -5817611.293 | O46: =Option3!O$82*conv_2026*O$7 -> -5817611.293 | P46: =Option3!P$82*conv_2026*P$7 -> -5817611.293 | Q46: =Option3!Q$82*conv_2026*Q$7 -> -5817611.293 | R46: =Option3!R$82*conv_2026*R$7 -> -5817611.293 | S46: =Option3!S$82*conv_2026*S$7 -> -5817611.293 | T46: =Option3!T$82*conv_2026*T$7 -> -5817611.293 | U46: =Option3!U$82*conv_2026*U$7 -> -5817611.293 | V46: =Option3!V$82*conv_2026*V$7 -> -5817611.293 | W46: =Option3!W$82*conv_2026*W$7 -> -5817611.293 | X46: =Option3!X$82*conv_2026*X$7 -> -5817611.293 | Y46: =Option3!Y$82*conv_2026*Y$7 -> -5817611.293 | Z46: =Option3!Z$82*conv_2026*Z$7 -> -5817611.293 | AA46: =Option3!AA$82*conv_2026*AA$7 -> -5817611.293 | AB46: =Option3!AB$82*conv_2026*AB$7 -> -5817611.293 | AC46: =Option3!AC$82*conv_2026*AC$7 -> 0 | AD46: =Option3!AD$82*conv_2026*AD$7 -> 0 | AE46: =Option3!AE$82*conv_2026*AE$7 -> 0 | AF46: =Option3!AF$82*conv_2026*AF$7 -> 0 | AG46: =Option3!AG$82*conv_2026*AG$7 -> 0
A47: Option 3 | C47: =Option3!C$83 -> Operating expenditure | D47: Option 3Operating expenditure | F47: =SUMPRODUCT($H47:$AG47, $H$5:$AG$5) -> 0 | G47: 2026-06-30 | I47: =Option3!I$83*conv_2026*I$7 -> 0 | J47: =Option3!J$83*conv_2026*J$7 -> 0 | K47: =Option3!K$83*conv_2026*K$7 -> 0 | L47: =Option3!L$83*conv_2026*L$7 -> 0 | M47: =Option3!M$83*conv_2026*M$7 -> 0 | N47: =Option3!N$83*conv_2026*N$7 -> 0 | O47: =Option3!O$83*conv_2026*O$7 -> 0 | P47: =Option3!P$83*conv_2026*P$7 -> 0 | Q47: =Option3!Q$83*conv_2026*Q$7 -> 0 | R47: =Option3!R$83*conv_2026*R$7 -> 0 | S47: =Option3!S$83*conv_2026*S$7 -> 0 | T47: =Option3!T$83*conv_2026*T$7 -> 0 | U47: =Option3!U$83*conv_2026*U$7 -> 0 | V47: =Option3!V$83*conv_2026*V$7 -> 0 | W47: =Option3!W$83*conv_2026*W$7 -> 0 | X47: =Option3!X$83*conv_2026*X$7 -> 0 | Y47: =Option3!Y$83*conv_2026*Y$7 -> 0 | Z47: =Option3!Z$83*conv_2026*Z$7 -> 0 | AA47: =Option3!AA$83*conv_2026*AA$7 -> 0 | AB47: =Option3!AB$83*conv_2026*AB$7 -> 0 | AC47: =Option3!AC$83*conv_2026*AC$7 -> 0 | AD47: =Option3!AD$83*conv_2026*AD$7 -> 0 | AE47: =Option3!AE$83*conv_2026*AE$7 -> 0 | AF47: =Option3!AF$83*conv_2026*AF$7 -> 0 | AG47: =Option3!AG$83*conv_2026*AG$7 -> 0
A48: Option 3 | C48: =Option3!C$84 -> Risk mitigated | D48: Option 3Risk mitigated | F48: =SUMPRODUCT($H48:$AG48, $H$5:$AG$5) -> 599940870.5 | G48: 2026-06-30 | I48: =Option3!I$84*conv_2026*I$7 -> 26253009.05 | J48: =Option3!J$84*conv_2026*J$7 -> 38339904.56 | K48: =Option3!K$84*conv_2026*K$7 -> 45366834.19 | L48: =Option3!L$84*conv_2026*L$7 -> 47685820.64 | M48: =Option3!M$84*conv_2026*M$7 -> 52116110.23 | N48: =Option3!N$84*conv_2026*N$7 -> 53162667.68 | O48: =Option3!O$84*conv_2026*O$7 -> 56452615.67 | P48: =Option3!P$84*conv_2026*P$7 -> 57340560.47 | Q48: =Option3!Q$84*conv_2026*Q$7 -> 58369352.47 | R48: =Option3!R$84*conv_2026*R$7 -> 58369352.47 | S48: =Option3!S$84*conv_2026*S$7 -> 58369352.47 | T48: =Option3!T$84*conv_2026*T$7 -> 58369352.47 | U48: =Option3!U$84*conv_2026*U$7 -> 58369352.47 | V48: =Option3!V$84*conv_2026*V$7 -> 58369352.47 | W48: =Option3!W$84*conv_2026*W$7 -> 58369352.47 | X48: =Option3!X$84*conv_2026*X$7 -> 0 | Y48: =Option3!Y$84*conv_2026*Y$7 -> 0 | Z48: =Option3!Z$84*conv_2026*Z$7 -> 0 | AA48: =Option3!AA$84*conv_2026*AA$7 -> 0 | AB48: =Option3!AB$84*conv_2026*AB$7 -> 0 | AC48: =Option3!AC$84*conv_2026*AC$7 -> 0 | AD48: =Option3!AD$84*conv_2026*AD$7 -> 0 | AE48: =Option3!AE$84*conv_2026*AE$7 -> 0 | AF48: =Option3!AF$84*conv_2026*AF$7 -> 0 | AG48: =Option3!AG$84*conv_2026*AG$7 -> 0
A49: Option 3 | C49: =Option3!C$85 -> Other benefits value | D49: Option 3Other benefits value | F49: =SUMPRODUCT($H49:$AG49, $H$5:$AG$5) -> 0 | G49: 2026-06-30 | I49: =Option3!I$85*conv_2026*I$7 -> 0 | J49: =Option3!J$85*conv_2026*J$7 -> 0 | K49: =Option3!K$85*conv_2026*K$7 -> 0 | L49: =Option3!L$85*conv_2026*L$7 -> 0 | M49: =Option3!M$85*conv_2026*M$7 -> 0 | N49: =Option3!N$85*conv_2026*N$7 -> 0 | O49: =Option3!O$85*conv_2026*O$7 -> 0 | P49: =Option3!P$85*conv_2026*P$7 -> 0 | Q49: =Option3!Q$85*conv_2026*Q$7 -> 0 | R49: =Option3!R$85*conv_2026*R$7 -> 0 | S49: =Option3!S$85*conv_2026*S$7 -> 0 | T49: =Option3!T$85*conv_2026*T$7 -> 0 | U49: =Option3!U$85*conv_2026*U$7 -> 0 | V49: =Option3!V$85*conv_2026*V$7 -> 0 | W49: =Option3!W$85*conv_2026*W$7 -> 0 | X49: =Option3!X$85*conv_2026*X$7 -> 0 | Y49: =Option3!Y$85*conv_2026*Y$7 -> 0 | Z49: =Option3!Z$85*conv_2026*Z$7 -> 0 | AA49: =Option3!AA$85*conv_2026*AA$7 -> 0 | AB49: =Option3!AB$85*conv_2026*AB$7 -> 0 | AC49: =Option3!AC$85*conv_2026*AC$7 -> 0 | AD49: =Option3!AD$85*conv_2026*AD$7 -> 0 | AE49: =Option3!AE$85*conv_2026*AE$7 -> 0 | AF49: =Option3!AF$85*conv_2026*AF$7 -> 0 | AG49: =Option3!AG$85*conv_2026*AG$7 -> 0
A50: Option 3 | C50: =Option3!C87 -> Net benefits | D50: Option 3Net benefits | G50: 2026-06-30 | I50: =SUM(I46:I49) -> 26253009.05 | J50: 37570828.62 | K50: 43347420.05 | L50: 44302830.14 | M50: 47713976.14 | N50: 47345056.39 | O50: 50635004.37 | P50: 51522949.18 | Q50: 52551741.18 | R50: 52551741.18 | S50: 52551741.18 | T50: 52551741.18 | U50: 52551741.18 | V50: 52551741.18 | W50: 52551741.18 | X50: -5817611.293 | Y50: -5817611.293 | Z50: -5817611.293 | AA50: -5817611.293 | AB50: -5817611.293 | AC50: =SUM(AC46:AC49) -> 0 | AD50: =SUM(AD46:AD49) -> 0 | AE50: =SUM(AE46:AE49) -> 0 | AF50: =SUM(AF46:AF49) -> 0 | AG50: =SUM(AG46:AG49) -> 0
A51: Option 3 | C51: NPV | D51: Option 3NPV | F51: =SUMPRODUCT(($H50:$AG50)*($H$5:$AG$5)*($H$7:$AG$7)) -> 533193267.6 | G51: 2026-06-30
A52: Option 3 | C52: PV of costs | D52: Option 3PV of costs | F52: =SUM(F46:F47) -> -66747602.94 | G52: 2026-06-30
A53: Option 3 | C53: PV of benefits | D53: Option 3PV of benefits | F53: =SUM(F48:F49) -> 599940870.5 | G53: 2026-06-30
A56: =A57 -> Option 4 | C56: Energy at risk value | D56: =A56&C56 -> Option 4Energy at risk value | F56: =SUMPRODUCT($H56:$AG56, $H$5:$AG$5) -> 0 | G56: =output_dollars -> 2026-06-30 | I56: =Option4!I$28*conv_2026 -> 0 | J56: =Option4!J$28*conv_2026 -> 0 | K56: =Option4!K$28*conv_2026 -> 0 | L56: =Option4!L$28*conv_2026 -> 0 | M56: =Option4!M$28*conv_2026 -> 0 | N56: =Option4!N$28*conv_2026 -> 0 | O56: =Option4!O$28*conv_2026 -> 0 | P56: =Option4!P$28*conv_2026 -> 0 | Q56: =Option4!Q$28*conv_2026 -> 0 | R56: =Option4!R$28*conv_2026 -> 0 | S56: =Option4!S$28*conv_2026 -> 0 | T56: =Option4!T$28*conv_2026 -> 0 | U56: =Option4!U$28*conv_2026 -> 0 | V56: =Option4!V$28*conv_2026 -> 0 | W56: =Option4!W$28*conv_2026 -> 0 | X56: =Option4!X$28*conv_2026 -> 0 | Y56: =Option4!Y$28*conv_2026 -> 0 | Z56: =Option4!Z$28*conv_2026 -> 0 | AA56: =Option4!AA$28*conv_2026 -> 0 | AB56: =Option4!AB$28*conv_2026 -> 0 | AC56: =Option4!AC$28*conv_2026 -> 0 | AD56: =Option4!AD$28*conv_2026 -> 0 | AE56: =Option4!AE$28*conv_2026 -> 0 | AF56: =Option4!AF$28*conv_2026 -> 0 | AG56: =Option4!AG$28*conv_2026 -> 0
A57: =Data!B12 -> Option 4 | C57: =Option4!C$66 -> Capital expenditure | D57: =A57&C57 -> Option 4Capital expenditure | F57: =SUMPRODUCT($H57:$AG57, $H$5:$AG$5) -> 0 | G57: =output_dollars -> 2026-06-30 | I57: =SUM(Option4!I$67:I$69)*conv_2026*I$7 -> 0 | J57: =SUM(Option4!J$67:J$69)*conv_2026*J$7 -> 0 | K57: =SUM(Option4!K$67:K$69)*conv_2026*K$7 -> 0 | L57: =SUM(Option4!L$67:L$69)*conv_2026*L$7 -> 0 | M57: =SUM(Option4!M$67:M$69)*conv_2026*M$7 -> 0 | N57: =SUM(Option4!N$67:N$69)*conv_2026*N$7 -> 0 | O57: =SUM(Option4!O$67:O$69)*conv_2026*O$7 -> 0 | P57: =SUM(Option4!P$67:P$69)*conv_2026*P$7 -> 0 | Q57: =SUM(Option4!Q$67:Q$69)*conv_2026*Q$7 -> 0 | R57: =SUM(Option4!R$67:R$69)*conv_2026*R$7 -> 0 | S57: =SUM(Option4!S$67:S$69)*conv_2026*S$7 -> 0 | T57: =SUM(Option4!T$67:T$69)*conv_2026*T$7 -> 0 | U57: =SUM(Option4!U$67:U$69)*conv_2026*U$7 -> 0 | V57: =SUM(Option4!V$67:V$69)*conv_2026*V$7 -> 0 | W57: =SUM(Option4!W$67:W$69)*conv_2026*W$7 -> 0 | X57: =SUM(Option4!X$67:X$69)*conv_2026*X$7 -> 0 | Y57: =SUM(Option4!Y$67:Y$69)*conv_2026*Y$7 -> 0 | Z57: =SUM(Option4!Z$67:Z$69)*conv_2026*Z$7 -> 0 | AA57: =SUM(Option4!AA$67:AA$69)*conv_2026*AA$7 -> 0 | AB57: =SUM(Option4!AB$67:AB$69)*conv_2026*AB$7 -> 0 | AC57: =SUM(Option4!AC$67:AC$69)*conv_2026*AC$7 -> 0 | AD57: =SUM(Option4!AD$67:AD$69)*conv_2026*AD$7 -> 0 | AE57: =SUM(Option4!AE$67:AE$69)*conv_2026*AE$7 -> 0 | AF57: =SUM(Option4!AF$67:AF$69)*conv_2026*AF$7 -> 0 | AG57: =SUM(Option4!AG$67:AG$69)*conv_2026*AG$7 -> 0
A58: =A57 -> Option 4 | C58: ='Option1 (base case)'!C$36 -> Total risk cost | D58: Option 4Total risk cost | F58: =SUMPRODUCT($H58:$AG58, $H$5:$AG$5) -> 0 | G58: =output_dollars -> 2026-06-30 | I58: =Option4!I$36*conv_2026*I$7 -> 0 | J58: =Option4!J$36*conv_2026*J$7 -> 0 | K58: =Option4!K$36*conv_2026*K$7 -> 0 | L58: =Option4!L$36*conv_2026*L$7 -> 0 | M58: =Option4!M$36*conv_2026*M$7 -> 0 | N58: =Option4!N$36*conv_2026*N$7 -> 0 | O58: =Option4!O$36*conv_2026*O$7 -> 0 | P58: =Option4!P$36*conv_2026*P$7 -> 0 | Q58: =Option4!Q$36*conv_2026*Q$7 -> 0 | R58: =Option4!R$36*conv_2026*R$7 -> 0 | S58: =Option4!S$36*conv_2026*S$7 -> 0 | T58: =Option4!T$36*conv_2026*T$7 -> 0 | U58: =Option4!U$36*conv_2026*U$7 -> 0 | V58: =Option4!V$36*conv_2026*V$7 -> 0 | W58: =Option4!W$36*conv_2026*W$7 -> 0 | X58: =Option4!X$36*conv_2026*X$7 -> 0 | Y58: =Option4!Y$36*conv_2026*Y$7 -> 0 | Z58: =Option4!Z$36*conv_2026*Z$7 -> 0 | AA58: =Option4!AA$36*conv_2026*AA$7 -> 0 | AB58: =Option4!AB$36*conv_2026*AB$7 -> 0 | AC58: =Option4!AC$36*conv_2026*AC$7 -> 0 | AD58: =Option4!AD$36*conv_2026*AD$7 -> 0 | AE58: =Option4!AE$36*conv_2026*AE$7 -> 0 | AF58: =Option4!AF$36*conv_2026*AF$7 -> 0 | AG58: =Option4!AG$36*conv_2026*AG$7 -> 0
A59: Option 4 | D59: Option 4
A60: Option 4 | C60: =Option4!C$82 -> Annualised capex | D60: Option 4Annualised capex | F60: =SUMPRODUCT($H60:$AG60, $H$5:$AG$5) -> 0 | G60: =output_dollars -> 2026-06-30 | I60: =Option4!I$82*conv_2026*I$7 -> 0 | J60: =Option4!J$82*conv_2026*J$7 -> 0 | K60: =Option4!K$82*conv_2026*K$7 -> 0 | L60: =Option4!L$82*conv_2026*L$7 -> 0 | M60: =Option4!M$82*conv_2026*M$7 -> 0 | N60: =Option4!N$82*conv_2026*N$7 -> 0 | O60: =Option4!O$82*conv_2026*O$7 -> 0 | P60: =Option4!P$82*conv_2026*P$7 -> 0 | Q60: =Option4!Q$82*conv_2026*Q$7 -> 0 | R60: =Option4!R$82*conv_2026*R$7 -> 0 | S60: =Option4!S$82*conv_2026*S$7 -> 0 | T60: =Option4!T$82*conv_2026*T$7 -> 0 | U60: =Option4!U$82*conv_2026*U$7 -> 0 | V60: =Option4!V$82*conv_2026*V$7 -> 0 | W60: =Option4!W$82*conv_2026*W$7 -> 0 | X60: =Option4!X$82*conv_2026*X$7 -> 0 | Y60: =Option4!Y$82*conv_2026*Y$7 -> 0 | Z60: =Option4!Z$82*conv_2026*Z$7 -> 0 | AA60: =Option4!AA$82*conv_2026*AA$7 -> 0 | AB60: =Option4!AB$82*conv_2026*AB$7 -> 0 | AC60: =Option4!AC$82*conv_2026*AC$7 -> 0 | AD60: =Option4!AD$82*conv_2026*AD$7 -> 0 | AE60: =Option4!AE$82*conv_2026*AE$7 -> 0 | AF60: =Option4!AF$82*conv_2026*AF$7 -> 0 | AG60: =Option4!AG$82*conv_2026*AG$7 -> 0
